{"text_format":"1","workbook":"xlsx","n_sheets":18,"sheets":["Foreword","Information","CHVA Tool - Data Entry","Sheet2","Top 20 Events","Response Pivot","Total Pivot","Occurence Pivot","Main Data","Top 30 Print"," Graphs","Top data","Data 2","High Risk Events ","High Occurrence & Response ","Documentation ","AUTHOR","GNU GPL"],"not_rendered":{"charts":10,"images":2,"macros":1,"external_links":0,"defined_names":6,"comments":1,"pivot_tables":8},"unopened":[],"bounds":{"document_bytes":16777216,"sheet_cells":100000,"rows_first":2000,"rows_last":500,"rows_between":2000,"halvings":0,"cell_chars":16384,"cell_head_chars":4096},"cells_cut":0,"cells_raw":0,"read":"whole","date_system":"1900"}

{"sheet":"Foreword","index":0,"n_rows":2,"n_cols":5,"rows_kept":2,"cut":false,"hidden":false,"merged":[]}
[]
[null,null,null,null,"Community Hazard Vulnerabilty Assessment (CHVA)"]

{"sheet":"Information","index":1,"n_rows":36,"n_cols":10,"rows_kept":36,"cut":false,"hidden":false,"merged":[[0,0,0,14]]}
["Community Hazard Vulnerability Assessment"]
[]
[]
[]
[]
[]
["INSTRUCTIONS:"]
["Evaluate potential for event and response among the following categories using",null,null,null,null,null,null,null,"Issues to consider for mitigation, preparedness, response, and recovery "]
["the hazard-specific scale.  Please note specific score criteria on the worksheet ",null,null,null,null,null,null,null,"include, but are not limited to:     "]
["to ensure accurate recording.",null,null,null,null,null,null,null,1,"Status of current plans"]
[null,null,null,null,null,null,null,null,2,"Frequency of drills"]
["Issues to consider for probability include, but are not limited to:",null,null,null,null,null,null,null,3,"Training status"]
[1,"Known risk",null,null,null,null,null,null,4,"Insurance"]
[2,"Historical data",null,null,null,null,null,null,5,"Availability of alternate sources for critical supplies/services"]
[3,"Manufacturer/vendor statistics",null,null,null,null,null,null,6,"Time to marshal an on-scene response"]
[null,null,null,null,null,null,null,null,7,"Scope of response capability"]
["Issues to consider for human impact include, but are not limited to:",null,null,null,null,null,null,null,8,"Historical evaluation of response success"]
[1,"Potential for death",null,null,null,null,null,null,9,"Time to prepare and mitigate which may be event specific"]
[2,"Potential for injury requiring medical intervention"]
[null,null,null,null,null,null,null,null,"Issues to consider for internal resources include, but are not limited to:"]
["Issues to consider for property impact include, but are not limited to:",null,null,null,null,null,null,null,1,"Types of supplies on hand/will they meet need?"]
[1,"Cost to replace",null,null,null,null,null,null,2,"Volume of supplies on hand/will they meet need?"]
[2,"Cost to set up temporary replacement",null,null,null,null,null,null,3,"Staff availability"]
[3,"Cost to repair",null,null,null,null,null,null,4,"Availability of back-up systems"]
[4,"Time to recover",null,null,null,null,null,null,5,"Internal resources ability to withstand disasters/survivability"]
[]
["Issues to consider for business impact include, but are not limited to:",null,null,null,null,null,null,null,"Issues to consider for external resources include, but are not limited to:"]
[1,"Business interruption",null,null,null,null,null,null,1,"Types of agreements with community agencies/drills?"]
[2,"Employees unable to report to work",null,null,null,null,null,null,2,"Coordination with local and state agencies"]
[3,"Customers unable to reach facility",null,null,null,null,null,null,3,"Coordination with proximal health care facilities"]
[4,"Company in violation of contractual agreements",null,null,null,null,null,null,4,"Coordination with treatment specific facilities"]
[5,"Imposition of fines and penalties or legal costs",null,null,null,null,null,null,5,"Community resources"]
[6,"Interruption of critical supplies"]
[7,"Interruption of product distribution"]
[8,"Reputation and public image"]
[9,"Financial impact/burden"]

{"sheet":"CHVA Tool - Data Entry","index":2,"n_rows":178,"n_cols":17,"rows_kept":178,"cut":false,"hidden":false,"merged":[[3,16,4,16],[3,15,4,15],[1,0,4,0],[0,6,0,13],[1,1,1,2],[2,1,2,2],[3,1,4,2],[3,3,4,3],[3,4,4,4],[0,0,0,2],[1,6,1,7],[1,8,1,9],[1,10,1,11],[1,12,1,13],[3,5,4,5],[3,6,4,6],[150,3,150,5],[150,6,150,13],[119,3,119,5],[119,6,119,13],[24,3,24,5],[24,6,24,13],[135,3,135,5],[135,6,135,13],[79,3,79,5],[79,6,79,13],[66,3,66,5],[66,6,66,13],[91,3,91,5],[91,6,91,13],[3,14,4,14],[49,3,49,5],[49,6,49,13],[3,9,4,9],[3,10,4,10],[3,11,4,11],[3,12,4,12],[3,7,4,7],[3,8,4,8],[3,13,4,13],[5,3,5,5],[5,6,5,13]]}
["Children's Hospital Colorado",null,null,"Trauma Rating:  ",1,null,"Four Phases of Emergency Management",null,null,null,null,null,null,null,null,"Version 1.0 (8/13)"]
["                              COMMUNITY HAZARD VULNERABILITY ASSESSMENT TOOL","PROBABILITY",null,"HUMAN IMPACT","PROPERTY IMPACT","BUSINESS IMPACT","MITIGATION",null,"PREPAREDNESS",null,"RESPONSE",null,"RECOVERY",null,"RISK  Occurrence","RISK     Response","Non Weighted "]
[null,"Likelihood of future occurrence and facility response",null,"Percentage of population likely to be injured or killed under an average occurrence of the hazard","Percentage of properties likely to be affected under an average occurrence of the hazard","Percentage of businesses likely to be affected under an average occurrence of the hazard","Internal        (Jurisdic-tional)","External        (Region/ State)","Internal        (Jurisdic-tional)","External        (Region/ State)","Internal        (Jurisdic-tional)","External        (Region/ State)","Internal        (Jurisdic-tional)","External        (Region/ State)","Relative threat (increases with percentage)","Relative threat (increases with percentage)","Realtive threat (increases with number)"]
[null,"0 = N/A  (implausible)                                                                                                                                      1 = Low (0-1 event / 30 years)                                                                               2 = Moderate (2-3 events / 30 years)                                                                                                            3 = High (4+ events / 30 years)                                                                                                            ",null,"0 = N/A  (no impact expected)                                                                                                             1 = Low (<1% affected)                                                                               2 = Moderate (1-10% affected)                                                 3 = High (>10% affected)    ","0 = N/A  (no impact expected)                                                                                                             1 = Low (<1% affected)                                                                               2 = Moderate (1-10% affected)                                                 3 = High (>10% affected)    ","0 = N/A  (no impact expected)                                                                                                             1 = Low (<1% affected)                                                                               2 = Moderate (1-10% affected)                                                 3 = High (>10% affected)    ","1 = Substantial                                                       2 = Moderate                                                        3 = Limited or none","1 = Substantial                                                       2 = Moderate                                                        3 = Limited or none","1 = Substantial                                                       2 = Moderate                                                        3 = Limited or none","1 = Substantial                                                       2 = Moderate                                                        3 = Limited or none","1 = Substantial                                                       2 = Moderate                                                        3 = Limited or none","1 = Substantial                                                       2 = Moderate                                                        3 = Limited or none","1 = Substantial                                                       2 = Moderate                                                        3 = Limited or none","1 = Substantial                                                       2 = Moderate                                                        3 = Limited or none","0 - 100%","0 - 100%","0 - 198"]
[]
["National Planning Scenarios","Occurrence","Response"]
["Biological Attack – Aerosol Anthrax ",3,3,1,2,3,1,2,2,1,3,2,1,2,{"$f":"SUM(B7/3)*(((SUM(D7:F7)+(SUM(G7:N7)*2))/57))","v":0.59649122807017541},{"$f":"SUM(C7/3)*(((SUM(D7:F7)+(SUM(G7:N7)*2))/57))","v":0.59649122807017541},{"$f":"SUM(D7:N7)*(B7+C7)","v":120}]
["Biological Attack – Food Contamination ",3,3,1,2,3,1,2,2,1,3,2,1,2,{"$f":"SUM(B8/3)*(((SUM(D8:F8)+(SUM(G8:N8)*2))/57))","v":0.59649122807017541},{"$f":"SUM(C8/3)*(((SUM(D8:F8)+(SUM(G8:N8)*2))/57))","v":0.59649122807017541},{"$f":"SUM(D8:N8)*(B8+C8)","v":120}]
["Biological Attack – Foreign Animal Disease ",3,2,1,2,3,1,2,2,1,3,2,1,2,0.59649122807017541,0.39766081871345027,{"$f":"SUM(D9:N9)*(B9+C9)","v":100}]
["Biological Attack – Plague ",3,2,1,2,3,1,2,2,1,3,2,1,2,0.59649122807017541,0.39766081871345027,100]
["Biological Disease Outbreak – Pandemic flu",1,2,1,2,3,1,2,2,1,3,2,1,2,0.19883040935672514,0.39766081871345027,60]
["Chemical Attack – Blister Agent ",1,2,1,2,3,1,2,2,1,3,2,1,2,0.19883040935672514,0.39766081871345027,60]
["Chemical Attack – Chlorine Tank Explosion ",1,2,1,2,3,1,2,2,1,3,2,1,2,0.19883040935672514,0.39766081871345027,60]
["Chemical Attack – Nerve Agent",1,2,1,2,3,1,2,2,1,3,2,1,2,0.19883040935672514,0.39766081871345027,60]
["Chemical Attack – Toxic Industrial Chemicals",1,2,1,2,3,1,2,2,1,3,2,1,2,0.19883040935672514,0.39766081871345027,60]
["Cyber Attack ",1,2,1,2,3,1,2,2,1,3,2,1,2,0.19883040935672514,0.39766081871345027,60]
["Explosives Attack – Improvised Explosive ",1,2,1,2,3,1,2,2,1,3,2,1,2,0.19883040935672514,0.39766081871345027,60]
["Natural Disaster – Major Earthquake ",1,2,1,2,3,1,2,2,1,3,2,1,2,0.19883040935672514,0.39766081871345027,60]
["Natural Disaster – Major Hurricane",1,2,1,2,3,1,2,2,1,3,2,1,2,0.19883040935672514,0.39766081871345027,60]
["Nuclear Detonation – Improvised  Device",1,2,1,2,3,1,2,2,1,3,2,1,2,0.19883040935672514,0.39766081871345027,60]
["Radiological Attack – Radiological Dispersal ",1,2,1,2,3,1,2,2,1,3,2,1,2,0.19883040935672514,0.39766081871345027,60]
[null,null,null,null,null,null,null,null,null,null,null,null,null,null,0,0,0]
[null,null,null,null,null,null,null,null,null,null,null,null,null,null,{"$f":"SUM(B23/3)*(((SUM(D23:F23)+(SUM(G23:N23)*2))/57))","v":0},{"$f":"SUM(C23/3)*(((SUM(D23:F23)+(SUM(G23:N23)*2))/57))","v":0},{"$f":"SUM(D23:N23)*(B23+C23)","v":0}]
["Average: ",{"$f":"AVERAGE(B7:B23)","v":1.5333333333333334},{"$f":"AVERAGE(C7:C23)","v":2.1333333333333333},1,2,3,1,2,2,1,3,2,1,2]
["Naturally Occurring Events "]
["Avalanche",3,3,1,2,3,2,2,3,1,1,3,2,1,{"$f":"SUM(B26/3)*(((SUM(D26:F26)+(SUM(G26:N26)*2))/57))","v":0.63157894736842102},{"$f":"SUM(C26/3)*(((SUM(D26:F26)+(SUM(G26:N26)*2))/57))","v":0.63157894736842102},{"$f":"SUM(D26:N26)*(B26+C26)","v":126}]
["Dam Inundation",3,3,1,2,3,2,2,3,1,1,3,2,1,{"$f":"SUM(B27/3)*(((SUM(D27:F27)+(SUM(G27:N27)*2))/57))","v":0.63157894736842102},{"$f":"SUM(C27/3)*(((SUM(D27:F27)+(SUM(G27:N27)*2))/57))","v":0.63157894736842102},{"$f":"SUM(D27:N27)*(B27+C27)","v":126}]
["Drought",2,2,1,2,3,2,2,3,1,1,3,2,1,0.42105263157894735,0.42105263157894735,84]
["Earthquake",2,2,1,2,3,2,2,3,1,1,3,2,1,0.42105263157894735,0.42105263157894735,84]
["Epidemic/Pandemic",1,2,1,2,3,2,2,3,1,1,3,2,1,0.21052631578947367,0.42105263157894735,63]
["Flood (External)",1,2,1,2,3,2,2,3,1,1,3,2,1,0.21052631578947367,0.42105263157894735,63]
["Hail",1,2,1,2,3,2,2,3,1,1,3,2,1,{"$f":"SUM(B32/3)*(((SUM(D32:F32)+(SUM(G32:N32)*2))/57))","v":0.21052631578947367},{"$f":"SUM(C32/3)*(((SUM(D32:F32)+(SUM(G32:N32)*2))/57))","v":0.42105263157894735},{"$f":"SUM(D32:N32)*(B32+C32)","v":63}]
["High Winds",1,2,1,2,3,2,2,3,1,1,3,2,1,0.21052631578947367,0.42105263157894735,63]
["Hurricane",1,2,1,2,3,2,2,3,1,1,3,2,1,{"$f":"SUM(B34/3)*(((SUM(D34:F34)+(SUM(G34:N34)*2))/57))","v":0.21052631578947367},{"$f":"SUM(C34/3)*(((SUM(D34:F34)+(SUM(G34:N34)*2))/57))","v":0.42105263157894735},{"$f":"SUM(D34:N34)*(B34+C34)","v":63}]
["Ice Storm",1,2,1,2,3,2,2,3,1,1,3,2,1,0.21052631578947367,0.42105263157894735,63]
["Insect Infestation",1,2,1,2,3,2,2,3,1,1,3,2,1,0.21052631578947367,0.42105263157894735,63]
["Landslide",1,2,1,2,3,2,2,3,1,1,3,2,1,0.21052631578947367,0.42105263157894735,63]
["Severe Blizzard/Snow Fall",1,2,1,2,3,2,2,3,1,1,3,2,1,0.21052631578947367,0.42105263157894735,63]
["Severe Thunderstorm",1,2,1,2,3,2,2,3,1,1,3,2,1,0.21052631578947367,0.42105263157894735,63]
["Solar Flares",1,2,1,2,3,2,2,3,1,1,3,2,1,0.21052631578947367,0.42105263157894735,63]
["Temperature Extreme (Cold)",1,2,1,2,3,2,2,3,1,1,3,2,1,0.21052631578947367,0.42105263157894735,63]
["Temperature Extreme (Hot)",1,2,1,2,3,2,2,3,1,1,3,2,1,0.21052631578947367,0.42105263157894735,63]
["Tidal Wave",1,2,1,2,3,2,2,3,1,1,3,2,1,{"$f":"SUM(B43/3)*(((SUM(D43:F43)+(SUM(G43:N43)*2))/57))","v":0.21052631578947367},{"$f":"SUM(C43/3)*(((SUM(D43:F43)+(SUM(G43:N43)*2))/57))","v":0.42105263157894735},{"$f":"SUM(D43:N43)*(B43+C43)","v":63}]
["Tornado",1,2,1,2,3,2,2,3,1,1,3,2,1,0.21052631578947367,0.42105263157894735,63]
["Volcano",1,2,1,2,3,2,2,3,1,1,3,2,1,0.21052631578947367,0.42105263157894735,63]
["Wild Fire",1,2,1,2,3,2,2,3,1,1,3,2,1,0.21052631578947367,0.42105263157894735,63]
[null,null,null,null,null,null,null,null,null,null,null,null,null,null,{"$f":"SUM(B47/3)*(((SUM(D47:F47)+(SUM(G47:N47)*2))/57))","v":0},{"$f":"SUM(C47/3)*(((SUM(D47:F47)+(SUM(G47:N47)*2))/57))","v":0},{"$f":"SUM(D47:N47)*(B47+C47)","v":0}]
[null,null,null,null,null,null,null,null,null,null,null,null,null,null,{"$f":"SUM(B48/3)*(((SUM(D48:F48)+(SUM(G48:N48)*2))/57))","v":0},{"$f":"SUM(C48/3)*(((SUM(D48:F48)+(SUM(G48:N48)*2))/57))","v":0},{"$f":"SUM(D48:N48)*(B48+C48)","v":0}]
["Average: ",{"$f":"AVERAGE(B26:B48)","v":1.2857142857142858},{"$f":"AVERAGE(C26:C48)","v":2.0952380952380953},1,2,3,2,2,3,1,1,3,2,1]
["Human Related Events "]
["Active Shooter",3,3,3,1,2,2,2,1,3,2,3,1,1,{"$f":"SUM(B51/3)*(((SUM(D51:F51)+(SUM(G51:N51)*2))/57))","v":0.63157894736842102},{"$f":"SUM(C51/3)*(((SUM(D51:F51)+(SUM(G51:N51)*2))/57))","v":0.63157894736842102},{"$f":"SUM(D51:N51)*(B51+C51)","v":126}]
["Bomb Threat",3,3,3,1,2,2,2,1,3,2,3,1,1,0.63157894736842102,0.63157894736842102,126]
["Civil Disturbance",2,2,3,1,2,2,2,1,3,2,3,1,1,0.42105263157894735,0.42105263157894735,84]
["Forensic Admission",2,2,3,1,2,2,3,1,3,2,3,1,1,{"$f":"SUM(B54/3)*(((SUM(D54:F54)+(SUM(G54:N54)*2))/57))","v":0.44444444444444442},{"$f":"SUM(C54/3)*(((SUM(D54:F54)+(SUM(G54:N54)*2))/57))","v":0.44444444444444442},{"$f":"SUM(D54:N54)*(B54+C54)","v":88}]
["Hostage Situation",2,1,3,1,2,2,2,1,3,2,3,1,1,0.42105263157894735,0.21052631578947367,63]
["Infant Abduction",2,1,3,1,2,2,2,1,3,2,3,1,1,0.42105263157894735,0.21052631578947367,63]
["Labor Action",2,1,3,1,2,2,2,1,3,2,3,1,1,0.42105263157894735,0.21052631578947367,63]
["Mass Casualty (Trauma)",2,1,3,1,2,2,2,1,3,2,3,1,1,0.42105263157894735,0.21052631578947367,63]
["Missing Child",2,1,3,1,2,2,2,1,3,2,3,1,1,0.42105263157894735,0.21052631578947367,63]
["Staffing Shortage",2,1,3,1,2,2,2,1,3,2,3,1,1,{"$f":"SUM(B60/3)*(((SUM(D60:F60)+(SUM(G60:N60)*2))/57))","v":0.42105263157894735},{"$f":"SUM(C60/3)*(((SUM(D60:F60)+(SUM(G60:N60)*2))/57))","v":0.21052631578947367},{"$f":"SUM(D60:N60)*(B60+C60)","v":63}]
["Violence in the ED",2,1,3,1,2,2,2,1,3,2,3,1,1,0.42105263157894735,0.21052631578947367,63]
["VIP Situation",2,1,3,1,2,2,2,1,3,2,3,1,1,0.42105263157894735,0.21052631578947367,63]
["Workplace Violence",2,1,3,1,2,2,2,1,3,2,3,1,1,0.42105263157894735,0.21052631578947367,63]
[null,null,null,null,null,null,null,null,null,null,null,null,null,null,{"$f":"SUM(B64/3)*(((SUM(D64:F64)+(SUM(G64:N64)*2))/57))","v":0},{"$f":"SUM(C64/3)*(((SUM(D64:F64)+(SUM(G64:N64)*2))/57))","v":0},{"$f":"SUM(D64:N64)*(B64+C64)","v":0}]
[null,null,null,null,null,null,null,null,null,null,null,null,null,null,0,0,0]
["Average: ",{"$f":"AVERAGE(B51:B65)","v":2.1538461538461537},1.4615384615384615,3,1,2,2,2.0769230769230771,1,3,2,3,1,1]
["Hazardous Materials Events"]
["Decontamination",3,3,2,3,1,2,2,1,1,2,2,3,3,{"$f":"SUM(B68/3)*(((SUM(D68:F68)+(SUM(G68:N68)*2))/57))","v":0.66666666666666663},{"$f":"SUM(C68/3)*(((SUM(D68:F68)+(SUM(G68:N68)*2))/57))","v":0.66666666666666663},{"$f":"SUM(D68:N68)*(B68+C68)","v":132}]
["HAZMAT Spill (Internal)",3,3,2,3,1,2,2,1,1,2,2,3,3,0.66666666666666663,0.66666666666666663,132]
["HAZMAT Spill (External)",2,1,2,3,1,2,2,1,1,2,2,3,3,{"$f":"SUM(B70/3)*(((SUM(D70:F70)+(SUM(G70:N70)*2))/57))","v":0.44444444444444442},{"$f":"SUM(C70/3)*(((SUM(D70:F70)+(SUM(G70:N70)*2))/57))","v":0.22222222222222221},{"$f":"SUM(D70:N70)*(B70+C70)","v":66}]
["Indoor Air Quality Issues",2,1,2,3,1,2,2,1,1,2,2,3,3,0.44444444444444442,0.22222222222222221,66]
["Large Internal Spill",2,1,2,3,1,2,2,1,1,2,2,3,3,0.44444444444444442,0.22222222222222221,66]
["Radiologic Exposure (Internal) ",2,1,2,3,1,2,2,1,1,2,2,3,3,0.44444444444444442,0.22222222222222221,66]
["Radiological Incident (External)",2,1,2,3,1,2,2,1,1,2,2,3,3,0.44444444444444442,{"$f":"SUM(C74/3)*(((SUM(D74:F74)+(SUM(G74:N74)*2))/57))","v":0.22222222222222221},{"$f":"SUM(D74:N74)*(B74+C74)","v":66}]
["Small-Medium Sized Internal Spill",2,1,2,3,1,2,2,1,1,2,2,3,3,0.44444444444444442,0.22222222222222221,66]
["Unknown Explosion",2,1,2,3,1,2,2,1,1,2,2,3,3,0.44444444444444442,0.22222222222222221,66]
[null,null,null,null,null,null,null,null,null,null,null,null,null,null,{"$f":"SUM(B77/3)*(((SUM(D77:F77)+(SUM(G77:N77)*2))/57))","v":0},{"$f":"SUM(C77/3)*(((SUM(D77:F77)+(SUM(G77:N77)*2))/57))","v":0},{"$f":"SUM(D77:N77)*(B77+C77)","v":0}]
[null,null,null,null,null,null,null,null,null,null,null,null,null,null,0,0,0]
["Average: ",{"$f":"AVERAGE(B68:B78)","v":2.2222222222222223},{"$f":"AVERAGE(C68:C78)","v":1.4444444444444444},{"$f":"AVERAGE(D68:D78)","v":2},3,1,2,2,1,1,2,2,3,3]
["Technologic Events"]
["Communications Failure",3,3,3,2,2,2,3,1,2,2,2,3,3,{"$f":"SUM(B81/3)*(((SUM(D81:F81)+(SUM(G81:N81)*2))/57))","v":0.75438596491228072},{"$f":"SUM(C81/3)*(((SUM(D81:F81)+(SUM(G81:N81)*2))/57))","v":0.75438596491228072},{"$f":"SUM(D81:N81)*(B81+C81)","v":150}]
["Infant Security Alarm Failure",3,3,3,2,2,2,3,1,2,2,2,3,3,{"$f":"SUM(B82/3)*(((SUM(D82:F82)+(SUM(G82:N82)*2))/57))","v":0.75438596491228072},{"$f":"SUM(C82/3)*(((SUM(D82:F82)+(SUM(G82:N82)*2))/57))","v":0.75438596491228072},{"$f":"SUM(D82:N82)*(B82+C82)","v":150}]
["Information Systems Failure",2,3,3,2,2,2,3,1,2,2,2,3,3,0.50292397660818711,0.75438596491228072,125]
["Magnetic Resonance Imaging (MRI) Incident",2,3,3,2,2,2,3,1,2,2,2,3,3,0.50292397660818711,0.75438596491228072,125]
["Network Failure",2,2,3,2,2,2,3,1,2,2,2,3,3,{"$f":"SUM(B85/3)*(((SUM(D85:F85)+(SUM(G85:N85)*2))/57))","v":0.50292397660818711},{"$f":"SUM(C85/3)*(((SUM(D85:F85)+(SUM(G85:N85)*2))/57))","v":0.50292397660818711},{"$f":"SUM(D85:N85)*(B85+C85)","v":100}]
["Pharmacy Medication Dispenser Failure",2,2,3,2,2,2,3,1,2,2,2,3,3,0.50292397660818711,0.50292397660818711,100]
["Security Card Access Failure",2,2,3,2,2,2,3,1,2,2,2,3,3,0.50292397660818711,0.50292397660818711,100]
["Security Video Surveillance",2,2,3,2,2,2,3,1,2,2,2,3,3,{"$f":"SUM(B88/3)*(((SUM(D88:F88)+(SUM(G88:N88)*2))/57))","v":0.50292397660818711},{"$f":"SUM(C88/3)*(((SUM(D88:F88)+(SUM(G88:N88)*2))/57))","v":0.50292397660818711},100]
[null,null,null,null,null,null,null,null,null,null,null,null,null,null,{"$f":"SUM(B89/3)*(((SUM(D89:F89)+(SUM(G89:N89)*2))/57))","v":0},{"$f":"SUM(C89/3)*(((SUM(D89:F89)+(SUM(G89:N89)*2))/57))","v":0},{"$f":"SUM(D89:N89)*(B89+C89)","v":0}]
[null,null,null,null,null,null,null,null,null,null,null,null,null,null,0,0,0]
["Average: ",{"$f":"AVERAGE(B81:B90)","v":2.25},{"$f":"AVERAGE(C81:C90)","v":2.5},3,2,2,2,3,1,2,2,2,3,3]
["Utility Events"]
["Broken Water Main (Internal)",3,3,2,3,1,1,2,1,2,3,1,2,2,0.59649122807017541,0.59649122807017541,120]
["Broken Water Main (External)",3,3,2,3,1,1,2,1,2,3,1,2,2,0.59649122807017541,0.59649122807017541,120]
["Compressed Gas Cylinder Leak/Failure",2,3,2,3,1,1,2,1,2,3,1,2,2,0.39766081871345027,0.59649122807017541,100]
["Electrical Failure",2,3,2,3,1,1,2,1,2,3,1,2,2,0.39766081871345027,0.59649122807017541,100]
["Elevator Failure",2,1,2,3,1,1,2,1,2,3,1,2,2,0.39766081871345027,0.19883040935672514,60]
["Fire (Internal)",2,1,2,3,1,1,2,1,2,3,1,2,2,0.39766081871345027,0.19883040935672514,60]
["Fire Detection/Alarm Failure",2,1,2,3,1,1,2,1,2,3,1,2,2,0.39766081871345027,0.19883040935672514,60]
["Fire Suppression Failure",2,1,2,3,1,1,2,1,2,3,1,2,2,0.39766081871345027,0.19883040935672514,60]
["Flood (Internal)",2,1,2,3,1,1,2,1,2,3,1,2,2,0.39766081871345027,0.19883040935672514,60]
["Fuel Shortage",2,1,2,3,1,1,2,1,2,3,1,2,2,0.39766081871345027,0.19883040935672514,60]
["Generator Failure",2,1,2,3,1,1,2,1,2,3,1,2,2,0.39766081871345027,0.19883040935672514,60]
["HVAC Failure",2,1,2,3,1,1,2,1,2,3,1,2,2,0.39766081871345027,0.19883040935672514,60]
["Loss of Bulk Oxygen",2,1,2,3,1,1,2,1,2,3,1,2,2,0.39766081871345027,0.19883040935672514,60]
["Medical Gas Failure",2,1,2,3,1,1,2,1,2,3,1,2,2,0.39766081871345027,0.19883040935672514,60]
["Medical Vacuum Failure",2,1,2,3,1,1,2,1,2,3,1,2,2,0.39766081871345027,0.19883040935672514,60]
["Natural Gas Failure",2,1,2,3,1,1,2,1,2,3,1,2,2,0.39766081871345027,0.19883040935672514,60]
["Natural Gas Leak",2,1,2,3,1,1,2,1,2,3,1,2,2,0.39766081871345027,0.19883040935672514,60]
["Oxygen Leak",2,1,2,3,1,1,2,1,2,3,1,2,2,0.39766081871345027,0.19883040935672514,60]
["Potable Water Failure",2,1,2,3,1,1,2,1,2,3,1,2,2,0.39766081871345027,0.19883040935672514,60]
["Process Water Failure",2,1,2,3,1,1,2,1,2,3,1,2,2,0.39766081871345027,0.19883040935672514,60]
["Sewer Failure",2,1,2,3,1,1,2,1,2,3,1,2,2,0.39766081871345027,0.19883040935672514,60]
["Steam Failure",2,1,2,3,1,1,2,1,2,3,1,2,2,0.39766081871345027,0.19883040935672514,60]
["Structural Damage",2,1,2,3,1,1,2,1,2,3,1,2,2,0.39766081871345027,0.19883040935672514,60]
["Tube System Failure",2,1,2,3,1,1,2,1,2,3,1,2,2,0.39766081871345027,0.19883040935672514,60]
[null,null,null,null,null,null,null,null,null,null,null,null,null,null,0,0,0]
[null,null,null,null,null,null,null,null,null,null,null,null,null,null,0,0,0]
["Average: ",{"$f":"AVERAGE(B93:B118)","v":2.0833333333333335},{"$f":"AVERAGE(C93:C118)","v":1.3333333333333333},2,3,1,1,2,1,2,3,1,2,2]
["Geographic Events"]
["Proximity to nuclear power plants",3,3,2,2,2,3,2,2,2,1,1,2,2,{"$f":"SUM(B121/3)*(((SUM(D121:F121)+(SUM(G121:N121)*2))/57))","v":0.63157894736842102},{"$f":"SUM(C121/3)*(((SUM(D121:F121)+(SUM(G121:N121)*2))/57))","v":0.63157894736842102},{"$f":"SUM(D121:N121)*(B121+C121)","v":126}]
["Proximity to Bridges",3,3,2,2,2,3,2,2,2,1,1,2,2,0.63157894736842102,0.63157894736842102,126]
["Proximity to bus terminals",2,2,2,2,2,3,2,2,2,1,1,2,2,0.42105263157894735,0.42105263157894735,84]
["Proximity to Civic/Sports Events",2,2,2,2,2,3,2,2,2,1,1,2,2,0.42105263157894735,0.42105263157894735,84]
["Proximity to companies that produce, store, use, or transport hazardous materials",2,2,2,2,2,3,2,2,2,1,1,2,2,0.42105263157894735,0.42105263157894735,84]
["Proximity to Federal buildings",2,2,2,2,2,3,2,2,2,1,1,2,2,0.42105263157894735,0.42105263157894735,84]
["Proximity to Festivals",2,2,2,2,2,3,2,2,2,1,1,2,2,0.42105263157894735,0.42105263157894735,84]
["Proximity to flood plains, faults, and dams",2,2,2,2,2,3,2,2,2,1,1,2,2,0.42105263157894735,0.42105263157894735,84]
["Proximity to local schools and universities",2,2,2,2,2,3,2,2,2,1,1,2,2,0.42105263157894735,0.42105263157894735,84]
["Proximity to major trans. routes and airports",2,2,2,2,2,3,2,2,2,1,1,2,2,0.42105263157894735,0.42105263157894735,84]
["Proximity to Parks",2,2,2,2,2,3,2,2,2,1,1,2,2,0.42105263157894735,0.42105263157894735,84]
["Proximity to train stations",2,2,2,2,2,3,2,2,2,1,1,2,2,0.42105263157894735,0.42105263157894735,84]
[null,null,null,null,null,null,null,null,null,null,null,null,null,null,{"$f":"SUM(B133/3)*(((SUM(D133:F133)+(SUM(G133:N133)*2))/57))","v":0},{"$f":"SUM(C133/3)*(((SUM(D133:F133)+(SUM(G133:N133)*2))/57))","v":0},{"$f":"SUM(D133:N133)*(B133+C133)","v":0}]
[null,null,null,null,null,null,null,null,null,null,null,null,null,null,0,0,0]
["Average: ",{"$f":"AVERAGE(B121:B134)","v":2.1666666666666665},{"$f":"AVERAGE(C121:C134)","v":2.1666666666666665},2,2,2,3,2,2,2,1,1,2,2]
["Physical Events"]
["Asbestos release during const. or renovation",3,3,3,1,2,3,1,1,2,1,2,2,2,{"$f":"SUM(B137/3)*(((SUM(D137:F137)+(SUM(G137:N137)*2))/57))","v":0.59649122807017541},{"$f":"SUM(C137/3)*(((SUM(D137:F137)+(SUM(G137:N137)*2))/57))","v":0.59649122807017541},{"$f":"SUM(D137:N137)*(B137+C137)","v":120}]
["Building/parking structure failure",3,3,3,1,2,3,1,1,2,1,2,2,2,0.59649122807017541,0.59649122807017541,120]
["Layout of the equipment",2,2,3,1,2,3,1,1,2,1,2,2,2,0.39766081871345027,0.39766081871345027,80]
["The physical construction of the facility",2,2,3,1,2,3,1,1,2,1,2,2,2,0.39766081871345027,0.39766081871345027,80]
["Evacuation routes and exits",2,2,3,1,2,3,1,1,2,1,2,2,2,0.39766081871345027,0.39766081871345027,80]
["Hazardous processes or byproducts",2,2,3,1,2,3,1,1,2,1,2,2,2,0.39766081871345027,0.39766081871345027,80]
["Proximity of shelter areas",2,2,3,1,2,3,1,1,2,1,2,2,2,0.39766081871345027,0.39766081871345027,80]
["Facilities for storing biohazardous wastes",2,2,3,1,2,3,1,1,2,1,2,2,2,0.39766081871345027,0.39766081871345027,80]
["Facilities for storing combustibles",2,2,3,1,2,3,1,1,2,1,2,2,2,0.39766081871345027,0.39766081871345027,80]
["Facilities for storing hazardous chemical waste",2,2,3,1,2,3,1,1,2,1,2,2,2,0.39766081871345027,0.39766081871345027,80]
["Lighting",2,2,3,1,2,3,1,1,2,1,2,2,2,0.39766081871345027,0.39766081871345027,80]
[null,null,null,null,null,null,null,null,null,null,null,null,null,null,{"$f":"SUM(B148/3)*(((SUM(D148:F148)+(SUM(G148:N148)*2))/57))","v":0},{"$f":"SUM(C148/3)*(((SUM(D148:F148)+(SUM(G148:N148)*2))/57))","v":0},{"$f":"SUM(D148:N148)*(B148+C148)","v":0}]
[null,null,null,null,null,null,null,null,null,null,null,null,null,null,0,0,0]
["Average: ",{"$f":"AVERAGE(B137:B149)","v":2.1818181818181817},{"$f":"AVERAGE(C137:C149)","v":2.1818181818181817},3,1,2,3,1,1,2,1,2,2,2]
["Other Events"]
["Airplane Crash",3,3,3,3,3,2,3,1,2,1,2,2,3,{"$f":"SUM(B152/3)*(((SUM(D152:F152)+(SUM(G152:N152)*2))/57))","v":0.7192982456140351},{"$f":"SUM(C152/3)*(((SUM(D152:F152)+(SUM(G152:N152)*2))/57))","v":0.7192982456140351},{"$f":"SUM(D152:N152)*(B152+C152)","v":150}]
["Evacuation  ",3,3,3,3,3,2,3,1,2,1,2,2,3,0.7192982456140351,0.7192982456140351,150]
["Helicopter Incident",2,1,3,3,3,2,3,1,2,1,2,2,3,0.47953216374269003,0.23976608187134502,75]
["Intentional Vehicular Incident",2,1,3,3,3,2,3,1,2,1,2,2,3,0.47953216374269003,0.23976608187134502,75]
["Isolation Capacity",2,1,3,3,3,2,3,1,2,1,2,2,3,0.47953216374269003,0.23976608187134502,75]
["Loss of Key Supplier",2,2,3,3,3,2,3,1,2,1,2,2,3,0.47953216374269003,0.47953216374269003,100]
["Supply Shortage",2,2,3,3,3,2,3,1,2,1,2,2,3,{"$f":"SUM(B158/3)*(((SUM(D158:F158)+(SUM(G158:N158)*2))/57))","v":0.47953216374269003},{"$f":"SUM(C158/3)*(((SUM(D158:F158)+(SUM(G158:N158)*2))/57))","v":0.47953216374269003},{"$f":"SUM(D158:N158)*(B158+C158)","v":100}]
[null,null,null,null,null,null,null,null,null,null,null,null,null,null,0,0,0]
[null,null,null,null,null,null,null,null,null,null,null,null,null,null,0,0,0]
[null,null,null,null,null,null,null,null,null,null,null,null,null,null,0,0,0]
[null,null,null,null,null,null,null,null,null,null,null,null,null,null,0,0,0]
[null,null,null,null,null,null,null,null,null,null,null,null,null,null,0,0,0]
["Average: ",{"$f":"AVERAGE(B152:B163)","v":2.2857142857142856},{"$f":"AVERAGE(C152:C163)","v":1.8571428571428572},{"$f":"AVERAGE(D152:D163)","v":3},{"$f":"AVERAGE(E152:E163)","v":3},{"$f":"AVERAGE(F152:F163)","v":3},{"$f":"AVERAGE(G152:G163)","v":2},{"$f":"AVERAGE(H152:H163)","v":3},{"$f":"AVERAGE(I152:I163)","v":1},{"$f":"AVERAGE(J152:J163)","v":2},{"$f":"AVERAGE(K152:K163)","v":1},{"$f":"AVERAGE(L152:L163)","v":2},{"$f":"AVERAGE(M152:M163)","v":2},{"$f":"AVERAGE(N152:N163)","v":3}]
["Overall Average: ",{"$f":"AVERAGE((B24),(B49),(B66),(B79),(B91),(B119),(B135),(B150),(B164))","v":2.0180720514053849},1.9081683748350413,2.2222222222222223,2.1111111111111112,2.1111111111111112,2,2.1196581196581197,1.4444444444444444,1.7777777777777777,1.7777777777777777,2,2,2.1111111111111112]
[]
["Revised:","2013-08-05"]
[]
[]
["NOTE:  The top 20 events automatically turn red in the last three columns.  "]
["NOTE:  If you do not use an Event, clear out all of the data -- including the zero -- as it will impact the Average rating."]
["NOTE:  Weighting is X2 for the four phases of emergency management planning."]
[]
["WARNING:  Do NOT delete or add Rows in the spreadsheet.  The formulas and pivot tables  are sensitive!  Changes may result in inaccurate calculations.  To change an event, simply delete or replace the events in Column A."]
[]
["RECOMMENDATION:   Hide the three end columns when conducting the assessment with your partners.  "]
["RECOMMENDATION:  When meeting with your community partners to complete your site CHVA, only allow them to modify the external columns in the four phases of EM.  If you are conducting a regional assessment, then allow all of the other columns to be modified.  "]
["RECOMMENDATION:  Additional columns could be added to the right of the form to document justification/notes for each rating."]

{"sheet":"Sheet2","index":3,"n_rows":29,"n_cols":3,"rows_kept":29,"cut":false,"hidden":true,"merged":[]}
[]
[]
[]
[]
[]
[null,"Row Labels","Sum of rep"]
[null,"Information Systems Failure",0.75438596491228072]
[null,"Magnetic Resonance Imaging (MRI) Incident",0.75438596491228072]
[null,"Communications Failure",0.75438596491228072]
[null,"Infant Security Alarm Failure",0.75438596491228072]
[null,"Evacuation  ",0.7192982456140351]
[null,"Airplane Crash",0.7192982456140351]
[null,"HAZMAT Spill (Internal)",0.66666666666666663]
[null,"Decontamination",0.66666666666666663]
[null,"Bomb Threat",0.63157894736842102]
[null,"Proximity to nuclear power plants",0.63157894736842102]
[null,"Dam Inundation",0.63157894736842102]
[null,"Active Shooter",0.63157894736842102]
[null,"Avalanche",0.63157894736842102]
[null,"Proximity to Bridges",0.63157894736842102]
[null,"Compressed Gas Cylinder Leak/Failure",0.59649122807017541]
[null,"Broken Water Main (External)",0.59649122807017541]
[null,"Building/parking structure failure",0.59649122807017541]
[null,"Electrical Failure",0.59649122807017541]
[null,"Biological Attack – Aerosol Anthrax ",0.59649122807017541]
[null,"Asbestos release during const. or renovation",0.59649122807017541]
[null,"Biological Attack – Food Contamination ",0.59649122807017541]
[null,"Broken Water Main (Internal)",0.59649122807017541]
[null,"Grand Total",14.350877192982455]

{"sheet":"Top 20 Events","index":4,"n_rows":32,"n_cols":9,"rows_kept":32,"cut":false,"hidden":false,"merged":[]}
[]
[]
[]
["Must refresh the screen in the Data Tab or Press the REFRESH Button to the right after making changes to the CHVA Tool."]
[]
[{"$f":"'CHVA Tool - Data Entry'!A1:C1","v":"Children's Hospital Colorado"}]
[]
[null,"Risk Occurrence",null,null,"Risk Response",null,null,"Non Weighted Risk "]
[1,{"$f":"'Occurence Pivot'!A4","v":"Communications Failure"},{"$f":"'Occurence Pivot'!B4","v":0.75438596491228072},1,{"$f":"'Response Pivot'!A4","v":"Information Systems Failure"},{"$f":"'Response Pivot'!B4","v":0.75438596491228072},1,{"$f":"'Total Pivot'!A4","v":"Airplane Crash"},{"$f":"'Total Pivot'!B4","v":150}]
[2,{"$f":"'Occurence Pivot'!A5","v":"Infant Security Alarm Failure"},{"$f":"'Occurence Pivot'!B5","v":0.75438596491228072},2,{"$f":"'Response Pivot'!A5","v":"Magnetic Resonance Imaging (MRI) Incident"},{"$f":"'Response Pivot'!B5","v":0.75438596491228072},2,{"$f":"'Total Pivot'!A5","v":"Infant Security Alarm Failure"},{"$f":"'Total Pivot'!B5","v":150}]
[3,{"$f":"'Occurence Pivot'!A6","v":"Evacuation  "},{"$f":"'Occurence Pivot'!B6","v":0.7192982456140351},3,{"$f":"'Response Pivot'!A6","v":"Communications Failure"},{"$f":"'Response Pivot'!B6","v":0.75438596491228072},3,{"$f":"'Total Pivot'!A6","v":"Communications Failure"},{"$f":"'Total Pivot'!B6","v":150}]
[4,{"$f":"'Occurence Pivot'!A7","v":"Airplane Crash"},{"$f":"'Occurence Pivot'!B7","v":0.7192982456140351},4,{"$f":"'Response Pivot'!A7","v":"Infant Security Alarm Failure"},{"$f":"'Response Pivot'!B7","v":0.75438596491228072},4,{"$f":"'Total Pivot'!A7","v":"Evacuation  "},{"$f":"'Total Pivot'!B7","v":150}]
[5,{"$f":"'Occurence Pivot'!A8","v":"HAZMAT Spill (Internal)"},{"$f":"'Occurence Pivot'!B8","v":0.66666666666666663},5,{"$f":"'Response Pivot'!A8","v":"Evacuation  "},{"$f":"'Response Pivot'!B8","v":0.7192982456140351},5,{"$f":"'Total Pivot'!A8","v":"Decontamination"},{"$f":"'Total Pivot'!B8","v":132}]
[6,{"$f":"'Occurence Pivot'!A9","v":"Decontamination"},{"$f":"'Occurence Pivot'!B9","v":0.66666666666666663},6,{"$f":"'Response Pivot'!A9","v":"Airplane Crash"},{"$f":"'Response Pivot'!B9","v":0.7192982456140351},6,{"$f":"'Total Pivot'!A9","v":"HAZMAT Spill (Internal)"},{"$f":"'Total Pivot'!B9","v":132}]
[7,{"$f":"'Occurence Pivot'!A10","v":"Proximity to nuclear power plants"},{"$f":"'Occurence Pivot'!B10","v":0.63157894736842102},7,{"$f":"'Response Pivot'!A10","v":"HAZMAT Spill (Internal)"},{"$f":"'Response Pivot'!B10","v":0.66666666666666663},7,{"$f":"'Total Pivot'!A10","v":"Avalanche"},{"$f":"'Total Pivot'!B10","v":126}]
[8,{"$f":"'Occurence Pivot'!A11","v":"Avalanche"},{"$f":"'Occurence Pivot'!B11","v":0.63157894736842102},8,{"$f":"'Response Pivot'!A11","v":"Decontamination"},{"$f":"'Response Pivot'!B11","v":0.66666666666666663},8,{"$f":"'Total Pivot'!A11","v":"Dam Inundation"},{"$f":"'Total Pivot'!B11","v":126}]
[9,{"$f":"'Occurence Pivot'!A12","v":"Dam Inundation"},{"$f":"'Occurence Pivot'!B12","v":0.63157894736842102},9,{"$f":"'Response Pivot'!A12","v":"Bomb Threat"},{"$f":"'Response Pivot'!B12","v":0.63157894736842102},9,{"$f":"'Total Pivot'!A12","v":"Bomb Threat"},{"$f":"'Total Pivot'!B12","v":126}]
[10,{"$f":"'Occurence Pivot'!A13","v":"Active Shooter"},{"$f":"'Occurence Pivot'!B13","v":0.63157894736842102},10,{"$f":"'Response Pivot'!A13","v":"Proximity to nuclear power plants"},{"$f":"'Response Pivot'!B13","v":0.63157894736842102},10,{"$f":"'Total Pivot'!A13","v":"Proximity to Bridges"},{"$f":"'Total Pivot'!B13","v":126}]
[11,{"$f":"'Occurence Pivot'!A14","v":"Proximity to Bridges"},{"$f":"'Occurence Pivot'!B14","v":0.63157894736842102},11,{"$f":"'Response Pivot'!A14","v":"Dam Inundation"},{"$f":"'Response Pivot'!B14","v":0.63157894736842102},11,{"$f":"'Total Pivot'!A14","v":"Active Shooter"},{"$f":"'Total Pivot'!B14","v":126}]
[12,{"$f":"'Occurence Pivot'!A15","v":"Bomb Threat"},{"$f":"'Occurence Pivot'!B15","v":0.63157894736842102},12,{"$f":"'Response Pivot'!A15","v":"Active Shooter"},{"$f":"'Response Pivot'!B15","v":0.63157894736842102},12,{"$f":"'Total Pivot'!A15","v":"Proximity to nuclear power plants"},{"$f":"'Total Pivot'!B15","v":126}]
[13,{"$f":"'Occurence Pivot'!A16","v":"Asbestos release during const. or renovation"},{"$f":"'Occurence Pivot'!B16","v":0.59649122807017541},13,{"$f":"'Response Pivot'!A16","v":"Avalanche"},{"$f":"'Response Pivot'!B16","v":0.63157894736842102},13,{"$f":"'Total Pivot'!A16","v":"Magnetic Resonance Imaging (MRI) Incident"},{"$f":"'Total Pivot'!B16","v":125}]
[14,{"$f":"'Occurence Pivot'!A17","v":"Biological Attack – Plague "},{"$f":"'Occurence Pivot'!B17","v":0.59649122807017541},14,{"$f":"'Response Pivot'!A17","v":"Proximity to Bridges"},{"$f":"'Response Pivot'!B17","v":0.63157894736842102},14,{"$f":"'Total Pivot'!A17","v":"Information Systems Failure"},{"$f":"'Total Pivot'!B17","v":125}]
[15,{"$f":"'Occurence Pivot'!A18","v":"Broken Water Main (Internal)"},{"$f":"'Occurence Pivot'!B18","v":0.59649122807017541},15,{"$f":"'Response Pivot'!A18","v":"Compressed Gas Cylinder Leak/Failure"},{"$f":"'Response Pivot'!B18","v":0.59649122807017541},15,{"$f":"'Total Pivot'!A18","v":"Broken Water Main (External)"},{"$f":"'Total Pivot'!B18","v":120}]
[16,{"$f":"'Occurence Pivot'!A19","v":"Biological Attack – Food Contamination "},{"$f":"'Occurence Pivot'!B19","v":0.59649122807017541},16,{"$f":"'Response Pivot'!A19","v":"Broken Water Main (External)"},{"$f":"'Response Pivot'!B19","v":0.59649122807017541},16,{"$f":"'Total Pivot'!A19","v":"Biological Attack – Aerosol Anthrax "},{"$f":"'Total Pivot'!B19","v":120}]
[17,{"$f":"'Occurence Pivot'!A20","v":"Broken Water Main (External)"},{"$f":"'Occurence Pivot'!B20","v":0.59649122807017541},17,{"$f":"'Response Pivot'!A20","v":"Building/parking structure failure"},{"$f":"'Response Pivot'!B20","v":0.59649122807017541},17,{"$f":"'Total Pivot'!A20","v":"Asbestos release during const. or renovation"},{"$f":"'Total Pivot'!B20","v":120}]
[18,{"$f":"'Occurence Pivot'!A21","v":"Building/parking structure failure"},{"$f":"'Occurence Pivot'!B21","v":0.59649122807017541},18,{"$f":"'Response Pivot'!A21","v":"Electrical Failure"},{"$f":"'Response Pivot'!B21","v":0.59649122807017541},18,{"$f":"'Total Pivot'!A21","v":"Building/parking structure failure"},{"$f":"'Total Pivot'!B21","v":120}]
[19,{"$f":"'Occurence Pivot'!A22","v":"Biological Attack – Foreign Animal Disease "},{"$f":"'Occurence Pivot'!B22","v":0.59649122807017541},19,{"$f":"'Response Pivot'!A22","v":"Biological Attack – Aerosol Anthrax "},{"$f":"'Response Pivot'!B22","v":0.59649122807017541},19,{"$f":"'Total Pivot'!A22","v":"Biological Attack – Food Contamination "},{"$f":"'Total Pivot'!B22","v":120}]
[20,{"$f":"'Occurence Pivot'!A23","v":"Biological Attack – Aerosol Anthrax "},{"$f":"'Occurence Pivot'!B23","v":0.59649122807017541},20,{"$f":"'Response Pivot'!A23","v":"Asbestos release during const. or renovation"},{"$f":"'Response Pivot'!B23","v":0.59649122807017541},20,{"$f":"'Total Pivot'!A23","v":"Broken Water Main (Internal)"},{"$f":"'Total Pivot'!B23","v":120}]
[]
["NOTE:  The top 20 events on the CHVA are listed with the top five in each risk category highlighted yellow.  "]
["NOTE:  If an event is not listed in your top 20, but is highlighted red on the Data Entry tab, it means that the event has the same ratings as your number 20 event."]
["NOTE:  You must enable MACROS in order for the refresh button to work. "]

{"sheet":"Response Pivot","index":5,"n_rows":26,"n_cols":2,"rows_kept":26,"cut":false,"hidden":true,"merged":[]}
[]
[]
["Row Labels","Sum of rep"]
["Information Systems Failure",0.75438596491228072]
["Magnetic Resonance Imaging (MRI) Incident",0.75438596491228072]
["Communications Failure",0.75438596491228072]
["Infant Security Alarm Failure",0.75438596491228072]
["Evacuation  ",0.7192982456140351]
["Airplane Crash",0.7192982456140351]
["HAZMAT Spill (Internal)",0.66666666666666663]
["Decontamination",0.66666666666666663]
["Bomb Threat",0.63157894736842102]
["Proximity to nuclear power plants",0.63157894736842102]
["Dam Inundation",0.63157894736842102]
["Active Shooter",0.63157894736842102]
["Avalanche",0.63157894736842102]
["Proximity to Bridges",0.63157894736842102]
["Compressed Gas Cylinder Leak/Failure",0.59649122807017541]
["Broken Water Main (External)",0.59649122807017541]
["Building/parking structure failure",0.59649122807017541]
["Electrical Failure",0.59649122807017541]
["Biological Attack – Aerosol Anthrax ",0.59649122807017541]
["Asbestos release during const. or renovation",0.59649122807017541]
["Biological Attack – Food Contamination ",0.59649122807017541]
["Broken Water Main (Internal)",0.59649122807017541]
["Grand Total",14.350877192982455]

{"sheet":"Total Pivot","index":6,"n_rows":24,"n_cols":2,"rows_kept":24,"cut":false,"hidden":true,"merged":[]}
[]
[]
["Row Labels","Sum of tot"]
["Airplane Crash",150]
["Infant Security Alarm Failure",150]
["Communications Failure",150]
["Evacuation  ",150]
["Decontamination",132]
["HAZMAT Spill (Internal)",132]
["Avalanche",126]
["Dam Inundation",126]
["Bomb Threat",126]
["Proximity to Bridges",126]
["Active Shooter",126]
["Proximity to nuclear power plants",126]
["Magnetic Resonance Imaging (MRI) Incident",125]
["Information Systems Failure",125]
["Broken Water Main (External)",120]
["Biological Attack – Aerosol Anthrax ",120]
["Asbestos release during const. or renovation",120]
["Building/parking structure failure",120]
["Biological Attack – Food Contamination ",120]
["Broken Water Main (Internal)",120]
["Grand Total",2590]

{"sheet":"Occurence Pivot","index":7,"n_rows":24,"n_cols":2,"rows_kept":24,"cut":false,"hidden":true,"merged":[]}
[]
[]
["Row Labels","Sum of occ"]
["Communications Failure",0.75438596491228072]
["Infant Security Alarm Failure",0.75438596491228072]
["Evacuation  ",0.7192982456140351]
["Airplane Crash",0.7192982456140351]
["HAZMAT Spill (Internal)",0.66666666666666663]
["Decontamination",0.66666666666666663]
["Proximity to nuclear power plants",0.63157894736842102]
["Avalanche",0.63157894736842102]
["Dam Inundation",0.63157894736842102]
["Active Shooter",0.63157894736842102]
["Proximity to Bridges",0.63157894736842102]
["Bomb Threat",0.63157894736842102]
["Asbestos release during const. or renovation",0.59649122807017541]
["Biological Attack – Plague ",0.59649122807017541]
["Broken Water Main (Internal)",0.59649122807017541]
["Biological Attack – Food Contamination ",0.59649122807017541]
["Broken Water Main (External)",0.59649122807017541]
["Building/parking structure failure",0.59649122807017541]
["Biological Attack – Foreign Animal Disease ",0.59649122807017541]
["Biological Attack – Aerosol Anthrax ",0.59649122807017541]
["Grand Total",12.842105263157894]

{"sheet":"Main Data","index":8,"n_rows":162,"n_cols":18,"rows_kept":162,"cut":false,"hidden":true,"merged":[]}
[]
["type","occ","rep","tot"]
[{"$f":"'CHVA Tool - Data Entry'!A6","v":"National Planning Scenarios"},{"$f":"'CHVA Tool - Data Entry'!O6","v":0},{"$f":"'CHVA Tool - Data Entry'!P6","v":0},{"$f":"'CHVA Tool - Data Entry'!Q6","v":0}]
[{"$f":"'CHVA Tool - Data Entry'!A7","v":"Biological Attack – Aerosol Anthrax "},{"$f":"'CHVA Tool - Data Entry'!O7","v":0.59649122807017541},{"$f":"'CHVA Tool - Data Entry'!P7","v":0.59649122807017541},{"$f":"'CHVA Tool - Data Entry'!Q7","v":120}]
[{"$f":"'CHVA Tool - Data Entry'!A8","v":"Biological Attack – Food Contamination "},{"$f":"'CHVA Tool - Data Entry'!O8","v":0.59649122807017541},{"$f":"'CHVA Tool - Data Entry'!P8","v":0.59649122807017541},{"$f":"'CHVA Tool - Data Entry'!Q8","v":120}]
[{"$f":"'CHVA Tool - Data Entry'!A9","v":"Biological Attack – Foreign Animal Disease "},{"$f":"'CHVA Tool - Data Entry'!O9","v":0.59649122807017541},{"$f":"'CHVA Tool - Data Entry'!P9","v":0.39766081871345027},{"$f":"'CHVA Tool - Data Entry'!Q9","v":100}]
[{"$f":"'CHVA Tool - Data Entry'!A10","v":"Biological Attack – Plague "},{"$f":"'CHVA Tool - Data Entry'!O10","v":0.59649122807017541},{"$f":"'CHVA Tool - Data Entry'!P10","v":0.39766081871345027},{"$f":"'CHVA Tool - Data Entry'!Q10","v":100}]
[{"$f":"'CHVA Tool - Data Entry'!A11","v":"Biological Disease Outbreak – Pandemic flu"},{"$f":"'CHVA Tool - Data Entry'!O11","v":0.19883040935672514},{"$f":"'CHVA Tool - Data Entry'!P11","v":0.39766081871345027},{"$f":"'CHVA Tool - Data Entry'!Q11","v":60}]
[{"$f":"'CHVA Tool - Data Entry'!A12","v":"Chemical Attack – Blister Agent "},{"$f":"'CHVA Tool - Data Entry'!O12","v":0.19883040935672514},{"$f":"'CHVA Tool - Data Entry'!P12","v":0.39766081871345027},{"$f":"'CHVA Tool - Data Entry'!Q12","v":60}]
[{"$f":"'CHVA Tool - Data Entry'!A13","v":"Chemical Attack – Chlorine Tank Explosion "},{"$f":"'CHVA Tool - Data Entry'!O13","v":0.19883040935672514},{"$f":"'CHVA Tool - Data Entry'!P13","v":0.39766081871345027},{"$f":"'CHVA Tool - Data Entry'!Q13","v":60}]
[{"$f":"'CHVA Tool - Data Entry'!A14","v":"Chemical Attack – Nerve Agent"},{"$f":"'CHVA Tool - Data Entry'!O14","v":0.19883040935672514},{"$f":"'CHVA Tool - Data Entry'!P14","v":0.39766081871345027},{"$f":"'CHVA Tool - Data Entry'!Q14","v":60}]
[{"$f":"'CHVA Tool - Data Entry'!A15","v":"Chemical Attack – Toxic Industrial Chemicals"},{"$f":"'CHVA Tool - Data Entry'!O15","v":0.19883040935672514},{"$f":"'CHVA Tool - Data Entry'!P15","v":0.39766081871345027},{"$f":"'CHVA Tool - Data Entry'!Q15","v":60}]
[{"$f":"'CHVA Tool - Data Entry'!A16","v":"Cyber Attack "},{"$f":"'CHVA Tool - Data Entry'!O16","v":0.19883040935672514},{"$f":"'CHVA Tool - Data Entry'!P16","v":0.39766081871345027},{"$f":"'CHVA Tool - Data Entry'!Q16","v":60}]
[{"$f":"'CHVA Tool - Data Entry'!A17","v":"Explosives Attack – Improvised Explosive "},{"$f":"'CHVA Tool - Data Entry'!O17","v":0.19883040935672514},{"$f":"'CHVA Tool - Data Entry'!P17","v":0.39766081871345027},{"$f":"'CHVA Tool - Data Entry'!Q17","v":60}]
[{"$f":"'CHVA Tool - Data Entry'!A18","v":"Natural Disaster – Major Earthquake "},{"$f":"'CHVA Tool - Data Entry'!O18","v":0.19883040935672514},{"$f":"'CHVA Tool - Data Entry'!P18","v":0.39766081871345027},{"$f":"'CHVA Tool - Data Entry'!Q18","v":60}]
[{"$f":"'CHVA Tool - Data Entry'!A19","v":"Natural Disaster – Major Hurricane"},{"$f":"'CHVA Tool - Data Entry'!O19","v":0.19883040935672514},{"$f":"'CHVA Tool - Data Entry'!P19","v":0.39766081871345027},{"$f":"'CHVA Tool - Data Entry'!Q19","v":60}]
[{"$f":"'CHVA Tool - Data Entry'!A20","v":"Nuclear Detonation – Improvised  Device"},{"$f":"'CHVA Tool - Data Entry'!O20","v":0.19883040935672514},{"$f":"'CHVA Tool - Data Entry'!P20","v":0.39766081871345027},{"$f":"'CHVA Tool - Data Entry'!Q20","v":60}]
[{"$f":"'CHVA Tool - Data Entry'!A21","v":"Radiological Attack – Radiological Dispersal "},{"$f":"'CHVA Tool - Data Entry'!O21","v":0.19883040935672514},{"$f":"'CHVA Tool - Data Entry'!P21","v":0.39766081871345027},{"$f":"'CHVA Tool - Data Entry'!Q21","v":60}]
[{"$f":"'CHVA Tool - Data Entry'!A22","v":0},{"$f":"'CHVA Tool - Data Entry'!O22","v":0},{"$f":"'CHVA Tool - Data Entry'!P22","v":0},{"$f":"'CHVA Tool - Data Entry'!Q22","v":0}]
[{"$f":"'CHVA Tool - Data Entry'!A23","v":0},{"$f":"'CHVA Tool - Data Entry'!O23","v":0},{"$f":"'CHVA Tool - Data Entry'!P23","v":0},{"$f":"'CHVA Tool - Data Entry'!Q23","v":0}]
[{"$f":"'CHVA Tool - Data Entry'!A24","v":"Average: "},{"$f":"'CHVA Tool - Data Entry'!O24","v":0},{"$f":"'CHVA Tool - Data Entry'!P24","v":0},{"$f":"'CHVA Tool - Data Entry'!Q24","v":0}]
[{"$f":"'CHVA Tool - Data Entry'!A25","v":"Naturally Occurring Events "},{"$f":"'CHVA Tool - Data Entry'!O25","v":0},{"$f":"'CHVA Tool - Data Entry'!P25","v":0},{"$f":"'CHVA Tool - Data Entry'!Q25","v":0}]
[{"$f":"'CHVA Tool - Data Entry'!A26","v":"Avalanche"},{"$f":"'CHVA Tool - Data Entry'!O26","v":0.63157894736842102},{"$f":"'CHVA Tool - Data Entry'!P26","v":0.63157894736842102},{"$f":"'CHVA Tool - Data Entry'!Q26","v":126}]
[{"$f":"'CHVA Tool - Data Entry'!A27","v":"Dam Inundation"},{"$f":"'CHVA Tool - Data Entry'!O27","v":0.63157894736842102},{"$f":"'CHVA Tool - Data Entry'!P27","v":0.63157894736842102},{"$f":"'CHVA Tool - Data Entry'!Q27","v":126}]
[{"$f":"'CHVA Tool - Data Entry'!A28","v":"Drought"},{"$f":"'CHVA Tool - Data Entry'!O28","v":0.42105263157894735},{"$f":"'CHVA Tool - Data Entry'!P28","v":0.42105263157894735},{"$f":"'CHVA Tool - Data Entry'!Q28","v":84}]
[{"$f":"'CHVA Tool - Data Entry'!A29","v":"Earthquake"},{"$f":"'CHVA Tool - Data Entry'!O29","v":0.42105263157894735},{"$f":"'CHVA Tool - Data Entry'!P29","v":0.42105263157894735},{"$f":"'CHVA Tool - Data Entry'!Q29","v":84}]
[{"$f":"'CHVA Tool - Data Entry'!A30","v":"Epidemic/Pandemic"},{"$f":"'CHVA Tool - Data Entry'!O30","v":0.21052631578947367},{"$f":"'CHVA Tool - Data Entry'!P30","v":0.42105263157894735},{"$f":"'CHVA Tool - Data Entry'!Q30","v":63}]
[{"$f":"'CHVA Tool - Data Entry'!A31","v":"Flood (External)"},{"$f":"'CHVA Tool - Data Entry'!O31","v":0.21052631578947367},{"$f":"'CHVA Tool - Data Entry'!P31","v":0.42105263157894735},{"$f":"'CHVA Tool - Data Entry'!Q31","v":63},null,null,null,null,{"$f":"'CHVA Tool - Data Entry'!A6","v":"National Planning Scenarios"},{"$f":"'CHVA Tool - Data Entry'!A25","v":"Naturally Occurring Events "},{"$f":"'CHVA Tool - Data Entry'!A50","v":"Human Related Events "},{"$f":"'CHVA Tool - Data Entry'!A67","v":"Hazardous Materials Events"},{"$f":"'CHVA Tool - Data Entry'!A80","v":"Technologic Events"},{"$f":"'CHVA Tool - Data Entry'!A92","v":"Utility Events"},{"$f":"'CHVA Tool - Data Entry'!A120","v":"Geographic Events"},{"$f":"'CHVA Tool - Data Entry'!A136","v":"Physical Events"},{"$f":"'CHVA Tool - Data Entry'!A151","v":"Other Events"}]
[{"$f":"'CHVA Tool - Data Entry'!A32","v":"Hail"},{"$f":"'CHVA Tool - Data Entry'!O32","v":0.21052631578947367},{"$f":"'CHVA Tool - Data Entry'!P32","v":0.42105263157894735},{"$f":"'CHVA Tool - Data Entry'!Q32","v":63},null,null,null,"Probability",{"$f":"SUM('CHVA Tool - Data Entry'!B7:C23)/(3*COUNT('CHVA Tool - Data Entry'!B7:C23))","v":0.61111111111111116},{"$f":"SUM('CHVA Tool - Data Entry'!B26:C48)/(3*COUNT('CHVA Tool - Data Entry'!B26:C48))","v":0.56349206349206349},{"$f":"SUM('CHVA Tool - Data Entry'!B51:C65)/(3*COUNT('CHVA Tool - Data Entry'!B51:C65))","v":0.60256410256410253},{"$f":"SUM('CHVA Tool - Data Entry'!B68:C78)/(3*COUNT('CHVA Tool - Data Entry'!B68:C78))","v":0.61111111111111116},{"$f":"SUM('CHVA Tool - Data Entry'!B81:C90)/(3*COUNT('CHVA Tool - Data Entry'!B81:C90))","v":0.79166666666666663},{"$f":"SUM('CHVA Tool - Data Entry'!B93:C118)/(3*COUNT('CHVA Tool - Data Entry'!B93:C118))","v":0.56944444444444442},{"$f":"SUM('CHVA Tool - Data Entry'!B121:C134)/(3*COUNT('CHVA Tool - Data Entry'!B121:C134))","v":0.72222222222222221},{"$f":"SUM('CHVA Tool - Data Entry'!B137:C149)/(3*COUNT('CHVA Tool - Data Entry'!B137:C149))","v":0.72727272727272729},{"$f":"SUM('CHVA Tool - Data Entry'!B152:C163)/(3*COUNT('CHVA Tool - Data Entry'!B152:C163))","v":0.69047619047619047}]
[{"$f":"'CHVA Tool - Data Entry'!A33","v":"High Winds"},{"$f":"'CHVA Tool - Data Entry'!O33","v":0.21052631578947367},{"$f":"'CHVA Tool - Data Entry'!P33","v":0.42105263157894735},{"$f":"'CHVA Tool - Data Entry'!Q33","v":63},null,null,null,"Severity",{"$f":"SUM('CHVA Tool - Data Entry'!D7:N23)/(3*COUNT('CHVA Tool - Data Entry'!D7:N23))","v":0.60606060606060608},{"$f":"SUM('CHVA Tool - Data Entry'!D26:N48)/(3*COUNT('CHVA Tool - Data Entry'!D26:N48))","v":0.63636363636363635},{"$f":"SUM('CHVA Tool - Data Entry'!D51:N65)/(3*COUNT('CHVA Tool - Data Entry'!D51:N65))","v":0.63869463869463872},{"$f":"SUM('CHVA Tool - Data Entry'!D68:N78)/(3*COUNT('CHVA Tool - Data Entry'!D68:N78))","v":0.66666666666666663},{"$f":"SUM('CHVA Tool - Data Entry'!D81:N90)/(3*COUNT('CHVA Tool - Data Entry'!D81:N90))","v":0.75757575757575757},{"$f":"SUM('CHVA Tool - Data Entry'!D93:N118)/(3*COUNT('CHVA Tool - Data Entry'!D93:N118))","v":0.60606060606060608},{"$f":"SUM('CHVA Tool - Data Entry'!D121:N134)/(3*COUNT('CHVA Tool - Data Entry'!D121:N134))","v":0.63636363636363635},{"$f":"SUM('CHVA Tool - Data Entry'!D137:N149)/(3*COUNT('CHVA Tool - Data Entry'!D137:N149))","v":0.60606060606060608},{"$f":"SUM('CHVA Tool - Data Entry'!D152:N163)/(3*COUNT('CHVA Tool - Data Entry'!D152:N163))","v":0.75757575757575757}]
[{"$f":"'CHVA Tool - Data Entry'!A34","v":"Hurricane"},{"$f":"'CHVA Tool - Data Entry'!O34","v":0.21052631578947367},{"$f":"'CHVA Tool - Data Entry'!P34","v":0.42105263157894735},{"$f":"'CHVA Tool - Data Entry'!Q34","v":63},null,null,null,"Hazard Specific   ",{"$f":"SUM(I29*I30)","v":0.37037037037037041},0.35858585858585856,0.38485446177753868,0.40740740740740744,0.5997474747474747,0.3451178451178451,0.45959595959595956,0.44077134986225897,0.52308802308802305]
[{"$f":"'CHVA Tool - Data Entry'!A35","v":"Ice Storm"},{"$f":"'CHVA Tool - Data Entry'!O35","v":0.21052631578947367},{"$f":"'CHVA Tool - Data Entry'!P35","v":0.42105263157894735},{"$f":"'CHVA Tool - Data Entry'!Q35","v":63}]
[{"$f":"'CHVA Tool - Data Entry'!A36","v":"Insect Infestation"},{"$f":"'CHVA Tool - Data Entry'!O36","v":0.21052631578947367},{"$f":"'CHVA Tool - Data Entry'!P36","v":0.42105263157894735},{"$f":"'CHVA Tool - Data Entry'!Q36","v":63},null,null,null,"Four Phases",{"$f":"I28","v":"National Planning Scenarios"},{"$f":"J28","v":"Naturally Occurring Events "},"Human Related Events ","Hazardous Materials Events","Technologic Events","Utility Events","Geographic Events","Physical Events","Other Events","Total"]
[{"$f":"'CHVA Tool - Data Entry'!A37","v":"Landslide"},{"$f":"'CHVA Tool - Data Entry'!O37","v":0.21052631578947367},{"$f":"'CHVA Tool - Data Entry'!P37","v":0.42105263157894735},{"$f":"'CHVA Tool - Data Entry'!Q37","v":63},null,null,null,"Mitigation Internal ",{"$f":"'CHVA Tool - Data Entry'!G24","v":1},{"$f":"'CHVA Tool - Data Entry'!G49","v":2},{"$f":"'CHVA Tool - Data Entry'!G66","v":2},{"$f":"'CHVA Tool - Data Entry'!G79","v":2},{"$f":"'CHVA Tool - Data Entry'!G91","v":2},{"$f":"'CHVA Tool - Data Entry'!G119","v":1},{"$f":"'CHVA Tool - Data Entry'!G135","v":3},{"$f":"'CHVA Tool - Data Entry'!G150","v":3},{"$f":"'CHVA Tool - Data Entry'!G165","v":2},{"$f":"'CHVA Tool - Data Entry'!G165","v":2}]
[{"$f":"'CHVA Tool - Data Entry'!A38","v":"Severe Blizzard/Snow Fall"},{"$f":"'CHVA Tool - Data Entry'!O38","v":0.21052631578947367},{"$f":"'CHVA Tool - Data Entry'!P38","v":0.42105263157894735},{"$f":"'CHVA Tool - Data Entry'!Q38","v":63},null,null,null,"Mitigation External",{"$f":"'CHVA Tool - Data Entry'!H24","v":2},{"$f":"'CHVA Tool - Data Entry'!H49","v":2},{"$f":"'CHVA Tool - Data Entry'!H66","v":2.0769230769230771},{"$f":"'CHVA Tool - Data Entry'!H79","v":2},{"$f":"'CHVA Tool - Data Entry'!H91","v":3},{"$f":"'CHVA Tool - Data Entry'!H119","v":2},{"$f":"'CHVA Tool - Data Entry'!H135","v":2},{"$f":"'CHVA Tool - Data Entry'!H150","v":1},{"$f":"'CHVA Tool - Data Entry'!H165","v":2.1196581196581197},{"$f":"'CHVA Tool - Data Entry'!H165","v":2.1196581196581197}]
[{"$f":"'CHVA Tool - Data Entry'!A39","v":"Severe Thunderstorm"},{"$f":"'CHVA Tool - Data Entry'!O39","v":0.21052631578947367},{"$f":"'CHVA Tool - Data Entry'!P39","v":0.42105263157894735},{"$f":"'CHVA Tool - Data Entry'!Q39","v":63},null,null,null,"Preparedness Internal",{"$f":"'CHVA Tool - Data Entry'!I24","v":2},{"$f":"'CHVA Tool - Data Entry'!I49","v":3},{"$f":"'CHVA Tool - Data Entry'!I66","v":1},{"$f":"'CHVA Tool - Data Entry'!I79","v":1},{"$f":"'CHVA Tool - Data Entry'!I91","v":1},{"$f":"'CHVA Tool - Data Entry'!I119","v":1},{"$f":"'CHVA Tool - Data Entry'!I135","v":2},{"$f":"'CHVA Tool - Data Entry'!I150","v":1},{"$f":"'CHVA Tool - Data Entry'!I165","v":1.4444444444444444},{"$f":"'CHVA Tool - Data Entry'!I165","v":1.4444444444444444}]
[{"$f":"'CHVA Tool - Data Entry'!A40","v":"Solar Flares"},{"$f":"'CHVA Tool - Data Entry'!O40","v":0.21052631578947367},{"$f":"'CHVA Tool - Data Entry'!P40","v":0.42105263157894735},{"$f":"'CHVA Tool - Data Entry'!Q40","v":63},null,null,null,"Preparedness External",{"$f":"'CHVA Tool - Data Entry'!J24","v":1},{"$f":"'CHVA Tool - Data Entry'!J49","v":1},{"$f":"'CHVA Tool - Data Entry'!J66","v":3},{"$f":"'CHVA Tool - Data Entry'!J79","v":1},{"$f":"'CHVA Tool - Data Entry'!J91","v":2},{"$f":"'CHVA Tool - Data Entry'!J119","v":2},{"$f":"'CHVA Tool - Data Entry'!J135","v":2},{"$f":"'CHVA Tool - Data Entry'!J150","v":2},{"$f":"'CHVA Tool - Data Entry'!J165","v":1.7777777777777777},{"$f":"'CHVA Tool - Data Entry'!J165","v":1.7777777777777777}]
[{"$f":"'CHVA Tool - Data Entry'!A41","v":"Temperature Extreme (Cold)"},{"$f":"'CHVA Tool - Data Entry'!O41","v":0.21052631578947367},{"$f":"'CHVA Tool - Data Entry'!P41","v":0.42105263157894735},{"$f":"'CHVA Tool - Data Entry'!Q41","v":63},null,null,null,"Response Internal",{"$f":"'CHVA Tool - Data Entry'!K24","v":3},{"$f":"'CHVA Tool - Data Entry'!K49","v":1},{"$f":"'CHVA Tool - Data Entry'!K66","v":2},{"$f":"'CHVA Tool - Data Entry'!K79","v":2},{"$f":"'CHVA Tool - Data Entry'!K91","v":2},{"$f":"'CHVA Tool - Data Entry'!K119","v":3},{"$f":"'CHVA Tool - Data Entry'!K135","v":1},{"$f":"'CHVA Tool - Data Entry'!K150","v":1},{"$f":"'CHVA Tool - Data Entry'!K165","v":1.7777777777777777},{"$f":"'CHVA Tool - Data Entry'!K165","v":1.7777777777777777}]
[{"$f":"'CHVA Tool - Data Entry'!A42","v":"Temperature Extreme (Hot)"},{"$f":"'CHVA Tool - Data Entry'!O42","v":0.21052631578947367},{"$f":"'CHVA Tool - Data Entry'!P42","v":0.42105263157894735},{"$f":"'CHVA Tool - Data Entry'!Q42","v":63},null,null,null,"Response External",{"$f":"'CHVA Tool - Data Entry'!L24","v":2},{"$f":"'CHVA Tool - Data Entry'!L49","v":3},{"$f":"'CHVA Tool - Data Entry'!L66","v":3},{"$f":"'CHVA Tool - Data Entry'!L79","v":2},{"$f":"'CHVA Tool - Data Entry'!L91","v":2},{"$f":"'CHVA Tool - Data Entry'!L119","v":1},{"$f":"'CHVA Tool - Data Entry'!L135","v":1},{"$f":"'CHVA Tool - Data Entry'!L150","v":2},{"$f":"'CHVA Tool - Data Entry'!L165","v":2},{"$f":"'CHVA Tool - Data Entry'!L165","v":2}]
[{"$f":"'CHVA Tool - Data Entry'!A43","v":"Tidal Wave"},{"$f":"'CHVA Tool - Data Entry'!O43","v":0.21052631578947367},{"$f":"'CHVA Tool - Data Entry'!P43","v":0.42105263157894735},{"$f":"'CHVA Tool - Data Entry'!Q43","v":63},null,null,null,"Recovery Internal",{"$f":"'CHVA Tool - Data Entry'!M24","v":1},{"$f":"'CHVA Tool - Data Entry'!M49","v":2},{"$f":"'CHVA Tool - Data Entry'!M66","v":1},{"$f":"'CHVA Tool - Data Entry'!M79","v":3},{"$f":"'CHVA Tool - Data Entry'!M91","v":3},{"$f":"'CHVA Tool - Data Entry'!M119","v":2},{"$f":"'CHVA Tool - Data Entry'!M135","v":2},{"$f":"'CHVA Tool - Data Entry'!M150","v":2},{"$f":"'CHVA Tool - Data Entry'!M165","v":2},{"$f":"'CHVA Tool - Data Entry'!M165","v":2}]
[{"$f":"'CHVA Tool - Data Entry'!A44","v":"Tornado"},{"$f":"'CHVA Tool - Data Entry'!O44","v":0.21052631578947367},{"$f":"'CHVA Tool - Data Entry'!P44","v":0.42105263157894735},{"$f":"'CHVA Tool - Data Entry'!Q44","v":63},null,null,null,"Recovery External",{"$f":"'CHVA Tool - Data Entry'!N24","v":2},{"$f":"'CHVA Tool - Data Entry'!N49","v":1},{"$f":"'CHVA Tool - Data Entry'!N66","v":1},{"$f":"'CHVA Tool - Data Entry'!N79","v":3},{"$f":"'CHVA Tool - Data Entry'!N91","v":3},{"$f":"'CHVA Tool - Data Entry'!N119","v":2},{"$f":"'CHVA Tool - Data Entry'!N135","v":2},{"$f":"'CHVA Tool - Data Entry'!N150","v":2},{"$f":"'CHVA Tool - Data Entry'!N165","v":2.1111111111111112},{"$f":"'CHVA Tool - Data Entry'!N165","v":2.1111111111111112}]
[{"$f":"'CHVA Tool - Data Entry'!A45","v":"Volcano"},{"$f":"'CHVA Tool - Data Entry'!O45","v":0.21052631578947367},{"$f":"'CHVA Tool - Data Entry'!P45","v":0.42105263157894735},{"$f":"'CHVA Tool - Data Entry'!Q45","v":63}]
[{"$f":"'CHVA Tool - Data Entry'!A46","v":"Wild Fire"},{"$f":"'CHVA Tool - Data Entry'!O46","v":0.21052631578947367},{"$f":"'CHVA Tool - Data Entry'!P46","v":0.42105263157894735},{"$f":"'CHVA Tool - Data Entry'!Q46","v":63},null,null,null,"Total"]
[{"$f":"'CHVA Tool - Data Entry'!A47","v":0},{"$f":"'CHVA Tool - Data Entry'!O47","v":0},{"$f":"'CHVA Tool - Data Entry'!P47","v":0},{"$f":"'CHVA Tool - Data Entry'!Q47","v":0}]
[{"$f":"'CHVA Tool - Data Entry'!A48","v":0},{"$f":"'CHVA Tool - Data Entry'!O48","v":0},{"$f":"'CHVA Tool - Data Entry'!P48","v":0},{"$f":"'CHVA Tool - Data Entry'!Q48","v":0},null,null,null,null,{"$f":"I28","v":"National Planning Scenarios"},{"$f":"J28","v":"Naturally Occurring Events "},"Human Related Events ","Hazardous Materials Events","Technologic Events","Utility Events","Geographic Events","Physical Events","Other Events",0]
[{"$f":"'CHVA Tool - Data Entry'!A49","v":"Average: "},{"$f":"'CHVA Tool - Data Entry'!O49","v":0},{"$f":"'CHVA Tool - Data Entry'!P49","v":0},{"$f":"'CHVA Tool - Data Entry'!Q49","v":0},null,null,null,{"$f":"'CHVA Tool - Data Entry'!D2","v":"HUMAN IMPACT"},{"$f":"'CHVA Tool - Data Entry'!D24","v":1},{"$f":"'CHVA Tool - Data Entry'!D49","v":1},{"$f":"'CHVA Tool - Data Entry'!D66","v":3},{"$f":"'CHVA Tool - Data Entry'!D79","v":2},{"$f":"'CHVA Tool - Data Entry'!D91","v":3},{"$f":"'CHVA Tool - Data Entry'!D119","v":2},{"$f":"'CHVA Tool - Data Entry'!D135","v":2},{"$f":"'CHVA Tool - Data Entry'!D150","v":3},{"$f":"'CHVA Tool - Data Entry'!D165","v":2.2222222222222223},{"$f":"'CHVA Tool - Data Entry'!D165","v":2.2222222222222223}]
[{"$f":"'CHVA Tool - Data Entry'!A50","v":"Human Related Events "},{"$f":"'CHVA Tool - Data Entry'!O50","v":0},{"$f":"'CHVA Tool - Data Entry'!P50","v":0},{"$f":"'CHVA Tool - Data Entry'!Q50","v":0},null,null,null,{"$f":"'CHVA Tool - Data Entry'!E2","v":"PROPERTY IMPACT"},{"$f":"'CHVA Tool - Data Entry'!E24","v":2},{"$f":"'CHVA Tool - Data Entry'!E49","v":2},{"$f":"'CHVA Tool - Data Entry'!E66","v":1},{"$f":"'CHVA Tool - Data Entry'!E79","v":3},{"$f":"'CHVA Tool - Data Entry'!E91","v":2},{"$f":"'CHVA Tool - Data Entry'!E119","v":3},{"$f":"'CHVA Tool - Data Entry'!E135","v":2},{"$f":"'CHVA Tool - Data Entry'!E150","v":1},{"$f":"'CHVA Tool - Data Entry'!E165","v":2.1111111111111112},{"$f":"'CHVA Tool - Data Entry'!E165","v":2.1111111111111112}]
[{"$f":"'CHVA Tool - Data Entry'!A51","v":"Active Shooter"},{"$f":"'CHVA Tool - Data Entry'!O51","v":0.63157894736842102},{"$f":"'CHVA Tool - Data Entry'!P51","v":0.63157894736842102},{"$f":"'CHVA Tool - Data Entry'!Q51","v":126},null,null,null,{"$f":"'CHVA Tool - Data Entry'!F2","v":"BUSINESS IMPACT"},{"$f":"'CHVA Tool - Data Entry'!F24","v":3},{"$f":"'CHVA Tool - Data Entry'!F49","v":3},{"$f":"'CHVA Tool - Data Entry'!F66","v":2},{"$f":"'CHVA Tool - Data Entry'!F79","v":1},{"$f":"'CHVA Tool - Data Entry'!F91","v":2},{"$f":"'CHVA Tool - Data Entry'!F119","v":1},{"$f":"'CHVA Tool - Data Entry'!F135","v":2},{"$f":"'CHVA Tool - Data Entry'!F150","v":2},{"$f":"'CHVA Tool - Data Entry'!F165","v":2.1111111111111112},{"$f":"'CHVA Tool - Data Entry'!F165","v":2.1111111111111112}]
[{"$f":"'CHVA Tool - Data Entry'!A52","v":"Bomb Threat"},{"$f":"'CHVA Tool - Data Entry'!O52","v":0.63157894736842102},{"$f":"'CHVA Tool - Data Entry'!P52","v":0.63157894736842102},{"$f":"'CHVA Tool - Data Entry'!Q52","v":126}]
[{"$f":"'CHVA Tool - Data Entry'!A53","v":"Civil Disturbance"},{"$f":"'CHVA Tool - Data Entry'!O53","v":0.42105263157894735},{"$f":"'CHVA Tool - Data Entry'!P53","v":0.42105263157894735},{"$f":"'CHVA Tool - Data Entry'!Q53","v":84}]
[{"$f":"'CHVA Tool - Data Entry'!A54","v":"Forensic Admission"},{"$f":"'CHVA Tool - Data Entry'!O54","v":0.44444444444444442},{"$f":"'CHVA Tool - Data Entry'!P54","v":0.44444444444444442},{"$f":"'CHVA Tool - Data Entry'!Q54","v":88},null,null,null,null,{"$f":"I28","v":"National Planning Scenarios"},{"$f":"J28","v":"Naturally Occurring Events "},"Human Related Events ","Hazardous Materials Events","Technologic Events","Utility Events","Geographic Events","Physical Events","Other Events"]
[{"$f":"'CHVA Tool - Data Entry'!A55","v":"Hostage Situation"},{"$f":"'CHVA Tool - Data Entry'!O55","v":0.42105263157894735},{"$f":"'CHVA Tool - Data Entry'!P55","v":0.21052631578947367},{"$f":"'CHVA Tool - Data Entry'!Q55","v":63},null,null,null,"Occurrence",{"$f":"'CHVA Tool - Data Entry'!B24","v":1.5333333333333334},{"$f":"'CHVA Tool - Data Entry'!B49","v":1.2857142857142858},{"$f":"'CHVA Tool - Data Entry'!B66","v":2.1538461538461537},{"$f":"'CHVA Tool - Data Entry'!B79","v":2.2222222222222223},{"$f":"'CHVA Tool - Data Entry'!B91","v":2.25},{"$f":"'CHVA Tool - Data Entry'!B119","v":2.0833333333333335},{"$f":"'CHVA Tool - Data Entry'!B135","v":2.1666666666666665},{"$f":"'CHVA Tool - Data Entry'!B150","v":2.1818181818181817},{"$f":"'CHVA Tool - Data Entry'!B165","v":2.0180720514053849}]
[{"$f":"'CHVA Tool - Data Entry'!A56","v":"Infant Abduction"},{"$f":"'CHVA Tool - Data Entry'!O56","v":0.42105263157894735},{"$f":"'CHVA Tool - Data Entry'!P56","v":0.21052631578947367},{"$f":"'CHVA Tool - Data Entry'!Q56","v":63},null,null,null,"Response",{"$f":"'CHVA Tool - Data Entry'!C24","v":2.1333333333333333},{"$f":"'CHVA Tool - Data Entry'!C49","v":2.0952380952380953},{"$f":"'CHVA Tool - Data Entry'!C66","v":1.4615384615384615},{"$f":"'CHVA Tool - Data Entry'!C79","v":1.4444444444444444},{"$f":"'CHVA Tool - Data Entry'!C91","v":2.5},{"$f":"'CHVA Tool - Data Entry'!C119","v":1.3333333333333333},{"$f":"'CHVA Tool - Data Entry'!C135","v":2.1666666666666665},{"$f":"'CHVA Tool - Data Entry'!C150","v":2.1818181818181817},{"$f":"'CHVA Tool - Data Entry'!C165","v":1.9081683748350413}]
[{"$f":"'CHVA Tool - Data Entry'!A57","v":"Labor Action"},{"$f":"'CHVA Tool - Data Entry'!O57","v":0.42105263157894735},{"$f":"'CHVA Tool - Data Entry'!P57","v":0.21052631578947367},{"$f":"'CHVA Tool - Data Entry'!Q57","v":63}]
[{"$f":"'CHVA Tool - Data Entry'!A58","v":"Mass Casualty (Trauma)"},{"$f":"'CHVA Tool - Data Entry'!O58","v":0.42105263157894735},{"$f":"'CHVA Tool - Data Entry'!P58","v":0.21052631578947367},{"$f":"'CHVA Tool - Data Entry'!Q58","v":63}]
[{"$f":"'CHVA Tool - Data Entry'!A59","v":"Missing Child"},{"$f":"'CHVA Tool - Data Entry'!O59","v":0.42105263157894735},{"$f":"'CHVA Tool - Data Entry'!P59","v":0.21052631578947367},{"$f":"'CHVA Tool - Data Entry'!Q59","v":63}]
[{"$f":"'CHVA Tool - Data Entry'!A60","v":"Staffing Shortage"},{"$f":"'CHVA Tool - Data Entry'!O60","v":0.42105263157894735},{"$f":"'CHVA Tool - Data Entry'!P60","v":0.21052631578947367},{"$f":"'CHVA Tool - Data Entry'!Q60","v":63}]
[{"$f":"'CHVA Tool - Data Entry'!A61","v":"Violence in the ED"},{"$f":"'CHVA Tool - Data Entry'!O61","v":0.42105263157894735},{"$f":"'CHVA Tool - Data Entry'!P61","v":0.21052631578947367},{"$f":"'CHVA Tool - Data Entry'!Q61","v":63}]
[{"$f":"'CHVA Tool - Data Entry'!A62","v":"VIP Situation"},{"$f":"'CHVA Tool - Data Entry'!O62","v":0.42105263157894735},{"$f":"'CHVA Tool - Data Entry'!P62","v":0.21052631578947367},{"$f":"'CHVA Tool - Data Entry'!Q62","v":63}]
[{"$f":"'CHVA Tool - Data Entry'!A63","v":"Workplace Violence"},{"$f":"'CHVA Tool - Data Entry'!O63","v":0.42105263157894735},{"$f":"'CHVA Tool - Data Entry'!P63","v":0.21052631578947367},{"$f":"'CHVA Tool - Data Entry'!Q63","v":63}]
[{"$f":"'CHVA Tool - Data Entry'!A64","v":0},{"$f":"'CHVA Tool - Data Entry'!O64","v":0},{"$f":"'CHVA Tool - Data Entry'!P64","v":0},{"$f":"'CHVA Tool - Data Entry'!Q64","v":0}]
[{"$f":"'CHVA Tool - Data Entry'!A65","v":0},{"$f":"'CHVA Tool - Data Entry'!O65","v":0},{"$f":"'CHVA Tool - Data Entry'!P65","v":0},{"$f":"'CHVA Tool - Data Entry'!Q65","v":0}]
[{"$f":"'CHVA Tool - Data Entry'!A66","v":"Average: "},{"$f":"'CHVA Tool - Data Entry'!O66","v":0},{"$f":"'CHVA Tool - Data Entry'!P66","v":0},{"$f":"'CHVA Tool - Data Entry'!Q66","v":0}]
[{"$f":"'CHVA Tool - Data Entry'!A67","v":"Hazardous Materials Events"},{"$f":"'CHVA Tool - Data Entry'!O67","v":0},{"$f":"'CHVA Tool - Data Entry'!P67","v":0},{"$f":"'CHVA Tool - Data Entry'!Q67","v":0}]
[{"$f":"'CHVA Tool - Data Entry'!A68","v":"Decontamination"},{"$f":"'CHVA Tool - Data Entry'!O68","v":0.66666666666666663},{"$f":"'CHVA Tool - Data Entry'!P68","v":0.66666666666666663},{"$f":"'CHVA Tool - Data Entry'!Q68","v":132}]
[{"$f":"'CHVA Tool - Data Entry'!A69","v":"HAZMAT Spill (Internal)"},{"$f":"'CHVA Tool - Data Entry'!O69","v":0.66666666666666663},{"$f":"'CHVA Tool - Data Entry'!P69","v":0.66666666666666663},{"$f":"'CHVA Tool - Data Entry'!Q69","v":132}]
[{"$f":"'CHVA Tool - Data Entry'!A70","v":"HAZMAT Spill (External)"},{"$f":"'CHVA Tool - Data Entry'!O70","v":0.44444444444444442},{"$f":"'CHVA Tool - Data Entry'!P70","v":0.22222222222222221},{"$f":"'CHVA Tool - Data Entry'!Q70","v":66}]
[{"$f":"'CHVA Tool - Data Entry'!A71","v":"Indoor Air Quality Issues"},{"$f":"'CHVA Tool - Data Entry'!O71","v":0.44444444444444442},{"$f":"'CHVA Tool - Data Entry'!P71","v":0.22222222222222221},{"$f":"'CHVA Tool - Data Entry'!Q71","v":66}]
[{"$f":"'CHVA Tool - Data Entry'!A72","v":"Large Internal Spill"},{"$f":"'CHVA Tool - Data Entry'!O72","v":0.44444444444444442},{"$f":"'CHVA Tool - Data Entry'!P72","v":0.22222222222222221},{"$f":"'CHVA Tool - Data Entry'!Q72","v":66}]
[{"$f":"'CHVA Tool - Data Entry'!A73","v":"Radiologic Exposure (Internal) "},{"$f":"'CHVA Tool - Data Entry'!O73","v":0.44444444444444442},{"$f":"'CHVA Tool - Data Entry'!P73","v":0.22222222222222221},{"$f":"'CHVA Tool - Data Entry'!Q73","v":66}]
[{"$f":"'CHVA Tool - Data Entry'!A74","v":"Radiological Incident (External)"},{"$f":"'CHVA Tool - Data Entry'!O74","v":0.44444444444444442},{"$f":"'CHVA Tool - Data Entry'!P74","v":0.22222222222222221},{"$f":"'CHVA Tool - Data Entry'!Q74","v":66}]
[{"$f":"'CHVA Tool - Data Entry'!A75","v":"Small-Medium Sized Internal Spill"},{"$f":"'CHVA Tool - Data Entry'!O75","v":0.44444444444444442},{"$f":"'CHVA Tool - Data Entry'!P75","v":0.22222222222222221},{"$f":"'CHVA Tool - Data Entry'!Q75","v":66}]
[{"$f":"'CHVA Tool - Data Entry'!A76","v":"Unknown Explosion"},{"$f":"'CHVA Tool - Data Entry'!O76","v":0.44444444444444442},{"$f":"'CHVA Tool - Data Entry'!P76","v":0.22222222222222221},{"$f":"'CHVA Tool - Data Entry'!Q76","v":66}]
[{"$f":"'CHVA Tool - Data Entry'!A77","v":0},{"$f":"'CHVA Tool - Data Entry'!O77","v":0},{"$f":"'CHVA Tool - Data Entry'!P77","v":0},{"$f":"'CHVA Tool - Data Entry'!Q77","v":0}]
[{"$f":"'CHVA Tool - Data Entry'!A78","v":0},{"$f":"'CHVA Tool - Data Entry'!O78","v":0},{"$f":"'CHVA Tool - Data Entry'!P78","v":0},{"$f":"'CHVA Tool - Data Entry'!Q78","v":0}]
[{"$f":"'CHVA Tool - Data Entry'!A79","v":"Average: "},{"$f":"'CHVA Tool - Data Entry'!O79","v":0},{"$f":"'CHVA Tool - Data Entry'!P79","v":0},{"$f":"'CHVA Tool - Data Entry'!Q79","v":0}]
[{"$f":"'CHVA Tool - Data Entry'!A80","v":"Technologic Events"},{"$f":"'CHVA Tool - Data Entry'!O80","v":0},{"$f":"'CHVA Tool - Data Entry'!P80","v":0},{"$f":"'CHVA Tool - Data Entry'!Q80","v":0}]
[{"$f":"'CHVA Tool - Data Entry'!A81","v":"Communications Failure"},{"$f":"'CHVA Tool - Data Entry'!O81","v":0.75438596491228072},{"$f":"'CHVA Tool - Data Entry'!P81","v":0.75438596491228072},{"$f":"'CHVA Tool - Data Entry'!Q81","v":150}]
[{"$f":"'CHVA Tool - Data Entry'!A82","v":"Infant Security Alarm Failure"},{"$f":"'CHVA Tool - Data Entry'!O82","v":0.75438596491228072},{"$f":"'CHVA Tool - Data Entry'!P82","v":0.75438596491228072},{"$f":"'CHVA Tool - Data Entry'!Q82","v":150}]
[{"$f":"'CHVA Tool - Data Entry'!A83","v":"Information Systems Failure"},{"$f":"'CHVA Tool - Data Entry'!O83","v":0.50292397660818711},{"$f":"'CHVA Tool - Data Entry'!P83","v":0.75438596491228072},{"$f":"'CHVA Tool - Data Entry'!Q83","v":125}]
[{"$f":"'CHVA Tool - Data Entry'!A84","v":"Magnetic Resonance Imaging (MRI) Incident"},{"$f":"'CHVA Tool - Data Entry'!O84","v":0.50292397660818711},{"$f":"'CHVA Tool - Data Entry'!P84","v":0.75438596491228072},{"$f":"'CHVA Tool - Data Entry'!Q84","v":125}]
[{"$f":"'CHVA Tool - Data Entry'!A85","v":"Network Failure"},{"$f":"'CHVA Tool - Data Entry'!O85","v":0.50292397660818711},{"$f":"'CHVA Tool - Data Entry'!P85","v":0.50292397660818711},{"$f":"'CHVA Tool - Data Entry'!Q85","v":100}]
[{"$f":"'CHVA Tool - Data Entry'!A86","v":"Pharmacy Medication Dispenser Failure"},{"$f":"'CHVA Tool - Data Entry'!O86","v":0.50292397660818711},{"$f":"'CHVA Tool - Data Entry'!P86","v":0.50292397660818711},{"$f":"'CHVA Tool - Data Entry'!Q86","v":100}]
[{"$f":"'CHVA Tool - Data Entry'!A87","v":"Security Card Access Failure"},{"$f":"'CHVA Tool - Data Entry'!O87","v":0.50292397660818711},{"$f":"'CHVA Tool - Data Entry'!P87","v":0.50292397660818711},{"$f":"'CHVA Tool - Data Entry'!Q87","v":100}]
[{"$f":"'CHVA Tool - Data Entry'!A88","v":"Security Video Surveillance"},{"$f":"'CHVA Tool - Data Entry'!O88","v":0.50292397660818711},{"$f":"'CHVA Tool - Data Entry'!P88","v":0.50292397660818711},{"$f":"'CHVA Tool - Data Entry'!Q88","v":100}]
[{"$f":"'CHVA Tool - Data Entry'!A89","v":0},{"$f":"'CHVA Tool - Data Entry'!O89","v":0},{"$f":"'CHVA Tool - Data Entry'!P89","v":0},{"$f":"'CHVA Tool - Data Entry'!Q89","v":0}]
[{"$f":"'CHVA Tool - Data Entry'!A90","v":0},{"$f":"'CHVA Tool - Data Entry'!O90","v":0},{"$f":"'CHVA Tool - Data Entry'!P90","v":0},{"$f":"'CHVA Tool - Data Entry'!Q90","v":0}]
[{"$f":"'CHVA Tool - Data Entry'!A91","v":"Average: "},{"$f":"'CHVA Tool - Data Entry'!O91","v":0},{"$f":"'CHVA Tool - Data Entry'!P91","v":0},{"$f":"'CHVA Tool - Data Entry'!Q91","v":0}]
[{"$f":"'CHVA Tool - Data Entry'!A92","v":"Utility Events"},{"$f":"'CHVA Tool - Data Entry'!O92","v":0},{"$f":"'CHVA Tool - Data Entry'!P92","v":0},{"$f":"'CHVA Tool - Data Entry'!Q92","v":0}]
[{"$f":"'CHVA Tool - Data Entry'!A93","v":"Broken Water Main (Internal)"},{"$f":"'CHVA Tool - Data Entry'!O93","v":0.59649122807017541},{"$f":"'CHVA Tool - Data Entry'!P93","v":0.59649122807017541},{"$f":"'CHVA Tool - Data Entry'!Q93","v":120}]
[{"$f":"'CHVA Tool - Data Entry'!A94","v":"Broken Water Main (External)"},{"$f":"'CHVA Tool - Data Entry'!O94","v":0.59649122807017541},{"$f":"'CHVA Tool - Data Entry'!P94","v":0.59649122807017541},{"$f":"'CHVA Tool - Data Entry'!Q94","v":120}]
[{"$f":"'CHVA Tool - Data Entry'!A95","v":"Compressed Gas Cylinder Leak/Failure"},{"$f":"'CHVA Tool - Data Entry'!O95","v":0.39766081871345027},{"$f":"'CHVA Tool - Data Entry'!P95","v":0.59649122807017541},{"$f":"'CHVA Tool - Data Entry'!Q95","v":100}]
[{"$f":"'CHVA Tool - Data Entry'!A96","v":"Electrical Failure"},{"$f":"'CHVA Tool - Data Entry'!O96","v":0.39766081871345027},{"$f":"'CHVA Tool - Data Entry'!P96","v":0.59649122807017541},{"$f":"'CHVA Tool - Data Entry'!Q96","v":100}]
[{"$f":"'CHVA Tool - Data Entry'!A97","v":"Elevator Failure"},{"$f":"'CHVA Tool - Data Entry'!O97","v":0.39766081871345027},{"$f":"'CHVA Tool - Data Entry'!P97","v":0.19883040935672514},{"$f":"'CHVA Tool - Data Entry'!Q97","v":60}]
[{"$f":"'CHVA Tool - Data Entry'!A98","v":"Fire (Internal)"},{"$f":"'CHVA Tool - Data Entry'!O98","v":0.39766081871345027},{"$f":"'CHVA Tool - Data Entry'!P98","v":0.19883040935672514},{"$f":"'CHVA Tool - Data Entry'!Q98","v":60}]
[{"$f":"'CHVA Tool - Data Entry'!A99","v":"Fire Detection/Alarm Failure"},{"$f":"'CHVA Tool - Data Entry'!O99","v":0.39766081871345027},{"$f":"'CHVA Tool - Data Entry'!P99","v":0.19883040935672514},{"$f":"'CHVA Tool - Data Entry'!Q99","v":60}]
[{"$f":"'CHVA Tool - Data Entry'!A100","v":"Fire Suppression Failure"},{"$f":"'CHVA Tool - Data Entry'!O100","v":0.39766081871345027},{"$f":"'CHVA Tool - Data Entry'!P100","v":0.19883040935672514},{"$f":"'CHVA Tool - Data Entry'!Q100","v":60}]
[{"$f":"'CHVA Tool - Data Entry'!A101","v":"Flood (Internal)"},{"$f":"'CHVA Tool - Data Entry'!O101","v":0.39766081871345027},{"$f":"'CHVA Tool - Data Entry'!P101","v":0.19883040935672514},{"$f":"'CHVA Tool - Data Entry'!Q101","v":60}]
[{"$f":"'CHVA Tool - Data Entry'!A102","v":"Fuel Shortage"},{"$f":"'CHVA Tool - Data Entry'!O102","v":0.39766081871345027},{"$f":"'CHVA Tool - Data Entry'!P102","v":0.19883040935672514},{"$f":"'CHVA Tool - Data Entry'!Q102","v":60}]
[{"$f":"'CHVA Tool - Data Entry'!A103","v":"Generator Failure"},{"$f":"'CHVA Tool - Data Entry'!O103","v":0.39766081871345027},{"$f":"'CHVA Tool - Data Entry'!P103","v":0.19883040935672514},{"$f":"'CHVA Tool - Data Entry'!Q103","v":60}]
[{"$f":"'CHVA Tool - Data Entry'!A104","v":"HVAC Failure"},{"$f":"'CHVA Tool - Data Entry'!O104","v":0.39766081871345027},{"$f":"'CHVA Tool - Data Entry'!P104","v":0.19883040935672514},{"$f":"'CHVA Tool - Data Entry'!Q104","v":60}]
[{"$f":"'CHVA Tool - Data Entry'!A105","v":"Loss of Bulk Oxygen"},{"$f":"'CHVA Tool - Data Entry'!O105","v":0.39766081871345027},{"$f":"'CHVA Tool - Data Entry'!P105","v":0.19883040935672514},{"$f":"'CHVA Tool - Data Entry'!Q105","v":60}]
[{"$f":"'CHVA Tool - Data Entry'!A106","v":"Medical Gas Failure"},{"$f":"'CHVA Tool - Data Entry'!O106","v":0.39766081871345027},{"$f":"'CHVA Tool - Data Entry'!P106","v":0.19883040935672514},{"$f":"'CHVA Tool - Data Entry'!Q106","v":60}]
[{"$f":"'CHVA Tool - Data Entry'!A107","v":"Medical Vacuum Failure"},{"$f":"'CHVA Tool - Data Entry'!O107","v":0.39766081871345027},{"$f":"'CHVA Tool - Data Entry'!P107","v":0.19883040935672514},{"$f":"'CHVA Tool - Data Entry'!Q107","v":60}]
[{"$f":"'CHVA Tool - Data Entry'!A108","v":"Natural Gas Failure"},{"$f":"'CHVA Tool - Data Entry'!O108","v":0.39766081871345027},{"$f":"'CHVA Tool - Data Entry'!P108","v":0.19883040935672514},{"$f":"'CHVA Tool - Data Entry'!Q108","v":60}]
[{"$f":"'CHVA Tool - Data Entry'!A109","v":"Natural Gas Leak"},{"$f":"'CHVA Tool - Data Entry'!O109","v":0.39766081871345027},{"$f":"'CHVA Tool - Data Entry'!P109","v":0.19883040935672514},{"$f":"'CHVA Tool - Data Entry'!Q109","v":60}]
[{"$f":"'CHVA Tool - Data Entry'!A110","v":"Oxygen Leak"},{"$f":"'CHVA Tool - Data Entry'!O110","v":0.39766081871345027},{"$f":"'CHVA Tool - Data Entry'!P110","v":0.19883040935672514},{"$f":"'CHVA Tool - Data Entry'!Q110","v":60}]
[{"$f":"'CHVA Tool - Data Entry'!A111","v":"Potable Water Failure"},{"$f":"'CHVA Tool - Data Entry'!O111","v":0.39766081871345027},{"$f":"'CHVA Tool - Data Entry'!P111","v":0.19883040935672514},{"$f":"'CHVA Tool - Data Entry'!Q111","v":60}]
[{"$f":"'CHVA Tool - Data Entry'!A112","v":"Process Water Failure"},{"$f":"'CHVA Tool - Data Entry'!O112","v":0.39766081871345027},{"$f":"'CHVA Tool - Data Entry'!P112","v":0.19883040935672514},{"$f":"'CHVA Tool - Data Entry'!Q112","v":60}]
[{"$f":"'CHVA Tool - Data Entry'!A113","v":"Sewer Failure"},{"$f":"'CHVA Tool - Data Entry'!O113","v":0.39766081871345027},{"$f":"'CHVA Tool - Data Entry'!P113","v":0.19883040935672514},{"$f":"'CHVA Tool - Data Entry'!Q113","v":60}]
[{"$f":"'CHVA Tool - Data Entry'!A114","v":"Steam Failure"},{"$f":"'CHVA Tool - Data Entry'!O114","v":0.39766081871345027},{"$f":"'CHVA Tool - Data Entry'!P114","v":0.19883040935672514},{"$f":"'CHVA Tool - Data Entry'!Q114","v":60}]
[{"$f":"'CHVA Tool - Data Entry'!A115","v":"Structural Damage"},{"$f":"'CHVA Tool - Data Entry'!O115","v":0.39766081871345027},{"$f":"'CHVA Tool - Data Entry'!P115","v":0.19883040935672514},{"$f":"'CHVA Tool - Data Entry'!Q115","v":60}]
[{"$f":"'CHVA Tool - Data Entry'!A116","v":"Tube System Failure"},{"$f":"'CHVA Tool - Data Entry'!O116","v":0.39766081871345027},{"$f":"'CHVA Tool - Data Entry'!P116","v":0.19883040935672514},{"$f":"'CHVA Tool - Data Entry'!Q116","v":60}]
[{"$f":"'CHVA Tool - Data Entry'!A117","v":0},{"$f":"'CHVA Tool - Data Entry'!O117","v":0},{"$f":"'CHVA Tool - Data Entry'!P117","v":0},{"$f":"'CHVA Tool - Data Entry'!Q117","v":0}]
[{"$f":"'CHVA Tool - Data Entry'!A118","v":0},{"$f":"'CHVA Tool - Data Entry'!O118","v":0},{"$f":"'CHVA Tool - Data Entry'!P118","v":0},{"$f":"'CHVA Tool - Data Entry'!Q118","v":0}]
[{"$f":"'CHVA Tool - Data Entry'!A119","v":"Average: "},{"$f":"'CHVA Tool - Data Entry'!O119","v":0},{"$f":"'CHVA Tool - Data Entry'!P119","v":0},{"$f":"'CHVA Tool - Data Entry'!Q119","v":0}]
[{"$f":"'CHVA Tool - Data Entry'!A120","v":"Geographic Events"},{"$f":"'CHVA Tool - Data Entry'!O120","v":0},{"$f":"'CHVA Tool - Data Entry'!P120","v":0},{"$f":"'CHVA Tool - Data Entry'!Q120","v":0}]
[{"$f":"'CHVA Tool - Data Entry'!A121","v":"Proximity to nuclear power plants"},{"$f":"'CHVA Tool - Data Entry'!O121","v":0.63157894736842102},{"$f":"'CHVA Tool - Data Entry'!P121","v":0.63157894736842102},{"$f":"'CHVA Tool - Data Entry'!Q121","v":126}]
[{"$f":"'CHVA Tool - Data Entry'!A122","v":"Proximity to Bridges"},{"$f":"'CHVA Tool - Data Entry'!O122","v":0.63157894736842102},{"$f":"'CHVA Tool - Data Entry'!P122","v":0.63157894736842102},{"$f":"'CHVA Tool - Data Entry'!Q122","v":126}]
[{"$f":"'CHVA Tool - Data Entry'!A123","v":"Proximity to bus terminals"},{"$f":"'CHVA Tool - Data Entry'!O123","v":0.42105263157894735},{"$f":"'CHVA Tool - Data Entry'!P123","v":0.42105263157894735},{"$f":"'CHVA Tool - Data Entry'!Q123","v":84}]
[{"$f":"'CHVA Tool - Data Entry'!A124","v":"Proximity to Civic/Sports Events"},{"$f":"'CHVA Tool - Data Entry'!O124","v":0.42105263157894735},{"$f":"'CHVA Tool - Data Entry'!P124","v":0.42105263157894735},{"$f":"'CHVA Tool - Data Entry'!Q124","v":84}]
[{"$f":"'CHVA Tool - Data Entry'!A125","v":"Proximity to companies that produce, store, use, or transport hazardous materials"},{"$f":"'CHVA Tool - Data Entry'!O125","v":0.42105263157894735},{"$f":"'CHVA Tool - Data Entry'!P125","v":0.42105263157894735},{"$f":"'CHVA Tool - Data Entry'!Q125","v":84}]
[{"$f":"'CHVA Tool - Data Entry'!A126","v":"Proximity to Federal buildings"},{"$f":"'CHVA Tool - Data Entry'!O126","v":0.42105263157894735},{"$f":"'CHVA Tool - Data Entry'!P126","v":0.42105263157894735},{"$f":"'CHVA Tool - Data Entry'!Q126","v":84}]
[{"$f":"'CHVA Tool - Data Entry'!A127","v":"Proximity to Festivals"},{"$f":"'CHVA Tool - Data Entry'!O127","v":0.42105263157894735},{"$f":"'CHVA Tool - Data Entry'!P127","v":0.42105263157894735},{"$f":"'CHVA Tool - Data Entry'!Q127","v":84}]
[{"$f":"'CHVA Tool - Data Entry'!A128","v":"Proximity to flood plains, faults, and dams"},{"$f":"'CHVA Tool - Data Entry'!O128","v":0.42105263157894735},{"$f":"'CHVA Tool - Data Entry'!P128","v":0.42105263157894735},{"$f":"'CHVA Tool - Data Entry'!Q128","v":84}]
[{"$f":"'CHVA Tool - Data Entry'!A129","v":"Proximity to local schools and universities"},{"$f":"'CHVA Tool - Data Entry'!O129","v":0.42105263157894735},{"$f":"'CHVA Tool - Data Entry'!P129","v":0.42105263157894735},{"$f":"'CHVA Tool - Data Entry'!Q129","v":84}]
[{"$f":"'CHVA Tool - Data Entry'!A130","v":"Proximity to major trans. routes and airports"},{"$f":"'CHVA Tool - Data Entry'!O130","v":0.42105263157894735},{"$f":"'CHVA Tool - Data Entry'!P130","v":0.42105263157894735},{"$f":"'CHVA Tool - Data Entry'!Q130","v":84}]
[{"$f":"'CHVA Tool - Data Entry'!A131","v":"Proximity to Parks"},{"$f":"'CHVA Tool - Data Entry'!O131","v":0.42105263157894735},{"$f":"'CHVA Tool - Data Entry'!P131","v":0.42105263157894735},{"$f":"'CHVA Tool - Data Entry'!Q131","v":84}]
[{"$f":"'CHVA Tool - Data Entry'!A132","v":"Proximity to train stations"},{"$f":"'CHVA Tool - Data Entry'!O132","v":0.42105263157894735},{"$f":"'CHVA Tool - Data Entry'!P132","v":0.42105263157894735},{"$f":"'CHVA Tool - Data Entry'!Q132","v":84}]
[{"$f":"'CHVA Tool - Data Entry'!A133","v":0},{"$f":"'CHVA Tool - Data Entry'!O133","v":0},{"$f":"'CHVA Tool - Data Entry'!P133","v":0},{"$f":"'CHVA Tool - Data Entry'!Q133","v":0}]
[{"$f":"'CHVA Tool - Data Entry'!A134","v":0},{"$f":"'CHVA Tool - Data Entry'!O134","v":0},{"$f":"'CHVA Tool - Data Entry'!P134","v":0},{"$f":"'CHVA Tool - Data Entry'!Q134","v":0}]
[{"$f":"'CHVA Tool - Data Entry'!A135","v":"Average: "},{"$f":"'CHVA Tool - Data Entry'!O135","v":0},{"$f":"'CHVA Tool - Data Entry'!P135","v":0},{"$f":"'CHVA Tool - Data Entry'!Q135","v":0}]
[{"$f":"'CHVA Tool - Data Entry'!A136","v":"Physical Events"},{"$f":"'CHVA Tool - Data Entry'!O136","v":0},{"$f":"'CHVA Tool - Data Entry'!P136","v":0},{"$f":"'CHVA Tool - Data Entry'!Q136","v":0}]
[{"$f":"'CHVA Tool - Data Entry'!A137","v":"Asbestos release during const. or renovation"},{"$f":"'CHVA Tool - Data Entry'!O137","v":0.59649122807017541},{"$f":"'CHVA Tool - Data Entry'!P137","v":0.59649122807017541},{"$f":"'CHVA Tool - Data Entry'!Q137","v":120}]
[{"$f":"'CHVA Tool - Data Entry'!A138","v":"Building/parking structure failure"},{"$f":"'CHVA Tool - Data Entry'!O138","v":0.59649122807017541},{"$f":"'CHVA Tool - Data Entry'!P138","v":0.59649122807017541},{"$f":"'CHVA Tool - Data Entry'!Q138","v":120}]
[{"$f":"'CHVA Tool - Data Entry'!A139","v":"Layout of the equipment"},{"$f":"'CHVA Tool - Data Entry'!O139","v":0.39766081871345027},{"$f":"'CHVA Tool - Data Entry'!P139","v":0.39766081871345027},{"$f":"'CHVA Tool - Data Entry'!Q139","v":80}]
[{"$f":"'CHVA Tool - Data Entry'!A140","v":"The physical construction of the facility"},{"$f":"'CHVA Tool - Data Entry'!O140","v":0.39766081871345027},{"$f":"'CHVA Tool - Data Entry'!P140","v":0.39766081871345027},{"$f":"'CHVA Tool - Data Entry'!Q140","v":80}]
[{"$f":"'CHVA Tool - Data Entry'!A141","v":"Evacuation routes and exits"},{"$f":"'CHVA Tool - Data Entry'!O141","v":0.39766081871345027},{"$f":"'CHVA Tool - Data Entry'!P141","v":0.39766081871345027},{"$f":"'CHVA Tool - Data Entry'!Q141","v":80}]
[{"$f":"'CHVA Tool - Data Entry'!A142","v":"Hazardous processes or byproducts"},{"$f":"'CHVA Tool - Data Entry'!O142","v":0.39766081871345027},{"$f":"'CHVA Tool - Data Entry'!P142","v":0.39766081871345027},{"$f":"'CHVA Tool - Data Entry'!Q142","v":80}]
[{"$f":"'CHVA Tool - Data Entry'!A143","v":"Proximity of shelter areas"},{"$f":"'CHVA Tool - Data Entry'!O143","v":0.39766081871345027},{"$f":"'CHVA Tool - Data Entry'!P143","v":0.39766081871345027},{"$f":"'CHVA Tool - Data Entry'!Q143","v":80}]
[{"$f":"'CHVA Tool - Data Entry'!A144","v":"Facilities for storing biohazardous wastes"},{"$f":"'CHVA Tool - Data Entry'!O144","v":0.39766081871345027},{"$f":"'CHVA Tool - Data Entry'!P144","v":0.39766081871345027},{"$f":"'CHVA Tool - Data Entry'!Q144","v":80}]
[{"$f":"'CHVA Tool - Data Entry'!A145","v":"Facilities for storing combustibles"},{"$f":"'CHVA Tool - Data Entry'!O145","v":0.39766081871345027},{"$f":"'CHVA Tool - Data Entry'!P145","v":0.39766081871345027},{"$f":"'CHVA Tool - Data Entry'!Q145","v":80}]
[{"$f":"'CHVA Tool - Data Entry'!A146","v":"Facilities for storing hazardous chemical waste"},{"$f":"'CHVA Tool - Data Entry'!O146","v":0.39766081871345027},{"$f":"'CHVA Tool - Data Entry'!P146","v":0.39766081871345027},{"$f":"'CHVA Tool - Data Entry'!Q146","v":80}]
[{"$f":"'CHVA Tool - Data Entry'!A147","v":"Lighting"},{"$f":"'CHVA Tool - Data Entry'!O147","v":0.39766081871345027},{"$f":"'CHVA Tool - Data Entry'!P147","v":0.39766081871345027},{"$f":"'CHVA Tool - Data Entry'!Q147","v":80}]
[{"$f":"'CHVA Tool - Data Entry'!A148","v":0},{"$f":"'CHVA Tool - Data Entry'!O148","v":0},{"$f":"'CHVA Tool - Data Entry'!P148","v":0},{"$f":"'CHVA Tool - Data Entry'!Q148","v":0}]
[{"$f":"'CHVA Tool - Data Entry'!A149","v":0},{"$f":"'CHVA Tool - Data Entry'!O149","v":0},{"$f":"'CHVA Tool - Data Entry'!P149","v":0},{"$f":"'CHVA Tool - Data Entry'!Q149","v":0}]
[{"$f":"'CHVA Tool - Data Entry'!A150","v":"Average: "},{"$f":"'CHVA Tool - Data Entry'!O150","v":0},{"$f":"'CHVA Tool - Data Entry'!P150","v":0},{"$f":"'CHVA Tool - Data Entry'!Q150","v":0}]
[{"$f":"'CHVA Tool - Data Entry'!A151","v":"Other Events"},{"$f":"'CHVA Tool - Data Entry'!O151","v":0},{"$f":"'CHVA Tool - Data Entry'!P151","v":0},{"$f":"'CHVA Tool - Data Entry'!Q151","v":0}]
[{"$f":"'CHVA Tool - Data Entry'!A152","v":"Airplane Crash"},{"$f":"'CHVA Tool - Data Entry'!O152","v":0.7192982456140351},{"$f":"'CHVA Tool - Data Entry'!P152","v":0.7192982456140351},{"$f":"'CHVA Tool - Data Entry'!Q152","v":150}]
[{"$f":"'CHVA Tool - Data Entry'!A153","v":"Evacuation  "},{"$f":"'CHVA Tool - Data Entry'!O153","v":0.7192982456140351},{"$f":"'CHVA Tool - Data Entry'!P153","v":0.7192982456140351},{"$f":"'CHVA Tool - Data Entry'!Q153","v":150}]
[{"$f":"'CHVA Tool - Data Entry'!A154","v":"Helicopter Incident"},{"$f":"'CHVA Tool - Data Entry'!O154","v":0.47953216374269003},{"$f":"'CHVA Tool - Data Entry'!P154","v":0.23976608187134502},{"$f":"'CHVA Tool - Data Entry'!Q154","v":75}]
[{"$f":"'CHVA Tool - Data Entry'!A155","v":"Intentional Vehicular Incident"},{"$f":"'CHVA Tool - Data Entry'!O155","v":0.47953216374269003},{"$f":"'CHVA Tool - Data Entry'!P155","v":0.23976608187134502},{"$f":"'CHVA Tool - Data Entry'!Q155","v":75}]
[{"$f":"'CHVA Tool - Data Entry'!A156","v":"Isolation Capacity"},{"$f":"'CHVA Tool - Data Entry'!O156","v":0.47953216374269003},{"$f":"'CHVA Tool - Data Entry'!P156","v":0.23976608187134502},{"$f":"'CHVA Tool - Data Entry'!Q156","v":75}]
[{"$f":"'CHVA Tool - Data Entry'!A157","v":"Loss of Key Supplier"},{"$f":"'CHVA Tool - Data Entry'!O157","v":0.47953216374269003},{"$f":"'CHVA Tool - Data Entry'!P157","v":0.47953216374269003},{"$f":"'CHVA Tool - Data Entry'!Q157","v":100}]
[{"$f":"'CHVA Tool - Data Entry'!A158","v":"Supply Shortage"},{"$f":"'CHVA Tool - Data Entry'!O158","v":0.47953216374269003},{"$f":"'CHVA Tool - Data Entry'!P158","v":0.47953216374269003},{"$f":"'CHVA Tool - Data Entry'!Q158","v":100}]
[{"$f":"'CHVA Tool - Data Entry'!A159","v":0},{"$f":"'CHVA Tool - Data Entry'!O159","v":0},{"$f":"'CHVA Tool - Data Entry'!P159","v":0},{"$f":"'CHVA Tool - Data Entry'!Q159","v":0}]
[{"$f":"'CHVA Tool - Data Entry'!A160","v":0},{"$f":"'CHVA Tool - Data Entry'!O160","v":0},{"$f":"'CHVA Tool - Data Entry'!P160","v":0},{"$f":"'CHVA Tool - Data Entry'!Q160","v":0}]
[{"$f":"'CHVA Tool - Data Entry'!A161","v":0},{"$f":"'CHVA Tool - Data Entry'!O161","v":0},{"$f":"'CHVA Tool - Data Entry'!P161","v":0},{"$f":"'CHVA Tool - Data Entry'!Q161","v":0}]
[{"$f":"'CHVA Tool - Data Entry'!A162","v":0},{"$f":"'CHVA Tool - Data Entry'!O162","v":0},{"$f":"'CHVA Tool - Data Entry'!P162","v":0},{"$f":"'CHVA Tool - Data Entry'!Q162","v":0}]
[{"$f":"'CHVA Tool - Data Entry'!A163","v":0},{"$f":"'CHVA Tool - Data Entry'!O163","v":0},{"$f":"'CHVA Tool - Data Entry'!P163","v":0},{"$f":"'CHVA Tool - Data Entry'!Q163","v":0}]
[{"$f":"'CHVA Tool - Data Entry'!A164","v":"Average: "},{"$f":"'CHVA Tool - Data Entry'!O164","v":0},{"$f":"'CHVA Tool - Data Entry'!P164","v":0},{"$f":"'CHVA Tool - Data Entry'!Q164","v":0}]
[{"$f":"'CHVA Tool - Data Entry'!A165","v":"Overall Average: "},{"$f":"'CHVA Tool - Data Entry'!O165","v":0},{"$f":"'CHVA Tool - Data Entry'!P165","v":0},{"$f":"'CHVA Tool - Data Entry'!Q165","v":0}]

{"sheet":"Top 30 Print","index":9,"n_rows":41,"n_cols":17,"rows_kept":41,"cut":false,"hidden":false,"merged":[[3,15,4,15],[3,16,4,16],[5,3,5,5],[5,6,5,13],[3,9,4,9],[3,10,4,10],[3,11,4,11],[3,12,4,12],[3,13,4,13],[3,14,4,14],[3,3,4,3],[3,4,4,4],[3,5,4,5],[3,6,4,6],[3,7,4,7],[3,8,4,8],[0,0,0,2],[0,6,0,13],[1,0,4,0],[1,1,1,2],[1,6,1,7],[1,8,1,9],[1,10,1,11],[1,12,1,13],[2,1,2,2],[3,1,4,2]]}
[{"$f":"'CHVA Tool - Data Entry'!A1:C1","v":"Children's Hospital Colorado"},null,null,"Trauma Rating:  ",{"$f":"'CHVA Tool - Data Entry'!E1","v":1},null,"Four Phases of Emergency Management"]
["                              COMMUNITY HAZARD VULNERABILITY ASSESSMENT TOOL","PROBABILITY",null,"HUMAN IMPACT","PROPERTY IMPACT","BUSINESS IMPACT","MITIGATION",null,"PREPAREDNESS",null,"RESPONSE",null,"RECOVERY",null,"RISK  Occurrence","RISK     Response","Non Weighted "]
[null,"Likelihood of future occurrence and facility response",null,"Percentage of population likely to be injured or killed under an average occurrence of the hazard","Percentage of properties likely to be affected under an average occurrence of the hazard","Percentage of businesses likely to be affected under an average occurrence of the hazard","Internal        (Jurisdictional)","External        (Region/State)","Internal        (Jurisdictional)","External        (Region/State)","Internal        (Jurisdictional)","External        (Region/State)","Internal        (Jurisdictional)","External        (Region/State)","Relative threat (increases with percentage)","Relative threat (increases with percentage)","Realtive threat (increases with number)"]
[null,"0 = N/A  (implausible)                                                                                                                                      1 = Low (0-1 event / 30 years)                                                                               2 = Moderate (2-3 events / 30 years)                                                                                                            3 = High (4+ events / 30 years)                                                                                                            ",null,"0 = N/A  (no impact expected)                                                                                                             1 = Low (<1% affected)                                                                               2 = Moderate (1-10% affected)                                                 3 = High (>10% affected)    ","0 = N/A  (no impact expected)                                                                                                             1 = Low (<1% affected)                                                                               2 = Moderate (1-10% affected)                                                 3 = High (>10% affected)    ","0 = N/A  (no impact expected)                                                                                                             1 = Low (<1% affected)                                                                               2 = Moderate (1-10% affected)                                                 3 = High (>10% affected)    ","1 = Substantial                                                       2 = Moderate                                                        3 = Limited or none","1 = Substantial                                                       2 = Moderate                                                        3 = Limited or none","1 = Substantial                                                       2 = Moderate                                                        3 = Limited or none","1 = Substantial                                                       2 = Moderate                                                        3 = Limited or none","1 = Substantial                                                       2 = Moderate                                                        3 = Limited or none","1 = Substantial                                                       2 = Moderate                                                        3 = Limited or none","1 = Substantial                                                       2 = Moderate                                                        3 = Limited or none","1 = Substantial                                                       2 = Moderate                                                        3 = Limited or none","0 - 100%","0 - 100%","0 - 198"]
[]
[null,"Occurrence","Response"]
[{"$f":"'Top data'!A5","v":"Infant Security Alarm Failure"},{"$f":"'Top data'!B5","v":3},{"$f":"'Top data'!C5","v":3},{"$f":"'Top data'!D5","v":3},{"$f":"'Top data'!E5","v":2},{"$f":"'Top data'!F5","v":2},{"$f":"'Top data'!G5","v":2},{"$f":"'Top data'!H5","v":3},{"$f":"'Top data'!I5","v":1},{"$f":"'Top data'!J5","v":2},{"$f":"'Top data'!K5","v":2},{"$f":"'Top data'!L5","v":2},{"$f":"'Top data'!M5","v":3},{"$f":"'Top data'!N5","v":3},{"$f":"'Top data'!O5","v":0.75438596491228072},{"$f":"'Top data'!P5","v":0.75438596491228072},{"$f":"'Top data'!Q5","v":150}]
[{"$f":"'Top data'!A6","v":"Communications Failure"},{"$f":"'Top data'!B6","v":3},{"$f":"'Top data'!C6","v":3},{"$f":"'Top data'!D6","v":3},{"$f":"'Top data'!E6","v":2},{"$f":"'Top data'!F6","v":2},{"$f":"'Top data'!G6","v":2},{"$f":"'Top data'!H6","v":3},{"$f":"'Top data'!I6","v":1},{"$f":"'Top data'!J6","v":2},{"$f":"'Top data'!K6","v":2},{"$f":"'Top data'!L6","v":2},{"$f":"'Top data'!M6","v":3},{"$f":"'Top data'!N6","v":3},{"$f":"'Top data'!O6","v":0.75438596491228072},{"$f":"'Top data'!P6","v":0.75438596491228072},{"$f":"'Top data'!Q6","v":150}]
[{"$f":"'Top data'!A7","v":"Airplane Crash"},{"$f":"'Top data'!B7","v":3},{"$f":"'Top data'!C7","v":3},{"$f":"'Top data'!D7","v":3},{"$f":"'Top data'!E7","v":3},{"$f":"'Top data'!F7","v":3},{"$f":"'Top data'!G7","v":2},{"$f":"'Top data'!H7","v":3},{"$f":"'Top data'!I7","v":1},{"$f":"'Top data'!J7","v":2},{"$f":"'Top data'!K7","v":1},{"$f":"'Top data'!L7","v":2},{"$f":"'Top data'!M7","v":2},{"$f":"'Top data'!N7","v":3},{"$f":"'Top data'!O7","v":0.7192982456140351},{"$f":"'Top data'!P7","v":0.7192982456140351},{"$f":"'Top data'!Q7","v":150}]
[{"$f":"'Top data'!A8","v":"Evacuation  "},{"$f":"'Top data'!B8","v":3},{"$f":"'Top data'!C8","v":3},{"$f":"'Top data'!D8","v":3},{"$f":"'Top data'!E8","v":3},{"$f":"'Top data'!F8","v":3},{"$f":"'Top data'!G8","v":2},{"$f":"'Top data'!H8","v":3},{"$f":"'Top data'!I8","v":1},{"$f":"'Top data'!J8","v":2},{"$f":"'Top data'!K8","v":1},{"$f":"'Top data'!L8","v":2},{"$f":"'Top data'!M8","v":2},{"$f":"'Top data'!N8","v":3},{"$f":"'Top data'!O8","v":0.7192982456140351},{"$f":"'Top data'!P8","v":0.7192982456140351},{"$f":"'Top data'!Q8","v":150}]
[{"$f":"'Top data'!A9","v":"HAZMAT Spill (Internal)"},{"$f":"'Top data'!B9","v":3},{"$f":"'Top data'!C9","v":3},{"$f":"'Top data'!D9","v":2},{"$f":"'Top data'!E9","v":3},{"$f":"'Top data'!F9","v":1},{"$f":"'Top data'!G9","v":2},{"$f":"'Top data'!H9","v":2},{"$f":"'Top data'!I9","v":1},{"$f":"'Top data'!J9","v":1},{"$f":"'Top data'!K9","v":2},{"$f":"'Top data'!L9","v":2},{"$f":"'Top data'!M9","v":3},{"$f":"'Top data'!N9","v":3},{"$f":"'Top data'!O9","v":0.66666666666666663},{"$f":"'Top data'!P9","v":0.66666666666666663},{"$f":"'Top data'!Q9","v":132}]
[{"$f":"'Top data'!A10","v":"Decontamination"},{"$f":"'Top data'!B10","v":3},{"$f":"'Top data'!C10","v":3},{"$f":"'Top data'!D10","v":2},{"$f":"'Top data'!E10","v":3},{"$f":"'Top data'!F10","v":1},{"$f":"'Top data'!G10","v":2},{"$f":"'Top data'!H10","v":2},{"$f":"'Top data'!I10","v":1},{"$f":"'Top data'!J10","v":1},{"$f":"'Top data'!K10","v":2},{"$f":"'Top data'!L10","v":2},{"$f":"'Top data'!M10","v":3},{"$f":"'Top data'!N10","v":3},{"$f":"'Top data'!O10","v":0.66666666666666663},{"$f":"'Top data'!P10","v":0.66666666666666663},{"$f":"'Top data'!Q10","v":132}]
[{"$f":"'Top data'!A11","v":"Dam Inundation"},{"$f":"'Top data'!B11","v":3},{"$f":"'Top data'!C11","v":3},{"$f":"'Top data'!D11","v":1},{"$f":"'Top data'!E11","v":2},{"$f":"'Top data'!F11","v":3},{"$f":"'Top data'!G11","v":2},{"$f":"'Top data'!H11","v":2},{"$f":"'Top data'!I11","v":3},{"$f":"'Top data'!J11","v":1},{"$f":"'Top data'!K11","v":1},{"$f":"'Top data'!L11","v":3},{"$f":"'Top data'!M11","v":2},{"$f":"'Top data'!N11","v":1},{"$f":"'Top data'!O11","v":0.63157894736842102},{"$f":"'Top data'!P11","v":0.63157894736842102},{"$f":"'Top data'!Q11","v":126}]
[{"$f":"'Top data'!A12","v":"Avalanche"},{"$f":"'Top data'!B12","v":3},{"$f":"'Top data'!C12","v":3},{"$f":"'Top data'!D12","v":1},{"$f":"'Top data'!E12","v":2},{"$f":"'Top data'!F12","v":3},{"$f":"'Top data'!G12","v":2},{"$f":"'Top data'!H12","v":2},{"$f":"'Top data'!I12","v":3},{"$f":"'Top data'!J12","v":1},{"$f":"'Top data'!K12","v":1},{"$f":"'Top data'!L12","v":3},{"$f":"'Top data'!M12","v":2},{"$f":"'Top data'!N12","v":1},{"$f":"'Top data'!O12","v":0.63157894736842102},{"$f":"'Top data'!P12","v":0.63157894736842102},{"$f":"'Top data'!Q12","v":126}]
[{"$f":"'Top data'!A13","v":"Active Shooter"},{"$f":"'Top data'!B13","v":3},{"$f":"'Top data'!C13","v":3},{"$f":"'Top data'!D13","v":3},{"$f":"'Top data'!E13","v":1},{"$f":"'Top data'!F13","v":2},{"$f":"'Top data'!G13","v":2},{"$f":"'Top data'!H13","v":2},{"$f":"'Top data'!I13","v":1},{"$f":"'Top data'!J13","v":3},{"$f":"'Top data'!K13","v":2},{"$f":"'Top data'!L13","v":3},{"$f":"'Top data'!M13","v":1},{"$f":"'Top data'!N13","v":1},{"$f":"'Top data'!O13","v":0.63157894736842102},{"$f":"'Top data'!P13","v":0.63157894736842102},{"$f":"'Top data'!Q13","v":126}]
[{"$f":"'Top data'!A14","v":"Bomb Threat"},{"$f":"'Top data'!B14","v":3},{"$f":"'Top data'!C14","v":3},{"$f":"'Top data'!D14","v":3},{"$f":"'Top data'!E14","v":1},{"$f":"'Top data'!F14","v":2},{"$f":"'Top data'!G14","v":2},{"$f":"'Top data'!H14","v":2},{"$f":"'Top data'!I14","v":1},{"$f":"'Top data'!J14","v":3},{"$f":"'Top data'!K14","v":2},{"$f":"'Top data'!L14","v":3},{"$f":"'Top data'!M14","v":1},{"$f":"'Top data'!N14","v":1},{"$f":"'Top data'!O14","v":0.63157894736842102},{"$f":"'Top data'!P14","v":0.63157894736842102},{"$f":"'Top data'!Q14","v":126}]
[{"$f":"'Top data'!A15","v":"Proximity to nuclear power plants"},{"$f":"'Top data'!B15","v":3},{"$f":"'Top data'!C15","v":3},{"$f":"'Top data'!D15","v":2},{"$f":"'Top data'!E15","v":2},{"$f":"'Top data'!F15","v":2},{"$f":"'Top data'!G15","v":3},{"$f":"'Top data'!H15","v":2},{"$f":"'Top data'!I15","v":2},{"$f":"'Top data'!J15","v":2},{"$f":"'Top data'!K15","v":1},{"$f":"'Top data'!L15","v":1},{"$f":"'Top data'!M15","v":2},{"$f":"'Top data'!N15","v":2},{"$f":"'Top data'!O15","v":0.63157894736842102},{"$f":"'Top data'!P15","v":0.63157894736842102},{"$f":"'Top data'!Q15","v":126}]
[{"$f":"'Top data'!A16","v":"Proximity to Bridges"},{"$f":"'Top data'!B16","v":3},{"$f":"'Top data'!C16","v":3},{"$f":"'Top data'!D16","v":2},{"$f":"'Top data'!E16","v":2},{"$f":"'Top data'!F16","v":2},{"$f":"'Top data'!G16","v":3},{"$f":"'Top data'!H16","v":2},{"$f":"'Top data'!I16","v":2},{"$f":"'Top data'!J16","v":2},{"$f":"'Top data'!K16","v":1},{"$f":"'Top data'!L16","v":1},{"$f":"'Top data'!M16","v":2},{"$f":"'Top data'!N16","v":2},{"$f":"'Top data'!O16","v":0.63157894736842102},{"$f":"'Top data'!P16","v":0.63157894736842102},{"$f":"'Top data'!Q16","v":126}]
[{"$f":"'Top data'!A17","v":"Broken Water Main (External)"},{"$f":"'Top data'!B17","v":3},{"$f":"'Top data'!C17","v":3},{"$f":"'Top data'!D17","v":2},{"$f":"'Top data'!E17","v":3},{"$f":"'Top data'!F17","v":1},{"$f":"'Top data'!G17","v":1},{"$f":"'Top data'!H17","v":2},{"$f":"'Top data'!I17","v":1},{"$f":"'Top data'!J17","v":2},{"$f":"'Top data'!K17","v":3},{"$f":"'Top data'!L17","v":1},{"$f":"'Top data'!M17","v":2},{"$f":"'Top data'!N17","v":2},{"$f":"'Top data'!O17","v":0.59649122807017541},{"$f":"'Top data'!P17","v":0.59649122807017541},{"$f":"'Top data'!Q17","v":120}]
[{"$f":"'Top data'!A18","v":"Broken Water Main (Internal)"},{"$f":"'Top data'!B18","v":3},{"$f":"'Top data'!C18","v":3},{"$f":"'Top data'!D18","v":2},{"$f":"'Top data'!E18","v":3},{"$f":"'Top data'!F18","v":1},{"$f":"'Top data'!G18","v":1},{"$f":"'Top data'!H18","v":2},{"$f":"'Top data'!I18","v":1},{"$f":"'Top data'!J18","v":2},{"$f":"'Top data'!K18","v":3},{"$f":"'Top data'!L18","v":1},{"$f":"'Top data'!M18","v":2},{"$f":"'Top data'!N18","v":2},{"$f":"'Top data'!O18","v":0.59649122807017541},{"$f":"'Top data'!P18","v":0.59649122807017541},{"$f":"'Top data'!Q18","v":120}]
[{"$f":"'Top data'!A19","v":"Biological Attack – Aerosol Anthrax "},{"$f":"'Top data'!B19","v":3},{"$f":"'Top data'!C19","v":3},{"$f":"'Top data'!D19","v":1},{"$f":"'Top data'!E19","v":2},{"$f":"'Top data'!F19","v":3},{"$f":"'Top data'!G19","v":1},{"$f":"'Top data'!H19","v":2},{"$f":"'Top data'!I19","v":2},{"$f":"'Top data'!J19","v":1},{"$f":"'Top data'!K19","v":3},{"$f":"'Top data'!L19","v":2},{"$f":"'Top data'!M19","v":1},{"$f":"'Top data'!N19","v":2},{"$f":"'Top data'!O19","v":0.59649122807017541},{"$f":"'Top data'!P19","v":0.59649122807017541},{"$f":"'Top data'!Q19","v":120}]
[{"$f":"'Top data'!A20","v":"Biological Attack – Foreign Animal Disease "},{"$f":"'Top data'!B20","v":3},{"$f":"'Top data'!C20","v":2},{"$f":"'Top data'!D20","v":1},{"$f":"'Top data'!E20","v":2},{"$f":"'Top data'!F20","v":3},{"$f":"'Top data'!G20","v":1},{"$f":"'Top data'!H20","v":2},{"$f":"'Top data'!I20","v":2},{"$f":"'Top data'!J20","v":1},{"$f":"'Top data'!K20","v":3},{"$f":"'Top data'!L20","v":2},{"$f":"'Top data'!M20","v":1},{"$f":"'Top data'!N20","v":2},{"$f":"'Top data'!O20","v":0.59649122807017541},{"$f":"'Top data'!P20","v":0.39766081871345027},{"$f":"'Top data'!Q20","v":100}]
[{"$f":"'Top data'!A21","v":"Biological Attack – Food Contamination "},{"$f":"'Top data'!B21","v":3},{"$f":"'Top data'!C21","v":3},{"$f":"'Top data'!D21","v":1},{"$f":"'Top data'!E21","v":2},{"$f":"'Top data'!F21","v":3},{"$f":"'Top data'!G21","v":1},{"$f":"'Top data'!H21","v":2},{"$f":"'Top data'!I21","v":2},{"$f":"'Top data'!J21","v":1},{"$f":"'Top data'!K21","v":3},{"$f":"'Top data'!L21","v":2},{"$f":"'Top data'!M21","v":1},{"$f":"'Top data'!N21","v":2},{"$f":"'Top data'!O21","v":0.59649122807017541},{"$f":"'Top data'!P21","v":0.59649122807017541},{"$f":"'Top data'!Q21","v":120}]
[{"$f":"'Top data'!A22","v":"Biological Attack – Plague "},{"$f":"'Top data'!B22","v":3},{"$f":"'Top data'!C22","v":2},{"$f":"'Top data'!D22","v":1},{"$f":"'Top data'!E22","v":2},{"$f":"'Top data'!F22","v":3},{"$f":"'Top data'!G22","v":1},{"$f":"'Top data'!H22","v":2},{"$f":"'Top data'!I22","v":2},{"$f":"'Top data'!J22","v":1},{"$f":"'Top data'!K22","v":3},{"$f":"'Top data'!L22","v":2},{"$f":"'Top data'!M22","v":1},{"$f":"'Top data'!N22","v":2},{"$f":"'Top data'!O22","v":0.59649122807017541},{"$f":"'Top data'!P22","v":0.39766081871345027},{"$f":"'Top data'!Q22","v":100}]
[{"$f":"'Top data'!A23","v":"Asbestos release during const. or renovation"},{"$f":"'Top data'!B23","v":3},{"$f":"'Top data'!C23","v":3},{"$f":"'Top data'!D23","v":3},{"$f":"'Top data'!E23","v":1},{"$f":"'Top data'!F23","v":2},{"$f":"'Top data'!G23","v":3},{"$f":"'Top data'!H23","v":1},{"$f":"'Top data'!I23","v":1},{"$f":"'Top data'!J23","v":2},{"$f":"'Top data'!K23","v":1},{"$f":"'Top data'!L23","v":2},{"$f":"'Top data'!M23","v":2},{"$f":"'Top data'!N23","v":2},{"$f":"'Top data'!O23","v":0.59649122807017541},{"$f":"'Top data'!P23","v":0.59649122807017541},{"$f":"'Top data'!Q23","v":120}]
[{"$f":"'Top data'!A24","v":"Building/parking structure failure"},{"$f":"'Top data'!B24","v":3},{"$f":"'Top data'!C24","v":3},{"$f":"'Top data'!D24","v":3},{"$f":"'Top data'!E24","v":1},{"$f":"'Top data'!F24","v":2},{"$f":"'Top data'!G24","v":3},{"$f":"'Top data'!H24","v":1},{"$f":"'Top data'!I24","v":1},{"$f":"'Top data'!J24","v":2},{"$f":"'Top data'!K24","v":1},{"$f":"'Top data'!L24","v":2},{"$f":"'Top data'!M24","v":2},{"$f":"'Top data'!N24","v":2},{"$f":"'Top data'!O24","v":0.59649122807017541},{"$f":"'Top data'!P24","v":0.59649122807017541},{"$f":"'Top data'!Q24","v":120}]
[{"$f":"'Top data'!A25","v":"Information Systems Failure"},{"$f":"'Top data'!B25","v":2},{"$f":"'Top data'!C25","v":3},{"$f":"'Top data'!D25","v":3},{"$f":"'Top data'!E25","v":2},{"$f":"'Top data'!F25","v":2},{"$f":"'Top data'!G25","v":2},{"$f":"'Top data'!H25","v":3},{"$f":"'Top data'!I25","v":1},{"$f":"'Top data'!J25","v":2},{"$f":"'Top data'!K25","v":2},{"$f":"'Top data'!L25","v":2},{"$f":"'Top data'!M25","v":3},{"$f":"'Top data'!N25","v":3},{"$f":"'Top data'!O25","v":0.50292397660818711},{"$f":"'Top data'!P25","v":0.75438596491228072},{"$f":"'Top data'!Q25","v":125}]
[{"$f":"'Top data'!A26","v":"Pharmacy Medication Dispenser Failure"},{"$f":"'Top data'!B26","v":2},{"$f":"'Top data'!C26","v":2},{"$f":"'Top data'!D26","v":3},{"$f":"'Top data'!E26","v":2},{"$f":"'Top data'!F26","v":2},{"$f":"'Top data'!G26","v":2},{"$f":"'Top data'!H26","v":3},{"$f":"'Top data'!I26","v":1},{"$f":"'Top data'!J26","v":2},{"$f":"'Top data'!K26","v":2},{"$f":"'Top data'!L26","v":2},{"$f":"'Top data'!M26","v":3},{"$f":"'Top data'!N26","v":3},{"$f":"'Top data'!O26","v":0.50292397660818711},{"$f":"'Top data'!P26","v":0.50292397660818711},{"$f":"'Top data'!Q26","v":100}]
[{"$f":"'Top data'!A27","v":"Security Video Surveillance"},{"$f":"'Top data'!B27","v":2},{"$f":"'Top data'!C27","v":2},{"$f":"'Top data'!D27","v":3},{"$f":"'Top data'!E27","v":2},{"$f":"'Top data'!F27","v":2},{"$f":"'Top data'!G27","v":2},{"$f":"'Top data'!H27","v":3},{"$f":"'Top data'!I27","v":1},{"$f":"'Top data'!J27","v":2},{"$f":"'Top data'!K27","v":2},{"$f":"'Top data'!L27","v":2},{"$f":"'Top data'!M27","v":3},{"$f":"'Top data'!N27","v":3},{"$f":"'Top data'!O27","v":0.50292397660818711},{"$f":"'Top data'!P27","v":0.50292397660818711},{"$f":"'Top data'!Q27","v":100}]
[{"$f":"'Top data'!A28","v":"Security Card Access Failure"},{"$f":"'Top data'!B28","v":2},{"$f":"'Top data'!C28","v":2},{"$f":"'Top data'!D28","v":3},{"$f":"'Top data'!E28","v":2},{"$f":"'Top data'!F28","v":2},{"$f":"'Top data'!G28","v":2},{"$f":"'Top data'!H28","v":3},{"$f":"'Top data'!I28","v":1},{"$f":"'Top data'!J28","v":2},{"$f":"'Top data'!K28","v":2},{"$f":"'Top data'!L28","v":2},{"$f":"'Top data'!M28","v":3},{"$f":"'Top data'!N28","v":3},{"$f":"'Top data'!O28","v":0.50292397660818711},{"$f":"'Top data'!P28","v":0.50292397660818711},{"$f":"'Top data'!Q28","v":100}]
[{"$f":"'Top data'!A29","v":"Network Failure"},{"$f":"'Top data'!B29","v":2},{"$f":"'Top data'!C29","v":2},{"$f":"'Top data'!D29","v":3},{"$f":"'Top data'!E29","v":2},{"$f":"'Top data'!F29","v":2},{"$f":"'Top data'!G29","v":2},{"$f":"'Top data'!H29","v":3},{"$f":"'Top data'!I29","v":1},{"$f":"'Top data'!J29","v":2},{"$f":"'Top data'!K29","v":2},{"$f":"'Top data'!L29","v":2},{"$f":"'Top data'!M29","v":3},{"$f":"'Top data'!N29","v":3},{"$f":"'Top data'!O29","v":0.50292397660818711},{"$f":"'Top data'!P29","v":0.50292397660818711},{"$f":"'Top data'!Q29","v":100}]
[{"$f":"'Top data'!A30","v":"Magnetic Resonance Imaging (MRI) Incident"},{"$f":"'Top data'!B30","v":2},{"$f":"'Top data'!C30","v":3},{"$f":"'Top data'!D30","v":3},{"$f":"'Top data'!E30","v":2},{"$f":"'Top data'!F30","v":2},{"$f":"'Top data'!G30","v":2},{"$f":"'Top data'!H30","v":3},{"$f":"'Top data'!I30","v":1},{"$f":"'Top data'!J30","v":2},{"$f":"'Top data'!K30","v":2},{"$f":"'Top data'!L30","v":2},{"$f":"'Top data'!M30","v":3},{"$f":"'Top data'!N30","v":3},{"$f":"'Top data'!O30","v":0.50292397660818711},{"$f":"'Top data'!P30","v":0.75438596491228072},{"$f":"'Top data'!Q30","v":125}]
[{"$f":"'Top data'!A31","v":"Loss of Key Supplier"},{"$f":"'Top data'!B31","v":2},{"$f":"'Top data'!C31","v":2},{"$f":"'Top data'!D31","v":3},{"$f":"'Top data'!E31","v":3},{"$f":"'Top data'!F31","v":3},{"$f":"'Top data'!G31","v":2},{"$f":"'Top data'!H31","v":3},{"$f":"'Top data'!I31","v":1},{"$f":"'Top data'!J31","v":2},{"$f":"'Top data'!K31","v":1},{"$f":"'Top data'!L31","v":2},{"$f":"'Top data'!M31","v":2},{"$f":"'Top data'!N31","v":3},{"$f":"'Top data'!O31","v":0.47953216374269003},{"$f":"'Top data'!P31","v":0.47953216374269003},{"$f":"'Top data'!Q31","v":100}]
[{"$f":"'Top data'!A32","v":"Intentional Vehicular Incident"},{"$f":"'Top data'!B32","v":2},{"$f":"'Top data'!C32","v":1},{"$f":"'Top data'!D32","v":3},{"$f":"'Top data'!E32","v":3},{"$f":"'Top data'!F32","v":3},{"$f":"'Top data'!G32","v":2},{"$f":"'Top data'!H32","v":3},{"$f":"'Top data'!I32","v":1},{"$f":"'Top data'!J32","v":2},{"$f":"'Top data'!K32","v":1},{"$f":"'Top data'!L32","v":2},{"$f":"'Top data'!M32","v":2},{"$f":"'Top data'!N32","v":3},{"$f":"'Top data'!O32","v":0.47953216374269003},{"$f":"'Top data'!P32","v":0.23976608187134502},{"$f":"'Top data'!Q32","v":75}]
[{"$f":"'Top data'!A33","v":"Supply Shortage"},{"$f":"'Top data'!B33","v":2},{"$f":"'Top data'!C33","v":2},{"$f":"'Top data'!D33","v":3},{"$f":"'Top data'!E33","v":3},{"$f":"'Top data'!F33","v":3},{"$f":"'Top data'!G33","v":2},{"$f":"'Top data'!H33","v":3},{"$f":"'Top data'!I33","v":1},{"$f":"'Top data'!J33","v":2},{"$f":"'Top data'!K33","v":1},{"$f":"'Top data'!L33","v":2},{"$f":"'Top data'!M33","v":2},{"$f":"'Top data'!N33","v":3},{"$f":"'Top data'!O33","v":0.47953216374269003},{"$f":"'Top data'!P33","v":0.47953216374269003},{"$f":"'Top data'!Q33","v":100}]
[{"$f":"'Top data'!A34","v":"Helicopter Incident"},{"$f":"'Top data'!B34","v":2},{"$f":"'Top data'!C34","v":1},{"$f":"'Top data'!D34","v":3},{"$f":"'Top data'!E34","v":3},{"$f":"'Top data'!F34","v":3},{"$f":"'Top data'!G34","v":2},{"$f":"'Top data'!H34","v":3},{"$f":"'Top data'!I34","v":1},{"$f":"'Top data'!J34","v":2},{"$f":"'Top data'!K34","v":1},{"$f":"'Top data'!L34","v":2},{"$f":"'Top data'!M34","v":2},{"$f":"'Top data'!N34","v":3},{"$f":"'Top data'!O34","v":0.47953216374269003},{"$f":"'Top data'!P34","v":0.23976608187134502},{"$f":"'Top data'!Q34","v":75}]
[]
["Revised:",{"$f":"'Documentation '!A9","v":"2013-08-05"}]
[]
["NOTE:  The top 30 are printed based on the traditional risk occurrence model.   You can resort based on the response or non weighted risk by highlighting the data and sorting.  (May have to add more lines to capture the top risks)."]
["NOTE:  You can add additional rows for printing by copying the last line and pasting it below the last line. "]

{"sheet":" Graphs","index":10,"n_rows":54,"n_cols":41,"rows_kept":54,"cut":false,"hidden":false,"merged":[]}
[]
[]
[]
[]
[]
[]
[]
[]
[]
[]
[]
[]
[]
[]
[]
[]
[]
[]
[]
[]
[]
[]
[]
[]
[]
["Note:   Lower the bar, less impact on operations.  Higher the bar, greater impact on operations. ",null,null,null,null,null,null,null,null,null,"Note:  Lower bar, the stronger the phase.  Higher the bar, weaker the phase.",null,null,null,null,null,null,null,null,null,"Note:  Lower bar, the better the EM phase.  Higher bar, the weaker the EM phase.",null,null,null,null,null,null,null,null,null,"Note:  Lower bar, the less likely to occur or respond.  Higher bar, more likely to occur or respond.",null,null,null,null,null,null,null,null,null,"Note:  Top 20 events graphed by likelihood to occur."]
[]
[]
[]
[]
[]
[]
[]
[]
[]
[]
[]
[]
[]
[]
[]
[]
[]
[]
[]
[]
[]
[]
[]
[]
[]
[]
[]
["Note:   Lower the bar, less impact on operations.  Higher the bar, greater impact on operations. ",null,null,null,null,null,null,null,null,null,"Note:  Lower bar, the less Impact on operations.  Higher bar, the greater Impact on operations.",null,null,null,null,null,null,null,null,null,"Note:  Lower bar, the better the EM phase.  Higher bar, the weaker the EM Phase.",null,null,null,null,null,null,null,null,null,"Note:  Lower bar, less impact on operations.  Higher bar, greater impact on operations.",null,null,null,null,null,null,null,null,null,"Note:  Top 20 events graphed by likelihood to respond."]

{"sheet":"Top data","index":11,"n_rows":137,"n_cols":17,"rows_kept":137,"cut":false,"hidden":true,"merged":[]}
[]
[]
[null,"Values"]
["Row Labels","Average of Occurrence","Average of Response","Sum of Human","Sum of Property","Sum of Business","Sum of MI","Sum of ME","Sum of PI","Sum of PE","Sum of RI","Sum of RE","Sum of RCI","Sum of RCE","Sum of occ","Sum of rep","Sum of tot"]
["Infant Security Alarm Failure",3,3,3,2,2,2,3,1,2,2,2,3,3,0.75438596491228072,0.75438596491228072,150]
["Communications Failure",3,3,3,2,2,2,3,1,2,2,2,3,3,0.75438596491228072,0.75438596491228072,150]
["Airplane Crash",3,3,3,3,3,2,3,1,2,1,2,2,3,0.7192982456140351,0.7192982456140351,150]
["Evacuation  ",3,3,3,3,3,2,3,1,2,1,2,2,3,0.7192982456140351,0.7192982456140351,150]
["HAZMAT Spill (Internal)",3,3,2,3,1,2,2,1,1,2,2,3,3,0.66666666666666663,0.66666666666666663,132]
["Decontamination",3,3,2,3,1,2,2,1,1,2,2,3,3,0.66666666666666663,0.66666666666666663,132]
["Dam Inundation",3,3,1,2,3,2,2,3,1,1,3,2,1,0.63157894736842102,0.63157894736842102,126]
["Avalanche",3,3,1,2,3,2,2,3,1,1,3,2,1,0.63157894736842102,0.63157894736842102,126]
["Active Shooter",3,3,3,1,2,2,2,1,3,2,3,1,1,0.63157894736842102,0.63157894736842102,126]
["Bomb Threat",3,3,3,1,2,2,2,1,3,2,3,1,1,0.63157894736842102,0.63157894736842102,126]
["Proximity to nuclear power plants",3,3,2,2,2,3,2,2,2,1,1,2,2,0.63157894736842102,0.63157894736842102,126]
["Proximity to Bridges",3,3,2,2,2,3,2,2,2,1,1,2,2,0.63157894736842102,0.63157894736842102,126]
["Broken Water Main (External)",3,3,2,3,1,1,2,1,2,3,1,2,2,0.59649122807017541,0.59649122807017541,120]
["Broken Water Main (Internal)",3,3,2,3,1,1,2,1,2,3,1,2,2,0.59649122807017541,0.59649122807017541,120]
["Biological Attack – Aerosol Anthrax ",3,3,1,2,3,1,2,2,1,3,2,1,2,0.59649122807017541,0.59649122807017541,120]
["Biological Attack – Foreign Animal Disease ",3,2,1,2,3,1,2,2,1,3,2,1,2,0.59649122807017541,0.39766081871345027,100]
["Biological Attack – Food Contamination ",3,3,1,2,3,1,2,2,1,3,2,1,2,0.59649122807017541,0.59649122807017541,120]
["Biological Attack – Plague ",3,2,1,2,3,1,2,2,1,3,2,1,2,0.59649122807017541,0.39766081871345027,100]
["Asbestos release during const. or renovation",3,3,3,1,2,3,1,1,2,1,2,2,2,0.59649122807017541,0.59649122807017541,120]
["Building/parking structure failure",3,3,3,1,2,3,1,1,2,1,2,2,2,0.59649122807017541,0.59649122807017541,120]
["Information Systems Failure",2,3,3,2,2,2,3,1,2,2,2,3,3,0.50292397660818711,0.75438596491228072,125]
["Pharmacy Medication Dispenser Failure",2,2,3,2,2,2,3,1,2,2,2,3,3,0.50292397660818711,0.50292397660818711,100]
["Security Video Surveillance",2,2,3,2,2,2,3,1,2,2,2,3,3,0.50292397660818711,0.50292397660818711,100]
["Security Card Access Failure",2,2,3,2,2,2,3,1,2,2,2,3,3,0.50292397660818711,0.50292397660818711,100]
["Network Failure",2,2,3,2,2,2,3,1,2,2,2,3,3,0.50292397660818711,0.50292397660818711,100]
["Magnetic Resonance Imaging (MRI) Incident",2,3,3,2,2,2,3,1,2,2,2,3,3,0.50292397660818711,0.75438596491228072,125]
["Loss of Key Supplier",2,2,3,3,3,2,3,1,2,1,2,2,3,0.47953216374269003,0.47953216374269003,100]
["Intentional Vehicular Incident",2,1,3,3,3,2,3,1,2,1,2,2,3,0.47953216374269003,0.23976608187134502,75]
["Supply Shortage",2,2,3,3,3,2,3,1,2,1,2,2,3,0.47953216374269003,0.47953216374269003,100]
["Helicopter Incident",2,1,3,3,3,2,3,1,2,1,2,2,3,0.47953216374269003,0.23976608187134502,75]
["Isolation Capacity",2,1,3,3,3,2,3,1,2,1,2,2,3,0.47953216374269003,0.23976608187134502,75]
["Radiologic Exposure (Internal) ",2,1,2,3,1,2,2,1,1,2,2,3,3,0.44444444444444442,0.22222222222222221,66]
["Unknown Explosion",2,1,2,3,1,2,2,1,1,2,2,3,3,0.44444444444444442,0.22222222222222221,66]
["Radiological Incident (External)",2,1,2,3,1,2,2,1,1,2,2,3,3,0.44444444444444442,0.22222222222222221,66]
["Indoor Air Quality Issues",2,1,2,3,1,2,2,1,1,2,2,3,3,0.44444444444444442,0.22222222222222221,66]
["Small-Medium Sized Internal Spill",2,1,2,3,1,2,2,1,1,2,2,3,3,0.44444444444444442,0.22222222222222221,66]
["Forensic Admission",2,2,3,1,2,2,3,1,3,2,3,1,1,0.44444444444444442,0.44444444444444442,88]
["Large Internal Spill",2,1,2,3,1,2,2,1,1,2,2,3,3,0.44444444444444442,0.22222222222222221,66]
["HAZMAT Spill (External)",2,1,2,3,1,2,2,1,1,2,2,3,3,0.44444444444444442,0.22222222222222221,66]
["Proximity to flood plains, faults, and dams",2,2,2,2,2,3,2,2,2,1,1,2,2,0.42105263157894735,0.42105263157894735,84]
["Civil Disturbance",2,2,3,1,2,2,2,1,3,2,3,1,1,0.42105263157894735,0.42105263157894735,84]
["Proximity to bus terminals",2,2,2,2,2,3,2,2,2,1,1,2,2,0.42105263157894735,0.42105263157894735,84]
["Proximity to companies that produce, store, use, or transport hazardous materials",2,2,2,2,2,3,2,2,2,1,1,2,2,0.42105263157894735,0.42105263157894735,84]
["Workplace Violence",2,1,3,1,2,2,2,1,3,2,3,1,1,0.42105263157894735,0.21052631578947367,63]
["Proximity to Federal buildings",2,2,2,2,2,3,2,2,2,1,1,2,2,0.42105263157894735,0.42105263157894735,84]
["Missing Child",2,1,3,1,2,2,2,1,3,2,3,1,1,0.42105263157894735,0.21052631578947367,63]
["Drought",2,2,1,2,3,2,2,3,1,1,3,2,1,0.42105263157894735,0.42105263157894735,84]
["Hostage Situation",2,1,3,1,2,2,2,1,3,2,3,1,1,0.42105263157894735,0.21052631578947367,63]
["Proximity to local schools and universities",2,2,2,2,2,3,2,2,2,1,1,2,2,0.42105263157894735,0.42105263157894735,84]
["VIP Situation",2,1,3,1,2,2,2,1,3,2,3,1,1,0.42105263157894735,0.21052631578947367,63]
["Proximity to major trans. routes and airports",2,2,2,2,2,3,2,2,2,1,1,2,2,0.42105263157894735,0.42105263157894735,84]
["Staffing Shortage",2,1,3,1,2,2,2,1,3,2,3,1,1,0.42105263157894735,0.21052631578947367,63]
["Proximity to Parks",2,2,2,2,2,3,2,2,2,1,1,2,2,0.42105263157894735,0.42105263157894735,84]
["Infant Abduction",2,1,3,1,2,2,2,1,3,2,3,1,1,0.42105263157894735,0.21052631578947367,63]
["Proximity to train stations",2,2,2,2,2,3,2,2,2,1,1,2,2,0.42105263157894735,0.42105263157894735,84]
["Violence in the ED",2,1,3,1,2,2,2,1,3,2,3,1,1,0.42105263157894735,0.21052631578947367,63]
["Labor Action",2,1,3,1,2,2,2,1,3,2,3,1,1,0.42105263157894735,0.21052631578947367,63]
["Proximity to Civic/Sports Events",2,2,2,2,2,3,2,2,2,1,1,2,2,0.42105263157894735,0.42105263157894735,84]
["Mass Casualty (Trauma)",2,1,3,1,2,2,2,1,3,2,3,1,1,0.42105263157894735,0.21052631578947367,63]
["Proximity to Festivals",2,2,2,2,2,3,2,2,2,1,1,2,2,0.42105263157894735,0.42105263157894735,84]
["Earthquake",2,2,1,2,3,2,2,3,1,1,3,2,1,0.42105263157894735,0.42105263157894735,84]
["Medical Vacuum Failure",2,1,2,3,1,1,2,1,2,3,1,2,2,0.39766081871345027,0.19883040935672514,60]
["Fire Suppression Failure",2,1,2,3,1,1,2,1,2,3,1,2,2,0.39766081871345027,0.19883040935672514,60]
["Generator Failure",2,1,2,3,1,1,2,1,2,3,1,2,2,0.39766081871345027,0.19883040935672514,60]
["Electrical Failure",2,3,2,3,1,1,2,1,2,3,1,2,2,0.39766081871345027,0.59649122807017541,100]
["Process Water Failure",2,1,2,3,1,1,2,1,2,3,1,2,2,0.39766081871345027,0.19883040935672514,60]
["Sewer Failure",2,1,2,3,1,1,2,1,2,3,1,2,2,0.39766081871345027,0.19883040935672514,60]
["Natural Gas Failure",2,1,2,3,1,1,2,1,2,3,1,2,2,0.39766081871345027,0.19883040935672514,60]
["Lighting",2,2,3,1,2,3,1,1,2,1,2,2,2,0.39766081871345027,0.39766081871345027,80]
["Fire (Internal)",2,1,2,3,1,1,2,1,2,3,1,2,2,0.39766081871345027,0.19883040935672514,60]
["Steam Failure",2,1,2,3,1,1,2,1,2,3,1,2,2,0.39766081871345027,0.19883040935672514,60]
["Layout of the equipment",2,2,3,1,2,3,1,1,2,1,2,2,2,0.39766081871345027,0.39766081871345027,80]
["Structural Damage",2,1,2,3,1,1,2,1,2,3,1,2,2,0.39766081871345027,0.19883040935672514,60]
["Proximity of shelter areas",2,2,3,1,2,3,1,1,2,1,2,2,2,0.39766081871345027,0.39766081871345027,80]
["The physical construction of the facility",2,2,3,1,2,3,1,1,2,1,2,2,2,0.39766081871345027,0.39766081871345027,80]
["Facilities for storing combustibles",2,2,3,1,2,3,1,1,2,1,2,2,2,0.39766081871345027,0.39766081871345027,80]
["Tube System Failure",2,1,2,3,1,1,2,1,2,3,1,2,2,0.39766081871345027,0.19883040935672514,60]
["Compressed Gas Cylinder Leak/Failure",2,3,2,3,1,1,2,1,2,3,1,2,2,0.39766081871345027,0.59649122807017541,100]
["Loss of Bulk Oxygen",2,1,2,3,1,1,2,1,2,3,1,2,2,0.39766081871345027,0.19883040935672514,60]
["Facilities for storing hazardous chemical waste",2,2,3,1,2,3,1,1,2,1,2,2,2,0.39766081871345027,0.39766081871345027,80]
["HVAC Failure",2,1,2,3,1,1,2,1,2,3,1,2,2,0.39766081871345027,0.19883040935672514,60]
["Fire Detection/Alarm Failure",2,1,2,3,1,1,2,1,2,3,1,2,2,0.39766081871345027,0.19883040935672514,60]
["Hazardous processes or byproducts",2,2,3,1,2,3,1,1,2,1,2,2,2,0.39766081871345027,0.39766081871345027,80]
["Flood (Internal)",2,1,2,3,1,1,2,1,2,3,1,2,2,0.39766081871345027,0.19883040935672514,60]
["Medical Gas Failure",2,1,2,3,1,1,2,1,2,3,1,2,2,0.39766081871345027,0.19883040935672514,60]
["Potable Water Failure",2,1,2,3,1,1,2,1,2,3,1,2,2,0.39766081871345027,0.19883040935672514,60]
["Elevator Failure",2,1,2,3,1,1,2,1,2,3,1,2,2,0.39766081871345027,0.19883040935672514,60]
["Fuel Shortage",2,1,2,3,1,1,2,1,2,3,1,2,2,0.39766081871345027,0.19883040935672514,60]
["Evacuation routes and exits",2,2,3,1,2,3,1,1,2,1,2,2,2,0.39766081871345027,0.39766081871345027,80]
["Facilities for storing biohazardous wastes",2,2,3,1,2,3,1,1,2,1,2,2,2,0.39766081871345027,0.39766081871345027,80]
["Oxygen Leak",2,1,2,3,1,1,2,1,2,3,1,2,2,0.39766081871345027,0.19883040935672514,60]
["Natural Gas Leak",2,1,2,3,1,1,2,1,2,3,1,2,2,0.39766081871345027,0.19883040935672514,60]
["Hurricane",1,2,1,2,3,2,2,3,1,1,3,2,1,0.21052631578947367,0.42105263157894735,63]
["Solar Flares",1,2,1,2,3,2,2,3,1,1,3,2,1,0.21052631578947367,0.42105263157894735,63]
["Epidemic/Pandemic",1,2,1,2,3,2,2,3,1,1,3,2,1,0.21052631578947367,0.42105263157894735,63]
["Temperature Extreme (Cold)",1,2,1,2,3,2,2,3,1,1,3,2,1,0.21052631578947367,0.42105263157894735,63]
["Severe Blizzard/Snow Fall",1,2,1,2,3,2,2,3,1,1,3,2,1,0.21052631578947367,0.42105263157894735,63]
["Temperature Extreme (Hot)",1,2,1,2,3,2,2,3,1,1,3,2,1,0.21052631578947367,0.42105263157894735,63]
["Flood (External)",1,2,1,2,3,2,2,3,1,1,3,2,1,0.21052631578947367,0.42105263157894735,63]
["Ice Storm",1,2,1,2,3,2,2,3,1,1,3,2,1,0.21052631578947367,0.42105263157894735,63]
["Severe Thunderstorm",1,2,1,2,3,2,2,3,1,1,3,2,1,0.21052631578947367,0.42105263157894735,63]
["Tornado",1,2,1,2,3,2,2,3,1,1,3,2,1,0.21052631578947367,0.42105263157894735,63]
["High Winds",1,2,1,2,3,2,2,3,1,1,3,2,1,0.21052631578947367,0.42105263157894735,63]
["Insect Infestation",1,2,1,2,3,2,2,3,1,1,3,2,1,0.21052631578947367,0.42105263157894735,63]
["Hail",1,2,1,2,3,2,2,3,1,1,3,2,1,0.21052631578947367,0.42105263157894735,63]
["Volcano",1,2,1,2,3,2,2,3,1,1,3,2,1,0.21052631578947367,0.42105263157894735,63]
["Tidal Wave",1,2,1,2,3,2,2,3,1,1,3,2,1,0.21052631578947367,0.42105263157894735,63]
["Wild Fire",1,2,1,2,3,2,2,3,1,1,3,2,1,0.21052631578947367,0.42105263157894735,63]
["Landslide",1,2,1,2,3,2,2,3,1,1,3,2,1,0.21052631578947367,0.42105263157894735,63]
["Cyber Attack ",1,2,1,2,3,1,2,2,1,3,2,1,2,0.19883040935672514,0.39766081871345027,60]
["Biological Disease Outbreak – Pandemic flu",1,2,1,2,3,1,2,2,1,3,2,1,2,0.19883040935672514,0.39766081871345027,60]
["Nuclear Detonation – Improvised  Device",1,2,1,2,3,1,2,2,1,3,2,1,2,0.19883040935672514,0.39766081871345027,60]
["Chemical Attack – Nerve Agent",1,2,1,2,3,1,2,2,1,3,2,1,2,0.19883040935672514,0.39766081871345027,60]
["Chemical Attack – Toxic Industrial Chemicals",1,2,1,2,3,1,2,2,1,3,2,1,2,0.19883040935672514,0.39766081871345027,60]
["Radiological Attack – Radiological Dispersal ",1,2,1,2,3,1,2,2,1,3,2,1,2,0.19883040935672514,0.39766081871345027,60]
["Chemical Attack – Chlorine Tank Explosion ",1,2,1,2,3,1,2,2,1,3,2,1,2,0.19883040935672514,0.39766081871345027,60]
["Natural Disaster – Major Earthquake ",1,2,1,2,3,1,2,2,1,3,2,1,2,0.19883040935672514,0.39766081871345027,60]
["Natural Disaster – Major Hurricane",1,2,1,2,3,1,2,2,1,3,2,1,2,0.19883040935672514,0.39766081871345027,60]
["Explosives Attack – Improvised Explosive ",1,2,1,2,3,1,2,2,1,3,2,1,2,0.19883040935672514,0.39766081871345027,60]
["Chemical Attack – Blister Agent ",1,2,1,2,3,1,2,2,1,3,2,1,2,0.19883040935672514,0.39766081871345027,60]
["Human Related Events ",0,0,0,0,0,0,0,0,0,0,0,0,0,0,0,0]
["Average: ",2.0180720514053849,1.9081683748350413,20,19,19,18,19.076923076923077,13,16,16,18,18,19,0,0,0]
["Other Events",0,0,0,0,0,0,0,0,0,0,0,0,0,0,0,0]
["Hazardous Materials Events",0,0,0,0,0,0,0,0,0,0,0,0,0,0,0,0]
["National Planning Scenarios",{"$error":"#DIV/0!"},{"$error":"#DIV/0!"},0,0,0,0,0,0,0,0,0,0,0,0,0,0]
["Technologic Events",0,0,0,0,0,0,0,0,0,0,0,0,0,0,0,0]
["Overall Average: ",2.0180720514053849,1.9081683748350413,2.2222222222222223,2.1111111111111112,2.1111111111111112,2,2.1196581196581197,1.4444444444444444,1.7777777777777777,1.7777777777777777,2,2,2.1111111111111112,0,0,0]
["Utility Events",0,0,0,0,0,0,0,0,0,0,0,0,0,0,0,0]
["Geographic Events",0,0,0,0,0,0,0,0,0,0,0,0,0,0,0,0]
["Physical Events",0,0,0,0,0,0,0,0,0,0,0,0,0,0,0,0]
[0,0,0,0,0,0,0,0,0,0,0,0,0,0,0,0,0]
["Naturally Occurring Events ",0,0,0,0,0,0,0,0,0,0,0,0,0,0,0,0]
["Grand Total",1.5860422673839865,1.5225263128827071,265.22222222222223,277.11111111111109,271.11111111111109,244,266.19658119658123,203.44444444444446,225.77777777777777,245.77777777777777,258,249,251.11111111111111,49.169590643274816,47.292397660818679,9675]

{"sheet":"Data 2","index":12,"n_rows":161,"n_cols":17,"rows_kept":161,"cut":false,"hidden":true,"merged":[]}
["type","Occurrence","Response","Human","Property","Business","MI","ME","PI","PE","RI","RE","RCI","RCE","occ","rep","tot"]
[{"$f":"'CHVA Tool - Data Entry'!A6","v":"National Planning Scenarios"},{"$f":"'CHVA Tool - Data Entry'!B6","v":"Occurrence"},{"$f":"'CHVA Tool - Data Entry'!C6","v":"Response"},{"$f":"'CHVA Tool - Data Entry'!D6","v":0},{"$f":"'CHVA Tool - Data Entry'!E6","v":0},{"$f":"'CHVA Tool - Data Entry'!F6","v":0},{"$f":"'CHVA Tool - Data Entry'!G6","v":0},{"$f":"'CHVA Tool - Data Entry'!H6","v":0},{"$f":"'CHVA Tool - Data Entry'!I6","v":0},{"$f":"'CHVA Tool - Data Entry'!J6","v":0},{"$f":"'CHVA Tool - Data Entry'!K6","v":0},{"$f":"'CHVA Tool - Data Entry'!L6","v":0},{"$f":"'CHVA Tool - Data Entry'!M6","v":0},{"$f":"'CHVA Tool - Data Entry'!N6","v":0},{"$f":"'CHVA Tool - Data Entry'!O6","v":0},{"$f":"'CHVA Tool - Data Entry'!P6","v":0},{"$f":"'CHVA Tool - Data Entry'!Q6","v":0}]
[{"$f":"'CHVA Tool - Data Entry'!A7","v":"Biological Attack – Aerosol Anthrax "},{"$f":"'CHVA Tool - Data Entry'!B7","v":3},{"$f":"'CHVA Tool - Data Entry'!C7","v":3},{"$f":"'CHVA Tool - Data Entry'!D7","v":1},{"$f":"'CHVA Tool - Data Entry'!E7","v":2},{"$f":"'CHVA Tool - Data Entry'!F7","v":3},{"$f":"'CHVA Tool - Data Entry'!G7","v":1},{"$f":"'CHVA Tool - Data Entry'!H7","v":2},{"$f":"'CHVA Tool - Data Entry'!I7","v":2},{"$f":"'CHVA Tool - Data Entry'!J7","v":1},{"$f":"'CHVA Tool - Data Entry'!K7","v":3},{"$f":"'CHVA Tool - Data Entry'!L7","v":2},{"$f":"'CHVA Tool - Data Entry'!M7","v":1},{"$f":"'CHVA Tool - Data Entry'!N7","v":2},{"$f":"'CHVA Tool - Data Entry'!O7","v":0.59649122807017541},{"$f":"'CHVA Tool - Data Entry'!P7","v":0.59649122807017541},{"$f":"'CHVA Tool - Data Entry'!Q7","v":120}]
[{"$f":"'CHVA Tool - Data Entry'!A8","v":"Biological Attack – Food Contamination "},{"$f":"'CHVA Tool - Data Entry'!B8","v":3},{"$f":"'CHVA Tool - Data Entry'!C8","v":3},{"$f":"'CHVA Tool - Data Entry'!D8","v":1},{"$f":"'CHVA Tool - Data Entry'!E8","v":2},{"$f":"'CHVA Tool - Data Entry'!F8","v":3},{"$f":"'CHVA Tool - Data Entry'!G8","v":1},{"$f":"'CHVA Tool - Data Entry'!H8","v":2},{"$f":"'CHVA Tool - Data Entry'!I8","v":2},{"$f":"'CHVA Tool - Data Entry'!J8","v":1},{"$f":"'CHVA Tool - Data Entry'!K8","v":3},{"$f":"'CHVA Tool - Data Entry'!L8","v":2},{"$f":"'CHVA Tool - Data Entry'!M8","v":1},{"$f":"'CHVA Tool - Data Entry'!N8","v":2},{"$f":"'CHVA Tool - Data Entry'!O8","v":0.59649122807017541},{"$f":"'CHVA Tool - Data Entry'!P8","v":0.59649122807017541},{"$f":"'CHVA Tool - Data Entry'!Q8","v":120}]
[{"$f":"'CHVA Tool - Data Entry'!A9","v":"Biological Attack – Foreign Animal Disease "},{"$f":"'CHVA Tool - Data Entry'!B9","v":3},{"$f":"'CHVA Tool - Data Entry'!C9","v":2},{"$f":"'CHVA Tool - Data Entry'!D9","v":1},{"$f":"'CHVA Tool - Data Entry'!E9","v":2},{"$f":"'CHVA Tool - Data Entry'!F9","v":3},{"$f":"'CHVA Tool - Data Entry'!G9","v":1},{"$f":"'CHVA Tool - Data Entry'!H9","v":2},{"$f":"'CHVA Tool - Data Entry'!I9","v":2},{"$f":"'CHVA Tool - Data Entry'!J9","v":1},{"$f":"'CHVA Tool - Data Entry'!K9","v":3},{"$f":"'CHVA Tool - Data Entry'!L9","v":2},{"$f":"'CHVA Tool - Data Entry'!M9","v":1},{"$f":"'CHVA Tool - Data Entry'!N9","v":2},{"$f":"'CHVA Tool - Data Entry'!O9","v":0.59649122807017541},{"$f":"'CHVA Tool - Data Entry'!P9","v":0.39766081871345027},{"$f":"'CHVA Tool - Data Entry'!Q9","v":100}]
[{"$f":"'CHVA Tool - Data Entry'!A10","v":"Biological Attack – Plague "},{"$f":"'CHVA Tool - Data Entry'!B10","v":3},{"$f":"'CHVA Tool - Data Entry'!C10","v":2},{"$f":"'CHVA Tool - Data Entry'!D10","v":1},{"$f":"'CHVA Tool - Data Entry'!E10","v":2},{"$f":"'CHVA Tool - Data Entry'!F10","v":3},{"$f":"'CHVA Tool - Data Entry'!G10","v":1},{"$f":"'CHVA Tool - Data Entry'!H10","v":2},{"$f":"'CHVA Tool - Data Entry'!I10","v":2},{"$f":"'CHVA Tool - Data Entry'!J10","v":1},{"$f":"'CHVA Tool - Data Entry'!K10","v":3},{"$f":"'CHVA Tool - Data Entry'!L10","v":2},{"$f":"'CHVA Tool - Data Entry'!M10","v":1},{"$f":"'CHVA Tool - Data Entry'!N10","v":2},{"$f":"'CHVA Tool - Data Entry'!O10","v":0.59649122807017541},{"$f":"'CHVA Tool - Data Entry'!P10","v":0.39766081871345027},{"$f":"'CHVA Tool - Data Entry'!Q10","v":100}]
[{"$f":"'CHVA Tool - Data Entry'!A11","v":"Biological Disease Outbreak – Pandemic flu"},{"$f":"'CHVA Tool - Data Entry'!B11","v":1},{"$f":"'CHVA Tool - Data Entry'!C11","v":2},{"$f":"'CHVA Tool - Data Entry'!D11","v":1},{"$f":"'CHVA Tool - Data Entry'!E11","v":2},{"$f":"'CHVA Tool - Data Entry'!F11","v":3},{"$f":"'CHVA Tool - Data Entry'!G11","v":1},{"$f":"'CHVA Tool - Data Entry'!H11","v":2},{"$f":"'CHVA Tool - Data Entry'!I11","v":2},{"$f":"'CHVA Tool - Data Entry'!J11","v":1},{"$f":"'CHVA Tool - Data Entry'!K11","v":3},{"$f":"'CHVA Tool - Data Entry'!L11","v":2},{"$f":"'CHVA Tool - Data Entry'!M11","v":1},{"$f":"'CHVA Tool - Data Entry'!N11","v":2},{"$f":"'CHVA Tool - Data Entry'!O11","v":0.19883040935672514},{"$f":"'CHVA Tool - Data Entry'!P11","v":0.39766081871345027},{"$f":"'CHVA Tool - Data Entry'!Q11","v":60}]
[{"$f":"'CHVA Tool - Data Entry'!A12","v":"Chemical Attack – Blister Agent "},{"$f":"'CHVA Tool - Data Entry'!B12","v":1},{"$f":"'CHVA Tool - Data Entry'!C12","v":2},{"$f":"'CHVA Tool - Data Entry'!D12","v":1},{"$f":"'CHVA Tool - Data Entry'!E12","v":2},{"$f":"'CHVA Tool - Data Entry'!F12","v":3},{"$f":"'CHVA Tool - Data Entry'!G12","v":1},{"$f":"'CHVA Tool - Data Entry'!H12","v":2},{"$f":"'CHVA Tool - Data Entry'!I12","v":2},{"$f":"'CHVA Tool - Data Entry'!J12","v":1},{"$f":"'CHVA Tool - Data Entry'!K12","v":3},{"$f":"'CHVA Tool - Data Entry'!L12","v":2},{"$f":"'CHVA Tool - Data Entry'!M12","v":1},{"$f":"'CHVA Tool - Data Entry'!N12","v":2},{"$f":"'CHVA Tool - Data Entry'!O12","v":0.19883040935672514},{"$f":"'CHVA Tool - Data Entry'!P12","v":0.39766081871345027},{"$f":"'CHVA Tool - Data Entry'!Q12","v":60}]
[{"$f":"'CHVA Tool - Data Entry'!A13","v":"Chemical Attack – Chlorine Tank Explosion "},{"$f":"'CHVA Tool - Data Entry'!B13","v":1},{"$f":"'CHVA Tool - Data Entry'!C13","v":2},{"$f":"'CHVA Tool - Data Entry'!D13","v":1},{"$f":"'CHVA Tool - Data Entry'!E13","v":2},{"$f":"'CHVA Tool - Data Entry'!F13","v":3},{"$f":"'CHVA Tool - Data Entry'!G13","v":1},{"$f":"'CHVA Tool - Data Entry'!H13","v":2},{"$f":"'CHVA Tool - Data Entry'!I13","v":2},{"$f":"'CHVA Tool - Data Entry'!J13","v":1},{"$f":"'CHVA Tool - Data Entry'!K13","v":3},{"$f":"'CHVA Tool - Data Entry'!L13","v":2},{"$f":"'CHVA Tool - Data Entry'!M13","v":1},{"$f":"'CHVA Tool - Data Entry'!N13","v":2},{"$f":"'CHVA Tool - Data Entry'!O13","v":0.19883040935672514},{"$f":"'CHVA Tool - Data Entry'!P13","v":0.39766081871345027},{"$f":"'CHVA Tool - Data Entry'!Q13","v":60}]
[{"$f":"'CHVA Tool - Data Entry'!A14","v":"Chemical Attack – Nerve Agent"},{"$f":"'CHVA Tool - Data Entry'!B14","v":1},{"$f":"'CHVA Tool - Data Entry'!C14","v":2},{"$f":"'CHVA Tool - Data Entry'!D14","v":1},{"$f":"'CHVA Tool - Data Entry'!E14","v":2},{"$f":"'CHVA Tool - Data Entry'!F14","v":3},{"$f":"'CHVA Tool - Data Entry'!G14","v":1},{"$f":"'CHVA Tool - Data Entry'!H14","v":2},{"$f":"'CHVA Tool - Data Entry'!I14","v":2},{"$f":"'CHVA Tool - Data Entry'!J14","v":1},{"$f":"'CHVA Tool - Data Entry'!K14","v":3},{"$f":"'CHVA Tool - Data Entry'!L14","v":2},{"$f":"'CHVA Tool - Data Entry'!M14","v":1},{"$f":"'CHVA Tool - Data Entry'!N14","v":2},{"$f":"'CHVA Tool - Data Entry'!O14","v":0.19883040935672514},{"$f":"'CHVA Tool - Data Entry'!P14","v":0.39766081871345027},{"$f":"'CHVA Tool - Data Entry'!Q14","v":60}]
[{"$f":"'CHVA Tool - Data Entry'!A15","v":"Chemical Attack – Toxic Industrial Chemicals"},{"$f":"'CHVA Tool - Data Entry'!B15","v":1},{"$f":"'CHVA Tool - Data Entry'!C15","v":2},{"$f":"'CHVA Tool - Data Entry'!D15","v":1},{"$f":"'CHVA Tool - Data Entry'!E15","v":2},{"$f":"'CHVA Tool - Data Entry'!F15","v":3},{"$f":"'CHVA Tool - Data Entry'!G15","v":1},{"$f":"'CHVA Tool - Data Entry'!H15","v":2},{"$f":"'CHVA Tool - Data Entry'!I15","v":2},{"$f":"'CHVA Tool - Data Entry'!J15","v":1},{"$f":"'CHVA Tool - Data Entry'!K15","v":3},{"$f":"'CHVA Tool - Data Entry'!L15","v":2},{"$f":"'CHVA Tool - Data Entry'!M15","v":1},{"$f":"'CHVA Tool - Data Entry'!N15","v":2},{"$f":"'CHVA Tool - Data Entry'!O15","v":0.19883040935672514},{"$f":"'CHVA Tool - Data Entry'!P15","v":0.39766081871345027},{"$f":"'CHVA Tool - Data Entry'!Q15","v":60}]
[{"$f":"'CHVA Tool - Data Entry'!A16","v":"Cyber Attack "},{"$f":"'CHVA Tool - Data Entry'!B16","v":1},{"$f":"'CHVA Tool - Data Entry'!C16","v":2},{"$f":"'CHVA Tool - Data Entry'!D16","v":1},{"$f":"'CHVA Tool - Data Entry'!E16","v":2},{"$f":"'CHVA Tool - Data Entry'!F16","v":3},{"$f":"'CHVA Tool - Data Entry'!G16","v":1},{"$f":"'CHVA Tool - Data Entry'!H16","v":2},{"$f":"'CHVA Tool - Data Entry'!I16","v":2},{"$f":"'CHVA Tool - Data Entry'!J16","v":1},{"$f":"'CHVA Tool - Data Entry'!K16","v":3},{"$f":"'CHVA Tool - Data Entry'!L16","v":2},{"$f":"'CHVA Tool - Data Entry'!M16","v":1},{"$f":"'CHVA Tool - Data Entry'!N16","v":2},{"$f":"'CHVA Tool - Data Entry'!O16","v":0.19883040935672514},{"$f":"'CHVA Tool - Data Entry'!P16","v":0.39766081871345027},{"$f":"'CHVA Tool - Data Entry'!Q16","v":60}]
[{"$f":"'CHVA Tool - Data Entry'!A17","v":"Explosives Attack – Improvised Explosive "},{"$f":"'CHVA Tool - Data Entry'!B17","v":1},{"$f":"'CHVA Tool - Data Entry'!C17","v":2},{"$f":"'CHVA Tool - Data Entry'!D17","v":1},{"$f":"'CHVA Tool - Data Entry'!E17","v":2},{"$f":"'CHVA Tool - Data Entry'!F17","v":3},{"$f":"'CHVA Tool - Data Entry'!G17","v":1},{"$f":"'CHVA Tool - Data Entry'!H17","v":2},{"$f":"'CHVA Tool - Data Entry'!I17","v":2},{"$f":"'CHVA Tool - Data Entry'!J17","v":1},{"$f":"'CHVA Tool - Data Entry'!K17","v":3},{"$f":"'CHVA Tool - Data Entry'!L17","v":2},{"$f":"'CHVA Tool - Data Entry'!M17","v":1},{"$f":"'CHVA Tool - Data Entry'!N17","v":2},{"$f":"'CHVA Tool - Data Entry'!O17","v":0.19883040935672514},{"$f":"'CHVA Tool - Data Entry'!P17","v":0.39766081871345027},{"$f":"'CHVA Tool - Data Entry'!Q17","v":60}]
[{"$f":"'CHVA Tool - Data Entry'!A18","v":"Natural Disaster – Major Earthquake "},{"$f":"'CHVA Tool - Data Entry'!B18","v":1},{"$f":"'CHVA Tool - Data Entry'!C18","v":2},{"$f":"'CHVA Tool - Data Entry'!D18","v":1},{"$f":"'CHVA Tool - Data Entry'!E18","v":2},{"$f":"'CHVA Tool - Data Entry'!F18","v":3},{"$f":"'CHVA Tool - Data Entry'!G18","v":1},{"$f":"'CHVA Tool - Data Entry'!H18","v":2},{"$f":"'CHVA Tool - Data Entry'!I18","v":2},{"$f":"'CHVA Tool - Data Entry'!J18","v":1},{"$f":"'CHVA Tool - Data Entry'!K18","v":3},{"$f":"'CHVA Tool - Data Entry'!L18","v":2},{"$f":"'CHVA Tool - Data Entry'!M18","v":1},{"$f":"'CHVA Tool - Data Entry'!N18","v":2},{"$f":"'CHVA Tool - Data Entry'!O18","v":0.19883040935672514},{"$f":"'CHVA Tool - Data Entry'!P18","v":0.39766081871345027},{"$f":"'CHVA Tool - Data Entry'!Q18","v":60}]
[{"$f":"'CHVA Tool - Data Entry'!A19","v":"Natural Disaster – Major Hurricane"},{"$f":"'CHVA Tool - Data Entry'!B19","v":1},{"$f":"'CHVA Tool - Data Entry'!C19","v":2},{"$f":"'CHVA Tool - Data Entry'!D19","v":1},{"$f":"'CHVA Tool - Data Entry'!E19","v":2},{"$f":"'CHVA Tool - Data Entry'!F19","v":3},{"$f":"'CHVA Tool - Data Entry'!G19","v":1},{"$f":"'CHVA Tool - Data Entry'!H19","v":2},{"$f":"'CHVA Tool - Data Entry'!I19","v":2},{"$f":"'CHVA Tool - Data Entry'!J19","v":1},{"$f":"'CHVA Tool - Data Entry'!K19","v":3},{"$f":"'CHVA Tool - Data Entry'!L19","v":2},{"$f":"'CHVA Tool - Data Entry'!M19","v":1},{"$f":"'CHVA Tool - Data Entry'!N19","v":2},{"$f":"'CHVA Tool - Data Entry'!O19","v":0.19883040935672514},{"$f":"'CHVA Tool - Data Entry'!P19","v":0.39766081871345027},{"$f":"'CHVA Tool - Data Entry'!Q19","v":60}]
[{"$f":"'CHVA Tool - Data Entry'!A20","v":"Nuclear Detonation – Improvised  Device"},{"$f":"'CHVA Tool - Data Entry'!B20","v":1},{"$f":"'CHVA Tool - Data Entry'!C20","v":2},{"$f":"'CHVA Tool - Data Entry'!D20","v":1},{"$f":"'CHVA Tool - Data Entry'!E20","v":2},{"$f":"'CHVA Tool - Data Entry'!F20","v":3},{"$f":"'CHVA Tool - Data Entry'!G20","v":1},{"$f":"'CHVA Tool - Data Entry'!H20","v":2},{"$f":"'CHVA Tool - Data Entry'!I20","v":2},{"$f":"'CHVA Tool - Data Entry'!J20","v":1},{"$f":"'CHVA Tool - Data Entry'!K20","v":3},{"$f":"'CHVA Tool - Data Entry'!L20","v":2},{"$f":"'CHVA Tool - Data Entry'!M20","v":1},{"$f":"'CHVA Tool - Data Entry'!N20","v":2},{"$f":"'CHVA Tool - Data Entry'!O20","v":0.19883040935672514},{"$f":"'CHVA Tool - Data Entry'!P20","v":0.39766081871345027},{"$f":"'CHVA Tool - Data Entry'!Q20","v":60}]
[{"$f":"'CHVA Tool - Data Entry'!A21","v":"Radiological Attack – Radiological Dispersal "},{"$f":"'CHVA Tool - Data Entry'!B21","v":1},{"$f":"'CHVA Tool - Data Entry'!C21","v":2},{"$f":"'CHVA Tool - Data Entry'!D21","v":1},{"$f":"'CHVA Tool - Data Entry'!E21","v":2},{"$f":"'CHVA Tool - Data Entry'!F21","v":3},{"$f":"'CHVA Tool - Data Entry'!G21","v":1},{"$f":"'CHVA Tool - Data Entry'!H21","v":2},{"$f":"'CHVA Tool - Data Entry'!I21","v":2},{"$f":"'CHVA Tool - Data Entry'!J21","v":1},{"$f":"'CHVA Tool - Data Entry'!K21","v":3},{"$f":"'CHVA Tool - Data Entry'!L21","v":2},{"$f":"'CHVA Tool - Data Entry'!M21","v":1},{"$f":"'CHVA Tool - Data Entry'!N21","v":2},{"$f":"'CHVA Tool - Data Entry'!O21","v":0.19883040935672514},{"$f":"'CHVA Tool - Data Entry'!P21","v":0.39766081871345027},{"$f":"'CHVA Tool - Data Entry'!Q21","v":60}]
[{"$f":"'CHVA Tool - Data Entry'!A22","v":0},{"$f":"'CHVA Tool - Data Entry'!B22","v":0},{"$f":"'CHVA Tool - Data Entry'!C22","v":0},{"$f":"'CHVA Tool - Data Entry'!D22","v":0},{"$f":"'CHVA Tool - Data Entry'!E22","v":0},{"$f":"'CHVA Tool - Data Entry'!F22","v":0},{"$f":"'CHVA Tool - Data Entry'!G22","v":0},{"$f":"'CHVA Tool - Data Entry'!H22","v":0},{"$f":"'CHVA Tool - Data Entry'!I22","v":0},{"$f":"'CHVA Tool - Data Entry'!J22","v":0},{"$f":"'CHVA Tool - Data Entry'!K22","v":0},{"$f":"'CHVA Tool - Data Entry'!L22","v":0},{"$f":"'CHVA Tool - Data Entry'!M22","v":0},{"$f":"'CHVA Tool - Data Entry'!N22","v":0},{"$f":"'CHVA Tool - Data Entry'!O22","v":0},{"$f":"'CHVA Tool - Data Entry'!P22","v":0},{"$f":"'CHVA Tool - Data Entry'!Q22","v":0}]
[{"$f":"'CHVA Tool - Data Entry'!A23","v":0},{"$f":"'CHVA Tool - Data Entry'!B23","v":0},{"$f":"'CHVA Tool - Data Entry'!C23","v":0},{"$f":"'CHVA Tool - Data Entry'!D23","v":0},{"$f":"'CHVA Tool - Data Entry'!E23","v":0},{"$f":"'CHVA Tool - Data Entry'!F23","v":0},{"$f":"'CHVA Tool - Data Entry'!G23","v":0},{"$f":"'CHVA Tool - Data Entry'!H23","v":0},{"$f":"'CHVA Tool - Data Entry'!I23","v":0},{"$f":"'CHVA Tool - Data Entry'!J23","v":0},{"$f":"'CHVA Tool - Data Entry'!K23","v":0},{"$f":"'CHVA Tool - Data Entry'!L23","v":0},{"$f":"'CHVA Tool - Data Entry'!M23","v":0},{"$f":"'CHVA Tool - Data Entry'!N23","v":0},{"$f":"'CHVA Tool - Data Entry'!O23","v":0},{"$f":"'CHVA Tool - Data Entry'!P23","v":0},{"$f":"'CHVA Tool - Data Entry'!Q23","v":0}]
[{"$f":"'CHVA Tool - Data Entry'!A24","v":"Average: "},{"$f":"'CHVA Tool - Data Entry'!B24","v":1.5333333333333334},{"$f":"'CHVA Tool - Data Entry'!C24","v":2.1333333333333333},{"$f":"'CHVA Tool - Data Entry'!D24","v":1},{"$f":"'CHVA Tool - Data Entry'!E24","v":2},{"$f":"'CHVA Tool - Data Entry'!F24","v":3},{"$f":"'CHVA Tool - Data Entry'!G24","v":1},{"$f":"'CHVA Tool - Data Entry'!H24","v":2},{"$f":"'CHVA Tool - Data Entry'!I24","v":2},{"$f":"'CHVA Tool - Data Entry'!J24","v":1},{"$f":"'CHVA Tool - Data Entry'!K24","v":3},{"$f":"'CHVA Tool - Data Entry'!L24","v":2},{"$f":"'CHVA Tool - Data Entry'!M24","v":1},{"$f":"'CHVA Tool - Data Entry'!N24","v":2},{"$f":"'CHVA Tool - Data Entry'!O24","v":0},{"$f":"'CHVA Tool - Data Entry'!P24","v":0},{"$f":"'CHVA Tool - Data Entry'!Q24","v":0}]
[{"$f":"'CHVA Tool - Data Entry'!A25","v":"Naturally Occurring Events "},{"$f":"'CHVA Tool - Data Entry'!B25","v":0},{"$f":"'CHVA Tool - Data Entry'!C25","v":0},{"$f":"'CHVA Tool - Data Entry'!D25","v":0},{"$f":"'CHVA Tool - Data Entry'!E25","v":0},{"$f":"'CHVA Tool - Data Entry'!F25","v":0},{"$f":"'CHVA Tool - Data Entry'!G25","v":0},{"$f":"'CHVA Tool - Data Entry'!H25","v":0},{"$f":"'CHVA Tool - Data Entry'!I25","v":0},{"$f":"'CHVA Tool - Data Entry'!J25","v":0},{"$f":"'CHVA Tool - Data Entry'!K25","v":0},{"$f":"'CHVA Tool - Data Entry'!L25","v":0},{"$f":"'CHVA Tool - Data Entry'!M25","v":0},{"$f":"'CHVA Tool - Data Entry'!N25","v":0},{"$f":"'CHVA Tool - Data Entry'!O25","v":0},{"$f":"'CHVA Tool - Data Entry'!P25","v":0},{"$f":"'CHVA Tool - Data Entry'!Q25","v":0}]
[{"$f":"'CHVA Tool - Data Entry'!A26","v":"Avalanche"},{"$f":"'CHVA Tool - Data Entry'!B26","v":3},{"$f":"'CHVA Tool - Data Entry'!C26","v":3},{"$f":"'CHVA Tool - Data Entry'!D26","v":1},{"$f":"'CHVA Tool - Data Entry'!E26","v":2},{"$f":"'CHVA Tool - Data Entry'!F26","v":3},{"$f":"'CHVA Tool - Data Entry'!G26","v":2},{"$f":"'CHVA Tool - Data Entry'!H26","v":2},{"$f":"'CHVA Tool - Data Entry'!I26","v":3},{"$f":"'CHVA Tool - Data Entry'!J26","v":1},{"$f":"'CHVA Tool - Data Entry'!K26","v":1},{"$f":"'CHVA Tool - Data Entry'!L26","v":3},{"$f":"'CHVA Tool - Data Entry'!M26","v":2},{"$f":"'CHVA Tool - Data Entry'!N26","v":1},{"$f":"'CHVA Tool - Data Entry'!O26","v":0.63157894736842102},{"$f":"'CHVA Tool - Data Entry'!P26","v":0.63157894736842102},{"$f":"'CHVA Tool - Data Entry'!Q26","v":126}]
[{"$f":"'CHVA Tool - Data Entry'!A27","v":"Dam Inundation"},{"$f":"'CHVA Tool - Data Entry'!B27","v":3},{"$f":"'CHVA Tool - Data Entry'!C27","v":3},{"$f":"'CHVA Tool - Data Entry'!D27","v":1},{"$f":"'CHVA Tool - Data Entry'!E27","v":2},{"$f":"'CHVA Tool - Data Entry'!F27","v":3},{"$f":"'CHVA Tool - Data Entry'!G27","v":2},{"$f":"'CHVA Tool - Data Entry'!H27","v":2},{"$f":"'CHVA Tool - Data Entry'!I27","v":3},{"$f":"'CHVA Tool - Data Entry'!J27","v":1},{"$f":"'CHVA Tool - Data Entry'!K27","v":1},{"$f":"'CHVA Tool - Data Entry'!L27","v":3},{"$f":"'CHVA Tool - Data Entry'!M27","v":2},{"$f":"'CHVA Tool - Data Entry'!N27","v":1},{"$f":"'CHVA Tool - Data Entry'!O27","v":0.63157894736842102},{"$f":"'CHVA Tool - Data Entry'!P27","v":0.63157894736842102},{"$f":"'CHVA Tool - Data Entry'!Q27","v":126}]
[{"$f":"'CHVA Tool - Data Entry'!A28","v":"Drought"},{"$f":"'CHVA Tool - Data Entry'!B28","v":2},{"$f":"'CHVA Tool - Data Entry'!C28","v":2},{"$f":"'CHVA Tool - Data Entry'!D28","v":1},{"$f":"'CHVA Tool - Data Entry'!E28","v":2},{"$f":"'CHVA Tool - Data Entry'!F28","v":3},{"$f":"'CHVA Tool - Data Entry'!G28","v":2},{"$f":"'CHVA Tool - Data Entry'!H28","v":2},{"$f":"'CHVA Tool - Data Entry'!I28","v":3},{"$f":"'CHVA Tool - Data Entry'!J28","v":1},{"$f":"'CHVA Tool - Data Entry'!K28","v":1},{"$f":"'CHVA Tool - Data Entry'!L28","v":3},{"$f":"'CHVA Tool - Data Entry'!M28","v":2},{"$f":"'CHVA Tool - Data Entry'!N28","v":1},{"$f":"'CHVA Tool - Data Entry'!O28","v":0.42105263157894735},{"$f":"'CHVA Tool - Data Entry'!P28","v":0.42105263157894735},{"$f":"'CHVA Tool - Data Entry'!Q28","v":84}]
[{"$f":"'CHVA Tool - Data Entry'!A29","v":"Earthquake"},{"$f":"'CHVA Tool - Data Entry'!B29","v":2},{"$f":"'CHVA Tool - Data Entry'!C29","v":2},{"$f":"'CHVA Tool - Data Entry'!D29","v":1},{"$f":"'CHVA Tool - Data Entry'!E29","v":2},{"$f":"'CHVA Tool - Data Entry'!F29","v":3},{"$f":"'CHVA Tool - Data Entry'!G29","v":2},{"$f":"'CHVA Tool - Data Entry'!H29","v":2},{"$f":"'CHVA Tool - Data Entry'!I29","v":3},{"$f":"'CHVA Tool - Data Entry'!J29","v":1},{"$f":"'CHVA Tool - Data Entry'!K29","v":1},{"$f":"'CHVA Tool - Data Entry'!L29","v":3},{"$f":"'CHVA Tool - Data Entry'!M29","v":2},{"$f":"'CHVA Tool - Data Entry'!N29","v":1},{"$f":"'CHVA Tool - Data Entry'!O29","v":0.42105263157894735},{"$f":"'CHVA Tool - Data Entry'!P29","v":0.42105263157894735},{"$f":"'CHVA Tool - Data Entry'!Q29","v":84}]
[{"$f":"'CHVA Tool - Data Entry'!A30","v":"Epidemic/Pandemic"},{"$f":"'CHVA Tool - Data Entry'!B30","v":1},{"$f":"'CHVA Tool - Data Entry'!C30","v":2},{"$f":"'CHVA Tool - Data Entry'!D30","v":1},{"$f":"'CHVA Tool - Data Entry'!E30","v":2},{"$f":"'CHVA Tool - Data Entry'!F30","v":3},{"$f":"'CHVA Tool - Data Entry'!G30","v":2},{"$f":"'CHVA Tool - Data Entry'!H30","v":2},{"$f":"'CHVA Tool - Data Entry'!I30","v":3},{"$f":"'CHVA Tool - Data Entry'!J30","v":1},{"$f":"'CHVA Tool - Data Entry'!K30","v":1},{"$f":"'CHVA Tool - Data Entry'!L30","v":3},{"$f":"'CHVA Tool - Data Entry'!M30","v":2},{"$f":"'CHVA Tool - Data Entry'!N30","v":1},{"$f":"'CHVA Tool - Data Entry'!O30","v":0.21052631578947367},{"$f":"'CHVA Tool - Data Entry'!P30","v":0.42105263157894735},{"$f":"'CHVA Tool - Data Entry'!Q30","v":63}]
[{"$f":"'CHVA Tool - Data Entry'!A31","v":"Flood (External)"},{"$f":"'CHVA Tool - Data Entry'!B31","v":1},{"$f":"'CHVA Tool - Data Entry'!C31","v":2},{"$f":"'CHVA Tool - Data Entry'!D31","v":1},{"$f":"'CHVA Tool - Data Entry'!E31","v":2},{"$f":"'CHVA Tool - Data Entry'!F31","v":3},{"$f":"'CHVA Tool - Data Entry'!G31","v":2},{"$f":"'CHVA Tool - Data Entry'!H31","v":2},{"$f":"'CHVA Tool - Data Entry'!I31","v":3},{"$f":"'CHVA Tool - Data Entry'!J31","v":1},{"$f":"'CHVA Tool - Data Entry'!K31","v":1},{"$f":"'CHVA Tool - Data Entry'!L31","v":3},{"$f":"'CHVA Tool - Data Entry'!M31","v":2},{"$f":"'CHVA Tool - Data Entry'!N31","v":1},{"$f":"'CHVA Tool - Data Entry'!O31","v":0.21052631578947367},{"$f":"'CHVA Tool - Data Entry'!P31","v":0.42105263157894735},{"$f":"'CHVA Tool - Data Entry'!Q31","v":63}]
[{"$f":"'CHVA Tool - Data Entry'!A32","v":"Hail"},{"$f":"'CHVA Tool - Data Entry'!B32","v":1},{"$f":"'CHVA Tool - Data Entry'!C32","v":2},{"$f":"'CHVA Tool - Data Entry'!D32","v":1},{"$f":"'CHVA Tool - Data Entry'!E32","v":2},{"$f":"'CHVA Tool - Data Entry'!F32","v":3},{"$f":"'CHVA Tool - Data Entry'!G32","v":2},{"$f":"'CHVA Tool - Data Entry'!H32","v":2},{"$f":"'CHVA Tool - Data Entry'!I32","v":3},{"$f":"'CHVA Tool - Data Entry'!J32","v":1},{"$f":"'CHVA Tool - Data Entry'!K32","v":1},{"$f":"'CHVA Tool - Data Entry'!L32","v":3},{"$f":"'CHVA Tool - Data Entry'!M32","v":2},{"$f":"'CHVA Tool - Data Entry'!N32","v":1},{"$f":"'CHVA Tool - Data Entry'!O32","v":0.21052631578947367},{"$f":"'CHVA Tool - Data Entry'!P32","v":0.42105263157894735},{"$f":"'CHVA Tool - Data Entry'!Q32","v":63}]
[{"$f":"'CHVA Tool - Data Entry'!A33","v":"High Winds"},{"$f":"'CHVA Tool - Data Entry'!B33","v":1},{"$f":"'CHVA Tool - Data Entry'!C33","v":2},{"$f":"'CHVA Tool - Data Entry'!D33","v":1},{"$f":"'CHVA Tool - Data Entry'!E33","v":2},{"$f":"'CHVA Tool - Data Entry'!F33","v":3},{"$f":"'CHVA Tool - Data Entry'!G33","v":2},{"$f":"'CHVA Tool - Data Entry'!H33","v":2},{"$f":"'CHVA Tool - Data Entry'!I33","v":3},{"$f":"'CHVA Tool - Data Entry'!J33","v":1},{"$f":"'CHVA Tool - Data Entry'!K33","v":1},{"$f":"'CHVA Tool - Data Entry'!L33","v":3},{"$f":"'CHVA Tool - Data Entry'!M33","v":2},{"$f":"'CHVA Tool - Data Entry'!N33","v":1},{"$f":"'CHVA Tool - Data Entry'!O33","v":0.21052631578947367},{"$f":"'CHVA Tool - Data Entry'!P33","v":0.42105263157894735},{"$f":"'CHVA Tool - Data Entry'!Q33","v":63}]
[{"$f":"'CHVA Tool - Data Entry'!A34","v":"Hurricane"},{"$f":"'CHVA Tool - Data Entry'!B34","v":1},{"$f":"'CHVA Tool - Data Entry'!C34","v":2},{"$f":"'CHVA Tool - Data Entry'!D34","v":1},{"$f":"'CHVA Tool - Data Entry'!E34","v":2},{"$f":"'CHVA Tool - Data Entry'!F34","v":3},{"$f":"'CHVA Tool - Data Entry'!G34","v":2},{"$f":"'CHVA Tool - Data Entry'!H34","v":2},{"$f":"'CHVA Tool - Data Entry'!I34","v":3},{"$f":"'CHVA Tool - Data Entry'!J34","v":1},{"$f":"'CHVA Tool - Data Entry'!K34","v":1},{"$f":"'CHVA Tool - Data Entry'!L34","v":3},{"$f":"'CHVA Tool - Data Entry'!M34","v":2},{"$f":"'CHVA Tool - Data Entry'!N34","v":1},{"$f":"'CHVA Tool - Data Entry'!O34","v":0.21052631578947367},{"$f":"'CHVA Tool - Data Entry'!P34","v":0.42105263157894735},{"$f":"'CHVA Tool - Data Entry'!Q34","v":63}]
[{"$f":"'CHVA Tool - Data Entry'!A35","v":"Ice Storm"},{"$f":"'CHVA Tool - Data Entry'!B35","v":1},{"$f":"'CHVA Tool - Data Entry'!C35","v":2},{"$f":"'CHVA Tool - Data Entry'!D35","v":1},{"$f":"'CHVA Tool - Data Entry'!E35","v":2},{"$f":"'CHVA Tool - Data Entry'!F35","v":3},{"$f":"'CHVA Tool - Data Entry'!G35","v":2},{"$f":"'CHVA Tool - Data Entry'!H35","v":2},{"$f":"'CHVA Tool - Data Entry'!I35","v":3},{"$f":"'CHVA Tool - Data Entry'!J35","v":1},{"$f":"'CHVA Tool - Data Entry'!K35","v":1},{"$f":"'CHVA Tool - Data Entry'!L35","v":3},{"$f":"'CHVA Tool - Data Entry'!M35","v":2},{"$f":"'CHVA Tool - Data Entry'!N35","v":1},{"$f":"'CHVA Tool - Data Entry'!O35","v":0.21052631578947367},{"$f":"'CHVA Tool - Data Entry'!P35","v":0.42105263157894735},{"$f":"'CHVA Tool - Data Entry'!Q35","v":63}]
[{"$f":"'CHVA Tool - Data Entry'!A36","v":"Insect Infestation"},{"$f":"'CHVA Tool - Data Entry'!B36","v":1},{"$f":"'CHVA Tool - Data Entry'!C36","v":2},{"$f":"'CHVA Tool - Data Entry'!D36","v":1},{"$f":"'CHVA Tool - Data Entry'!E36","v":2},{"$f":"'CHVA Tool - Data Entry'!F36","v":3},{"$f":"'CHVA Tool - Data Entry'!G36","v":2},{"$f":"'CHVA Tool - Data Entry'!H36","v":2},{"$f":"'CHVA Tool - Data Entry'!I36","v":3},{"$f":"'CHVA Tool - Data Entry'!J36","v":1},{"$f":"'CHVA Tool - Data Entry'!K36","v":1},{"$f":"'CHVA Tool - Data Entry'!L36","v":3},{"$f":"'CHVA Tool - Data Entry'!M36","v":2},{"$f":"'CHVA Tool - Data Entry'!N36","v":1},{"$f":"'CHVA Tool - Data Entry'!O36","v":0.21052631578947367},{"$f":"'CHVA Tool - Data Entry'!P36","v":0.42105263157894735},{"$f":"'CHVA Tool - Data Entry'!Q36","v":63}]
[{"$f":"'CHVA Tool - Data Entry'!A37","v":"Landslide"},{"$f":"'CHVA Tool - Data Entry'!B37","v":1},{"$f":"'CHVA Tool - Data Entry'!C37","v":2},{"$f":"'CHVA Tool - Data Entry'!D37","v":1},{"$f":"'CHVA Tool - Data Entry'!E37","v":2},{"$f":"'CHVA Tool - Data Entry'!F37","v":3},{"$f":"'CHVA Tool - Data Entry'!G37","v":2},{"$f":"'CHVA Tool - Data Entry'!H37","v":2},{"$f":"'CHVA Tool - Data Entry'!I37","v":3},{"$f":"'CHVA Tool - Data Entry'!J37","v":1},{"$f":"'CHVA Tool - Data Entry'!K37","v":1},{"$f":"'CHVA Tool - Data Entry'!L37","v":3},{"$f":"'CHVA Tool - Data Entry'!M37","v":2},{"$f":"'CHVA Tool - Data Entry'!N37","v":1},{"$f":"'CHVA Tool - Data Entry'!O37","v":0.21052631578947367},{"$f":"'CHVA Tool - Data Entry'!P37","v":0.42105263157894735},{"$f":"'CHVA Tool - Data Entry'!Q37","v":63}]
[{"$f":"'CHVA Tool - Data Entry'!A38","v":"Severe Blizzard/Snow Fall"},{"$f":"'CHVA Tool - Data Entry'!B38","v":1},{"$f":"'CHVA Tool - Data Entry'!C38","v":2},{"$f":"'CHVA Tool - Data Entry'!D38","v":1},{"$f":"'CHVA Tool - Data Entry'!E38","v":2},{"$f":"'CHVA Tool - Data Entry'!F38","v":3},{"$f":"'CHVA Tool - Data Entry'!G38","v":2},{"$f":"'CHVA Tool - Data Entry'!H38","v":2},{"$f":"'CHVA Tool - Data Entry'!I38","v":3},{"$f":"'CHVA Tool - Data Entry'!J38","v":1},{"$f":"'CHVA Tool - Data Entry'!K38","v":1},{"$f":"'CHVA Tool - Data Entry'!L38","v":3},{"$f":"'CHVA Tool - Data Entry'!M38","v":2},{"$f":"'CHVA Tool - Data Entry'!N38","v":1},{"$f":"'CHVA Tool - Data Entry'!O38","v":0.21052631578947367},{"$f":"'CHVA Tool - Data Entry'!P38","v":0.42105263157894735},{"$f":"'CHVA Tool - Data Entry'!Q38","v":63}]
[{"$f":"'CHVA Tool - Data Entry'!A39","v":"Severe Thunderstorm"},{"$f":"'CHVA Tool - Data Entry'!B39","v":1},{"$f":"'CHVA Tool - Data Entry'!C39","v":2},{"$f":"'CHVA Tool - Data Entry'!D39","v":1},{"$f":"'CHVA Tool - Data Entry'!E39","v":2},{"$f":"'CHVA Tool - Data Entry'!F39","v":3},{"$f":"'CHVA Tool - Data Entry'!G39","v":2},{"$f":"'CHVA Tool - Data Entry'!H39","v":2},{"$f":"'CHVA Tool - Data Entry'!I39","v":3},{"$f":"'CHVA Tool - Data Entry'!J39","v":1},{"$f":"'CHVA Tool - Data Entry'!K39","v":1},{"$f":"'CHVA Tool - Data Entry'!L39","v":3},{"$f":"'CHVA Tool - Data Entry'!M39","v":2},{"$f":"'CHVA Tool - Data Entry'!N39","v":1},{"$f":"'CHVA Tool - Data Entry'!O39","v":0.21052631578947367},{"$f":"'CHVA Tool - Data Entry'!P39","v":0.42105263157894735},{"$f":"'CHVA Tool - Data Entry'!Q39","v":63}]
[{"$f":"'CHVA Tool - Data Entry'!A40","v":"Solar Flares"},{"$f":"'CHVA Tool - Data Entry'!B40","v":1},{"$f":"'CHVA Tool - Data Entry'!C40","v":2},{"$f":"'CHVA Tool - Data Entry'!D40","v":1},{"$f":"'CHVA Tool - Data Entry'!E40","v":2},{"$f":"'CHVA Tool - Data Entry'!F40","v":3},{"$f":"'CHVA Tool - Data Entry'!G40","v":2},{"$f":"'CHVA Tool - Data Entry'!H40","v":2},{"$f":"'CHVA Tool - Data Entry'!I40","v":3},{"$f":"'CHVA Tool - Data Entry'!J40","v":1},{"$f":"'CHVA Tool - Data Entry'!K40","v":1},{"$f":"'CHVA Tool - Data Entry'!L40","v":3},{"$f":"'CHVA Tool - Data Entry'!M40","v":2},{"$f":"'CHVA Tool - Data Entry'!N40","v":1},{"$f":"'CHVA Tool - Data Entry'!O40","v":0.21052631578947367},{"$f":"'CHVA Tool - Data Entry'!P40","v":0.42105263157894735},{"$f":"'CHVA Tool - Data Entry'!Q40","v":63}]
[{"$f":"'CHVA Tool - Data Entry'!A41","v":"Temperature Extreme (Cold)"},{"$f":"'CHVA Tool - Data Entry'!B41","v":1},{"$f":"'CHVA Tool - Data Entry'!C41","v":2},{"$f":"'CHVA Tool - Data Entry'!D41","v":1},{"$f":"'CHVA Tool - Data Entry'!E41","v":2},{"$f":"'CHVA Tool - Data Entry'!F41","v":3},{"$f":"'CHVA Tool - Data Entry'!G41","v":2},{"$f":"'CHVA Tool - Data Entry'!H41","v":2},{"$f":"'CHVA Tool - Data Entry'!I41","v":3},{"$f":"'CHVA Tool - Data Entry'!J41","v":1},{"$f":"'CHVA Tool - Data Entry'!K41","v":1},{"$f":"'CHVA Tool - Data Entry'!L41","v":3},{"$f":"'CHVA Tool - Data Entry'!M41","v":2},{"$f":"'CHVA Tool - Data Entry'!N41","v":1},{"$f":"'CHVA Tool - Data Entry'!O41","v":0.21052631578947367},{"$f":"'CHVA Tool - Data Entry'!P41","v":0.42105263157894735},{"$f":"'CHVA Tool - Data Entry'!Q41","v":63}]
[{"$f":"'CHVA Tool - Data Entry'!A42","v":"Temperature Extreme (Hot)"},{"$f":"'CHVA Tool - Data Entry'!B42","v":1},{"$f":"'CHVA Tool - Data Entry'!C42","v":2},{"$f":"'CHVA Tool - Data Entry'!D42","v":1},{"$f":"'CHVA Tool - Data Entry'!E42","v":2},{"$f":"'CHVA Tool - Data Entry'!F42","v":3},{"$f":"'CHVA Tool - Data Entry'!G42","v":2},{"$f":"'CHVA Tool - Data Entry'!H42","v":2},{"$f":"'CHVA Tool - Data Entry'!I42","v":3},{"$f":"'CHVA Tool - Data Entry'!J42","v":1},{"$f":"'CHVA Tool - Data Entry'!K42","v":1},{"$f":"'CHVA Tool - Data Entry'!L42","v":3},{"$f":"'CHVA Tool - Data Entry'!M42","v":2},{"$f":"'CHVA Tool - Data Entry'!N42","v":1},{"$f":"'CHVA Tool - Data Entry'!O42","v":0.21052631578947367},{"$f":"'CHVA Tool - Data Entry'!P42","v":0.42105263157894735},{"$f":"'CHVA Tool - Data Entry'!Q42","v":63}]
[{"$f":"'CHVA Tool - Data Entry'!A43","v":"Tidal Wave"},{"$f":"'CHVA Tool - Data Entry'!B43","v":1},{"$f":"'CHVA Tool - Data Entry'!C43","v":2},{"$f":"'CHVA Tool - Data Entry'!D43","v":1},{"$f":"'CHVA Tool - Data Entry'!E43","v":2},{"$f":"'CHVA Tool - Data Entry'!F43","v":3},{"$f":"'CHVA Tool - Data Entry'!G43","v":2},{"$f":"'CHVA Tool - Data Entry'!H43","v":2},{"$f":"'CHVA Tool - Data Entry'!I43","v":3},{"$f":"'CHVA Tool - Data Entry'!J43","v":1},{"$f":"'CHVA Tool - Data Entry'!K43","v":1},{"$f":"'CHVA Tool - Data Entry'!L43","v":3},{"$f":"'CHVA Tool - Data Entry'!M43","v":2},{"$f":"'CHVA Tool - Data Entry'!N43","v":1},{"$f":"'CHVA Tool - Data Entry'!O43","v":0.21052631578947367},{"$f":"'CHVA Tool - Data Entry'!P43","v":0.42105263157894735},{"$f":"'CHVA Tool - Data Entry'!Q43","v":63}]
[{"$f":"'CHVA Tool - Data Entry'!A44","v":"Tornado"},{"$f":"'CHVA Tool - Data Entry'!B44","v":1},{"$f":"'CHVA Tool - Data Entry'!C44","v":2},{"$f":"'CHVA Tool - Data Entry'!D44","v":1},{"$f":"'CHVA Tool - Data Entry'!E44","v":2},{"$f":"'CHVA Tool - Data Entry'!F44","v":3},{"$f":"'CHVA Tool - Data Entry'!G44","v":2},{"$f":"'CHVA Tool - Data Entry'!H44","v":2},{"$f":"'CHVA Tool - Data Entry'!I44","v":3},{"$f":"'CHVA Tool - Data Entry'!J44","v":1},{"$f":"'CHVA Tool - Data Entry'!K44","v":1},{"$f":"'CHVA Tool - Data Entry'!L44","v":3},{"$f":"'CHVA Tool - Data Entry'!M44","v":2},{"$f":"'CHVA Tool - Data Entry'!N44","v":1},{"$f":"'CHVA Tool - Data Entry'!O44","v":0.21052631578947367},{"$f":"'CHVA Tool - Data Entry'!P44","v":0.42105263157894735},{"$f":"'CHVA Tool - Data Entry'!Q44","v":63}]
[{"$f":"'CHVA Tool - Data Entry'!A45","v":"Volcano"},{"$f":"'CHVA Tool - Data Entry'!B45","v":1},{"$f":"'CHVA Tool - Data Entry'!C45","v":2},{"$f":"'CHVA Tool - Data Entry'!D45","v":1},{"$f":"'CHVA Tool - Data Entry'!E45","v":2},{"$f":"'CHVA Tool - Data Entry'!F45","v":3},{"$f":"'CHVA Tool - Data Entry'!G45","v":2},{"$f":"'CHVA Tool - Data Entry'!H45","v":2},{"$f":"'CHVA Tool - Data Entry'!I45","v":3},{"$f":"'CHVA Tool - Data Entry'!J45","v":1},{"$f":"'CHVA Tool - Data Entry'!K45","v":1},{"$f":"'CHVA Tool - Data Entry'!L45","v":3},{"$f":"'CHVA Tool - Data Entry'!M45","v":2},{"$f":"'CHVA Tool - Data Entry'!N45","v":1},{"$f":"'CHVA Tool - Data Entry'!O45","v":0.21052631578947367},{"$f":"'CHVA Tool - Data Entry'!P45","v":0.42105263157894735},{"$f":"'CHVA Tool - Data Entry'!Q45","v":63}]
[{"$f":"'CHVA Tool - Data Entry'!A46","v":"Wild Fire"},{"$f":"'CHVA Tool - Data Entry'!B46","v":1},{"$f":"'CHVA Tool - Data Entry'!C46","v":2},{"$f":"'CHVA Tool - Data Entry'!D46","v":1},{"$f":"'CHVA Tool - Data Entry'!E46","v":2},{"$f":"'CHVA Tool - Data Entry'!F46","v":3},{"$f":"'CHVA Tool - Data Entry'!G46","v":2},{"$f":"'CHVA Tool - Data Entry'!H46","v":2},{"$f":"'CHVA Tool - Data Entry'!I46","v":3},{"$f":"'CHVA Tool - Data Entry'!J46","v":1},{"$f":"'CHVA Tool - Data Entry'!K46","v":1},{"$f":"'CHVA Tool - Data Entry'!L46","v":3},{"$f":"'CHVA Tool - Data Entry'!M46","v":2},{"$f":"'CHVA Tool - Data Entry'!N46","v":1},{"$f":"'CHVA Tool - Data Entry'!O46","v":0.21052631578947367},{"$f":"'CHVA Tool - Data Entry'!P46","v":0.42105263157894735},{"$f":"'CHVA Tool - Data Entry'!Q46","v":63}]
[{"$f":"'CHVA Tool - Data Entry'!A47","v":0},{"$f":"'CHVA Tool - Data Entry'!B47","v":0},{"$f":"'CHVA Tool - Data Entry'!C47","v":0},{"$f":"'CHVA Tool - Data Entry'!D47","v":0},{"$f":"'CHVA Tool - Data Entry'!E47","v":0},{"$f":"'CHVA Tool - Data Entry'!F47","v":0},{"$f":"'CHVA Tool - Data Entry'!G47","v":0},{"$f":"'CHVA Tool - Data Entry'!H47","v":0},{"$f":"'CHVA Tool - Data Entry'!I47","v":0},{"$f":"'CHVA Tool - Data Entry'!J47","v":0},{"$f":"'CHVA Tool - Data Entry'!K47","v":0},{"$f":"'CHVA Tool - Data Entry'!L47","v":0},{"$f":"'CHVA Tool - Data Entry'!M47","v":0},{"$f":"'CHVA Tool - Data Entry'!N47","v":0},{"$f":"'CHVA Tool - Data Entry'!O47","v":0},{"$f":"'CHVA Tool - Data Entry'!P47","v":0},{"$f":"'CHVA Tool - Data Entry'!Q47","v":0}]
[{"$f":"'CHVA Tool - Data Entry'!A48","v":0},{"$f":"'CHVA Tool - Data Entry'!B48","v":0},{"$f":"'CHVA Tool - Data Entry'!C48","v":0},{"$f":"'CHVA Tool - Data Entry'!D48","v":0},{"$f":"'CHVA Tool - Data Entry'!E48","v":0},{"$f":"'CHVA Tool - Data Entry'!F48","v":0},{"$f":"'CHVA Tool - Data Entry'!G48","v":0},{"$f":"'CHVA Tool - Data Entry'!H48","v":0},{"$f":"'CHVA Tool - Data Entry'!I48","v":0},{"$f":"'CHVA Tool - Data Entry'!J48","v":0},{"$f":"'CHVA Tool - Data Entry'!K48","v":0},{"$f":"'CHVA Tool - Data Entry'!L48","v":0},{"$f":"'CHVA Tool - Data Entry'!M48","v":0},{"$f":"'CHVA Tool - Data Entry'!N48","v":0},{"$f":"'CHVA Tool - Data Entry'!O48","v":0},{"$f":"'CHVA Tool - Data Entry'!P48","v":0},{"$f":"'CHVA Tool - Data Entry'!Q48","v":0}]
[{"$f":"'CHVA Tool - Data Entry'!A49","v":"Average: "},{"$f":"'CHVA Tool - Data Entry'!B49","v":1.2857142857142858},{"$f":"'CHVA Tool - Data Entry'!C49","v":2.0952380952380953},{"$f":"'CHVA Tool - Data Entry'!D49","v":1},{"$f":"'CHVA Tool - Data Entry'!E49","v":2},{"$f":"'CHVA Tool - Data Entry'!F49","v":3},{"$f":"'CHVA Tool - Data Entry'!G49","v":2},{"$f":"'CHVA Tool - Data Entry'!H49","v":2},{"$f":"'CHVA Tool - Data Entry'!I49","v":3},{"$f":"'CHVA Tool - Data Entry'!J49","v":1},{"$f":"'CHVA Tool - Data Entry'!K49","v":1},{"$f":"'CHVA Tool - Data Entry'!L49","v":3},{"$f":"'CHVA Tool - Data Entry'!M49","v":2},{"$f":"'CHVA Tool - Data Entry'!N49","v":1},{"$f":"'CHVA Tool - Data Entry'!O49","v":0},{"$f":"'CHVA Tool - Data Entry'!P49","v":0},{"$f":"'CHVA Tool - Data Entry'!Q49","v":0}]
[{"$f":"'CHVA Tool - Data Entry'!A50","v":"Human Related Events "},{"$f":"'CHVA Tool - Data Entry'!B50","v":0},{"$f":"'CHVA Tool - Data Entry'!C50","v":0},{"$f":"'CHVA Tool - Data Entry'!D50","v":0},{"$f":"'CHVA Tool - Data Entry'!E50","v":0},{"$f":"'CHVA Tool - Data Entry'!F50","v":0},{"$f":"'CHVA Tool - Data Entry'!G50","v":0},{"$f":"'CHVA Tool - Data Entry'!H50","v":0},{"$f":"'CHVA Tool - Data Entry'!I50","v":0},{"$f":"'CHVA Tool - Data Entry'!J50","v":0},{"$f":"'CHVA Tool - Data Entry'!K50","v":0},{"$f":"'CHVA Tool - Data Entry'!L50","v":0},{"$f":"'CHVA Tool - Data Entry'!M50","v":0},{"$f":"'CHVA Tool - Data Entry'!N50","v":0},{"$f":"'CHVA Tool - Data Entry'!O50","v":0},{"$f":"'CHVA Tool - Data Entry'!P50","v":0},{"$f":"'CHVA Tool - Data Entry'!Q50","v":0}]
[{"$f":"'CHVA Tool - Data Entry'!A51","v":"Active Shooter"},{"$f":"'CHVA Tool - Data Entry'!B51","v":3},{"$f":"'CHVA Tool - Data Entry'!C51","v":3},{"$f":"'CHVA Tool - Data Entry'!D51","v":3},{"$f":"'CHVA Tool - Data Entry'!E51","v":1},{"$f":"'CHVA Tool - Data Entry'!F51","v":2},{"$f":"'CHVA Tool - Data Entry'!G51","v":2},{"$f":"'CHVA Tool - Data Entry'!H51","v":2},{"$f":"'CHVA Tool - Data Entry'!I51","v":1},{"$f":"'CHVA Tool - Data Entry'!J51","v":3},{"$f":"'CHVA Tool - Data Entry'!K51","v":2},{"$f":"'CHVA Tool - Data Entry'!L51","v":3},{"$f":"'CHVA Tool - Data Entry'!M51","v":1},{"$f":"'CHVA Tool - Data Entry'!N51","v":1},{"$f":"'CHVA Tool - Data Entry'!O51","v":0.63157894736842102},{"$f":"'CHVA Tool - Data Entry'!P51","v":0.63157894736842102},{"$f":"'CHVA Tool - Data Entry'!Q51","v":126}]
[{"$f":"'CHVA Tool - Data Entry'!A52","v":"Bomb Threat"},{"$f":"'CHVA Tool - Data Entry'!B52","v":3},{"$f":"'CHVA Tool - Data Entry'!C52","v":3},{"$f":"'CHVA Tool - Data Entry'!D52","v":3},{"$f":"'CHVA Tool - Data Entry'!E52","v":1},{"$f":"'CHVA Tool - Data Entry'!F52","v":2},{"$f":"'CHVA Tool - Data Entry'!G52","v":2},{"$f":"'CHVA Tool - Data Entry'!H52","v":2},{"$f":"'CHVA Tool - Data Entry'!I52","v":1},{"$f":"'CHVA Tool - Data Entry'!J52","v":3},{"$f":"'CHVA Tool - Data Entry'!K52","v":2},{"$f":"'CHVA Tool - Data Entry'!L52","v":3},{"$f":"'CHVA Tool - Data Entry'!M52","v":1},{"$f":"'CHVA Tool - Data Entry'!N52","v":1},{"$f":"'CHVA Tool - Data Entry'!O52","v":0.63157894736842102},{"$f":"'CHVA Tool - Data Entry'!P52","v":0.63157894736842102},{"$f":"'CHVA Tool - Data Entry'!Q52","v":126}]
[{"$f":"'CHVA Tool - Data Entry'!A53","v":"Civil Disturbance"},{"$f":"'CHVA Tool - Data Entry'!B53","v":2},{"$f":"'CHVA Tool - Data Entry'!C53","v":2},{"$f":"'CHVA Tool - Data Entry'!D53","v":3},{"$f":"'CHVA Tool - Data Entry'!E53","v":1},{"$f":"'CHVA Tool - Data Entry'!F53","v":2},{"$f":"'CHVA Tool - Data Entry'!G53","v":2},{"$f":"'CHVA Tool - Data Entry'!H53","v":2},{"$f":"'CHVA Tool - Data Entry'!I53","v":1},{"$f":"'CHVA Tool - Data Entry'!J53","v":3},{"$f":"'CHVA Tool - Data Entry'!K53","v":2},{"$f":"'CHVA Tool - Data Entry'!L53","v":3},{"$f":"'CHVA Tool - Data Entry'!M53","v":1},{"$f":"'CHVA Tool - Data Entry'!N53","v":1},{"$f":"'CHVA Tool - Data Entry'!O53","v":0.42105263157894735},{"$f":"'CHVA Tool - Data Entry'!P53","v":0.42105263157894735},{"$f":"'CHVA Tool - Data Entry'!Q53","v":84}]
[{"$f":"'CHVA Tool - Data Entry'!A54","v":"Forensic Admission"},{"$f":"'CHVA Tool - Data Entry'!B54","v":2},{"$f":"'CHVA Tool - Data Entry'!C54","v":2},{"$f":"'CHVA Tool - Data Entry'!D54","v":3},{"$f":"'CHVA Tool - Data Entry'!E54","v":1},{"$f":"'CHVA Tool - Data Entry'!F54","v":2},{"$f":"'CHVA Tool - Data Entry'!G54","v":2},{"$f":"'CHVA Tool - Data Entry'!H54","v":3},{"$f":"'CHVA Tool - Data Entry'!I54","v":1},{"$f":"'CHVA Tool - Data Entry'!J54","v":3},{"$f":"'CHVA Tool - Data Entry'!K54","v":2},{"$f":"'CHVA Tool - Data Entry'!L54","v":3},{"$f":"'CHVA Tool - Data Entry'!M54","v":1},{"$f":"'CHVA Tool - Data Entry'!N54","v":1},{"$f":"'CHVA Tool - Data Entry'!O54","v":0.44444444444444442},{"$f":"'CHVA Tool - Data Entry'!P54","v":0.44444444444444442},{"$f":"'CHVA Tool - Data Entry'!Q54","v":88}]
[{"$f":"'CHVA Tool - Data Entry'!A55","v":"Hostage Situation"},{"$f":"'CHVA Tool - Data Entry'!B55","v":2},{"$f":"'CHVA Tool - Data Entry'!C55","v":1},{"$f":"'CHVA Tool - Data Entry'!D55","v":3},{"$f":"'CHVA Tool - Data Entry'!E55","v":1},{"$f":"'CHVA Tool - Data Entry'!F55","v":2},{"$f":"'CHVA Tool - Data Entry'!G55","v":2},{"$f":"'CHVA Tool - Data Entry'!H55","v":2},{"$f":"'CHVA Tool - Data Entry'!I55","v":1},{"$f":"'CHVA Tool - Data Entry'!J55","v":3},{"$f":"'CHVA Tool - Data Entry'!K55","v":2},{"$f":"'CHVA Tool - Data Entry'!L55","v":3},{"$f":"'CHVA Tool - Data Entry'!M55","v":1},{"$f":"'CHVA Tool - Data Entry'!N55","v":1},{"$f":"'CHVA Tool - Data Entry'!O55","v":0.42105263157894735},{"$f":"'CHVA Tool - Data Entry'!P55","v":0.21052631578947367},{"$f":"'CHVA Tool - Data Entry'!Q55","v":63}]
[{"$f":"'CHVA Tool - Data Entry'!A56","v":"Infant Abduction"},{"$f":"'CHVA Tool - Data Entry'!B56","v":2},{"$f":"'CHVA Tool - Data Entry'!C56","v":1},{"$f":"'CHVA Tool - Data Entry'!D56","v":3},{"$f":"'CHVA Tool - Data Entry'!E56","v":1},{"$f":"'CHVA Tool - Data Entry'!F56","v":2},{"$f":"'CHVA Tool - Data Entry'!G56","v":2},{"$f":"'CHVA Tool - Data Entry'!H56","v":2},{"$f":"'CHVA Tool - Data Entry'!I56","v":1},{"$f":"'CHVA Tool - Data Entry'!J56","v":3},{"$f":"'CHVA Tool - Data Entry'!K56","v":2},{"$f":"'CHVA Tool - Data Entry'!L56","v":3},{"$f":"'CHVA Tool - Data Entry'!M56","v":1},{"$f":"'CHVA Tool - Data Entry'!N56","v":1},{"$f":"'CHVA Tool - Data Entry'!O56","v":0.42105263157894735},{"$f":"'CHVA Tool - Data Entry'!P56","v":0.21052631578947367},{"$f":"'CHVA Tool - Data Entry'!Q56","v":63}]
[{"$f":"'CHVA Tool - Data Entry'!A57","v":"Labor Action"},{"$f":"'CHVA Tool - Data Entry'!B57","v":2},{"$f":"'CHVA Tool - Data Entry'!C57","v":1},{"$f":"'CHVA Tool - Data Entry'!D57","v":3},{"$f":"'CHVA Tool - Data Entry'!E57","v":1},{"$f":"'CHVA Tool - Data Entry'!F57","v":2},{"$f":"'CHVA Tool - Data Entry'!G57","v":2},{"$f":"'CHVA Tool - Data Entry'!H57","v":2},{"$f":"'CHVA Tool - Data Entry'!I57","v":1},{"$f":"'CHVA Tool - Data Entry'!J57","v":3},{"$f":"'CHVA Tool - Data Entry'!K57","v":2},{"$f":"'CHVA Tool - Data Entry'!L57","v":3},{"$f":"'CHVA Tool - Data Entry'!M57","v":1},{"$f":"'CHVA Tool - Data Entry'!N57","v":1},{"$f":"'CHVA Tool - Data Entry'!O57","v":0.42105263157894735},{"$f":"'CHVA Tool - Data Entry'!P57","v":0.21052631578947367},{"$f":"'CHVA Tool - Data Entry'!Q57","v":63}]
[{"$f":"'CHVA Tool - Data Entry'!A58","v":"Mass Casualty (Trauma)"},{"$f":"'CHVA Tool - Data Entry'!B58","v":2},{"$f":"'CHVA Tool - Data Entry'!C58","v":1},{"$f":"'CHVA Tool - Data Entry'!D58","v":3},{"$f":"'CHVA Tool - Data Entry'!E58","v":1},{"$f":"'CHVA Tool - Data Entry'!F58","v":2},{"$f":"'CHVA Tool - Data Entry'!G58","v":2},{"$f":"'CHVA Tool - Data Entry'!H58","v":2},{"$f":"'CHVA Tool - Data Entry'!I58","v":1},{"$f":"'CHVA Tool - Data Entry'!J58","v":3},{"$f":"'CHVA Tool - Data Entry'!K58","v":2},{"$f":"'CHVA Tool - Data Entry'!L58","v":3},{"$f":"'CHVA Tool - Data Entry'!M58","v":1},{"$f":"'CHVA Tool - Data Entry'!N58","v":1},{"$f":"'CHVA Tool - Data Entry'!O58","v":0.42105263157894735},{"$f":"'CHVA Tool - Data Entry'!P58","v":0.21052631578947367},{"$f":"'CHVA Tool - Data Entry'!Q58","v":63}]
[{"$f":"'CHVA Tool - Data Entry'!A59","v":"Missing Child"},{"$f":"'CHVA Tool - Data Entry'!B59","v":2},{"$f":"'CHVA Tool - Data Entry'!C59","v":1},{"$f":"'CHVA Tool - Data Entry'!D59","v":3},{"$f":"'CHVA Tool - Data Entry'!E59","v":1},{"$f":"'CHVA Tool - Data Entry'!F59","v":2},{"$f":"'CHVA Tool - Data Entry'!G59","v":2},{"$f":"'CHVA Tool - Data Entry'!H59","v":2},{"$f":"'CHVA Tool - Data Entry'!I59","v":1},{"$f":"'CHVA Tool - Data Entry'!J59","v":3},{"$f":"'CHVA Tool - Data Entry'!K59","v":2},{"$f":"'CHVA Tool - Data Entry'!L59","v":3},{"$f":"'CHVA Tool - Data Entry'!M59","v":1},{"$f":"'CHVA Tool - Data Entry'!N59","v":1},{"$f":"'CHVA Tool - Data Entry'!O59","v":0.42105263157894735},{"$f":"'CHVA Tool - Data Entry'!P59","v":0.21052631578947367},{"$f":"'CHVA Tool - Data Entry'!Q59","v":63}]
[{"$f":"'CHVA Tool - Data Entry'!A60","v":"Staffing Shortage"},{"$f":"'CHVA Tool - Data Entry'!B60","v":2},{"$f":"'CHVA Tool - Data Entry'!C60","v":1},{"$f":"'CHVA Tool - Data Entry'!D60","v":3},{"$f":"'CHVA Tool - Data Entry'!E60","v":1},{"$f":"'CHVA Tool - Data Entry'!F60","v":2},{"$f":"'CHVA Tool - Data Entry'!G60","v":2},{"$f":"'CHVA Tool - Data Entry'!H60","v":2},{"$f":"'CHVA Tool - Data Entry'!I60","v":1},{"$f":"'CHVA Tool - Data Entry'!J60","v":3},{"$f":"'CHVA Tool - Data Entry'!K60","v":2},{"$f":"'CHVA Tool - Data Entry'!L60","v":3},{"$f":"'CHVA Tool - Data Entry'!M60","v":1},{"$f":"'CHVA Tool - Data Entry'!N60","v":1},{"$f":"'CHVA Tool - Data Entry'!O60","v":0.42105263157894735},{"$f":"'CHVA Tool - Data Entry'!P60","v":0.21052631578947367},{"$f":"'CHVA Tool - Data Entry'!Q60","v":63}]
[{"$f":"'CHVA Tool - Data Entry'!A61","v":"Violence in the ED"},{"$f":"'CHVA Tool - Data Entry'!B61","v":2},{"$f":"'CHVA Tool - Data Entry'!C61","v":1},{"$f":"'CHVA Tool - Data Entry'!D61","v":3},{"$f":"'CHVA Tool - Data Entry'!E61","v":1},{"$f":"'CHVA Tool - Data Entry'!F61","v":2},{"$f":"'CHVA Tool - Data Entry'!G61","v":2},{"$f":"'CHVA Tool - Data Entry'!H61","v":2},{"$f":"'CHVA Tool - Data Entry'!I61","v":1},{"$f":"'CHVA Tool - Data Entry'!J61","v":3},{"$f":"'CHVA Tool - Data Entry'!K61","v":2},{"$f":"'CHVA Tool - Data Entry'!L61","v":3},{"$f":"'CHVA Tool - Data Entry'!M61","v":1},{"$f":"'CHVA Tool - Data Entry'!N61","v":1},{"$f":"'CHVA Tool - Data Entry'!O61","v":0.42105263157894735},{"$f":"'CHVA Tool - Data Entry'!P61","v":0.21052631578947367},{"$f":"'CHVA Tool - Data Entry'!Q61","v":63}]
[{"$f":"'CHVA Tool - Data Entry'!A62","v":"VIP Situation"},{"$f":"'CHVA Tool - Data Entry'!B62","v":2},{"$f":"'CHVA Tool - Data Entry'!C62","v":1},{"$f":"'CHVA Tool - Data Entry'!D62","v":3},{"$f":"'CHVA Tool - Data Entry'!E62","v":1},{"$f":"'CHVA Tool - Data Entry'!F62","v":2},{"$f":"'CHVA Tool - Data Entry'!G62","v":2},{"$f":"'CHVA Tool - Data Entry'!H62","v":2},{"$f":"'CHVA Tool - Data Entry'!I62","v":1},{"$f":"'CHVA Tool - Data Entry'!J62","v":3},{"$f":"'CHVA Tool - Data Entry'!K62","v":2},{"$f":"'CHVA Tool - Data Entry'!L62","v":3},{"$f":"'CHVA Tool - Data Entry'!M62","v":1},{"$f":"'CHVA Tool - Data Entry'!N62","v":1},{"$f":"'CHVA Tool - Data Entry'!O62","v":0.42105263157894735},{"$f":"'CHVA Tool - Data Entry'!P62","v":0.21052631578947367},{"$f":"'CHVA Tool - Data Entry'!Q62","v":63}]
[{"$f":"'CHVA Tool - Data Entry'!A63","v":"Workplace Violence"},{"$f":"'CHVA Tool - Data Entry'!B63","v":2},{"$f":"'CHVA Tool - Data Entry'!C63","v":1},{"$f":"'CHVA Tool - Data Entry'!D63","v":3},{"$f":"'CHVA Tool - Data Entry'!E63","v":1},{"$f":"'CHVA Tool - Data Entry'!F63","v":2},{"$f":"'CHVA Tool - Data Entry'!G63","v":2},{"$f":"'CHVA Tool - Data Entry'!H63","v":2},{"$f":"'CHVA Tool - Data Entry'!I63","v":1},{"$f":"'CHVA Tool - Data Entry'!J63","v":3},{"$f":"'CHVA Tool - Data Entry'!K63","v":2},{"$f":"'CHVA Tool - Data Entry'!L63","v":3},{"$f":"'CHVA Tool - Data Entry'!M63","v":1},{"$f":"'CHVA Tool - Data Entry'!N63","v":1},{"$f":"'CHVA Tool - Data Entry'!O63","v":0.42105263157894735},{"$f":"'CHVA Tool - Data Entry'!P63","v":0.21052631578947367},{"$f":"'CHVA Tool - Data Entry'!Q63","v":63}]
[{"$f":"'CHVA Tool - Data Entry'!A64","v":0},{"$f":"'CHVA Tool - Data Entry'!B64","v":0},{"$f":"'CHVA Tool - Data Entry'!C64","v":0},{"$f":"'CHVA Tool - Data Entry'!D64","v":0},{"$f":"'CHVA Tool - Data Entry'!E64","v":0},{"$f":"'CHVA Tool - Data Entry'!F64","v":0},{"$f":"'CHVA Tool - Data Entry'!G64","v":0},{"$f":"'CHVA Tool - Data Entry'!H64","v":0},{"$f":"'CHVA Tool - Data Entry'!I64","v":0},{"$f":"'CHVA Tool - Data Entry'!J64","v":0},{"$f":"'CHVA Tool - Data Entry'!K64","v":0},{"$f":"'CHVA Tool - Data Entry'!L64","v":0},{"$f":"'CHVA Tool - Data Entry'!M64","v":0},{"$f":"'CHVA Tool - Data Entry'!N64","v":0},{"$f":"'CHVA Tool - Data Entry'!O64","v":0},{"$f":"'CHVA Tool - Data Entry'!P64","v":0},{"$f":"'CHVA Tool - Data Entry'!Q64","v":0}]
[{"$f":"'CHVA Tool - Data Entry'!A65","v":0},{"$f":"'CHVA Tool - Data Entry'!B65","v":0},{"$f":"'CHVA Tool - Data Entry'!C65","v":0},{"$f":"'CHVA Tool - Data Entry'!D65","v":0},{"$f":"'CHVA Tool - Data Entry'!E65","v":0},{"$f":"'CHVA Tool - Data Entry'!F65","v":0},{"$f":"'CHVA Tool - Data Entry'!G65","v":0},{"$f":"'CHVA Tool - Data Entry'!H65","v":0},{"$f":"'CHVA Tool - Data Entry'!I65","v":0},{"$f":"'CHVA Tool - Data Entry'!J65","v":0},{"$f":"'CHVA Tool - Data Entry'!K65","v":0},{"$f":"'CHVA Tool - Data Entry'!L65","v":0},{"$f":"'CHVA Tool - Data Entry'!M65","v":0},{"$f":"'CHVA Tool - Data Entry'!N65","v":0},{"$f":"'CHVA Tool - Data Entry'!O65","v":0},{"$f":"'CHVA Tool - Data Entry'!P65","v":0},{"$f":"'CHVA Tool - Data Entry'!Q65","v":0}]
[{"$f":"'CHVA Tool - Data Entry'!A66","v":"Average: "},{"$f":"'CHVA Tool - Data Entry'!B66","v":2.1538461538461537},{"$f":"'CHVA Tool - Data Entry'!C66","v":1.4615384615384615},{"$f":"'CHVA Tool - Data Entry'!D66","v":3},{"$f":"'CHVA Tool - Data Entry'!E66","v":1},{"$f":"'CHVA Tool - Data Entry'!F66","v":2},{"$f":"'CHVA Tool - Data Entry'!G66","v":2},{"$f":"'CHVA Tool - Data Entry'!H66","v":2.0769230769230771},{"$f":"'CHVA Tool - Data Entry'!I66","v":1},{"$f":"'CHVA Tool - Data Entry'!J66","v":3},{"$f":"'CHVA Tool - Data Entry'!K66","v":2},{"$f":"'CHVA Tool - Data Entry'!L66","v":3},{"$f":"'CHVA Tool - Data Entry'!M66","v":1},{"$f":"'CHVA Tool - Data Entry'!N66","v":1},{"$f":"'CHVA Tool - Data Entry'!O66","v":0},{"$f":"'CHVA Tool - Data Entry'!P66","v":0},{"$f":"'CHVA Tool - Data Entry'!Q66","v":0}]
[{"$f":"'CHVA Tool - Data Entry'!A67","v":"Hazardous Materials Events"},{"$f":"'CHVA Tool - Data Entry'!B67","v":0},{"$f":"'CHVA Tool - Data Entry'!C67","v":0},{"$f":"'CHVA Tool - Data Entry'!D67","v":0},{"$f":"'CHVA Tool - Data Entry'!E67","v":0},{"$f":"'CHVA Tool - Data Entry'!F67","v":0},{"$f":"'CHVA Tool - Data Entry'!G67","v":0},{"$f":"'CHVA Tool - Data Entry'!H67","v":0},{"$f":"'CHVA Tool - Data Entry'!I67","v":0},{"$f":"'CHVA Tool - Data Entry'!J67","v":0},{"$f":"'CHVA Tool - Data Entry'!K67","v":0},{"$f":"'CHVA Tool - Data Entry'!L67","v":0},{"$f":"'CHVA Tool - Data Entry'!M67","v":0},{"$f":"'CHVA Tool - Data Entry'!N67","v":0},{"$f":"'CHVA Tool - Data Entry'!O67","v":0},{"$f":"'CHVA Tool - Data Entry'!P67","v":0},{"$f":"'CHVA Tool - Data Entry'!Q67","v":0}]
[{"$f":"'CHVA Tool - Data Entry'!A68","v":"Decontamination"},{"$f":"'CHVA Tool - Data Entry'!B68","v":3},{"$f":"'CHVA Tool - Data Entry'!C68","v":3},{"$f":"'CHVA Tool - Data Entry'!D68","v":2},{"$f":"'CHVA Tool - Data Entry'!E68","v":3},{"$f":"'CHVA Tool - Data Entry'!F68","v":1},{"$f":"'CHVA Tool - Data Entry'!G68","v":2},{"$f":"'CHVA Tool - Data Entry'!H68","v":2},{"$f":"'CHVA Tool - Data Entry'!I68","v":1},{"$f":"'CHVA Tool - Data Entry'!J68","v":1},{"$f":"'CHVA Tool - Data Entry'!K68","v":2},{"$f":"'CHVA Tool - Data Entry'!L68","v":2},{"$f":"'CHVA Tool - Data Entry'!M68","v":3},{"$f":"'CHVA Tool - Data Entry'!N68","v":3},{"$f":"'CHVA Tool - Data Entry'!O68","v":0.66666666666666663},{"$f":"'CHVA Tool - Data Entry'!P68","v":0.66666666666666663},{"$f":"'CHVA Tool - Data Entry'!Q68","v":132}]
[{"$f":"'CHVA Tool - Data Entry'!A69","v":"HAZMAT Spill (Internal)"},{"$f":"'CHVA Tool - Data Entry'!B69","v":3},{"$f":"'CHVA Tool - Data Entry'!C69","v":3},{"$f":"'CHVA Tool - Data Entry'!D69","v":2},{"$f":"'CHVA Tool - Data Entry'!E69","v":3},{"$f":"'CHVA Tool - Data Entry'!F69","v":1},{"$f":"'CHVA Tool - Data Entry'!G69","v":2},{"$f":"'CHVA Tool - Data Entry'!H69","v":2},{"$f":"'CHVA Tool - Data Entry'!I69","v":1},{"$f":"'CHVA Tool - Data Entry'!J69","v":1},{"$f":"'CHVA Tool - Data Entry'!K69","v":2},{"$f":"'CHVA Tool - Data Entry'!L69","v":2},{"$f":"'CHVA Tool - Data Entry'!M69","v":3},{"$f":"'CHVA Tool - Data Entry'!N69","v":3},{"$f":"'CHVA Tool - Data Entry'!O69","v":0.66666666666666663},{"$f":"'CHVA Tool - Data Entry'!P69","v":0.66666666666666663},{"$f":"'CHVA Tool - Data Entry'!Q69","v":132}]
[{"$f":"'CHVA Tool - Data Entry'!A70","v":"HAZMAT Spill (External)"},{"$f":"'CHVA Tool - Data Entry'!B70","v":2},{"$f":"'CHVA Tool - Data Entry'!C70","v":1},{"$f":"'CHVA Tool - Data Entry'!D70","v":2},{"$f":"'CHVA Tool - Data Entry'!E70","v":3},{"$f":"'CHVA Tool - Data Entry'!F70","v":1},{"$f":"'CHVA Tool - Data Entry'!G70","v":2},{"$f":"'CHVA Tool - Data Entry'!H70","v":2},{"$f":"'CHVA Tool - Data Entry'!I70","v":1},{"$f":"'CHVA Tool - Data Entry'!J70","v":1},{"$f":"'CHVA Tool - Data Entry'!K70","v":2},{"$f":"'CHVA Tool - Data Entry'!L70","v":2},{"$f":"'CHVA Tool - Data Entry'!M70","v":3},{"$f":"'CHVA Tool - Data Entry'!N70","v":3},{"$f":"'CHVA Tool - Data Entry'!O70","v":0.44444444444444442},{"$f":"'CHVA Tool - Data Entry'!P70","v":0.22222222222222221},{"$f":"'CHVA Tool - Data Entry'!Q70","v":66}]
[{"$f":"'CHVA Tool - Data Entry'!A71","v":"Indoor Air Quality Issues"},{"$f":"'CHVA Tool - Data Entry'!B71","v":2},{"$f":"'CHVA Tool - Data Entry'!C71","v":1},{"$f":"'CHVA Tool - Data Entry'!D71","v":2},{"$f":"'CHVA Tool - Data Entry'!E71","v":3},{"$f":"'CHVA Tool - Data Entry'!F71","v":1},{"$f":"'CHVA Tool - Data Entry'!G71","v":2},{"$f":"'CHVA Tool - Data Entry'!H71","v":2},{"$f":"'CHVA Tool - Data Entry'!I71","v":1},{"$f":"'CHVA Tool - Data Entry'!J71","v":1},{"$f":"'CHVA Tool - Data Entry'!K71","v":2},{"$f":"'CHVA Tool - Data Entry'!L71","v":2},{"$f":"'CHVA Tool - Data Entry'!M71","v":3},{"$f":"'CHVA Tool - Data Entry'!N71","v":3},{"$f":"'CHVA Tool - Data Entry'!O71","v":0.44444444444444442},{"$f":"'CHVA Tool - Data Entry'!P71","v":0.22222222222222221},{"$f":"'CHVA Tool - Data Entry'!Q71","v":66}]
[{"$f":"'CHVA Tool - Data Entry'!A72","v":"Large Internal Spill"},{"$f":"'CHVA Tool - Data Entry'!B72","v":2},{"$f":"'CHVA Tool - Data Entry'!C72","v":1},{"$f":"'CHVA Tool - Data Entry'!D72","v":2},{"$f":"'CHVA Tool - Data Entry'!E72","v":3},{"$f":"'CHVA Tool - Data Entry'!F72","v":1},{"$f":"'CHVA Tool - Data Entry'!G72","v":2},{"$f":"'CHVA Tool - Data Entry'!H72","v":2},{"$f":"'CHVA Tool - Data Entry'!I72","v":1},{"$f":"'CHVA Tool - Data Entry'!J72","v":1},{"$f":"'CHVA Tool - Data Entry'!K72","v":2},{"$f":"'CHVA Tool - Data Entry'!L72","v":2},{"$f":"'CHVA Tool - Data Entry'!M72","v":3},{"$f":"'CHVA Tool - Data Entry'!N72","v":3},{"$f":"'CHVA Tool - Data Entry'!O72","v":0.44444444444444442},{"$f":"'CHVA Tool - Data Entry'!P72","v":0.22222222222222221},{"$f":"'CHVA Tool - Data Entry'!Q72","v":66}]
[{"$f":"'CHVA Tool - Data Entry'!A73","v":"Radiologic Exposure (Internal) "},{"$f":"'CHVA Tool - Data Entry'!B73","v":2},{"$f":"'CHVA Tool - Data Entry'!C73","v":1},{"$f":"'CHVA Tool - Data Entry'!D73","v":2},{"$f":"'CHVA Tool - Data Entry'!E73","v":3},{"$f":"'CHVA Tool - Data Entry'!F73","v":1},{"$f":"'CHVA Tool - Data Entry'!G73","v":2},{"$f":"'CHVA Tool - Data Entry'!H73","v":2},{"$f":"'CHVA Tool - Data Entry'!I73","v":1},{"$f":"'CHVA Tool - Data Entry'!J73","v":1},{"$f":"'CHVA Tool - Data Entry'!K73","v":2},{"$f":"'CHVA Tool - Data Entry'!L73","v":2},{"$f":"'CHVA Tool - Data Entry'!M73","v":3},{"$f":"'CHVA Tool - Data Entry'!N73","v":3},{"$f":"'CHVA Tool - Data Entry'!O73","v":0.44444444444444442},{"$f":"'CHVA Tool - Data Entry'!P73","v":0.22222222222222221},{"$f":"'CHVA Tool - Data Entry'!Q73","v":66}]
[{"$f":"'CHVA Tool - Data Entry'!A74","v":"Radiological Incident (External)"},{"$f":"'CHVA Tool - Data Entry'!B74","v":2},{"$f":"'CHVA Tool - Data Entry'!C74","v":1},{"$f":"'CHVA Tool - Data Entry'!D74","v":2},{"$f":"'CHVA Tool - Data Entry'!E74","v":3},{"$f":"'CHVA Tool - Data Entry'!F74","v":1},{"$f":"'CHVA Tool - Data Entry'!G74","v":2},{"$f":"'CHVA Tool - Data Entry'!H74","v":2},{"$f":"'CHVA Tool - Data Entry'!I74","v":1},{"$f":"'CHVA Tool - Data Entry'!J74","v":1},{"$f":"'CHVA Tool - Data Entry'!K74","v":2},{"$f":"'CHVA Tool - Data Entry'!L74","v":2},{"$f":"'CHVA Tool - Data Entry'!M74","v":3},{"$f":"'CHVA Tool - Data Entry'!N74","v":3},{"$f":"'CHVA Tool - Data Entry'!O74","v":0.44444444444444442},{"$f":"'CHVA Tool - Data Entry'!P74","v":0.22222222222222221},{"$f":"'CHVA Tool - Data Entry'!Q74","v":66}]
[{"$f":"'CHVA Tool - Data Entry'!A75","v":"Small-Medium Sized Internal Spill"},{"$f":"'CHVA Tool - Data Entry'!B75","v":2},{"$f":"'CHVA Tool - Data Entry'!C75","v":1},{"$f":"'CHVA Tool - Data Entry'!D75","v":2},{"$f":"'CHVA Tool - Data Entry'!E75","v":3},{"$f":"'CHVA Tool - Data Entry'!F75","v":1},{"$f":"'CHVA Tool - Data Entry'!G75","v":2},{"$f":"'CHVA Tool - Data Entry'!H75","v":2},{"$f":"'CHVA Tool - Data Entry'!I75","v":1},{"$f":"'CHVA Tool - Data Entry'!J75","v":1},{"$f":"'CHVA Tool - Data Entry'!K75","v":2},{"$f":"'CHVA Tool - Data Entry'!L75","v":2},{"$f":"'CHVA Tool - Data Entry'!M75","v":3},{"$f":"'CHVA Tool - Data Entry'!N75","v":3},{"$f":"'CHVA Tool - Data Entry'!O75","v":0.44444444444444442},{"$f":"'CHVA Tool - Data Entry'!P75","v":0.22222222222222221},{"$f":"'CHVA Tool - Data Entry'!Q75","v":66}]
[{"$f":"'CHVA Tool - Data Entry'!A76","v":"Unknown Explosion"},{"$f":"'CHVA Tool - Data Entry'!B76","v":2},{"$f":"'CHVA Tool - Data Entry'!C76","v":1},{"$f":"'CHVA Tool - Data Entry'!D76","v":2},{"$f":"'CHVA Tool - Data Entry'!E76","v":3},{"$f":"'CHVA Tool - Data Entry'!F76","v":1},{"$f":"'CHVA Tool - Data Entry'!G76","v":2},{"$f":"'CHVA Tool - Data Entry'!H76","v":2},{"$f":"'CHVA Tool - Data Entry'!I76","v":1},{"$f":"'CHVA Tool - Data Entry'!J76","v":1},{"$f":"'CHVA Tool - Data Entry'!K76","v":2},{"$f":"'CHVA Tool - Data Entry'!L76","v":2},{"$f":"'CHVA Tool - Data Entry'!M76","v":3},{"$f":"'CHVA Tool - Data Entry'!N76","v":3},{"$f":"'CHVA Tool - Data Entry'!O76","v":0.44444444444444442},{"$f":"'CHVA Tool - Data Entry'!P76","v":0.22222222222222221},{"$f":"'CHVA Tool - Data Entry'!Q76","v":66}]
[{"$f":"'CHVA Tool - Data Entry'!A77","v":0},{"$f":"'CHVA Tool - Data Entry'!B77","v":0},{"$f":"'CHVA Tool - Data Entry'!C77","v":0},{"$f":"'CHVA Tool - Data Entry'!D77","v":0},{"$f":"'CHVA Tool - Data Entry'!E77","v":0},{"$f":"'CHVA Tool - Data Entry'!F77","v":0},{"$f":"'CHVA Tool - Data Entry'!G77","v":0},{"$f":"'CHVA Tool - Data Entry'!H77","v":0},{"$f":"'CHVA Tool - Data Entry'!I77","v":0},{"$f":"'CHVA Tool - Data Entry'!J77","v":0},{"$f":"'CHVA Tool - Data Entry'!K77","v":0},{"$f":"'CHVA Tool - Data Entry'!L77","v":0},{"$f":"'CHVA Tool - Data Entry'!M77","v":0},{"$f":"'CHVA Tool - Data Entry'!N77","v":0},{"$f":"'CHVA Tool - Data Entry'!O77","v":0},{"$f":"'CHVA Tool - Data Entry'!P77","v":0},{"$f":"'CHVA Tool - Data Entry'!Q77","v":0}]
[{"$f":"'CHVA Tool - Data Entry'!A78","v":0},{"$f":"'CHVA Tool - Data Entry'!B78","v":0},{"$f":"'CHVA Tool - Data Entry'!C78","v":0},{"$f":"'CHVA Tool - Data Entry'!D78","v":0},{"$f":"'CHVA Tool - Data Entry'!E78","v":0},{"$f":"'CHVA Tool - Data Entry'!F78","v":0},{"$f":"'CHVA Tool - Data Entry'!G78","v":0},{"$f":"'CHVA Tool - Data Entry'!H78","v":0},{"$f":"'CHVA Tool - Data Entry'!I78","v":0},{"$f":"'CHVA Tool - Data Entry'!J78","v":0},{"$f":"'CHVA Tool - Data Entry'!K78","v":0},{"$f":"'CHVA Tool - Data Entry'!L78","v":0},{"$f":"'CHVA Tool - Data Entry'!M78","v":0},{"$f":"'CHVA Tool - Data Entry'!N78","v":0},{"$f":"'CHVA Tool - Data Entry'!O78","v":0},{"$f":"'CHVA Tool - Data Entry'!P78","v":0},{"$f":"'CHVA Tool - Data Entry'!Q78","v":0}]
[{"$f":"'CHVA Tool - Data Entry'!A79","v":"Average: "},{"$f":"'CHVA Tool - Data Entry'!B79","v":2.2222222222222223},{"$f":"'CHVA Tool - Data Entry'!C79","v":1.4444444444444444},{"$f":"'CHVA Tool - Data Entry'!D79","v":2},{"$f":"'CHVA Tool - Data Entry'!E79","v":3},{"$f":"'CHVA Tool - Data Entry'!F79","v":1},{"$f":"'CHVA Tool - Data Entry'!G79","v":2},{"$f":"'CHVA Tool - Data Entry'!H79","v":2},{"$f":"'CHVA Tool - Data Entry'!I79","v":1},{"$f":"'CHVA Tool - Data Entry'!J79","v":1},{"$f":"'CHVA Tool - Data Entry'!K79","v":2},{"$f":"'CHVA Tool - Data Entry'!L79","v":2},{"$f":"'CHVA Tool - Data Entry'!M79","v":3},{"$f":"'CHVA Tool - Data Entry'!N79","v":3},{"$f":"'CHVA Tool - Data Entry'!O79","v":0},{"$f":"'CHVA Tool - Data Entry'!P79","v":0},{"$f":"'CHVA Tool - Data Entry'!Q79","v":0}]
[{"$f":"'CHVA Tool - Data Entry'!A80","v":"Technologic Events"},{"$f":"'CHVA Tool - Data Entry'!B80","v":0},{"$f":"'CHVA Tool - Data Entry'!C80","v":0},{"$f":"'CHVA Tool - Data Entry'!D80","v":0},{"$f":"'CHVA Tool - Data Entry'!E80","v":0},{"$f":"'CHVA Tool - Data Entry'!F80","v":0},{"$f":"'CHVA Tool - Data Entry'!G80","v":0},{"$f":"'CHVA Tool - Data Entry'!H80","v":0},{"$f":"'CHVA Tool - Data Entry'!I80","v":0},{"$f":"'CHVA Tool - Data Entry'!J80","v":0},{"$f":"'CHVA Tool - Data Entry'!K80","v":0},{"$f":"'CHVA Tool - Data Entry'!L80","v":0},{"$f":"'CHVA Tool - Data Entry'!M80","v":0},{"$f":"'CHVA Tool - Data Entry'!N80","v":0},{"$f":"'CHVA Tool - Data Entry'!O80","v":0},{"$f":"'CHVA Tool - Data Entry'!P80","v":0},{"$f":"'CHVA Tool - Data Entry'!Q80","v":0}]
[{"$f":"'CHVA Tool - Data Entry'!A81","v":"Communications Failure"},{"$f":"'CHVA Tool - Data Entry'!B81","v":3},{"$f":"'CHVA Tool - Data Entry'!C81","v":3},{"$f":"'CHVA Tool - Data Entry'!D81","v":3},{"$f":"'CHVA Tool - Data Entry'!E81","v":2},{"$f":"'CHVA Tool - Data Entry'!F81","v":2},{"$f":"'CHVA Tool - Data Entry'!G81","v":2},{"$f":"'CHVA Tool - Data Entry'!H81","v":3},{"$f":"'CHVA Tool - Data Entry'!I81","v":1},{"$f":"'CHVA Tool - Data Entry'!J81","v":2},{"$f":"'CHVA Tool - Data Entry'!K81","v":2},{"$f":"'CHVA Tool - Data Entry'!L81","v":2},{"$f":"'CHVA Tool - Data Entry'!M81","v":3},{"$f":"'CHVA Tool - Data Entry'!N81","v":3},{"$f":"'CHVA Tool - Data Entry'!O81","v":0.75438596491228072},{"$f":"'CHVA Tool - Data Entry'!P81","v":0.75438596491228072},{"$f":"'CHVA Tool - Data Entry'!Q81","v":150}]
[{"$f":"'CHVA Tool - Data Entry'!A82","v":"Infant Security Alarm Failure"},{"$f":"'CHVA Tool - Data Entry'!B82","v":3},{"$f":"'CHVA Tool - Data Entry'!C82","v":3},{"$f":"'CHVA Tool - Data Entry'!D82","v":3},{"$f":"'CHVA Tool - Data Entry'!E82","v":2},{"$f":"'CHVA Tool - Data Entry'!F82","v":2},{"$f":"'CHVA Tool - Data Entry'!G82","v":2},{"$f":"'CHVA Tool - Data Entry'!H82","v":3},{"$f":"'CHVA Tool - Data Entry'!I82","v":1},{"$f":"'CHVA Tool - Data Entry'!J82","v":2},{"$f":"'CHVA Tool - Data Entry'!K82","v":2},{"$f":"'CHVA Tool - Data Entry'!L82","v":2},{"$f":"'CHVA Tool - Data Entry'!M82","v":3},{"$f":"'CHVA Tool - Data Entry'!N82","v":3},{"$f":"'CHVA Tool - Data Entry'!O82","v":0.75438596491228072},{"$f":"'CHVA Tool - Data Entry'!P82","v":0.75438596491228072},{"$f":"'CHVA Tool - Data Entry'!Q82","v":150}]
[{"$f":"'CHVA Tool - Data Entry'!A83","v":"Information Systems Failure"},{"$f":"'CHVA Tool - Data Entry'!B83","v":2},{"$f":"'CHVA Tool - Data Entry'!C83","v":3},{"$f":"'CHVA Tool - Data Entry'!D83","v":3},{"$f":"'CHVA Tool - Data Entry'!E83","v":2},{"$f":"'CHVA Tool - Data Entry'!F83","v":2},{"$f":"'CHVA Tool - Data Entry'!G83","v":2},{"$f":"'CHVA Tool - Data Entry'!H83","v":3},{"$f":"'CHVA Tool - Data Entry'!I83","v":1},{"$f":"'CHVA Tool - Data Entry'!J83","v":2},{"$f":"'CHVA Tool - Data Entry'!K83","v":2},{"$f":"'CHVA Tool - Data Entry'!L83","v":2},{"$f":"'CHVA Tool - Data Entry'!M83","v":3},{"$f":"'CHVA Tool - Data Entry'!N83","v":3},{"$f":"'CHVA Tool - Data Entry'!O83","v":0.50292397660818711},{"$f":"'CHVA Tool - Data Entry'!P83","v":0.75438596491228072},{"$f":"'CHVA Tool - Data Entry'!Q83","v":125}]
[{"$f":"'CHVA Tool - Data Entry'!A84","v":"Magnetic Resonance Imaging (MRI) Incident"},{"$f":"'CHVA Tool - Data Entry'!B84","v":2},{"$f":"'CHVA Tool - Data Entry'!C84","v":3},{"$f":"'CHVA Tool - Data Entry'!D84","v":3},{"$f":"'CHVA Tool - Data Entry'!E84","v":2},{"$f":"'CHVA Tool - Data Entry'!F84","v":2},{"$f":"'CHVA Tool - Data Entry'!G84","v":2},{"$f":"'CHVA Tool - Data Entry'!H84","v":3},{"$f":"'CHVA Tool - Data Entry'!I84","v":1},{"$f":"'CHVA Tool - Data Entry'!J84","v":2},{"$f":"'CHVA Tool - Data Entry'!K84","v":2},{"$f":"'CHVA Tool - Data Entry'!L84","v":2},{"$f":"'CHVA Tool - Data Entry'!M84","v":3},{"$f":"'CHVA Tool - Data Entry'!N84","v":3},{"$f":"'CHVA Tool - Data Entry'!O84","v":0.50292397660818711},{"$f":"'CHVA Tool - Data Entry'!P84","v":0.75438596491228072},{"$f":"'CHVA Tool - Data Entry'!Q84","v":125}]
[{"$f":"'CHVA Tool - Data Entry'!A85","v":"Network Failure"},{"$f":"'CHVA Tool - Data Entry'!B85","v":2},{"$f":"'CHVA Tool - Data Entry'!C85","v":2},{"$f":"'CHVA Tool - Data Entry'!D85","v":3},{"$f":"'CHVA Tool - Data Entry'!E85","v":2},{"$f":"'CHVA Tool - Data Entry'!F85","v":2},{"$f":"'CHVA Tool - Data Entry'!G85","v":2},{"$f":"'CHVA Tool - Data Entry'!H85","v":3},{"$f":"'CHVA Tool - Data Entry'!I85","v":1},{"$f":"'CHVA Tool - Data Entry'!J85","v":2},{"$f":"'CHVA Tool - Data Entry'!K85","v":2},{"$f":"'CHVA Tool - Data Entry'!L85","v":2},{"$f":"'CHVA Tool - Data Entry'!M85","v":3},{"$f":"'CHVA Tool - Data Entry'!N85","v":3},{"$f":"'CHVA Tool - Data Entry'!O85","v":0.50292397660818711},{"$f":"'CHVA Tool - Data Entry'!P85","v":0.50292397660818711},{"$f":"'CHVA Tool - Data Entry'!Q85","v":100}]
[{"$f":"'CHVA Tool - Data Entry'!A86","v":"Pharmacy Medication Dispenser Failure"},{"$f":"'CHVA Tool - Data Entry'!B86","v":2},{"$f":"'CHVA Tool - Data Entry'!C86","v":2},{"$f":"'CHVA Tool - Data Entry'!D86","v":3},{"$f":"'CHVA Tool - Data Entry'!E86","v":2},{"$f":"'CHVA Tool - Data Entry'!F86","v":2},{"$f":"'CHVA Tool - Data Entry'!G86","v":2},{"$f":"'CHVA Tool - Data Entry'!H86","v":3},{"$f":"'CHVA Tool - Data Entry'!I86","v":1},{"$f":"'CHVA Tool - Data Entry'!J86","v":2},{"$f":"'CHVA Tool - Data Entry'!K86","v":2},{"$f":"'CHVA Tool - Data Entry'!L86","v":2},{"$f":"'CHVA Tool - Data Entry'!M86","v":3},{"$f":"'CHVA Tool - Data Entry'!N86","v":3},{"$f":"'CHVA Tool - Data Entry'!O86","v":0.50292397660818711},{"$f":"'CHVA Tool - Data Entry'!P86","v":0.50292397660818711},{"$f":"'CHVA Tool - Data Entry'!Q86","v":100}]
[{"$f":"'CHVA Tool - Data Entry'!A87","v":"Security Card Access Failure"},{"$f":"'CHVA Tool - Data Entry'!B87","v":2},{"$f":"'CHVA Tool - Data Entry'!C87","v":2},{"$f":"'CHVA Tool - Data Entry'!D87","v":3},{"$f":"'CHVA Tool - Data Entry'!E87","v":2},{"$f":"'CHVA Tool - Data Entry'!F87","v":2},{"$f":"'CHVA Tool - Data Entry'!G87","v":2},{"$f":"'CHVA Tool - Data Entry'!H87","v":3},{"$f":"'CHVA Tool - Data Entry'!I87","v":1},{"$f":"'CHVA Tool - Data Entry'!J87","v":2},{"$f":"'CHVA Tool - Data Entry'!K87","v":2},{"$f":"'CHVA Tool - Data Entry'!L87","v":2},{"$f":"'CHVA Tool - Data Entry'!M87","v":3},{"$f":"'CHVA Tool - Data Entry'!N87","v":3},{"$f":"'CHVA Tool - Data Entry'!O87","v":0.50292397660818711},{"$f":"'CHVA Tool - Data Entry'!P87","v":0.50292397660818711},{"$f":"'CHVA Tool - Data Entry'!Q87","v":100}]
[{"$f":"'CHVA Tool - Data Entry'!A88","v":"Security Video Surveillance"},{"$f":"'CHVA Tool - Data Entry'!B88","v":2},{"$f":"'CHVA Tool - Data Entry'!C88","v":2},{"$f":"'CHVA Tool - Data Entry'!D88","v":3},{"$f":"'CHVA Tool - Data Entry'!E88","v":2},{"$f":"'CHVA Tool - Data Entry'!F88","v":2},{"$f":"'CHVA Tool - Data Entry'!G88","v":2},{"$f":"'CHVA Tool - Data Entry'!H88","v":3},{"$f":"'CHVA Tool - Data Entry'!I88","v":1},{"$f":"'CHVA Tool - Data Entry'!J88","v":2},{"$f":"'CHVA Tool - Data Entry'!K88","v":2},{"$f":"'CHVA Tool - Data Entry'!L88","v":2},{"$f":"'CHVA Tool - Data Entry'!M88","v":3},{"$f":"'CHVA Tool - Data Entry'!N88","v":3},{"$f":"'CHVA Tool - Data Entry'!O88","v":0.50292397660818711},{"$f":"'CHVA Tool - Data Entry'!P88","v":0.50292397660818711},{"$f":"'CHVA Tool - Data Entry'!Q88","v":100}]
[{"$f":"'CHVA Tool - Data Entry'!A89","v":0},{"$f":"'CHVA Tool - Data Entry'!B89","v":0},{"$f":"'CHVA Tool - Data Entry'!C89","v":0},{"$f":"'CHVA Tool - Data Entry'!D89","v":0},{"$f":"'CHVA Tool - Data Entry'!E89","v":0},{"$f":"'CHVA Tool - Data Entry'!F89","v":0},{"$f":"'CHVA Tool - Data Entry'!G89","v":0},{"$f":"'CHVA Tool - Data Entry'!H89","v":0},{"$f":"'CHVA Tool - Data Entry'!I89","v":0},{"$f":"'CHVA Tool - Data Entry'!J89","v":0},{"$f":"'CHVA Tool - Data Entry'!K89","v":0},{"$f":"'CHVA Tool - Data Entry'!L89","v":0},{"$f":"'CHVA Tool - Data Entry'!M89","v":0},{"$f":"'CHVA Tool - Data Entry'!N89","v":0},{"$f":"'CHVA Tool - Data Entry'!O89","v":0},{"$f":"'CHVA Tool - Data Entry'!P89","v":0},{"$f":"'CHVA Tool - Data Entry'!Q89","v":0}]
[{"$f":"'CHVA Tool - Data Entry'!A90","v":0},{"$f":"'CHVA Tool - Data Entry'!B90","v":0},{"$f":"'CHVA Tool - Data Entry'!C90","v":0},{"$f":"'CHVA Tool - Data Entry'!D90","v":0},{"$f":"'CHVA Tool - Data Entry'!E90","v":0},{"$f":"'CHVA Tool - Data Entry'!F90","v":0},{"$f":"'CHVA Tool - Data Entry'!G90","v":0},{"$f":"'CHVA Tool - Data Entry'!H90","v":0},{"$f":"'CHVA Tool - Data Entry'!I90","v":0},{"$f":"'CHVA Tool - Data Entry'!J90","v":0},{"$f":"'CHVA Tool - Data Entry'!K90","v":0},{"$f":"'CHVA Tool - Data Entry'!L90","v":0},{"$f":"'CHVA Tool - Data Entry'!M90","v":0},{"$f":"'CHVA Tool - Data Entry'!N90","v":0},{"$f":"'CHVA Tool - Data Entry'!O90","v":0},{"$f":"'CHVA Tool - Data Entry'!P90","v":0},{"$f":"'CHVA Tool - Data Entry'!Q90","v":0}]
[{"$f":"'CHVA Tool - Data Entry'!A91","v":"Average: "},{"$f":"'CHVA Tool - Data Entry'!B91","v":2.25},{"$f":"'CHVA Tool - Data Entry'!C91","v":2.5},{"$f":"'CHVA Tool - Data Entry'!D91","v":3},{"$f":"'CHVA Tool - Data Entry'!E91","v":2},{"$f":"'CHVA Tool - Data Entry'!F91","v":2},{"$f":"'CHVA Tool - Data Entry'!G91","v":2},{"$f":"'CHVA Tool - Data Entry'!H91","v":3},{"$f":"'CHVA Tool - Data Entry'!I91","v":1},{"$f":"'CHVA Tool - Data Entry'!J91","v":2},{"$f":"'CHVA Tool - Data Entry'!K91","v":2},{"$f":"'CHVA Tool - Data Entry'!L91","v":2},{"$f":"'CHVA Tool - Data Entry'!M91","v":3},{"$f":"'CHVA Tool - Data Entry'!N91","v":3},{"$f":"'CHVA Tool - Data Entry'!O91","v":0},{"$f":"'CHVA Tool - Data Entry'!P91","v":0},{"$f":"'CHVA Tool - Data Entry'!Q91","v":0}]
[{"$f":"'CHVA Tool - Data Entry'!A92","v":"Utility Events"},{"$f":"'CHVA Tool - Data Entry'!B92","v":0},{"$f":"'CHVA Tool - Data Entry'!C92","v":0},{"$f":"'CHVA Tool - Data Entry'!D92","v":0},{"$f":"'CHVA Tool - Data Entry'!E92","v":0},{"$f":"'CHVA Tool - Data Entry'!F92","v":0},{"$f":"'CHVA Tool - Data Entry'!G92","v":0},{"$f":"'CHVA Tool - Data Entry'!H92","v":0},{"$f":"'CHVA Tool - Data Entry'!I92","v":0},{"$f":"'CHVA Tool - Data Entry'!J92","v":0},{"$f":"'CHVA Tool - Data Entry'!K92","v":0},{"$f":"'CHVA Tool - Data Entry'!L92","v":0},{"$f":"'CHVA Tool - Data Entry'!M92","v":0},{"$f":"'CHVA Tool - Data Entry'!N92","v":0},{"$f":"'CHVA Tool - Data Entry'!O92","v":0},{"$f":"'CHVA Tool - Data Entry'!P92","v":0},{"$f":"'CHVA Tool - Data Entry'!Q92","v":0}]
[{"$f":"'CHVA Tool - Data Entry'!A93","v":"Broken Water Main (Internal)"},{"$f":"'CHVA Tool - Data Entry'!B93","v":3},{"$f":"'CHVA Tool - Data Entry'!C93","v":3},{"$f":"'CHVA Tool - Data Entry'!D93","v":2},{"$f":"'CHVA Tool - Data Entry'!E93","v":3},{"$f":"'CHVA Tool - Data Entry'!F93","v":1},{"$f":"'CHVA Tool - Data Entry'!G93","v":1},{"$f":"'CHVA Tool - Data Entry'!H93","v":2},{"$f":"'CHVA Tool - Data Entry'!I93","v":1},{"$f":"'CHVA Tool - Data Entry'!J93","v":2},{"$f":"'CHVA Tool - Data Entry'!K93","v":3},{"$f":"'CHVA Tool - Data Entry'!L93","v":1},{"$f":"'CHVA Tool - Data Entry'!M93","v":2},{"$f":"'CHVA Tool - Data Entry'!N93","v":2},{"$f":"'CHVA Tool - Data Entry'!O93","v":0.59649122807017541},{"$f":"'CHVA Tool - Data Entry'!P93","v":0.59649122807017541},{"$f":"'CHVA Tool - Data Entry'!Q93","v":120}]
[{"$f":"'CHVA Tool - Data Entry'!A94","v":"Broken Water Main (External)"},{"$f":"'CHVA Tool - Data Entry'!B94","v":3},{"$f":"'CHVA Tool - Data Entry'!C94","v":3},{"$f":"'CHVA Tool - Data Entry'!D94","v":2},{"$f":"'CHVA Tool - Data Entry'!E94","v":3},{"$f":"'CHVA Tool - Data Entry'!F94","v":1},{"$f":"'CHVA Tool - Data Entry'!G94","v":1},{"$f":"'CHVA Tool - Data Entry'!H94","v":2},{"$f":"'CHVA Tool - Data Entry'!I94","v":1},{"$f":"'CHVA Tool - Data Entry'!J94","v":2},{"$f":"'CHVA Tool - Data Entry'!K94","v":3},{"$f":"'CHVA Tool - Data Entry'!L94","v":1},{"$f":"'CHVA Tool - Data Entry'!M94","v":2},{"$f":"'CHVA Tool - Data Entry'!N94","v":2},{"$f":"'CHVA Tool - Data Entry'!O94","v":0.59649122807017541},{"$f":"'CHVA Tool - Data Entry'!P94","v":0.59649122807017541},{"$f":"'CHVA Tool - Data Entry'!Q94","v":120}]
[{"$f":"'CHVA Tool - Data Entry'!A95","v":"Compressed Gas Cylinder Leak/Failure"},{"$f":"'CHVA Tool - Data Entry'!B95","v":2},{"$f":"'CHVA Tool - Data Entry'!C95","v":3},{"$f":"'CHVA Tool - Data Entry'!D95","v":2},{"$f":"'CHVA Tool - Data Entry'!E95","v":3},{"$f":"'CHVA Tool - Data Entry'!F95","v":1},{"$f":"'CHVA Tool - Data Entry'!G95","v":1},{"$f":"'CHVA Tool - Data Entry'!H95","v":2},{"$f":"'CHVA Tool - Data Entry'!I95","v":1},{"$f":"'CHVA Tool - Data Entry'!J95","v":2},{"$f":"'CHVA Tool - Data Entry'!K95","v":3},{"$f":"'CHVA Tool - Data Entry'!L95","v":1},{"$f":"'CHVA Tool - Data Entry'!M95","v":2},{"$f":"'CHVA Tool - Data Entry'!N95","v":2},{"$f":"'CHVA Tool - Data Entry'!O95","v":0.39766081871345027},{"$f":"'CHVA Tool - Data Entry'!P95","v":0.59649122807017541},{"$f":"'CHVA Tool - Data Entry'!Q95","v":100}]
[{"$f":"'CHVA Tool - Data Entry'!A96","v":"Electrical Failure"},{"$f":"'CHVA Tool - Data Entry'!B96","v":2},{"$f":"'CHVA Tool - Data Entry'!C96","v":3},{"$f":"'CHVA Tool - Data Entry'!D96","v":2},{"$f":"'CHVA Tool - Data Entry'!E96","v":3},{"$f":"'CHVA Tool - Data Entry'!F96","v":1},{"$f":"'CHVA Tool - Data Entry'!G96","v":1},{"$f":"'CHVA Tool - Data Entry'!H96","v":2},{"$f":"'CHVA Tool - Data Entry'!I96","v":1},{"$f":"'CHVA Tool - Data Entry'!J96","v":2},{"$f":"'CHVA Tool - Data Entry'!K96","v":3},{"$f":"'CHVA Tool - Data Entry'!L96","v":1},{"$f":"'CHVA Tool - Data Entry'!M96","v":2},{"$f":"'CHVA Tool - Data Entry'!N96","v":2},{"$f":"'CHVA Tool - Data Entry'!O96","v":0.39766081871345027},{"$f":"'CHVA Tool - Data Entry'!P96","v":0.59649122807017541},{"$f":"'CHVA Tool - Data Entry'!Q96","v":100}]
[{"$f":"'CHVA Tool - Data Entry'!A97","v":"Elevator Failure"},{"$f":"'CHVA Tool - Data Entry'!B97","v":2},{"$f":"'CHVA Tool - Data Entry'!C97","v":1},{"$f":"'CHVA Tool - Data Entry'!D97","v":2},{"$f":"'CHVA Tool - Data Entry'!E97","v":3},{"$f":"'CHVA Tool - Data Entry'!F97","v":1},{"$f":"'CHVA Tool - Data Entry'!G97","v":1},{"$f":"'CHVA Tool - Data Entry'!H97","v":2},{"$f":"'CHVA Tool - Data Entry'!I97","v":1},{"$f":"'CHVA Tool - Data Entry'!J97","v":2},{"$f":"'CHVA Tool - Data Entry'!K97","v":3},{"$f":"'CHVA Tool - Data Entry'!L97","v":1},{"$f":"'CHVA Tool - Data Entry'!M97","v":2},{"$f":"'CHVA Tool - Data Entry'!N97","v":2},{"$f":"'CHVA Tool - Data Entry'!O97","v":0.39766081871345027},{"$f":"'CHVA Tool - Data Entry'!P97","v":0.19883040935672514},{"$f":"'CHVA Tool - Data Entry'!Q97","v":60}]
[{"$f":"'CHVA Tool - Data Entry'!A98","v":"Fire (Internal)"},{"$f":"'CHVA Tool - Data Entry'!B98","v":2},{"$f":"'CHVA Tool - Data Entry'!C98","v":1},{"$f":"'CHVA Tool - Data Entry'!D98","v":2},{"$f":"'CHVA Tool - Data Entry'!E98","v":3},{"$f":"'CHVA Tool - Data Entry'!F98","v":1},{"$f":"'CHVA Tool - Data Entry'!G98","v":1},{"$f":"'CHVA Tool - Data Entry'!H98","v":2},{"$f":"'CHVA Tool - Data Entry'!I98","v":1},{"$f":"'CHVA Tool - Data Entry'!J98","v":2},{"$f":"'CHVA Tool - Data Entry'!K98","v":3},{"$f":"'CHVA Tool - Data Entry'!L98","v":1},{"$f":"'CHVA Tool - Data Entry'!M98","v":2},{"$f":"'CHVA Tool - Data Entry'!N98","v":2},{"$f":"'CHVA Tool - Data Entry'!O98","v":0.39766081871345027},{"$f":"'CHVA Tool - Data Entry'!P98","v":0.19883040935672514},{"$f":"'CHVA Tool - Data Entry'!Q98","v":60}]
[{"$f":"'CHVA Tool - Data Entry'!A99","v":"Fire Detection/Alarm Failure"},{"$f":"'CHVA Tool - Data Entry'!B99","v":2},{"$f":"'CHVA Tool - Data Entry'!C99","v":1},{"$f":"'CHVA Tool - Data Entry'!D99","v":2},{"$f":"'CHVA Tool - Data Entry'!E99","v":3},{"$f":"'CHVA Tool - Data Entry'!F99","v":1},{"$f":"'CHVA Tool - Data Entry'!G99","v":1},{"$f":"'CHVA Tool - Data Entry'!H99","v":2},{"$f":"'CHVA Tool - Data Entry'!I99","v":1},{"$f":"'CHVA Tool - Data Entry'!J99","v":2},{"$f":"'CHVA Tool - Data Entry'!K99","v":3},{"$f":"'CHVA Tool - Data Entry'!L99","v":1},{"$f":"'CHVA Tool - Data Entry'!M99","v":2},{"$f":"'CHVA Tool - Data Entry'!N99","v":2},{"$f":"'CHVA Tool - Data Entry'!O99","v":0.39766081871345027},{"$f":"'CHVA Tool - Data Entry'!P99","v":0.19883040935672514},{"$f":"'CHVA Tool - Data Entry'!Q99","v":60}]
[{"$f":"'CHVA Tool - Data Entry'!A100","v":"Fire Suppression Failure"},{"$f":"'CHVA Tool - Data Entry'!B100","v":2},{"$f":"'CHVA Tool - Data Entry'!C100","v":1},{"$f":"'CHVA Tool - Data Entry'!D100","v":2},{"$f":"'CHVA Tool - Data Entry'!E100","v":3},{"$f":"'CHVA Tool - Data Entry'!F100","v":1},{"$f":"'CHVA Tool - Data Entry'!G100","v":1},{"$f":"'CHVA Tool - Data Entry'!H100","v":2},{"$f":"'CHVA Tool - Data Entry'!I100","v":1},{"$f":"'CHVA Tool - Data Entry'!J100","v":2},{"$f":"'CHVA Tool - Data Entry'!K100","v":3},{"$f":"'CHVA Tool - Data Entry'!L100","v":1},{"$f":"'CHVA Tool - Data Entry'!M100","v":2},{"$f":"'CHVA Tool - Data Entry'!N100","v":2},{"$f":"'CHVA Tool - Data Entry'!O100","v":0.39766081871345027},{"$f":"'CHVA Tool - Data Entry'!P100","v":0.19883040935672514},{"$f":"'CHVA Tool - Data Entry'!Q100","v":60}]
[{"$f":"'CHVA Tool - Data Entry'!A101","v":"Flood (Internal)"},{"$f":"'CHVA Tool - Data Entry'!B101","v":2},{"$f":"'CHVA Tool - Data Entry'!C101","v":1},{"$f":"'CHVA Tool - Data Entry'!D101","v":2},{"$f":"'CHVA Tool - Data Entry'!E101","v":3},{"$f":"'CHVA Tool - Data Entry'!F101","v":1},{"$f":"'CHVA Tool - Data Entry'!G101","v":1},{"$f":"'CHVA Tool - Data Entry'!H101","v":2},{"$f":"'CHVA Tool - Data Entry'!I101","v":1},{"$f":"'CHVA Tool - Data Entry'!J101","v":2},{"$f":"'CHVA Tool - Data Entry'!K101","v":3},{"$f":"'CHVA Tool - Data Entry'!L101","v":1},{"$f":"'CHVA Tool - Data Entry'!M101","v":2},{"$f":"'CHVA Tool - Data Entry'!N101","v":2},{"$f":"'CHVA Tool - Data Entry'!O101","v":0.39766081871345027},{"$f":"'CHVA Tool - Data Entry'!P101","v":0.19883040935672514},{"$f":"'CHVA Tool - Data Entry'!Q101","v":60}]
[{"$f":"'CHVA Tool - Data Entry'!A102","v":"Fuel Shortage"},{"$f":"'CHVA Tool - Data Entry'!B102","v":2},{"$f":"'CHVA Tool - Data Entry'!C102","v":1},{"$f":"'CHVA Tool - Data Entry'!D102","v":2},{"$f":"'CHVA Tool - Data Entry'!E102","v":3},{"$f":"'CHVA Tool - Data Entry'!F102","v":1},{"$f":"'CHVA Tool - Data Entry'!G102","v":1},{"$f":"'CHVA Tool - Data Entry'!H102","v":2},{"$f":"'CHVA Tool - Data Entry'!I102","v":1},{"$f":"'CHVA Tool - Data Entry'!J102","v":2},{"$f":"'CHVA Tool - Data Entry'!K102","v":3},{"$f":"'CHVA Tool - Data Entry'!L102","v":1},{"$f":"'CHVA Tool - Data Entry'!M102","v":2},{"$f":"'CHVA Tool - Data Entry'!N102","v":2},{"$f":"'CHVA Tool - Data Entry'!O102","v":0.39766081871345027},{"$f":"'CHVA Tool - Data Entry'!P102","v":0.19883040935672514},{"$f":"'CHVA Tool - Data Entry'!Q102","v":60}]
[{"$f":"'CHVA Tool - Data Entry'!A103","v":"Generator Failure"},{"$f":"'CHVA Tool - Data Entry'!B103","v":2},{"$f":"'CHVA Tool - Data Entry'!C103","v":1},{"$f":"'CHVA Tool - Data Entry'!D103","v":2},{"$f":"'CHVA Tool - Data Entry'!E103","v":3},{"$f":"'CHVA Tool - Data Entry'!F103","v":1},{"$f":"'CHVA Tool - Data Entry'!G103","v":1},{"$f":"'CHVA Tool - Data Entry'!H103","v":2},{"$f":"'CHVA Tool - Data Entry'!I103","v":1},{"$f":"'CHVA Tool - Data Entry'!J103","v":2},{"$f":"'CHVA Tool - Data Entry'!K103","v":3},{"$f":"'CHVA Tool - Data Entry'!L103","v":1},{"$f":"'CHVA Tool - Data Entry'!M103","v":2},{"$f":"'CHVA Tool - Data Entry'!N103","v":2},{"$f":"'CHVA Tool - Data Entry'!O103","v":0.39766081871345027},{"$f":"'CHVA Tool - Data Entry'!P103","v":0.19883040935672514},{"$f":"'CHVA Tool - Data Entry'!Q103","v":60}]
[{"$f":"'CHVA Tool - Data Entry'!A104","v":"HVAC Failure"},{"$f":"'CHVA Tool - Data Entry'!B104","v":2},{"$f":"'CHVA Tool - Data Entry'!C104","v":1},{"$f":"'CHVA Tool - Data Entry'!D104","v":2},{"$f":"'CHVA Tool - Data Entry'!E104","v":3},{"$f":"'CHVA Tool - Data Entry'!F104","v":1},{"$f":"'CHVA Tool - Data Entry'!G104","v":1},{"$f":"'CHVA Tool - Data Entry'!H104","v":2},{"$f":"'CHVA Tool - Data Entry'!I104","v":1},{"$f":"'CHVA Tool - Data Entry'!J104","v":2},{"$f":"'CHVA Tool - Data Entry'!K104","v":3},{"$f":"'CHVA Tool - Data Entry'!L104","v":1},{"$f":"'CHVA Tool - Data Entry'!M104","v":2},{"$f":"'CHVA Tool - Data Entry'!N104","v":2},{"$f":"'CHVA Tool - Data Entry'!O104","v":0.39766081871345027},{"$f":"'CHVA Tool - Data Entry'!P104","v":0.19883040935672514},{"$f":"'CHVA Tool - Data Entry'!Q104","v":60}]
[{"$f":"'CHVA Tool - Data Entry'!A105","v":"Loss of Bulk Oxygen"},{"$f":"'CHVA Tool - Data Entry'!B105","v":2},{"$f":"'CHVA Tool - Data Entry'!C105","v":1},{"$f":"'CHVA Tool - Data Entry'!D105","v":2},{"$f":"'CHVA Tool - Data Entry'!E105","v":3},{"$f":"'CHVA Tool - Data Entry'!F105","v":1},{"$f":"'CHVA Tool - Data Entry'!G105","v":1},{"$f":"'CHVA Tool - Data Entry'!H105","v":2},{"$f":"'CHVA Tool - Data Entry'!I105","v":1},{"$f":"'CHVA Tool - Data Entry'!J105","v":2},{"$f":"'CHVA Tool - Data Entry'!K105","v":3},{"$f":"'CHVA Tool - Data Entry'!L105","v":1},{"$f":"'CHVA Tool - Data Entry'!M105","v":2},{"$f":"'CHVA Tool - Data Entry'!N105","v":2},{"$f":"'CHVA Tool - Data Entry'!O105","v":0.39766081871345027},{"$f":"'CHVA Tool - Data Entry'!P105","v":0.19883040935672514},{"$f":"'CHVA Tool - Data Entry'!Q105","v":60}]
[{"$f":"'CHVA Tool - Data Entry'!A106","v":"Medical Gas Failure"},{"$f":"'CHVA Tool - Data Entry'!B106","v":2},{"$f":"'CHVA Tool - Data Entry'!C106","v":1},{"$f":"'CHVA Tool - Data Entry'!D106","v":2},{"$f":"'CHVA Tool - Data Entry'!E106","v":3},{"$f":"'CHVA Tool - Data Entry'!F106","v":1},{"$f":"'CHVA Tool - Data Entry'!G106","v":1},{"$f":"'CHVA Tool - Data Entry'!H106","v":2},{"$f":"'CHVA Tool - Data Entry'!I106","v":1},{"$f":"'CHVA Tool - Data Entry'!J106","v":2},{"$f":"'CHVA Tool - Data Entry'!K106","v":3},{"$f":"'CHVA Tool - Data Entry'!L106","v":1},{"$f":"'CHVA Tool - Data Entry'!M106","v":2},{"$f":"'CHVA Tool - Data Entry'!N106","v":2},{"$f":"'CHVA Tool - Data Entry'!O106","v":0.39766081871345027},{"$f":"'CHVA Tool - Data Entry'!P106","v":0.19883040935672514},{"$f":"'CHVA Tool - Data Entry'!Q106","v":60}]
[{"$f":"'CHVA Tool - Data Entry'!A107","v":"Medical Vacuum Failure"},{"$f":"'CHVA Tool - Data Entry'!B107","v":2},{"$f":"'CHVA Tool - Data Entry'!C107","v":1},{"$f":"'CHVA Tool - Data Entry'!D107","v":2},{"$f":"'CHVA Tool - Data Entry'!E107","v":3},{"$f":"'CHVA Tool - Data Entry'!F107","v":1},{"$f":"'CHVA Tool - Data Entry'!G107","v":1},{"$f":"'CHVA Tool - Data Entry'!H107","v":2},{"$f":"'CHVA Tool - Data Entry'!I107","v":1},{"$f":"'CHVA Tool - Data Entry'!J107","v":2},{"$f":"'CHVA Tool - Data Entry'!K107","v":3},{"$f":"'CHVA Tool - Data Entry'!L107","v":1},{"$f":"'CHVA Tool - Data Entry'!M107","v":2},{"$f":"'CHVA Tool - Data Entry'!N107","v":2},{"$f":"'CHVA Tool - Data Entry'!O107","v":0.39766081871345027},{"$f":"'CHVA Tool - Data Entry'!P107","v":0.19883040935672514},{"$f":"'CHVA Tool - Data Entry'!Q107","v":60}]
[{"$f":"'CHVA Tool - Data Entry'!A108","v":"Natural Gas Failure"},{"$f":"'CHVA Tool - Data Entry'!B108","v":2},{"$f":"'CHVA Tool - Data Entry'!C108","v":1},{"$f":"'CHVA Tool - Data Entry'!D108","v":2},{"$f":"'CHVA Tool - Data Entry'!E108","v":3},{"$f":"'CHVA Tool - Data Entry'!F108","v":1},{"$f":"'CHVA Tool - Data Entry'!G108","v":1},{"$f":"'CHVA Tool - Data Entry'!H108","v":2},{"$f":"'CHVA Tool - Data Entry'!I108","v":1},{"$f":"'CHVA Tool - Data Entry'!J108","v":2},{"$f":"'CHVA Tool - Data Entry'!K108","v":3},{"$f":"'CHVA Tool - Data Entry'!L108","v":1},{"$f":"'CHVA Tool - Data Entry'!M108","v":2},{"$f":"'CHVA Tool - Data Entry'!N108","v":2},{"$f":"'CHVA Tool - Data Entry'!O108","v":0.39766081871345027},{"$f":"'CHVA Tool - Data Entry'!P108","v":0.19883040935672514},{"$f":"'CHVA Tool - Data Entry'!Q108","v":60}]
[{"$f":"'CHVA Tool - Data Entry'!A109","v":"Natural Gas Leak"},{"$f":"'CHVA Tool - Data Entry'!B109","v":2},{"$f":"'CHVA Tool - Data Entry'!C109","v":1},{"$f":"'CHVA Tool - Data Entry'!D109","v":2},{"$f":"'CHVA Tool - Data Entry'!E109","v":3},{"$f":"'CHVA Tool - Data Entry'!F109","v":1},{"$f":"'CHVA Tool - Data Entry'!G109","v":1},{"$f":"'CHVA Tool - Data Entry'!H109","v":2},{"$f":"'CHVA Tool - Data Entry'!I109","v":1},{"$f":"'CHVA Tool - Data Entry'!J109","v":2},{"$f":"'CHVA Tool - Data Entry'!K109","v":3},{"$f":"'CHVA Tool - Data Entry'!L109","v":1},{"$f":"'CHVA Tool - Data Entry'!M109","v":2},{"$f":"'CHVA Tool - Data Entry'!N109","v":2},{"$f":"'CHVA Tool - Data Entry'!O109","v":0.39766081871345027},{"$f":"'CHVA Tool - Data Entry'!P109","v":0.19883040935672514},{"$f":"'CHVA Tool - Data Entry'!Q109","v":60}]
[{"$f":"'CHVA Tool - Data Entry'!A110","v":"Oxygen Leak"},{"$f":"'CHVA Tool - Data Entry'!B110","v":2},{"$f":"'CHVA Tool - Data Entry'!C110","v":1},{"$f":"'CHVA Tool - Data Entry'!D110","v":2},{"$f":"'CHVA Tool - Data Entry'!E110","v":3},{"$f":"'CHVA Tool - Data Entry'!F110","v":1},{"$f":"'CHVA Tool - Data Entry'!G110","v":1},{"$f":"'CHVA Tool - Data Entry'!H110","v":2},{"$f":"'CHVA Tool - Data Entry'!I110","v":1},{"$f":"'CHVA Tool - Data Entry'!J110","v":2},{"$f":"'CHVA Tool - Data Entry'!K110","v":3},{"$f":"'CHVA Tool - Data Entry'!L110","v":1},{"$f":"'CHVA Tool - Data Entry'!M110","v":2},{"$f":"'CHVA Tool - Data Entry'!N110","v":2},{"$f":"'CHVA Tool - Data Entry'!O110","v":0.39766081871345027},{"$f":"'CHVA Tool - Data Entry'!P110","v":0.19883040935672514},{"$f":"'CHVA Tool - Data Entry'!Q110","v":60}]
[{"$f":"'CHVA Tool - Data Entry'!A111","v":"Potable Water Failure"},{"$f":"'CHVA Tool - Data Entry'!B111","v":2},{"$f":"'CHVA Tool - Data Entry'!C111","v":1},{"$f":"'CHVA Tool - Data Entry'!D111","v":2},{"$f":"'CHVA Tool - Data Entry'!E111","v":3},{"$f":"'CHVA Tool - Data Entry'!F111","v":1},{"$f":"'CHVA Tool - Data Entry'!G111","v":1},{"$f":"'CHVA Tool - Data Entry'!H111","v":2},{"$f":"'CHVA Tool - Data Entry'!I111","v":1},{"$f":"'CHVA Tool - Data Entry'!J111","v":2},{"$f":"'CHVA Tool - Data Entry'!K111","v":3},{"$f":"'CHVA Tool - Data Entry'!L111","v":1},{"$f":"'CHVA Tool - Data Entry'!M111","v":2},{"$f":"'CHVA Tool - Data Entry'!N111","v":2},{"$f":"'CHVA Tool - Data Entry'!O111","v":0.39766081871345027},{"$f":"'CHVA Tool - Data Entry'!P111","v":0.19883040935672514},{"$f":"'CHVA Tool - Data Entry'!Q111","v":60}]
[{"$f":"'CHVA Tool - Data Entry'!A112","v":"Process Water Failure"},{"$f":"'CHVA Tool - Data Entry'!B112","v":2},{"$f":"'CHVA Tool - Data Entry'!C112","v":1},{"$f":"'CHVA Tool - Data Entry'!D112","v":2},{"$f":"'CHVA Tool - Data Entry'!E112","v":3},{"$f":"'CHVA Tool - Data Entry'!F112","v":1},{"$f":"'CHVA Tool - Data Entry'!G112","v":1},{"$f":"'CHVA Tool - Data Entry'!H112","v":2},{"$f":"'CHVA Tool - Data Entry'!I112","v":1},{"$f":"'CHVA Tool - Data Entry'!J112","v":2},{"$f":"'CHVA Tool - Data Entry'!K112","v":3},{"$f":"'CHVA Tool - Data Entry'!L112","v":1},{"$f":"'CHVA Tool - Data Entry'!M112","v":2},{"$f":"'CHVA Tool - Data Entry'!N112","v":2},{"$f":"'CHVA Tool - Data Entry'!O112","v":0.39766081871345027},{"$f":"'CHVA Tool - Data Entry'!P112","v":0.19883040935672514},{"$f":"'CHVA Tool - Data Entry'!Q112","v":60}]
[{"$f":"'CHVA Tool - Data Entry'!A113","v":"Sewer Failure"},{"$f":"'CHVA Tool - Data Entry'!B113","v":2},{"$f":"'CHVA Tool - Data Entry'!C113","v":1},{"$f":"'CHVA Tool - Data Entry'!D113","v":2},{"$f":"'CHVA Tool - Data Entry'!E113","v":3},{"$f":"'CHVA Tool - Data Entry'!F113","v":1},{"$f":"'CHVA Tool - Data Entry'!G113","v":1},{"$f":"'CHVA Tool - Data Entry'!H113","v":2},{"$f":"'CHVA Tool - Data Entry'!I113","v":1},{"$f":"'CHVA Tool - Data Entry'!J113","v":2},{"$f":"'CHVA Tool - Data Entry'!K113","v":3},{"$f":"'CHVA Tool - Data Entry'!L113","v":1},{"$f":"'CHVA Tool - Data Entry'!M113","v":2},{"$f":"'CHVA Tool - Data Entry'!N113","v":2},{"$f":"'CHVA Tool - Data Entry'!O113","v":0.39766081871345027},{"$f":"'CHVA Tool - Data Entry'!P113","v":0.19883040935672514},{"$f":"'CHVA Tool - Data Entry'!Q113","v":60}]
[{"$f":"'CHVA Tool - Data Entry'!A114","v":"Steam Failure"},{"$f":"'CHVA Tool - Data Entry'!B114","v":2},{"$f":"'CHVA Tool - Data Entry'!C114","v":1},{"$f":"'CHVA Tool - Data Entry'!D114","v":2},{"$f":"'CHVA Tool - Data Entry'!E114","v":3},{"$f":"'CHVA Tool - Data Entry'!F114","v":1},{"$f":"'CHVA Tool - Data Entry'!G114","v":1},{"$f":"'CHVA Tool - Data Entry'!H114","v":2},{"$f":"'CHVA Tool - Data Entry'!I114","v":1},{"$f":"'CHVA Tool - Data Entry'!J114","v":2},{"$f":"'CHVA Tool - Data Entry'!K114","v":3},{"$f":"'CHVA Tool - Data Entry'!L114","v":1},{"$f":"'CHVA Tool - Data Entry'!M114","v":2},{"$f":"'CHVA Tool - Data Entry'!N114","v":2},{"$f":"'CHVA Tool - Data Entry'!O114","v":0.39766081871345027},{"$f":"'CHVA Tool - Data Entry'!P114","v":0.19883040935672514},{"$f":"'CHVA Tool - Data Entry'!Q114","v":60}]
[{"$f":"'CHVA Tool - Data Entry'!A115","v":"Structural Damage"},{"$f":"'CHVA Tool - Data Entry'!B115","v":2},{"$f":"'CHVA Tool - Data Entry'!C115","v":1},{"$f":"'CHVA Tool - Data Entry'!D115","v":2},{"$f":"'CHVA Tool - Data Entry'!E115","v":3},{"$f":"'CHVA Tool - Data Entry'!F115","v":1},{"$f":"'CHVA Tool - Data Entry'!G115","v":1},{"$f":"'CHVA Tool - Data Entry'!H115","v":2},{"$f":"'CHVA Tool - Data Entry'!I115","v":1},{"$f":"'CHVA Tool - Data Entry'!J115","v":2},{"$f":"'CHVA Tool - Data Entry'!K115","v":3},{"$f":"'CHVA Tool - Data Entry'!L115","v":1},{"$f":"'CHVA Tool - Data Entry'!M115","v":2},{"$f":"'CHVA Tool - Data Entry'!N115","v":2},{"$f":"'CHVA Tool - Data Entry'!O115","v":0.39766081871345027},{"$f":"'CHVA Tool - Data Entry'!P115","v":0.19883040935672514},{"$f":"'CHVA Tool - Data Entry'!Q115","v":60}]
[{"$f":"'CHVA Tool - Data Entry'!A116","v":"Tube System Failure"},{"$f":"'CHVA Tool - Data Entry'!B116","v":2},{"$f":"'CHVA Tool - Data Entry'!C116","v":1},{"$f":"'CHVA Tool - Data Entry'!D116","v":2},{"$f":"'CHVA Tool - Data Entry'!E116","v":3},{"$f":"'CHVA Tool - Data Entry'!F116","v":1},{"$f":"'CHVA Tool - Data Entry'!G116","v":1},{"$f":"'CHVA Tool - Data Entry'!H116","v":2},{"$f":"'CHVA Tool - Data Entry'!I116","v":1},{"$f":"'CHVA Tool - Data Entry'!J116","v":2},{"$f":"'CHVA Tool - Data Entry'!K116","v":3},{"$f":"'CHVA Tool - Data Entry'!L116","v":1},{"$f":"'CHVA Tool - Data Entry'!M116","v":2},{"$f":"'CHVA Tool - Data Entry'!N116","v":2},{"$f":"'CHVA Tool - Data Entry'!O116","v":0.39766081871345027},{"$f":"'CHVA Tool - Data Entry'!P116","v":0.19883040935672514},{"$f":"'CHVA Tool - Data Entry'!Q116","v":60}]
[{"$f":"'CHVA Tool - Data Entry'!A117","v":0},{"$f":"'CHVA Tool - Data Entry'!B117","v":0},{"$f":"'CHVA Tool - Data Entry'!C117","v":0},{"$f":"'CHVA Tool - Data Entry'!D117","v":0},{"$f":"'CHVA Tool - Data Entry'!E117","v":0},{"$f":"'CHVA Tool - Data Entry'!F117","v":0},{"$f":"'CHVA Tool - Data Entry'!G117","v":0},{"$f":"'CHVA Tool - Data Entry'!H117","v":0},{"$f":"'CHVA Tool - Data Entry'!I117","v":0},{"$f":"'CHVA Tool - Data Entry'!J117","v":0},{"$f":"'CHVA Tool - Data Entry'!K117","v":0},{"$f":"'CHVA Tool - Data Entry'!L117","v":0},{"$f":"'CHVA Tool - Data Entry'!M117","v":0},{"$f":"'CHVA Tool - Data Entry'!N117","v":0},{"$f":"'CHVA Tool - Data Entry'!O117","v":0},{"$f":"'CHVA Tool - Data Entry'!P117","v":0},{"$f":"'CHVA Tool - Data Entry'!Q117","v":0}]
[{"$f":"'CHVA Tool - Data Entry'!A118","v":0},{"$f":"'CHVA Tool - Data Entry'!B118","v":0},{"$f":"'CHVA Tool - Data Entry'!C118","v":0},{"$f":"'CHVA Tool - Data Entry'!D118","v":0},{"$f":"'CHVA Tool - Data Entry'!E118","v":0},{"$f":"'CHVA Tool - Data Entry'!F118","v":0},{"$f":"'CHVA Tool - Data Entry'!G118","v":0},{"$f":"'CHVA Tool - Data Entry'!H118","v":0},{"$f":"'CHVA Tool - Data Entry'!I118","v":0},{"$f":"'CHVA Tool - Data Entry'!J118","v":0},{"$f":"'CHVA Tool - Data Entry'!K118","v":0},{"$f":"'CHVA Tool - Data Entry'!L118","v":0},{"$f":"'CHVA Tool - Data Entry'!M118","v":0},{"$f":"'CHVA Tool - Data Entry'!N118","v":0},{"$f":"'CHVA Tool - Data Entry'!O118","v":0},{"$f":"'CHVA Tool - Data Entry'!P118","v":0},{"$f":"'CHVA Tool - Data Entry'!Q118","v":0}]
[{"$f":"'CHVA Tool - Data Entry'!A119","v":"Average: "},{"$f":"'CHVA Tool - Data Entry'!B119","v":2.0833333333333335},{"$f":"'CHVA Tool - Data Entry'!C119","v":1.3333333333333333},{"$f":"'CHVA Tool - Data Entry'!D119","v":2},{"$f":"'CHVA Tool - Data Entry'!E119","v":3},{"$f":"'CHVA Tool - Data Entry'!F119","v":1},{"$f":"'CHVA Tool - Data Entry'!G119","v":1},{"$f":"'CHVA Tool - Data Entry'!H119","v":2},{"$f":"'CHVA Tool - Data Entry'!I119","v":1},{"$f":"'CHVA Tool - Data Entry'!J119","v":2},{"$f":"'CHVA Tool - Data Entry'!K119","v":3},{"$f":"'CHVA Tool - Data Entry'!L119","v":1},{"$f":"'CHVA Tool - Data Entry'!M119","v":2},{"$f":"'CHVA Tool - Data Entry'!N119","v":2},{"$f":"'CHVA Tool - Data Entry'!O119","v":0},{"$f":"'CHVA Tool - Data Entry'!P119","v":0},{"$f":"'CHVA Tool - Data Entry'!Q119","v":0}]
[{"$f":"'CHVA Tool - Data Entry'!A120","v":"Geographic Events"},{"$f":"'CHVA Tool - Data Entry'!B120","v":0},{"$f":"'CHVA Tool - Data Entry'!C120","v":0},{"$f":"'CHVA Tool - Data Entry'!D120","v":0},{"$f":"'CHVA Tool - Data Entry'!E120","v":0},{"$f":"'CHVA Tool - Data Entry'!F120","v":0},{"$f":"'CHVA Tool - Data Entry'!G120","v":0},{"$f":"'CHVA Tool - Data Entry'!H120","v":0},{"$f":"'CHVA Tool - Data Entry'!I120","v":0},{"$f":"'CHVA Tool - Data Entry'!J120","v":0},{"$f":"'CHVA Tool - Data Entry'!K120","v":0},{"$f":"'CHVA Tool - Data Entry'!L120","v":0},{"$f":"'CHVA Tool - Data Entry'!M120","v":0},{"$f":"'CHVA Tool - Data Entry'!N120","v":0},{"$f":"'CHVA Tool - Data Entry'!O120","v":0},{"$f":"'CHVA Tool - Data Entry'!P120","v":0},{"$f":"'CHVA Tool - Data Entry'!Q120","v":0}]
[{"$f":"'CHVA Tool - Data Entry'!A121","v":"Proximity to nuclear power plants"},{"$f":"'CHVA Tool - Data Entry'!B121","v":3},{"$f":"'CHVA Tool - Data Entry'!C121","v":3},{"$f":"'CHVA Tool - Data Entry'!D121","v":2},{"$f":"'CHVA Tool - Data Entry'!E121","v":2},{"$f":"'CHVA Tool - Data Entry'!F121","v":2},{"$f":"'CHVA Tool - Data Entry'!G121","v":3},{"$f":"'CHVA Tool - Data Entry'!H121","v":2},{"$f":"'CHVA Tool - Data Entry'!I121","v":2},{"$f":"'CHVA Tool - Data Entry'!J121","v":2},{"$f":"'CHVA Tool - Data Entry'!K121","v":1},{"$f":"'CHVA Tool - Data Entry'!L121","v":1},{"$f":"'CHVA Tool - Data Entry'!M121","v":2},{"$f":"'CHVA Tool - Data Entry'!N121","v":2},{"$f":"'CHVA Tool - Data Entry'!O121","v":0.63157894736842102},{"$f":"'CHVA Tool - Data Entry'!P121","v":0.63157894736842102},{"$f":"'CHVA Tool - Data Entry'!Q121","v":126}]
[{"$f":"'CHVA Tool - Data Entry'!A122","v":"Proximity to Bridges"},{"$f":"'CHVA Tool - Data Entry'!B122","v":3},{"$f":"'CHVA Tool - Data Entry'!C122","v":3},{"$f":"'CHVA Tool - Data Entry'!D122","v":2},{"$f":"'CHVA Tool - Data Entry'!E122","v":2},{"$f":"'CHVA Tool - Data Entry'!F122","v":2},{"$f":"'CHVA Tool - Data Entry'!G122","v":3},{"$f":"'CHVA Tool - Data Entry'!H122","v":2},{"$f":"'CHVA Tool - Data Entry'!I122","v":2},{"$f":"'CHVA Tool - Data Entry'!J122","v":2},{"$f":"'CHVA Tool - Data Entry'!K122","v":1},{"$f":"'CHVA Tool - Data Entry'!L122","v":1},{"$f":"'CHVA Tool - Data Entry'!M122","v":2},{"$f":"'CHVA Tool - Data Entry'!N122","v":2},{"$f":"'CHVA Tool - Data Entry'!O122","v":0.63157894736842102},{"$f":"'CHVA Tool - Data Entry'!P122","v":0.63157894736842102},{"$f":"'CHVA Tool - Data Entry'!Q122","v":126}]
[{"$f":"'CHVA Tool - Data Entry'!A123","v":"Proximity to bus terminals"},{"$f":"'CHVA Tool - Data Entry'!B123","v":2},{"$f":"'CHVA Tool - Data Entry'!C123","v":2},{"$f":"'CHVA Tool - Data Entry'!D123","v":2},{"$f":"'CHVA Tool - Data Entry'!E123","v":2},{"$f":"'CHVA Tool - Data Entry'!F123","v":2},{"$f":"'CHVA Tool - Data Entry'!G123","v":3},{"$f":"'CHVA Tool - Data Entry'!H123","v":2},{"$f":"'CHVA Tool - Data Entry'!I123","v":2},{"$f":"'CHVA Tool - Data Entry'!J123","v":2},{"$f":"'CHVA Tool - Data Entry'!K123","v":1},{"$f":"'CHVA Tool - Data Entry'!L123","v":1},{"$f":"'CHVA Tool - Data Entry'!M123","v":2},{"$f":"'CHVA Tool - Data Entry'!N123","v":2},{"$f":"'CHVA Tool - Data Entry'!O123","v":0.42105263157894735},{"$f":"'CHVA Tool - Data Entry'!P123","v":0.42105263157894735},{"$f":"'CHVA Tool - Data Entry'!Q123","v":84}]
[{"$f":"'CHVA Tool - Data Entry'!A124","v":"Proximity to Civic/Sports Events"},{"$f":"'CHVA Tool - Data Entry'!B124","v":2},{"$f":"'CHVA Tool - Data Entry'!C124","v":2},{"$f":"'CHVA Tool - Data Entry'!D124","v":2},{"$f":"'CHVA Tool - Data Entry'!E124","v":2},{"$f":"'CHVA Tool - Data Entry'!F124","v":2},{"$f":"'CHVA Tool - Data Entry'!G124","v":3},{"$f":"'CHVA Tool - Data Entry'!H124","v":2},{"$f":"'CHVA Tool - Data Entry'!I124","v":2},{"$f":"'CHVA Tool - Data Entry'!J124","v":2},{"$f":"'CHVA Tool - Data Entry'!K124","v":1},{"$f":"'CHVA Tool - Data Entry'!L124","v":1},{"$f":"'CHVA Tool - Data Entry'!M124","v":2},{"$f":"'CHVA Tool - Data Entry'!N124","v":2},{"$f":"'CHVA Tool - Data Entry'!O124","v":0.42105263157894735},{"$f":"'CHVA Tool - Data Entry'!P124","v":0.42105263157894735},{"$f":"'CHVA Tool - Data Entry'!Q124","v":84}]
[{"$f":"'CHVA Tool - Data Entry'!A125","v":"Proximity to companies that produce, store, use, or transport hazardous materials"},{"$f":"'CHVA Tool - Data Entry'!B125","v":2},{"$f":"'CHVA Tool - Data Entry'!C125","v":2},{"$f":"'CHVA Tool - Data Entry'!D125","v":2},{"$f":"'CHVA Tool - Data Entry'!E125","v":2},{"$f":"'CHVA Tool - Data Entry'!F125","v":2},{"$f":"'CHVA Tool - Data Entry'!G125","v":3},{"$f":"'CHVA Tool - Data Entry'!H125","v":2},{"$f":"'CHVA Tool - Data Entry'!I125","v":2},{"$f":"'CHVA Tool - Data Entry'!J125","v":2},{"$f":"'CHVA Tool - Data Entry'!K125","v":1},{"$f":"'CHVA Tool - Data Entry'!L125","v":1},{"$f":"'CHVA Tool - Data Entry'!M125","v":2},{"$f":"'CHVA Tool - Data Entry'!N125","v":2},{"$f":"'CHVA Tool - Data Entry'!O125","v":0.42105263157894735},{"$f":"'CHVA Tool - Data Entry'!P125","v":0.42105263157894735},{"$f":"'CHVA Tool - Data Entry'!Q125","v":84}]
[{"$f":"'CHVA Tool - Data Entry'!A126","v":"Proximity to Federal buildings"},{"$f":"'CHVA Tool - Data Entry'!B126","v":2},{"$f":"'CHVA Tool - Data Entry'!C126","v":2},{"$f":"'CHVA Tool - Data Entry'!D126","v":2},{"$f":"'CHVA Tool - Data Entry'!E126","v":2},{"$f":"'CHVA Tool - Data Entry'!F126","v":2},{"$f":"'CHVA Tool - Data Entry'!G126","v":3},{"$f":"'CHVA Tool - Data Entry'!H126","v":2},{"$f":"'CHVA Tool - Data Entry'!I126","v":2},{"$f":"'CHVA Tool - Data Entry'!J126","v":2},{"$f":"'CHVA Tool - Data Entry'!K126","v":1},{"$f":"'CHVA Tool - Data Entry'!L126","v":1},{"$f":"'CHVA Tool - Data Entry'!M126","v":2},{"$f":"'CHVA Tool - Data Entry'!N126","v":2},{"$f":"'CHVA Tool - Data Entry'!O126","v":0.42105263157894735},{"$f":"'CHVA Tool - Data Entry'!P126","v":0.42105263157894735},{"$f":"'CHVA Tool - Data Entry'!Q126","v":84}]
[{"$f":"'CHVA Tool - Data Entry'!A127","v":"Proximity to Festivals"},{"$f":"'CHVA Tool - Data Entry'!B127","v":2},{"$f":"'CHVA Tool - Data Entry'!C127","v":2},{"$f":"'CHVA Tool - Data Entry'!D127","v":2},{"$f":"'CHVA Tool - Data Entry'!E127","v":2},{"$f":"'CHVA Tool - Data Entry'!F127","v":2},{"$f":"'CHVA Tool - Data Entry'!G127","v":3},{"$f":"'CHVA Tool - Data Entry'!H127","v":2},{"$f":"'CHVA Tool - Data Entry'!I127","v":2},{"$f":"'CHVA Tool - Data Entry'!J127","v":2},{"$f":"'CHVA Tool - Data Entry'!K127","v":1},{"$f":"'CHVA Tool - Data Entry'!L127","v":1},{"$f":"'CHVA Tool - Data Entry'!M127","v":2},{"$f":"'CHVA Tool - Data Entry'!N127","v":2},{"$f":"'CHVA Tool - Data Entry'!O127","v":0.42105263157894735},{"$f":"'CHVA Tool - Data Entry'!P127","v":0.42105263157894735},{"$f":"'CHVA Tool - Data Entry'!Q127","v":84}]
[{"$f":"'CHVA Tool - Data Entry'!A128","v":"Proximity to flood plains, faults, and dams"},{"$f":"'CHVA Tool - Data Entry'!B128","v":2},{"$f":"'CHVA Tool - Data Entry'!C128","v":2},{"$f":"'CHVA Tool - Data Entry'!D128","v":2},{"$f":"'CHVA Tool - Data Entry'!E128","v":2},{"$f":"'CHVA Tool - Data Entry'!F128","v":2},{"$f":"'CHVA Tool - Data Entry'!G128","v":3},{"$f":"'CHVA Tool - Data Entry'!H128","v":2},{"$f":"'CHVA Tool - Data Entry'!I128","v":2},{"$f":"'CHVA Tool - Data Entry'!J128","v":2},{"$f":"'CHVA Tool - Data Entry'!K128","v":1},{"$f":"'CHVA Tool - Data Entry'!L128","v":1},{"$f":"'CHVA Tool - Data Entry'!M128","v":2},{"$f":"'CHVA Tool - Data Entry'!N128","v":2},{"$f":"'CHVA Tool - Data Entry'!O128","v":0.42105263157894735},{"$f":"'CHVA Tool - Data Entry'!P128","v":0.42105263157894735},{"$f":"'CHVA Tool - Data Entry'!Q128","v":84}]
[{"$f":"'CHVA Tool - Data Entry'!A129","v":"Proximity to local schools and universities"},{"$f":"'CHVA Tool - Data Entry'!B129","v":2},{"$f":"'CHVA Tool - Data Entry'!C129","v":2},{"$f":"'CHVA Tool - Data Entry'!D129","v":2},{"$f":"'CHVA Tool - Data Entry'!E129","v":2},{"$f":"'CHVA Tool - Data Entry'!F129","v":2},{"$f":"'CHVA Tool - Data Entry'!G129","v":3},{"$f":"'CHVA Tool - Data Entry'!H129","v":2},{"$f":"'CHVA Tool - Data Entry'!I129","v":2},{"$f":"'CHVA Tool - Data Entry'!J129","v":2},{"$f":"'CHVA Tool - Data Entry'!K129","v":1},{"$f":"'CHVA Tool - Data Entry'!L129","v":1},{"$f":"'CHVA Tool - Data Entry'!M129","v":2},{"$f":"'CHVA Tool - Data Entry'!N129","v":2},{"$f":"'CHVA Tool - Data Entry'!O129","v":0.42105263157894735},{"$f":"'CHVA Tool - Data Entry'!P129","v":0.42105263157894735},{"$f":"'CHVA Tool - Data Entry'!Q129","v":84}]
[{"$f":"'CHVA Tool - Data Entry'!A130","v":"Proximity to major trans. routes and airports"},{"$f":"'CHVA Tool - Data Entry'!B130","v":2},{"$f":"'CHVA Tool - Data Entry'!C130","v":2},{"$f":"'CHVA Tool - Data Entry'!D130","v":2},{"$f":"'CHVA Tool - Data Entry'!E130","v":2},{"$f":"'CHVA Tool - Data Entry'!F130","v":2},{"$f":"'CHVA Tool - Data Entry'!G130","v":3},{"$f":"'CHVA Tool - Data Entry'!H130","v":2},{"$f":"'CHVA Tool - Data Entry'!I130","v":2},{"$f":"'CHVA Tool - Data Entry'!J130","v":2},{"$f":"'CHVA Tool - Data Entry'!K130","v":1},{"$f":"'CHVA Tool - Data Entry'!L130","v":1},{"$f":"'CHVA Tool - Data Entry'!M130","v":2},{"$f":"'CHVA Tool - Data Entry'!N130","v":2},{"$f":"'CHVA Tool - Data Entry'!O130","v":0.42105263157894735},{"$f":"'CHVA Tool - Data Entry'!P130","v":0.42105263157894735},{"$f":"'CHVA Tool - Data Entry'!Q130","v":84}]
[{"$f":"'CHVA Tool - Data Entry'!A131","v":"Proximity to Parks"},{"$f":"'CHVA Tool - Data Entry'!B131","v":2},{"$f":"'CHVA Tool - Data Entry'!C131","v":2},{"$f":"'CHVA Tool - Data Entry'!D131","v":2},{"$f":"'CHVA Tool - Data Entry'!E131","v":2},{"$f":"'CHVA Tool - Data Entry'!F131","v":2},{"$f":"'CHVA Tool - Data Entry'!G131","v":3},{"$f":"'CHVA Tool - Data Entry'!H131","v":2},{"$f":"'CHVA Tool - Data Entry'!I131","v":2},{"$f":"'CHVA Tool - Data Entry'!J131","v":2},{"$f":"'CHVA Tool - Data Entry'!K131","v":1},{"$f":"'CHVA Tool - Data Entry'!L131","v":1},{"$f":"'CHVA Tool - Data Entry'!M131","v":2},{"$f":"'CHVA Tool - Data Entry'!N131","v":2},{"$f":"'CHVA Tool - Data Entry'!O131","v":0.42105263157894735},{"$f":"'CHVA Tool - Data Entry'!P131","v":0.42105263157894735},{"$f":"'CHVA Tool - Data Entry'!Q131","v":84}]
[{"$f":"'CHVA Tool - Data Entry'!A132","v":"Proximity to train stations"},{"$f":"'CHVA Tool - Data Entry'!B132","v":2},{"$f":"'CHVA Tool - Data Entry'!C132","v":2},{"$f":"'CHVA Tool - Data Entry'!D132","v":2},{"$f":"'CHVA Tool - Data Entry'!E132","v":2},{"$f":"'CHVA Tool - Data Entry'!F132","v":2},{"$f":"'CHVA Tool - Data Entry'!G132","v":3},{"$f":"'CHVA Tool - Data Entry'!H132","v":2},{"$f":"'CHVA Tool - Data Entry'!I132","v":2},{"$f":"'CHVA Tool - Data Entry'!J132","v":2},{"$f":"'CHVA Tool - Data Entry'!K132","v":1},{"$f":"'CHVA Tool - Data Entry'!L132","v":1},{"$f":"'CHVA Tool - Data Entry'!M132","v":2},{"$f":"'CHVA Tool - Data Entry'!N132","v":2},{"$f":"'CHVA Tool - Data Entry'!O132","v":0.42105263157894735},{"$f":"'CHVA Tool - Data Entry'!P132","v":0.42105263157894735},{"$f":"'CHVA Tool - Data Entry'!Q132","v":84}]
[{"$f":"'CHVA Tool - Data Entry'!A133","v":0},{"$f":"'CHVA Tool - Data Entry'!B133","v":0},{"$f":"'CHVA Tool - Data Entry'!C133","v":0},{"$f":"'CHVA Tool - Data Entry'!D133","v":0},{"$f":"'CHVA Tool - Data Entry'!E133","v":0},{"$f":"'CHVA Tool - Data Entry'!F133","v":0},{"$f":"'CHVA Tool - Data Entry'!G133","v":0},{"$f":"'CHVA Tool - Data Entry'!H133","v":0},{"$f":"'CHVA Tool - Data Entry'!I133","v":0},{"$f":"'CHVA Tool - Data Entry'!J133","v":0},{"$f":"'CHVA Tool - Data Entry'!K133","v":0},{"$f":"'CHVA Tool - Data Entry'!L133","v":0},{"$f":"'CHVA Tool - Data Entry'!M133","v":0},{"$f":"'CHVA Tool - Data Entry'!N133","v":0},{"$f":"'CHVA Tool - Data Entry'!O133","v":0},{"$f":"'CHVA Tool - Data Entry'!P133","v":0},{"$f":"'CHVA Tool - Data Entry'!Q133","v":0}]
[{"$f":"'CHVA Tool - Data Entry'!A134","v":0},{"$f":"'CHVA Tool - Data Entry'!B134","v":0},{"$f":"'CHVA Tool - Data Entry'!C134","v":0},{"$f":"'CHVA Tool - Data Entry'!D134","v":0},{"$f":"'CHVA Tool - Data Entry'!E134","v":0},{"$f":"'CHVA Tool - Data Entry'!F134","v":0},{"$f":"'CHVA Tool - Data Entry'!G134","v":0},{"$f":"'CHVA Tool - Data Entry'!H134","v":0},{"$f":"'CHVA Tool - Data Entry'!I134","v":0},{"$f":"'CHVA Tool - Data Entry'!J134","v":0},{"$f":"'CHVA Tool - Data Entry'!K134","v":0},{"$f":"'CHVA Tool - Data Entry'!L134","v":0},{"$f":"'CHVA Tool - Data Entry'!M134","v":0},{"$f":"'CHVA Tool - Data Entry'!N134","v":0},{"$f":"'CHVA Tool - Data Entry'!O134","v":0},{"$f":"'CHVA Tool - Data Entry'!P134","v":0},{"$f":"'CHVA Tool - Data Entry'!Q134","v":0}]
[{"$f":"'CHVA Tool - Data Entry'!A135","v":"Average: "},{"$f":"'CHVA Tool - Data Entry'!B135","v":2.1666666666666665},{"$f":"'CHVA Tool - Data Entry'!C135","v":2.1666666666666665},{"$f":"'CHVA Tool - Data Entry'!D135","v":2},{"$f":"'CHVA Tool - Data Entry'!E135","v":2},{"$f":"'CHVA Tool - Data Entry'!F135","v":2},{"$f":"'CHVA Tool - Data Entry'!G135","v":3},{"$f":"'CHVA Tool - Data Entry'!H135","v":2},{"$f":"'CHVA Tool - Data Entry'!I135","v":2},{"$f":"'CHVA Tool - Data Entry'!J135","v":2},{"$f":"'CHVA Tool - Data Entry'!K135","v":1},{"$f":"'CHVA Tool - Data Entry'!L135","v":1},{"$f":"'CHVA Tool - Data Entry'!M135","v":2},{"$f":"'CHVA Tool - Data Entry'!N135","v":2},{"$f":"'CHVA Tool - Data Entry'!O135","v":0},{"$f":"'CHVA Tool - Data Entry'!P135","v":0},{"$f":"'CHVA Tool - Data Entry'!Q135","v":0}]
[{"$f":"'CHVA Tool - Data Entry'!A136","v":"Physical Events"},{"$f":"'CHVA Tool - Data Entry'!B136","v":0},{"$f":"'CHVA Tool - Data Entry'!C136","v":0},{"$f":"'CHVA Tool - Data Entry'!D136","v":0},{"$f":"'CHVA Tool - Data Entry'!E136","v":0},{"$f":"'CHVA Tool - Data Entry'!F136","v":0},{"$f":"'CHVA Tool - Data Entry'!G136","v":0},{"$f":"'CHVA Tool - Data Entry'!H136","v":0},{"$f":"'CHVA Tool - Data Entry'!I136","v":0},{"$f":"'CHVA Tool - Data Entry'!J136","v":0},{"$f":"'CHVA Tool - Data Entry'!K136","v":0},{"$f":"'CHVA Tool - Data Entry'!L136","v":0},{"$f":"'CHVA Tool - Data Entry'!M136","v":0},{"$f":"'CHVA Tool - Data Entry'!N136","v":0},{"$f":"'CHVA Tool - Data Entry'!O136","v":0},{"$f":"'CHVA Tool - Data Entry'!P136","v":0},{"$f":"'CHVA Tool - Data Entry'!Q136","v":0}]
[{"$f":"'CHVA Tool - Data Entry'!A137","v":"Asbestos release during const. or renovation"},{"$f":"'CHVA Tool - Data Entry'!B137","v":3},{"$f":"'CHVA Tool - Data Entry'!C137","v":3},{"$f":"'CHVA Tool - Data Entry'!D137","v":3},{"$f":"'CHVA Tool - Data Entry'!E137","v":1},{"$f":"'CHVA Tool - Data Entry'!F137","v":2},{"$f":"'CHVA Tool - Data Entry'!G137","v":3},{"$f":"'CHVA Tool - Data Entry'!H137","v":1},{"$f":"'CHVA Tool - Data Entry'!I137","v":1},{"$f":"'CHVA Tool - Data Entry'!J137","v":2},{"$f":"'CHVA Tool - Data Entry'!K137","v":1},{"$f":"'CHVA Tool - Data Entry'!L137","v":2},{"$f":"'CHVA Tool - Data Entry'!M137","v":2},{"$f":"'CHVA Tool - Data Entry'!N137","v":2},{"$f":"'CHVA Tool - Data Entry'!O137","v":0.59649122807017541},{"$f":"'CHVA Tool - Data Entry'!P137","v":0.59649122807017541},{"$f":"'CHVA Tool - Data Entry'!Q137","v":120}]
[{"$f":"'CHVA Tool - Data Entry'!A138","v":"Building/parking structure failure"},{"$f":"'CHVA Tool - Data Entry'!B138","v":3},{"$f":"'CHVA Tool - Data Entry'!C138","v":3},{"$f":"'CHVA Tool - Data Entry'!D138","v":3},{"$f":"'CHVA Tool - Data Entry'!E138","v":1},{"$f":"'CHVA Tool - Data Entry'!F138","v":2},{"$f":"'CHVA Tool - Data Entry'!G138","v":3},{"$f":"'CHVA Tool - Data Entry'!H138","v":1},{"$f":"'CHVA Tool - Data Entry'!I138","v":1},{"$f":"'CHVA Tool - Data Entry'!J138","v":2},{"$f":"'CHVA Tool - Data Entry'!K138","v":1},{"$f":"'CHVA Tool - Data Entry'!L138","v":2},{"$f":"'CHVA Tool - Data Entry'!M138","v":2},{"$f":"'CHVA Tool - Data Entry'!N138","v":2},{"$f":"'CHVA Tool - Data Entry'!O138","v":0.59649122807017541},{"$f":"'CHVA Tool - Data Entry'!P138","v":0.59649122807017541},{"$f":"'CHVA Tool - Data Entry'!Q138","v":120}]
[{"$f":"'CHVA Tool - Data Entry'!A139","v":"Layout of the equipment"},{"$f":"'CHVA Tool - Data Entry'!B139","v":2},{"$f":"'CHVA Tool - Data Entry'!C139","v":2},{"$f":"'CHVA Tool - Data Entry'!D139","v":3},{"$f":"'CHVA Tool - Data Entry'!E139","v":1},{"$f":"'CHVA Tool - Data Entry'!F139","v":2},{"$f":"'CHVA Tool - Data Entry'!G139","v":3},{"$f":"'CHVA Tool - Data Entry'!H139","v":1},{"$f":"'CHVA Tool - Data Entry'!I139","v":1},{"$f":"'CHVA Tool - Data Entry'!J139","v":2},{"$f":"'CHVA Tool - Data Entry'!K139","v":1},{"$f":"'CHVA Tool - Data Entry'!L139","v":2},{"$f":"'CHVA Tool - Data Entry'!M139","v":2},{"$f":"'CHVA Tool - Data Entry'!N139","v":2},{"$f":"'CHVA Tool - Data Entry'!O139","v":0.39766081871345027},{"$f":"'CHVA Tool - Data Entry'!P139","v":0.39766081871345027},{"$f":"'CHVA Tool - Data Entry'!Q139","v":80}]
[{"$f":"'CHVA Tool - Data Entry'!A140","v":"The physical construction of the facility"},{"$f":"'CHVA Tool - Data Entry'!B140","v":2},{"$f":"'CHVA Tool - Data Entry'!C140","v":2},{"$f":"'CHVA Tool - Data Entry'!D140","v":3},{"$f":"'CHVA Tool - Data Entry'!E140","v":1},{"$f":"'CHVA Tool - Data Entry'!F140","v":2},{"$f":"'CHVA Tool - Data Entry'!G140","v":3},{"$f":"'CHVA Tool - Data Entry'!H140","v":1},{"$f":"'CHVA Tool - Data Entry'!I140","v":1},{"$f":"'CHVA Tool - Data Entry'!J140","v":2},{"$f":"'CHVA Tool - Data Entry'!K140","v":1},{"$f":"'CHVA Tool - Data Entry'!L140","v":2},{"$f":"'CHVA Tool - Data Entry'!M140","v":2},{"$f":"'CHVA Tool - Data Entry'!N140","v":2},{"$f":"'CHVA Tool - Data Entry'!O140","v":0.39766081871345027},{"$f":"'CHVA Tool - Data Entry'!P140","v":0.39766081871345027},{"$f":"'CHVA Tool - Data Entry'!Q140","v":80}]
[{"$f":"'CHVA Tool - Data Entry'!A141","v":"Evacuation routes and exits"},{"$f":"'CHVA Tool - Data Entry'!B141","v":2},{"$f":"'CHVA Tool - Data Entry'!C141","v":2},{"$f":"'CHVA Tool - Data Entry'!D141","v":3},{"$f":"'CHVA Tool - Data Entry'!E141","v":1},{"$f":"'CHVA Tool - Data Entry'!F141","v":2},{"$f":"'CHVA Tool - Data Entry'!G141","v":3},{"$f":"'CHVA Tool - Data Entry'!H141","v":1},{"$f":"'CHVA Tool - Data Entry'!I141","v":1},{"$f":"'CHVA Tool - Data Entry'!J141","v":2},{"$f":"'CHVA Tool - Data Entry'!K141","v":1},{"$f":"'CHVA Tool - Data Entry'!L141","v":2},{"$f":"'CHVA Tool - Data Entry'!M141","v":2},{"$f":"'CHVA Tool - Data Entry'!N141","v":2},{"$f":"'CHVA Tool - Data Entry'!O141","v":0.39766081871345027},{"$f":"'CHVA Tool - Data Entry'!P141","v":0.39766081871345027},{"$f":"'CHVA Tool - Data Entry'!Q141","v":80}]
[{"$f":"'CHVA Tool - Data Entry'!A142","v":"Hazardous processes or byproducts"},{"$f":"'CHVA Tool - Data Entry'!B142","v":2},{"$f":"'CHVA Tool - Data Entry'!C142","v":2},{"$f":"'CHVA Tool - Data Entry'!D142","v":3},{"$f":"'CHVA Tool - Data Entry'!E142","v":1},{"$f":"'CHVA Tool - Data Entry'!F142","v":2},{"$f":"'CHVA Tool - Data Entry'!G142","v":3},{"$f":"'CHVA Tool - Data Entry'!H142","v":1},{"$f":"'CHVA Tool - Data Entry'!I142","v":1},{"$f":"'CHVA Tool - Data Entry'!J142","v":2},{"$f":"'CHVA Tool - Data Entry'!K142","v":1},{"$f":"'CHVA Tool - Data Entry'!L142","v":2},{"$f":"'CHVA Tool - Data Entry'!M142","v":2},{"$f":"'CHVA Tool - Data Entry'!N142","v":2},{"$f":"'CHVA Tool - Data Entry'!O142","v":0.39766081871345027},{"$f":"'CHVA Tool - Data Entry'!P142","v":0.39766081871345027},{"$f":"'CHVA Tool - Data Entry'!Q142","v":80}]
[{"$f":"'CHVA Tool - Data Entry'!A143","v":"Proximity of shelter areas"},{"$f":"'CHVA Tool - Data Entry'!B143","v":2},{"$f":"'CHVA Tool - Data Entry'!C143","v":2},{"$f":"'CHVA Tool - Data Entry'!D143","v":3},{"$f":"'CHVA Tool - Data Entry'!E143","v":1},{"$f":"'CHVA Tool - Data Entry'!F143","v":2},{"$f":"'CHVA Tool - Data Entry'!G143","v":3},{"$f":"'CHVA Tool - Data Entry'!H143","v":1},{"$f":"'CHVA Tool - Data Entry'!I143","v":1},{"$f":"'CHVA Tool - Data Entry'!J143","v":2},{"$f":"'CHVA Tool - Data Entry'!K143","v":1},{"$f":"'CHVA Tool - Data Entry'!L143","v":2},{"$f":"'CHVA Tool - Data Entry'!M143","v":2},{"$f":"'CHVA Tool - Data Entry'!N143","v":2},{"$f":"'CHVA Tool - Data Entry'!O143","v":0.39766081871345027},{"$f":"'CHVA Tool - Data Entry'!P143","v":0.39766081871345027},{"$f":"'CHVA Tool - Data Entry'!Q143","v":80}]
[{"$f":"'CHVA Tool - Data Entry'!A144","v":"Facilities for storing biohazardous wastes"},{"$f":"'CHVA Tool - Data Entry'!B144","v":2},{"$f":"'CHVA Tool - Data Entry'!C144","v":2},{"$f":"'CHVA Tool - Data Entry'!D144","v":3},{"$f":"'CHVA Tool - Data Entry'!E144","v":1},{"$f":"'CHVA Tool - Data Entry'!F144","v":2},{"$f":"'CHVA Tool - Data Entry'!G144","v":3},{"$f":"'CHVA Tool - Data Entry'!H144","v":1},{"$f":"'CHVA Tool - Data Entry'!I144","v":1},{"$f":"'CHVA Tool - Data Entry'!J144","v":2},{"$f":"'CHVA Tool - Data Entry'!K144","v":1},{"$f":"'CHVA Tool - Data Entry'!L144","v":2},{"$f":"'CHVA Tool - Data Entry'!M144","v":2},{"$f":"'CHVA Tool - Data Entry'!N144","v":2},{"$f":"'CHVA Tool - Data Entry'!O144","v":0.39766081871345027},{"$f":"'CHVA Tool - Data Entry'!P144","v":0.39766081871345027},{"$f":"'CHVA Tool - Data Entry'!Q144","v":80}]
[{"$f":"'CHVA Tool - Data Entry'!A145","v":"Facilities for storing combustibles"},{"$f":"'CHVA Tool - Data Entry'!B145","v":2},{"$f":"'CHVA Tool - Data Entry'!C145","v":2},{"$f":"'CHVA Tool - Data Entry'!D145","v":3},{"$f":"'CHVA Tool - Data Entry'!E145","v":1},{"$f":"'CHVA Tool - Data Entry'!F145","v":2},{"$f":"'CHVA Tool - Data Entry'!G145","v":3},{"$f":"'CHVA Tool - Data Entry'!H145","v":1},{"$f":"'CHVA Tool - Data Entry'!I145","v":1},{"$f":"'CHVA Tool - Data Entry'!J145","v":2},{"$f":"'CHVA Tool - Data Entry'!K145","v":1},{"$f":"'CHVA Tool - Data Entry'!L145","v":2},{"$f":"'CHVA Tool - Data Entry'!M145","v":2},{"$f":"'CHVA Tool - Data Entry'!N145","v":2},{"$f":"'CHVA Tool - Data Entry'!O145","v":0.39766081871345027},{"$f":"'CHVA Tool - Data Entry'!P145","v":0.39766081871345027},{"$f":"'CHVA Tool - Data Entry'!Q145","v":80}]
[{"$f":"'CHVA Tool - Data Entry'!A146","v":"Facilities for storing hazardous chemical waste"},{"$f":"'CHVA Tool - Data Entry'!B146","v":2},{"$f":"'CHVA Tool - Data Entry'!C146","v":2},{"$f":"'CHVA Tool - Data Entry'!D146","v":3},{"$f":"'CHVA Tool - Data Entry'!E146","v":1},{"$f":"'CHVA Tool - Data Entry'!F146","v":2},{"$f":"'CHVA Tool - Data Entry'!G146","v":3},{"$f":"'CHVA Tool - Data Entry'!H146","v":1},{"$f":"'CHVA Tool - Data Entry'!I146","v":1},{"$f":"'CHVA Tool - Data Entry'!J146","v":2},{"$f":"'CHVA Tool - Data Entry'!K146","v":1},{"$f":"'CHVA Tool - Data Entry'!L146","v":2},{"$f":"'CHVA Tool - Data Entry'!M146","v":2},{"$f":"'CHVA Tool - Data Entry'!N146","v":2},{"$f":"'CHVA Tool - Data Entry'!O146","v":0.39766081871345027},{"$f":"'CHVA Tool - Data Entry'!P146","v":0.39766081871345027},{"$f":"'CHVA Tool - Data Entry'!Q146","v":80}]
[{"$f":"'CHVA Tool - Data Entry'!A147","v":"Lighting"},{"$f":"'CHVA Tool - Data Entry'!B147","v":2},{"$f":"'CHVA Tool - Data Entry'!C147","v":2},{"$f":"'CHVA Tool - Data Entry'!D147","v":3},{"$f":"'CHVA Tool - Data Entry'!E147","v":1},{"$f":"'CHVA Tool - Data Entry'!F147","v":2},{"$f":"'CHVA Tool - Data Entry'!G147","v":3},{"$f":"'CHVA Tool - Data Entry'!H147","v":1},{"$f":"'CHVA Tool - Data Entry'!I147","v":1},{"$f":"'CHVA Tool - Data Entry'!J147","v":2},{"$f":"'CHVA Tool - Data Entry'!K147","v":1},{"$f":"'CHVA Tool - Data Entry'!L147","v":2},{"$f":"'CHVA Tool - Data Entry'!M147","v":2},{"$f":"'CHVA Tool - Data Entry'!N147","v":2},{"$f":"'CHVA Tool - Data Entry'!O147","v":0.39766081871345027},{"$f":"'CHVA Tool - Data Entry'!P147","v":0.39766081871345027},{"$f":"'CHVA Tool - Data Entry'!Q147","v":80}]
[{"$f":"'CHVA Tool - Data Entry'!A148","v":0},{"$f":"'CHVA Tool - Data Entry'!B148","v":0},{"$f":"'CHVA Tool - Data Entry'!C148","v":0},{"$f":"'CHVA Tool - Data Entry'!D148","v":0},{"$f":"'CHVA Tool - Data Entry'!E148","v":0},{"$f":"'CHVA Tool - Data Entry'!F148","v":0},{"$f":"'CHVA Tool - Data Entry'!G148","v":0},{"$f":"'CHVA Tool - Data Entry'!H148","v":0},{"$f":"'CHVA Tool - Data Entry'!I148","v":0},{"$f":"'CHVA Tool - Data Entry'!J148","v":0},{"$f":"'CHVA Tool - Data Entry'!K148","v":0},{"$f":"'CHVA Tool - Data Entry'!L148","v":0},{"$f":"'CHVA Tool - Data Entry'!M148","v":0},{"$f":"'CHVA Tool - Data Entry'!N148","v":0},{"$f":"'CHVA Tool - Data Entry'!O148","v":0},{"$f":"'CHVA Tool - Data Entry'!P148","v":0},{"$f":"'CHVA Tool - Data Entry'!Q148","v":0}]
[{"$f":"'CHVA Tool - Data Entry'!A149","v":0},{"$f":"'CHVA Tool - Data Entry'!B149","v":0},{"$f":"'CHVA Tool - Data Entry'!C149","v":0},{"$f":"'CHVA Tool - Data Entry'!D149","v":0},{"$f":"'CHVA Tool - Data Entry'!E149","v":0},{"$f":"'CHVA Tool - Data Entry'!F149","v":0},{"$f":"'CHVA Tool - Data Entry'!G149","v":0},{"$f":"'CHVA Tool - Data Entry'!H149","v":0},{"$f":"'CHVA Tool - Data Entry'!I149","v":0},{"$f":"'CHVA Tool - Data Entry'!J149","v":0},{"$f":"'CHVA Tool - Data Entry'!K149","v":0},{"$f":"'CHVA Tool - Data Entry'!L149","v":0},{"$f":"'CHVA Tool - Data Entry'!M149","v":0},{"$f":"'CHVA Tool - Data Entry'!N149","v":0},{"$f":"'CHVA Tool - Data Entry'!O149","v":0},{"$f":"'CHVA Tool - Data Entry'!P149","v":0},{"$f":"'CHVA Tool - Data Entry'!Q149","v":0}]
[{"$f":"'CHVA Tool - Data Entry'!A150","v":"Average: "},{"$f":"'CHVA Tool - Data Entry'!B150","v":2.1818181818181817},{"$f":"'CHVA Tool - Data Entry'!C150","v":2.1818181818181817},{"$f":"'CHVA Tool - Data Entry'!D150","v":3},{"$f":"'CHVA Tool - Data Entry'!E150","v":1},{"$f":"'CHVA Tool - Data Entry'!F150","v":2},{"$f":"'CHVA Tool - Data Entry'!G150","v":3},{"$f":"'CHVA Tool - Data Entry'!H150","v":1},{"$f":"'CHVA Tool - Data Entry'!I150","v":1},{"$f":"'CHVA Tool - Data Entry'!J150","v":2},{"$f":"'CHVA Tool - Data Entry'!K150","v":1},{"$f":"'CHVA Tool - Data Entry'!L150","v":2},{"$f":"'CHVA Tool - Data Entry'!M150","v":2},{"$f":"'CHVA Tool - Data Entry'!N150","v":2},{"$f":"'CHVA Tool - Data Entry'!O150","v":0},{"$f":"'CHVA Tool - Data Entry'!P150","v":0},{"$f":"'CHVA Tool - Data Entry'!Q150","v":0}]
[{"$f":"'CHVA Tool - Data Entry'!A151","v":"Other Events"},{"$f":"'CHVA Tool - Data Entry'!B151","v":0},{"$f":"'CHVA Tool - Data Entry'!C151","v":0},{"$f":"'CHVA Tool - Data Entry'!D151","v":0},{"$f":"'CHVA Tool - Data Entry'!E151","v":0},{"$f":"'CHVA Tool - Data Entry'!F151","v":0},{"$f":"'CHVA Tool - Data Entry'!G151","v":0},{"$f":"'CHVA Tool - Data Entry'!H151","v":0},{"$f":"'CHVA Tool - Data Entry'!I151","v":0},{"$f":"'CHVA Tool - Data Entry'!J151","v":0},{"$f":"'CHVA Tool - Data Entry'!K151","v":0},{"$f":"'CHVA Tool - Data Entry'!L151","v":0},{"$f":"'CHVA Tool - Data Entry'!M151","v":0},{"$f":"'CHVA Tool - Data Entry'!N151","v":0},{"$f":"'CHVA Tool - Data Entry'!O151","v":0},{"$f":"'CHVA Tool - Data Entry'!P151","v":0},{"$f":"'CHVA Tool - Data Entry'!Q151","v":0}]
[{"$f":"'CHVA Tool - Data Entry'!A152","v":"Airplane Crash"},{"$f":"'CHVA Tool - Data Entry'!B152","v":3},{"$f":"'CHVA Tool - Data Entry'!C152","v":3},{"$f":"'CHVA Tool - Data Entry'!D152","v":3},{"$f":"'CHVA Tool - Data Entry'!E152","v":3},{"$f":"'CHVA Tool - Data Entry'!F152","v":3},{"$f":"'CHVA Tool - Data Entry'!G152","v":2},{"$f":"'CHVA Tool - Data Entry'!H152","v":3},{"$f":"'CHVA Tool - Data Entry'!I152","v":1},{"$f":"'CHVA Tool - Data Entry'!J152","v":2},{"$f":"'CHVA Tool - Data Entry'!K152","v":1},{"$f":"'CHVA Tool - Data Entry'!L152","v":2},{"$f":"'CHVA Tool - Data Entry'!M152","v":2},{"$f":"'CHVA Tool - Data Entry'!N152","v":3},{"$f":"'CHVA Tool - Data Entry'!O152","v":0.7192982456140351},{"$f":"'CHVA Tool - Data Entry'!P152","v":0.7192982456140351},{"$f":"'CHVA Tool - Data Entry'!Q152","v":150}]
[{"$f":"'CHVA Tool - Data Entry'!A153","v":"Evacuation  "},{"$f":"'CHVA Tool - Data Entry'!B153","v":3},{"$f":"'CHVA Tool - Data Entry'!C153","v":3},{"$f":"'CHVA Tool - Data Entry'!D153","v":3},{"$f":"'CHVA Tool - Data Entry'!E153","v":3},{"$f":"'CHVA Tool - Data Entry'!F153","v":3},{"$f":"'CHVA Tool - Data Entry'!G153","v":2},{"$f":"'CHVA Tool - Data Entry'!H153","v":3},{"$f":"'CHVA Tool - Data Entry'!I153","v":1},{"$f":"'CHVA Tool - Data Entry'!J153","v":2},{"$f":"'CHVA Tool - Data Entry'!K153","v":1},{"$f":"'CHVA Tool - Data Entry'!L153","v":2},{"$f":"'CHVA Tool - Data Entry'!M153","v":2},{"$f":"'CHVA Tool - Data Entry'!N153","v":3},{"$f":"'CHVA Tool - Data Entry'!O153","v":0.7192982456140351},{"$f":"'CHVA Tool - Data Entry'!P153","v":0.7192982456140351},{"$f":"'CHVA Tool - Data Entry'!Q153","v":150}]
[{"$f":"'CHVA Tool - Data Entry'!A154","v":"Helicopter Incident"},{"$f":"'CHVA Tool - Data Entry'!B154","v":2},{"$f":"'CHVA Tool - Data Entry'!C154","v":1},{"$f":"'CHVA Tool - Data Entry'!D154","v":3},{"$f":"'CHVA Tool - Data Entry'!E154","v":3},{"$f":"'CHVA Tool - Data Entry'!F154","v":3},{"$f":"'CHVA Tool - Data Entry'!G154","v":2},{"$f":"'CHVA Tool - Data Entry'!H154","v":3},{"$f":"'CHVA Tool - Data Entry'!I154","v":1},{"$f":"'CHVA Tool - Data Entry'!J154","v":2},{"$f":"'CHVA Tool - Data Entry'!K154","v":1},{"$f":"'CHVA Tool - Data Entry'!L154","v":2},{"$f":"'CHVA Tool - Data Entry'!M154","v":2},{"$f":"'CHVA Tool - Data Entry'!N154","v":3},{"$f":"'CHVA Tool - Data Entry'!O154","v":0.47953216374269003},{"$f":"'CHVA Tool - Data Entry'!P154","v":0.23976608187134502},{"$f":"'CHVA Tool - Data Entry'!Q154","v":75}]
[{"$f":"'CHVA Tool - Data Entry'!A155","v":"Intentional Vehicular Incident"},{"$f":"'CHVA Tool - Data Entry'!B155","v":2},{"$f":"'CHVA Tool - Data Entry'!C155","v":1},{"$f":"'CHVA Tool - Data Entry'!D155","v":3},{"$f":"'CHVA Tool - Data Entry'!E155","v":3},{"$f":"'CHVA Tool - Data Entry'!F155","v":3},{"$f":"'CHVA Tool - Data Entry'!G155","v":2},{"$f":"'CHVA Tool - Data Entry'!H155","v":3},{"$f":"'CHVA Tool - Data Entry'!I155","v":1},{"$f":"'CHVA Tool - Data Entry'!J155","v":2},{"$f":"'CHVA Tool - Data Entry'!K155","v":1},{"$f":"'CHVA Tool - Data Entry'!L155","v":2},{"$f":"'CHVA Tool - Data Entry'!M155","v":2},{"$f":"'CHVA Tool - Data Entry'!N155","v":3},{"$f":"'CHVA Tool - Data Entry'!O155","v":0.47953216374269003},{"$f":"'CHVA Tool - Data Entry'!P155","v":0.23976608187134502},{"$f":"'CHVA Tool - Data Entry'!Q155","v":75}]
[{"$f":"'CHVA Tool - Data Entry'!A156","v":"Isolation Capacity"},{"$f":"'CHVA Tool - Data Entry'!B156","v":2},{"$f":"'CHVA Tool - Data Entry'!C156","v":1},{"$f":"'CHVA Tool - Data Entry'!D156","v":3},{"$f":"'CHVA Tool - Data Entry'!E156","v":3},{"$f":"'CHVA Tool - Data Entry'!F156","v":3},{"$f":"'CHVA Tool - Data Entry'!G156","v":2},{"$f":"'CHVA Tool - Data Entry'!H156","v":3},{"$f":"'CHVA Tool - Data Entry'!I156","v":1},{"$f":"'CHVA Tool - Data Entry'!J156","v":2},{"$f":"'CHVA Tool - Data Entry'!K156","v":1},{"$f":"'CHVA Tool - Data Entry'!L156","v":2},{"$f":"'CHVA Tool - Data Entry'!M156","v":2},{"$f":"'CHVA Tool - Data Entry'!N156","v":3},{"$f":"'CHVA Tool - Data Entry'!O156","v":0.47953216374269003},{"$f":"'CHVA Tool - Data Entry'!P156","v":0.23976608187134502},{"$f":"'CHVA Tool - Data Entry'!Q156","v":75}]
[{"$f":"'CHVA Tool - Data Entry'!A157","v":"Loss of Key Supplier"},{"$f":"'CHVA Tool - Data Entry'!B157","v":2},{"$f":"'CHVA Tool - Data Entry'!C157","v":2},{"$f":"'CHVA Tool - Data Entry'!D157","v":3},{"$f":"'CHVA Tool - Data Entry'!E157","v":3},{"$f":"'CHVA Tool - Data Entry'!F157","v":3},{"$f":"'CHVA Tool - Data Entry'!G157","v":2},{"$f":"'CHVA Tool - Data Entry'!H157","v":3},{"$f":"'CHVA Tool - Data Entry'!I157","v":1},{"$f":"'CHVA Tool - Data Entry'!J157","v":2},{"$f":"'CHVA Tool - Data Entry'!K157","v":1},{"$f":"'CHVA Tool - Data Entry'!L157","v":2},{"$f":"'CHVA Tool - Data Entry'!M157","v":2},{"$f":"'CHVA Tool - Data Entry'!N157","v":3},{"$f":"'CHVA Tool - Data Entry'!O157","v":0.47953216374269003},{"$f":"'CHVA Tool - Data Entry'!P157","v":0.47953216374269003},{"$f":"'CHVA Tool - Data Entry'!Q157","v":100}]
[{"$f":"'CHVA Tool - Data Entry'!A158","v":"Supply Shortage"},{"$f":"'CHVA Tool - Data Entry'!B158","v":2},{"$f":"'CHVA Tool - Data Entry'!C158","v":2},{"$f":"'CHVA Tool - Data Entry'!D158","v":3},{"$f":"'CHVA Tool - Data Entry'!E158","v":3},{"$f":"'CHVA Tool - Data Entry'!F158","v":3},{"$f":"'CHVA Tool - Data Entry'!G158","v":2},{"$f":"'CHVA Tool - Data Entry'!H158","v":3},{"$f":"'CHVA Tool - Data Entry'!I158","v":1},{"$f":"'CHVA Tool - Data Entry'!J158","v":2},{"$f":"'CHVA Tool - Data Entry'!K158","v":1},{"$f":"'CHVA Tool - Data Entry'!L158","v":2},{"$f":"'CHVA Tool - Data Entry'!M158","v":2},{"$f":"'CHVA Tool - Data Entry'!N158","v":3},{"$f":"'CHVA Tool - Data Entry'!O158","v":0.47953216374269003},{"$f":"'CHVA Tool - Data Entry'!P158","v":0.47953216374269003},{"$f":"'CHVA Tool - Data Entry'!Q158","v":100}]
[{"$f":"'CHVA Tool - Data Entry'!A159","v":0},{"$f":"'CHVA Tool - Data Entry'!B159","v":0},{"$f":"'CHVA Tool - Data Entry'!C159","v":0},{"$f":"'CHVA Tool - Data Entry'!D159","v":0},{"$f":"'CHVA Tool - Data Entry'!E159","v":0},{"$f":"'CHVA Tool - Data Entry'!F159","v":0},{"$f":"'CHVA Tool - Data Entry'!G159","v":0},{"$f":"'CHVA Tool - Data Entry'!H159","v":0},{"$f":"'CHVA Tool - Data Entry'!I159","v":0},{"$f":"'CHVA Tool - Data Entry'!J159","v":0},{"$f":"'CHVA Tool - Data Entry'!K159","v":0},{"$f":"'CHVA Tool - Data Entry'!L159","v":0},{"$f":"'CHVA Tool - Data Entry'!M159","v":0},{"$f":"'CHVA Tool - Data Entry'!N159","v":0},{"$f":"'CHVA Tool - Data Entry'!O159","v":0},{"$f":"'CHVA Tool - Data Entry'!P159","v":0},{"$f":"'CHVA Tool - Data Entry'!Q159","v":0}]
[{"$f":"'CHVA Tool - Data Entry'!A160","v":0},{"$f":"'CHVA Tool - Data Entry'!B160","v":0},{"$f":"'CHVA Tool - Data Entry'!C160","v":0},{"$f":"'CHVA Tool - Data Entry'!D160","v":0},{"$f":"'CHVA Tool - Data Entry'!E160","v":0},{"$f":"'CHVA Tool - Data Entry'!F160","v":0},{"$f":"'CHVA Tool - Data Entry'!G160","v":0},{"$f":"'CHVA Tool - Data Entry'!H160","v":0},{"$f":"'CHVA Tool - Data Entry'!I160","v":0},{"$f":"'CHVA Tool - Data Entry'!J160","v":0},{"$f":"'CHVA Tool - Data Entry'!K160","v":0},{"$f":"'CHVA Tool - Data Entry'!L160","v":0},{"$f":"'CHVA Tool - Data Entry'!M160","v":0},{"$f":"'CHVA Tool - Data Entry'!N160","v":0},{"$f":"'CHVA Tool - Data Entry'!O160","v":0},{"$f":"'CHVA Tool - Data Entry'!P160","v":0},{"$f":"'CHVA Tool - Data Entry'!Q160","v":0}]
[{"$f":"'CHVA Tool - Data Entry'!A161","v":0},{"$f":"'CHVA Tool - Data Entry'!B161","v":0},{"$f":"'CHVA Tool - Data Entry'!C161","v":0},{"$f":"'CHVA Tool - Data Entry'!D161","v":0},{"$f":"'CHVA Tool - Data Entry'!E161","v":0},{"$f":"'CHVA Tool - Data Entry'!F161","v":0},{"$f":"'CHVA Tool - Data Entry'!G161","v":0},{"$f":"'CHVA Tool - Data Entry'!H161","v":0},{"$f":"'CHVA Tool - Data Entry'!I161","v":0},{"$f":"'CHVA Tool - Data Entry'!J161","v":0},{"$f":"'CHVA Tool - Data Entry'!K161","v":0},{"$f":"'CHVA Tool - Data Entry'!L161","v":0},{"$f":"'CHVA Tool - Data Entry'!M161","v":0},{"$f":"'CHVA Tool - Data Entry'!N161","v":0},{"$f":"'CHVA Tool - Data Entry'!O161","v":0},{"$f":"'CHVA Tool - Data Entry'!P161","v":0},{"$f":"'CHVA Tool - Data Entry'!Q161","v":0}]
[{"$f":"'CHVA Tool - Data Entry'!A162","v":0},{"$f":"'CHVA Tool - Data Entry'!B162","v":0},{"$f":"'CHVA Tool - Data Entry'!C162","v":0},{"$f":"'CHVA Tool - Data Entry'!D162","v":0},{"$f":"'CHVA Tool - Data Entry'!E162","v":0},{"$f":"'CHVA Tool - Data Entry'!F162","v":0},{"$f":"'CHVA Tool - Data Entry'!G162","v":0},{"$f":"'CHVA Tool - Data Entry'!H162","v":0},{"$f":"'CHVA Tool - Data Entry'!I162","v":0},{"$f":"'CHVA Tool - Data Entry'!J162","v":0},{"$f":"'CHVA Tool - Data Entry'!K162","v":0},{"$f":"'CHVA Tool - Data Entry'!L162","v":0},{"$f":"'CHVA Tool - Data Entry'!M162","v":0},{"$f":"'CHVA Tool - Data Entry'!N162","v":0},{"$f":"'CHVA Tool - Data Entry'!O162","v":0},{"$f":"'CHVA Tool - Data Entry'!P162","v":0},{"$f":"'CHVA Tool - Data Entry'!Q162","v":0}]
[{"$f":"'CHVA Tool - Data Entry'!A163","v":0},{"$f":"'CHVA Tool - Data Entry'!B163","v":0},{"$f":"'CHVA Tool - Data Entry'!C163","v":0},{"$f":"'CHVA Tool - Data Entry'!D163","v":0},{"$f":"'CHVA Tool - Data Entry'!E163","v":0},{"$f":"'CHVA Tool - Data Entry'!F163","v":0},{"$f":"'CHVA Tool - Data Entry'!G163","v":0},{"$f":"'CHVA Tool - Data Entry'!H163","v":0},{"$f":"'CHVA Tool - Data Entry'!I163","v":0},{"$f":"'CHVA Tool - Data Entry'!J163","v":0},{"$f":"'CHVA Tool - Data Entry'!K163","v":0},{"$f":"'CHVA Tool - Data Entry'!L163","v":0},{"$f":"'CHVA Tool - Data Entry'!M163","v":0},{"$f":"'CHVA Tool - Data Entry'!N163","v":0},{"$f":"'CHVA Tool - Data Entry'!O163","v":0},{"$f":"'CHVA Tool - Data Entry'!P163","v":0},{"$f":"'CHVA Tool - Data Entry'!Q163","v":0}]
[{"$f":"'CHVA Tool - Data Entry'!A164","v":"Average: "},{"$f":"'CHVA Tool - Data Entry'!B164","v":2.2857142857142856},{"$f":"'CHVA Tool - Data Entry'!C164","v":1.8571428571428572},{"$f":"'CHVA Tool - Data Entry'!D164","v":3},{"$f":"'CHVA Tool - Data Entry'!E164","v":3},{"$f":"'CHVA Tool - Data Entry'!F164","v":3},{"$f":"'CHVA Tool - Data Entry'!G164","v":2},{"$f":"'CHVA Tool - Data Entry'!H164","v":3},{"$f":"'CHVA Tool - Data Entry'!I164","v":1},{"$f":"'CHVA Tool - Data Entry'!J164","v":2},{"$f":"'CHVA Tool - Data Entry'!K164","v":1},{"$f":"'CHVA Tool - Data Entry'!L164","v":2},{"$f":"'CHVA Tool - Data Entry'!M164","v":2},{"$f":"'CHVA Tool - Data Entry'!N164","v":3},{"$f":"'CHVA Tool - Data Entry'!O164","v":0},{"$f":"'CHVA Tool - Data Entry'!P164","v":0},{"$f":"'CHVA Tool - Data Entry'!Q164","v":0}]
[{"$f":"'CHVA Tool - Data Entry'!A165","v":"Overall Average: "},{"$f":"'CHVA Tool - Data Entry'!B165","v":2.0180720514053849},{"$f":"'CHVA Tool - Data Entry'!C165","v":1.9081683748350413},{"$f":"'CHVA Tool - Data Entry'!D165","v":2.2222222222222223},{"$f":"'CHVA Tool - Data Entry'!E165","v":2.1111111111111112},{"$f":"'CHVA Tool - Data Entry'!F165","v":2.1111111111111112},{"$f":"'CHVA Tool - Data Entry'!G165","v":2},{"$f":"'CHVA Tool - Data Entry'!H165","v":2.1196581196581197},{"$f":"'CHVA Tool - Data Entry'!I165","v":1.4444444444444444},{"$f":"'CHVA Tool - Data Entry'!J165","v":1.7777777777777777},{"$f":"'CHVA Tool - Data Entry'!K165","v":1.7777777777777777},{"$f":"'CHVA Tool - Data Entry'!L165","v":2},{"$f":"'CHVA Tool - Data Entry'!M165","v":2},{"$f":"'CHVA Tool - Data Entry'!N165","v":2.1111111111111112},{"$f":"'CHVA Tool - Data Entry'!O165","v":0},{"$f":"'CHVA Tool - Data Entry'!P165","v":0},{"$f":"'CHVA Tool - Data Entry'!Q165","v":0}]

{"sheet":"High Risk Events ","index":13,"n_rows":31,"n_cols":7,"rows_kept":31,"cut":false,"hidden":false,"merged":[]}
[{"$f":"'CHVA Tool - Data Entry'!A1:C1","v":"Children's Hospital Colorado"}]
[]
["The events listed below (Occurrence = 3, Response = 3) have the highest potential for occurrence and the highest potential for "]
["response.  Additional attention should be provided to these events to ensure that the facility is prepared.  "]
[]
["Recommendation:  Compare with the Top 20 Events when selecting exercise scenarios."]
["Recommendation:  Use the Action columns to document what you have done to for each event."]
[]
["High Risk Occurrence and Response Events ",null,null,"Mitigation Actions","Preparedness Actions","Response Actions","Recovery Actions"]
["Occurrence",3]
["Response",3]
[]
[null,"Min of Occurrence","Min of Response"]
["Active Shooter",3,3]
["Airplane Crash",3,3]
["Asbestos release during const. or renovation",3,3]
["Avalanche",3,3]
["Biological Attack – Aerosol Anthrax ",3,3]
["Biological Attack – Food Contamination ",3,3]
["Bomb Threat",3,3]
["Broken Water Main (External)",3,3]
["Broken Water Main (Internal)",3,3]
["Building/parking structure failure",3,3]
["Communications Failure",3,3]
["Dam Inundation",3,3]
["Decontamination",3,3]
["Evacuation  ",3,3]
["HAZMAT Spill (Internal)",3,3]
["Infant Security Alarm Failure",3,3]
["Proximity to Bridges",3,3]
["Proximity to nuclear power plants",3,3]

{"sheet":"High Occurrence & Response ","index":14,"n_rows":32,"n_cols":13,"rows_kept":32,"cut":false,"hidden":false,"merged":[]}
[{"$f":"'CHVA Tool - Data Entry'!A1:C1","v":"Children's Hospital Colorado"},null,null,null,null,null,null,{"$f":"A1","v":"Children's Hospital Colorado"}]
[]
["The events listed below have the highest potential for occurrence at your facility. ",null,null,null,null,null,null,"The events listed below have the highest potential for response at your facility. "]
[]
["Recommendation:  Use the Action columns to document what you have done to for each event.",null,null,null,null,null,null,"Recommendation:  Use the Action columns to document what you have done to for each event."]
[]
["High Risk Occurrence Events",null,"Mitigation Actions","Preparedness Actions","Response Actions","Recovery Actions",null,"High Risk Response Events",null,"Mitigation Actions","Preparedness Actions","Response Actions","Recovery Actions"]
["Occurrence",3,null,null,null,null,null,"Response",3]
[]
["type","Min of Occurrence",null,null,null,null,null,"Row Labels","Min of Response"]
["Active Shooter",3,null,null,null,null,null,"Active Shooter",3]
["Airplane Crash",3,null,null,null,null,null,"Airplane Crash",3]
["Asbestos release during const. or renovation",3,null,null,null,null,null,"Asbestos release during const. or renovation",3]
["Avalanche",3,null,null,null,null,null,"Avalanche",3]
["Biological Attack – Aerosol Anthrax ",3,null,null,null,null,null,"Biological Attack – Aerosol Anthrax ",3]
["Biological Attack – Food Contamination ",3,null,null,null,null,null,"Biological Attack – Food Contamination ",3]
["Biological Attack – Foreign Animal Disease ",3,null,null,null,null,null,"Bomb Threat",3]
["Biological Attack – Plague ",3,null,null,null,null,null,"Broken Water Main (External)",3]
["Bomb Threat",3,null,null,null,null,null,"Broken Water Main (Internal)",3]
["Broken Water Main (External)",3,null,null,null,null,null,"Building/parking structure failure",3]
["Broken Water Main (Internal)",3,null,null,null,null,null,"Communications Failure",3]
["Building/parking structure failure",3,null,null,null,null,null,"Compressed Gas Cylinder Leak/Failure",3]
["Communications Failure",3,null,null,null,null,null,"Dam Inundation",3]
["Dam Inundation",3,null,null,null,null,null,"Decontamination",3]
["Decontamination",3,null,null,null,null,null,"Electrical Failure",3]
["Evacuation  ",3,null,null,null,null,null,"Evacuation  ",3]
["HAZMAT Spill (Internal)",3,null,null,null,null,null,"HAZMAT Spill (Internal)",3]
["Infant Security Alarm Failure",3,null,null,null,null,null,"Infant Security Alarm Failure",3]
["Proximity to Bridges",3,null,null,null,null,null,"Information Systems Failure",3]
["Proximity to nuclear power plants",3,null,null,null,null,null,"Magnetic Resonance Imaging (MRI) Incident",3]
[null,null,null,null,null,null,null,"Proximity to Bridges",3]
[null,null,null,null,null,null,null,"Proximity to nuclear power plants",3]

{"sheet":"Documentation ","index":15,"n_rows":46,"n_cols":13,"rows_kept":46,"cut":false,"hidden":false,"merged":[]}
[{"$f":"'CHVA Tool - Data Entry'!A1","v":"Children's Hospital Colorado"},null,null,null,null,null,{"$f":"A1","v":"Children's Hospital Colorado"},null,null,null,null,{"$f":"A1","v":"Children's Hospital Colorado"}]
[]
[null,"SAMPLE Approvals",null,null,null,null,"SAMPLE Sign off Sheet",null,null,null,null,"SAMPLE Grid"]
[]
["Documentation to support participation in the review of the CHVA.",null,null,null,null,null,"List all participants who reviewed the CHVA",null,null,null,null,"Documentation on drills/events affecting the Top 10 "]
[]
["Date","Reviewed By",null,null,null,null,"Name","Organization","Date",null,null,"OCCURRENCE EVENTS","DATE"]
[null,null,null,null,null,null,"Tom Jones","Emergency Management","2013-08-05",null,null,{"$f":"'Top 20 Events'!B9","v":"Communications Failure"}]
["2013-08-05","Emergency Management Manager",null,null,null,null,null,null,null,null,null,{"$f":"'Top 20 Events'!B10","v":"Infant Security Alarm Failure"}]
[null,null,null,null,null,null,null,null,null,null,null,{"$f":"'Top 20 Events'!B11","v":"Evacuation  "}]
["2013-08-05","Senior Hospital Leader",null,null,null,null,null,null,null,null,null,{"$f":"'Top 20 Events'!B12","v":"Airplane Crash"}]
[null,null,null,null,null,null,null,null,null,null,null,{"$f":"'Top 20 Events'!B13","v":"HAZMAT Spill (Internal)"}]
["2013-08-05","Emergency Management Committee",null,null,null,null,null,null,null,null,null,{"$f":"'Top 20 Events'!B14","v":"Decontamination"}]
[null,null,null,null,null,null,null,null,null,null,null,{"$f":"'Top 20 Events'!B15","v":"Proximity to nuclear power plants"}]
["2013-08-05","Community Partners",null,null,null,null,null,null,null,null,null,{"$f":"'Top 20 Events'!B16","v":"Avalanche"}]
[null,null,null,null,null,null,null,null,null,null,null,{"$f":"'Top 20 Events'!B17","v":"Dam Inundation"}]
["2013-08-05","Environment of Care Committee",null,null,null,null,null,null,null,null,null,{"$f":"'Top 20 Events'!B18","v":"Active Shooter"}]
[null,null,null,null,null,null,null,null,null,null,null,"RESPONSE EVENTS","DATE"]
["2013-08-05","Quality/Risk Management Committee",null,null,null,null,null,null,null,null,null,{"$f":"'Top 20 Events'!E9","v":"Information Systems Failure"}]
[null,null,null,null,null,null,null,null,null,null,null,{"$f":"'Top 20 Events'!E10","v":"Magnetic Resonance Imaging (MRI) Incident"}]
["2013-08-05","Governing Board",null,null,null,null,null,null,null,null,null,{"$f":"'Top 20 Events'!E11","v":"Communications Failure"}]
[null,null,null,null,null,null,null,null,null,null,null,{"$f":"'Top 20 Events'!E12","v":"Infant Security Alarm Failure"}]
["2013-08-05","Approving Body",null,null,null,null,null,null,null,null,null,{"$f":"'Top 20 Events'!E13","v":"Evacuation  "}]
[null,null,null,null,null,null,null,null,null,null,null,{"$f":"'Top 20 Events'!E14","v":"Airplane Crash"}]
[null,"Others…",null,null,null,null,null,null,null,null,null,{"$f":"'Top 20 Events'!E15","v":"HAZMAT Spill (Internal)"}]
[null,null,null,null,null,null,null,null,null,null,null,{"$f":"'Top 20 Events'!E16","v":"Decontamination"}]
[null,null,null,null,null,null,null,null,null,null,null,{"$f":"'Top 20 Events'!E17","v":"Bomb Threat"}]
[null,null,null,null,null,null,null,null,null,null,null,{"$f":"'Top 20 Events'!E18","v":"Proximity to nuclear power plants"}]
[null,null,null,null,null,null,null,null,null,null,null,"NON-WEIGHTED TOTAL EVENTS","DATE"]
[null,null,null,null,null,null,null,null,null,null,null,{"$f":"'Top 20 Events'!H9","v":"Airplane Crash"}]
[null,null,null,null,null,null,null,null,null,null,null,{"$f":"'Top 20 Events'!H10","v":"Infant Security Alarm Failure"}]
["NOTE:  Each facility should determine who should review the CHVA.",null,null,null,null,null,null,null,null,null,null,{"$f":"'Top 20 Events'!H11","v":"Communications Failure"}]
["RECOMMENDATION:  Document review date with appropriate partners.",null,null,null,null,null,null,null,null,null,null,{"$f":"'Top 20 Events'!H12","v":"Evacuation  "}]
[null,null,null,null,null,null,null,null,null,null,null,{"$f":"'Top 20 Events'!H13","v":"Decontamination"}]
[null,null,null,null,null,null,null,null,null,null,null,{"$f":"'Top 20 Events'!H14","v":"HAZMAT Spill (Internal)"}]
[null,null,null,null,null,null,null,null,null,null,null,{"$f":"'Top 20 Events'!H15","v":"Avalanche"}]
[null,null,null,null,null,null,null,null,null,null,null,{"$f":"'Top 20 Events'!H16","v":"Dam Inundation"}]
[null,null,null,null,null,null,null,null,null,null,null,{"$f":"'Top 20 Events'!H17","v":"Bomb Threat"}]
[null,null,null,null,null,null,null,null,null,null,null,{"$f":"'Top 20 Events'!H18","v":"Proximity to Bridges"}]
[]
[]
[null,null,null,null,null,null,null,null,null,null,null,"Note:  The top ten are linked to the Top 20 Assessment tab and will change if updated."]
[null,null,null,null,null,null,null,null,null,null,null,"Recommendation:  Use this form ONLY when you are done with your changes."]
[]
[null,null,null,null,null,null,null,null,null,null,null,"Recommendation:  Use the highlighted events to tie your CHVA into drills/planning"]
[null,null,null,null,null,null,null,null,null,null,null,"            initiatives.  Use multiple events when designing a drill - challenge your program!"]

{"sheet":"AUTHOR","index":16,"n_rows":0,"n_cols":0,"rows_kept":0,"cut":false,"hidden":true,"merged":[]}

{"sheet":"GNU GPL","index":17,"n_rows":209,"n_cols":1,"rows_kept":209,"cut":false,"hidden":false,"merged":[]}
["GNU GENERAL PUBLIC LICENSE"]
[]
["Version 3, 29 June 2007"]
[]
["Copyright © 2007 Free Software Foundation, Inc. <http://fsf.org/>"]
[]
["Everyone is permitted to copy and distribute verbatim copies of this license document, but changing it is not allowed."]
[]
["Preamble"]
[]
["The GNU General Public License is a free, copyleft license for software and other kinds of works."]
[]
["The licenses for most software and other practical works are designed to take away your freedom to share and change the works. By contrast, the GNU General Public License is intended to guarantee your freedom to share and change all versions of a program--to make sure it remains free software for all its users. We, the Free Software Foundation, use the GNU General Public License for most of our software; it applies also to any other work released this way by its authors. You can apply it to your programs, too."]
[]
["When we speak of free software, we are referring to freedom, not price. Our General Public Licenses are designed to make sure that you have the freedom to distribute copies of free software (and charge for them if you wish), that you receive source code or can get it if you want it, that you can change the software or use pieces of it in new free programs, and that you know you can do these things."]
[]
["To protect your rights, we need to prevent others from denying you these rights or asking you to surrender the rights. Therefore, you have certain responsibilities if you distribute copies of the software, or if you modify it: responsibilities to respect the freedom of others."]
[]
["For example, if you distribute copies of such a program, whether gratis or for a fee, you must pass on to the recipients the same freedoms that you received. You must make sure that they, too, receive or can get the source code. And you must show them these terms so they know their rights."]
[]
["Developers that use the GNU GPL protect your rights with two steps: (1) assert copyright on the software, and (2) offer you this License giving you legal permission to copy, distribute and/or modify it."]
[]
["For the developers' and authors' protection, the GPL clearly explains that there is no warranty for this free software. For both users' and authors' sake, the GPL requires that modified versions be marked as changed, so that their problems will not be attributed erroneously to authors of previous versions."]
[]
["Some devices are designed to deny users access to install or run modified versions of the software inside them, although the manufacturer can do so. This is fundamentally incompatible with the aim of protecting users' freedom to change the software. The systematic pattern of such abuse occurs in the area of products for individuals to use, which is precisely where it is most unacceptable. Therefore, we have designed this version of the GPL to prohibit the practice for those products. If such problems arise substantially in other domains, we stand ready to extend this provision to those domains in future versions of the GPL, as needed to protect the freedom of users."]
[]
["Finally, every program is threatened constantly by software patents. States should not allow patents to restrict development and use of software on general-purpose computers, but in those that do, we wish to avoid the special danger that patents applied to a free program could make it effectively proprietary. To prevent this, the GPL assures that patents cannot be used to render the program non-free."]
[]
["The precise terms and conditions for copying, distribution and modification follow."]
[]
["TERMS AND CONDITIONS"]
[]
["0. Definitions."]
[]
["“This License” refers to version 3 of the GNU General Public License."]
[]
["“Copyright” also means copyright-like laws that apply to other kinds of works, such as semiconductor masks."]
[]
["“The Program” refers to any copyrightable work licensed under this License. Each licensee is addressed as “you”. “Licensees” and “recipients” may be individuals or organizations."]
[]
["To “modify” a work means to copy from or adapt all or part of the work in a fashion requiring copyright permission, other than the making of an exact copy. The resulting work is called a “modified version” of the earlier work or a work “based on” the earlier work."]
[]
["A “covered work” means either the unmodified Program or a work based on the Program."]
[]
["To “propagate” a work means to do anything with it that, without permission, would make you directly or secondarily liable for infringement under applicable copyright law, except executing it on a computer or modifying a private copy. Propagation includes copying, distribution (with or without modification), making available to the public, and in some countries other activities as well."]
[]
["To “convey” a work means any kind of propagation that enables other parties to make or receive copies. Mere interaction with a user through a computer network, with no transfer of a copy, is not conveying."]
[]
["An interactive user interface displays “Appropriate Legal Notices” to the extent that it includes a convenient and prominently visible feature that (1) displays an appropriate copyright notice, and (2) tells the user that there is no warranty for the work (except to the extent that warranties are provided), that licensees may convey the work under this License, and how to view a copy of this License. If the interface presents a list of user commands or options, such as a menu, a prominent item in the list meets this criterion."]
[]
["1. Source Code."]
[]
["The “source code” for a work means the preferred form of the work for making modifications to it. “Object code” means any non-source form of a work."]
[]
["A “Standard Interface” means an interface that either is an official standard defined by a recognized standards body, or, in the case of interfaces specified for a particular programming language, one that is widely used among developers working in that language."]
[]
["The “System Libraries” of an executable work include anything, other than the work as a whole, that (a) is included in the normal form of packaging a Major Component, but which is not part of that Major Component, and (b) serves only to enable use of the work with that Major Component, or to implement a Standard Interface for which an implementation is available to the public in source code form. A “Major Component”, in this context, means a major essential component (kernel, window system, and so on) of the specific operating system (if any) on which the executable work runs, or a compiler used to produce the work, or an object code interpreter used to run it."]
[]
["The “Corresponding Source” for a work in object code form means all the source code needed to generate, install, and (for an executable work) run the object code and to modify the work, including scripts to control those activities. However, it does not include the work's System Libraries, or general-purpose tools or generally available free programs which are used unmodified in performing those activities but which are not part of the work. For example, Corresponding Source includes interface definition files associated with source files for the work, and the source code for shared libraries and dynamically linked subprograms that the work is specifically designed to require, such as by intimate data communication or control flow between those subprograms and other parts of the work."]
[]
["The Corresponding Source need not include anything that users can regenerate automatically from other parts of the Corresponding Source."]
[]
["The Corresponding Source for a work in source code form is that same work."]
[]
["2. Basic Permissions."]
[]
["All rights granted under this License are granted for the term of copyright on the Program, and are irrevocable provided the stated conditions are met. This License explicitly affirms your unlimited permission to run the unmodified Program. The output from running a covered work is covered by this License only if the output, given its content, constitutes a covered work. This License acknowledges your rights of fair use or other equivalent, as provided by copyright law."]
[]
["You may make, run and propagate covered works that you do not convey, without conditions so long as your license otherwise remains in force. You may convey covered works to others for the sole purpose of having them make modifications exclusively for you, or provide you with facilities for running those works, provided that you comply with the terms of this License in conveying all material for which you do not control copyright. Those thus making or running the covered works for you must do so exclusively on your behalf, under your direction and control, on terms that prohibit them from making any copies of your copyrighted material outside their relationship with you."]
[]
["Conveying under any other circumstances is permitted solely under the conditions stated below. Sublicensing is not allowed; section 10 makes it unnecessary."]
[]
["3. Protecting Users' Legal Rights From Anti-Circumvention Law."]
[]
["No covered work shall be deemed part of an effective technological measure under any applicable law fulfilling obligations under article 11 of the WIPO copyright treaty adopted on 20 December 1996, or similar laws prohibiting or restricting circumvention of such measures."]
[]
["When you convey a covered work, you waive any legal power to forbid circumvention of technological measures to the extent such circumvention is effected by exercising rights under this License with respect to the covered work, and you disclaim any intention to limit operation or modification of the work as a means of enforcing, against the work's users, your or third parties' legal rights to forbid circumvention of technological measures."]
[]
["4. Conveying Verbatim Copies."]
[]
["You may convey verbatim copies of the Program's source code as you receive it, in any medium, provided that you conspicuously and appropriately publish on each copy an appropriate copyright notice; keep intact all notices stating that this License and any non-permissive terms added in accord with section 7 apply to the code; keep intact all notices of the absence of any warranty; and give all recipients a copy of this License along with the Program."]
[]
["You may charge any price or no price for each copy that you convey, and you may offer support or warranty protection for a fee."]
[]
["5. Conveying Modified Source Versions."]
[]
["You may convey a work based on the Program, or the modifications to produce it from the Program, in the form of source code under the terms of section 4, provided that you also meet all of these conditions:"]
[]
["a) The work must carry prominent notices stating that you modified it, and giving a relevant date."]
["b) The work must carry prominent notices stating that it is released under this License and any conditions added under section 7. This requirement modifies the requirement in section 4 to “keep intact all notices”."]
["c) You must license the entire work, as a whole, under this License to anyone who comes into possession of a copy. This License will therefore apply, along with any applicable section 7 additional terms, to the whole of the work, and all its parts, regardless of how they are packaged. This License gives no permission to license the work in any other way, but it does not invalidate such permission if you have separately received it."]
["d) If the work has interactive user interfaces, each must display Appropriate Legal Notices; however, if the Program has interactive interfaces that do not display Appropriate Legal Notices, your work need not make them do so."]
[]
["A compilation of a covered work with other separate and independent works, which are not by their nature extensions of the covered work, and which are not combined with it such as to form a larger program, in or on a volume of a storage or distribution medium, is called an “aggregate” if the compilation and its resulting copyright are not used to limit the access or legal rights of the compilation's users beyond what the individual works permit. Inclusion of a covered work in an aggregate does not cause this License to apply to the other parts of the aggregate."]
[]
["6. Conveying Non-Source Forms."]
[]
["You may convey a covered work in object code form under the terms of sections 4 and 5, provided that you also convey the machine-readable Corresponding Source under the terms of this License, in one of these ways:"]
[]
["a) Convey the object code in, or embodied in, a physical product (including a physical distribution medium), accompanied by the Corresponding Source fixed on a durable physical medium customarily used for software interchange."]
["b) Convey the object code in, or embodied in, a physical product (including a physical distribution medium), accompanied by a written offer, valid for at least three years and valid for as long as you offer spare parts or customer support for that product model, to give anyone who possesses the object code either (1) a copy of the Corresponding Source for all the software in the product that is covered by this License, on a durable physical medium customarily used for software interchange, for a price no more than your reasonable cost of physically performing this conveying of source, or (2) access to copy the Corresponding Source from a network server at no charge."]
["c) Convey individual copies of the object code with a copy of the written offer to provide the Corresponding Source. This alternative is allowed only occasionally and noncommercially, and only if you received the object code with such an offer, in accord with subsection 6b."]
["d) Convey the object code by offering access from a designated place (gratis or for a charge), and offer equivalent access to the Corresponding Source in the same way through the same place at no further charge. You need not require recipients to copy the Corresponding Source along with the object code. If the place to copy the object code is a network server, the Corresponding Source may be on a different server (operated by you or a third party) that supports equivalent copying facilities, provided you maintain clear directions next to the object code saying where to find the Corresponding Source. Regardless of what server hosts the Corresponding Source, you remain obligated to ensure that it is available for as long as needed to satisfy these requirements."]
["e) Convey the object code using peer-to-peer transmission, provided you inform other peers where the object code and Corresponding Source of the work are being offered to the general public at no charge under subsection 6d."]
[]
["A separable portion of the object code, whose source code is excluded from the Corresponding Source as a System Library, need not be included in conveying the object code work."]
[]
["A “User Product” is either (1) a “consumer product”, which means any tangible personal property which is normally used for personal, family, or household purposes, or (2) anything designed or sold for incorporation into a dwelling. In determining whether a product is a consumer product, doubtful cases shall be resolved in favor of coverage. For a particular product received by a particular user, “normally used” refers to a typical or common use of that class of product, regardless of the status of the particular user or of the way in which the particular user actually uses, or expects or is expected to use, the product. A product is a consumer product regardless of whether the product has substantial commercial, industrial or non-consumer uses, unless such uses represent the only significant mode of use of the product."]
[]
["“Installation Information” for a User Product means any methods, procedures, authorization keys, or other information required to install and execute modified versions of a covered work in that User Product from a modified version of its Corresponding Source. The information must suffice to ensure that the continued functioning of the modified object code is in no case prevented or interfered with solely because modification has been made."]
[]
["If you convey an object code work under this section in, or with, or specifically for use in, a User Product, and the conveying occurs as part of a transaction in which the right of possession and use of the User Product is transferred to the recipient in perpetuity or for a fixed term (regardless of how the transaction is characterized), the Corresponding Source conveyed under this section must be accompanied by the Installation Information. But this requirement does not apply if neither you nor any third party retains the ability to install modified object code on the User Product (for example, the work has been installed in ROM)."]
[]
["The requirement to provide Installation Information does not include a requirement to continue to provide support service, warranty, or updates for a work that has been modified or installed by the recipient, or for the User Product in which it has been modified or installed. Access to a network may be denied when the modification itself materially and adversely affects the operation of the network or violates the rules and protocols for communication across the network."]
[]
["Corresponding Source conveyed, and Installation Information provided, in accord with this section must be in a format that is publicly documented (and with an implementation available to the public in source code form), and must require no special password or key for unpacking, reading or copying."]
[]
["7. Additional Terms."]
[]
["“Additional permissions” are terms that supplement the terms of this License by making exceptions from one or more of its conditions. Additional permissions that are applicable to the entire Program shall be treated as though they were included in this License, to the extent that they are valid under applicable law. If additional permissions apply only to part of the Program, that part may be used separately under those permissions, but the entire Program remains governed by this License without regard to the additional permissions."]
[]
["When you convey a copy of a covered work, you may at your option remove any additional permissions from that copy, or from any part of it. (Additional permissions may be written to require their own removal in certain cases when you modify the work.) You may place additional permissions on material, added by you to a covered work, for which you have or can give appropriate copyright permission."]
[]
["Notwithstanding any other provision of this License, for material you add to a covered work, you may (if authorized by the copyright holders of that material) supplement the terms of this License with terms:"]
[]
["a) Disclaiming warranty or limiting liability differently from the terms of sections 15 and 16 of this License; or"]
["b) Requiring preservation of specified reasonable legal notices or author attributions in that material or in the Appropriate Legal Notices displayed by works containing it; or"]
["c) Prohibiting misrepresentation of the origin of that material, or requiring that modified versions of such material be marked in reasonable ways as different from the original version; or"]
["d) Limiting the use for publicity purposes of names of licensors or authors of the material; or"]
["e) Declining to grant rights under trademark law for use of some trade names, trademarks, or service marks; or"]
["f) Requiring indemnification of licensors and authors of that material by anyone who conveys the material (or modified versions of it) with contractual assumptions of liability to the recipient, for any liability that these contractual assumptions directly impose on those licensors and authors."]
[]
["All other non-permissive additional terms are considered “further restrictions” within the meaning of section 10. If the Program as you received it, or any part of it, contains a notice stating that it is governed by this License along with a term that is a further restriction, you may remove that term. If a license document contains a further restriction but permits relicensing or conveying under this License, you may add to a covered work material governed by the terms of that license document, provided that the further restriction does not survive such relicensing or conveying."]
[]
["If you add terms to a covered work in accord with this section, you must place, in the relevant source files, a statement of the additional terms that apply to those files, or a notice indicating where to find the applicable terms."]
[]
["Additional terms, permissive or non-permissive, may be stated in the form of a separately written license, or stated as exceptions; the above requirements apply either way."]
[]
["8. Termination."]
[]
["You may not propagate or modify a covered work except as expressly provided under this License. Any attempt otherwise to propagate or modify it is void, and will automatically terminate your rights under this License (including any patent licenses granted under the third paragraph of section 11)."]
[]
["However, if you cease all violation of this License, then your license from a particular copyright holder is reinstated (a) provisionally, unless and until the copyright holder explicitly and finally terminates your license, and (b) permanently, if the copyright holder fails to notify you of the violation by some reasonable means prior to 60 days after the cessation."]
[]
["Moreover, your license from a particular copyright holder is reinstated permanently if the copyright holder notifies you of the violation by some reasonable means, this is the first time you have received notice of violation of this License (for any work) from that copyright holder, and you cure the violation prior to 30 days after your receipt of the notice."]
[]
["Termination of your rights under this section does not terminate the licenses of parties who have received copies or rights from you under this License. If your rights have been terminated and not permanently reinstated, you do not qualify to receive new licenses for the same material under section 10."]
[]
["9. Acceptance Not Required for Having Copies."]
[]
["You are not required to accept this License in order to receive or run a copy of the Program. Ancillary propagation of a covered work occurring solely as a consequence of using peer-to-peer transmission to receive a copy likewise does not require acceptance. However, nothing other than this License grants you permission to propagate or modify any covered work. These actions infringe copyright if you do not accept this License. Therefore, by modifying or propagating a covered work, you indicate your acceptance of this License to do so."]
[]
["10. Automatic Licensing of Downstream Recipients."]
[]
["Each time you convey a covered work, the recipient automatically receives a license from the original licensors, to run, modify and propagate that work, subject to this License. You are not responsible for enforcing compliance by third parties with this License."]
[]
["An “entity transaction” is a transaction transferring control of an organization, or substantially all assets of one, or subdividing an organization, or merging organizations. If propagation of a covered work results from an entity transaction, each party to that transaction who receives a copy of the work also receives whatever licenses to the work the party's predecessor in interest had or could give under the previous paragraph, plus a right to possession of the Corresponding Source of the work from the predecessor in interest, if the predecessor has it or can get it with reasonable efforts."]
[]
["You may not impose any further restrictions on the exercise of the rights granted or affirmed under this License. For example, you may not impose a license fee, royalty, or other charge for exercise of rights granted under this License, and you may not initiate litigation (including a cross-claim or counterclaim in a lawsuit) alleging that any patent claim is infringed by making, using, selling, offering for sale, or importing the Program or any portion of it."]
[]
["11. Patents."]
[]
["A “contributor” is a copyright holder who authorizes use under this License of the Program or a work on which the Program is based. The work thus licensed is called the contributor's “contributor version”."]
[]
["A contributor's “essential patent claims” are all patent claims owned or controlled by the contributor, whether already acquired or hereafter acquired, that would be infringed by some manner, permitted by this License, of making, using, or selling its contributor version, but do not include claims that would be infringed only as a consequence of further modification of the contributor version. For purposes of this definition, “control” includes the right to grant patent sublicenses in a manner consistent with the requirements of this License."]
[]
["Each contributor grants you a non-exclusive, worldwide, royalty-free patent license under the contributor's essential patent claims, to make, use, sell, offer for sale, import and otherwise run, modify and propagate the contents of its contributor version."]
[]
["In the following three paragraphs, a “patent license” is any express agreement or commitment, however denominated, not to enforce a patent (such as an express permission to practice a patent or covenant not to sue for patent infringement). To “grant” such a patent license to a party means to make such an agreement or commitment not to enforce a patent against the party."]
[]
["If you convey a covered work, knowingly relying on a patent license, and the Corresponding Source of the work is not available for anyone to copy, free of charge and under the terms of this License, through a publicly available network server or other readily accessible means, then you must either (1) cause the Corresponding Source to be so available, or (2) arrange to deprive yourself of the benefit of the patent license for this particular work, or (3) arrange, in a manner consistent with the requirements of this License, to extend the patent license to downstream recipients. “Knowingly relying” means you have actual knowledge that, but for the patent license, your conveying the covered work in a country, or your recipient's use of the covered work in a country, would infringe one or more identifiable patents in that country that you have reason to believe are valid."]
[]
["If, pursuant to or in connection with a single transaction or arrangement, you convey, or propagate by procuring conveyance of, a covered work, and grant a patent license to some of the parties receiving the covered work authorizing them to use, propagate, modify or convey a specific copy of the covered work, then the patent license you grant is automatically extended to all recipients of the covered work and works based on it."]
[]
["A patent license is “discriminatory” if it does not include within the scope of its coverage, prohibits the exercise of, or is conditioned on the non-exercise of one or more of the rights that are specifically granted under this License. You may not convey a covered work if you are a party to an arrangement with a third party that is in the business of distributing software, under which you make payment to the third party based on the extent of your activity of conveying the work, and under which the third party grants, to any of the parties who would receive the covered work from you, a discriminatory patent license (a) in connection with copies of the covered work conveyed by you (or copies made from those copies), or (b) primarily for and in connection with specific products or compilations that contain the covered work, unless you entered into that arrangement, or that patent license was granted, prior to 28 March 2007."]
[]
["Nothing in this License shall be construed as excluding or limiting any implied license or other defenses to infringement that may otherwise be available to you under applicable patent law."]
[]
["12. No Surrender of Others' Freedom."]
[]
["If conditions are imposed on you (whether by court order, agreement or otherwise) that contradict the conditions of this License, they do not excuse you from the conditions of this License. If you cannot convey a covered work so as to satisfy simultaneously your obligations under this License and any other pertinent obligations, then as a consequence you may not convey it at all. For example, if you agree to terms that obligate you to collect a royalty for further conveying from those to whom you convey the Program, the only way you could satisfy both those terms and this License would be to refrain entirely from conveying the Program."]
[]
["13. Use with the GNU Affero General Public License."]
[]
["Notwithstanding any other provision of this License, you have permission to link or combine any covered work with a work licensed under version 3 of the GNU Affero General Public License into a single combined work, and to convey the resulting work. The terms of this License will continue to apply to the part which is the covered work, but the special requirements of the GNU Affero General Public License, section 13, concerning interaction through a network will apply to the combination as such."]
[]
["14. Revised Versions of this License."]
[]
["The Free Software Foundation may publish revised and/or new versions of the GNU General Public License from time to time. Such new versions will be similar in spirit to the present version, but may differ in detail to address new problems or concerns."]
[]
["Each version is given a distinguishing version number. If the Program specifies that a certain numbered version of the GNU General Public License “or any later version” applies to it, you have the option of following the terms and conditions either of that numbered version or of any later version published by the Free Software Foundation. If the Program does not specify a version number of the GNU General Public License, you may choose any version ever published by the Free Software Foundation."]
[]
["If the Program specifies that a proxy can decide which future versions of the GNU General Public License can be used, that proxy's public statement of acceptance of a version permanently authorizes you to choose that version for the Program."]
[]
["Later license versions may give you additional or different permissions. However, no additional obligations are imposed on any author or copyright holder as a result of your choosing to follow a later version."]
[]
["15. Disclaimer of Warranty."]
[]
["THERE IS NO WARRANTY FOR THE PROGRAM, TO THE EXTENT PERMITTED BY APPLICABLE LAW. EXCEPT WHEN OTHERWISE STATED IN WRITING THE COPYRIGHT HOLDERS AND/OR OTHER PARTIES PROVIDE THE PROGRAM “AS IS” WITHOUT WARRANTY OF ANY KIND, EITHER EXPRESSED OR IMPLIED, INCLUDING, BUT NOT LIMITED TO, THE IMPLIED WARRANTIES OF MERCHANTABILITY AND FITNESS FOR A PARTICULAR PURPOSE. THE ENTIRE RISK AS TO THE QUALITY AND PERFORMANCE OF THE PROGRAM IS WITH YOU. SHOULD THE PROGRAM PROVE DEFECTIVE, YOU ASSUME THE COST OF ALL NECESSARY SERVICING, REPAIR OR CORRECTION."]
[]
["16. Limitation of Liability."]
[]
["IN NO EVENT UNLESS REQUIRED BY APPLICABLE LAW OR AGREED TO IN WRITING WILL ANY COPYRIGHT HOLDER, OR ANY OTHER PARTY WHO MODIFIES AND/OR CONVEYS THE PROGRAM AS PERMITTED ABOVE, BE LIABLE TO YOU FOR DAMAGES, INCLUDING ANY GENERAL, SPECIAL, INCIDENTAL OR CONSEQUENTIAL DAMAGES ARISING OUT OF THE USE OR INABILITY TO USE THE PROGRAM (INCLUDING BUT NOT LIMITED TO LOSS OF DATA OR DATA BEING RENDERED INACCURATE OR LOSSES SUSTAINED BY YOU OR THIRD PARTIES OR A FAILURE OF THE PROGRAM TO OPERATE WITH ANY OTHER PROGRAMS), EVEN IF SUCH HOLDER OR OTHER PARTY HAS BEEN ADVISED OF THE POSSIBILITY OF SUCH DAMAGES."]
[]
["17. Interpretation of Sections 15 and 16."]
[]
["If the disclaimer of warranty and limitation of liability provided above cannot be given local legal effect according to their terms, reviewing courts shall apply local law that most closely approximates an absolute waiver of all civil liability in connection with the Program, unless a warranty or assumption of liability accompanies a copy of the Program in return for a fee."]
[]
["END OF TERMS AND CONDITIONS"]